Workbook

Sheet Front
L23: Paulo Anciaes
L24: Centre for Transport Studies, UCL
L25: p.anciaes@ucl.ac.uk

Sheet How To
A1: HOW TO USE THE TOOL
C4: What is this tool for?
B5: ¢ | C5: This tool estimates the value of policy interventions to reduce community severance (the barrier effect) caused by roads, including changes to road design, traffic, and crossing facilities
C7: How are the values calculated?
B8: ¢ | C8: The values were estimated with a combined stated preference and revealed preference approach, used in a survey to 650 individuals living near busy roads in two towns in England (Hereford and Hull).
B9: ¢ | C9: Severance is calculated at each point along the road. It is assumed that severance originates from the road conditions at that point AND the possibility of walking along the road to cross in a place with better road conditions or with crossing facilities
B10: ¢ | C10: The methods are documented in Anciaes and Jones (2020) A comprehensive approach for the appraisal of the barrier effect of roads on pedestrians. Transportation Research Part A 134, 227-250.
C12: What is inside the tool?
B13: ¢ | C13: This tool has 3 inputs pages (Direct, Demand, and Design) , 1 Output page, 1 Notes page and hidden pages with hard-coded inputs and calculations.
C15: How to use the tool?
B16: ¢ | C16: Quick assessment: if you have minimal data, fill it in the Direct page and then see the results in the Output page. See diagram below
B17: ¢ | C17: Detailed assessment: if you have detailed data, fill the Direct page first, then fill the Demand and Design pages and see the Output page. See more information below
B18: ¢ | C18: In all input pages, the cells in green are inputs that can be filled:
C20: Who funded this work?
B21: ¢ | C21: The approach to derive the values was developed as part of two research projects, the first funded by UK Research Councils (EPSRC, ESRC, AHRC), and the second funded by the European Union
B22: ¢ | C22: The survey in Hereford and Hull and further development of the methods was funded by Highways England
B23: ¢ | C23: This tool was funded by the EPSRC Impact Acceleration Award and Transport for Greater Manchester
C25: Where can I get more information?
B26: ¢ | C26: The Notes page contain more information about the types of roads and crossing facilities included in this tool
B27: ¢ | C27: A detailed user guide, with examples of applications, will be produced once we receive enough feedback from users
B32: DIRECT | N32: OUTPUT
C34: In this page, the tool user can fill all the inputs in a direct, uncomplicated way, with minimal data: | O34: In this page, the tool user can see all the outputs of the tool
B36: ¢ | C36: Length of the road segment and total potential demand for trips crossing the road | N36: ¢ | O36: A list of indicators assessing each option for the whole road segment, including a Severance Index, total cost of severance in each option, and increase in the number of trips
B37: ¢ | C37: Road and traffic characteristics in the do-nothing alternative and up to 3 options for interventions, including number of lanes, central reservation, and traffic density and speed
O38: ¢ | P38: Severance Index (0-100)
B39: ¢ | C39: Type of crossing facilities in the 2 extreme points of the road segment and in the middle point - choosing from pedestrian refuge, straight signalised, staggered signalised, footbridge, and underpass | O39: ¢ | P39: Severance cost per trip
O40: ¢ | P40: Average detour and delay per trip
O41: ¢ | P41: Number of trips crossing informally and number crossing in crossing facilities
C42: After filling this information, the tool user can see the results in the Outputs page or, if more detailed information is available, fill it in the Demand and Design page | O42: ¢ | P42: Number of suppressed trips because of severance
O43: ¢ | P43: Total severance cost and total benefit comparing with Do Nothing option
N45: ¢ | O45: The distribution of these indicators along the road segment
I48: DEMAND
J50: In this page, the tool user can fill detailed information about the demand for trips crossing the road
J51: This requires considering the potential of both sides of the road for generating trips to destinations located along the road (e.g. bus stops) and beyond
I54: ¢ | J54: Who wants to make those trips? (Age groups)
I55: ¢ | J55: How? (Walking speed)
I56: ¢ | J56: Why? (Trip purpose)
I57: ¢ | J57: Where? (Which part of the road needs to be crossed)
J59: After filling this information, the tool user can see the results in the Outputs page or go to Design page
I62: DESIGN
J64: In this page, the tool user can fill information about the design on the interventions in all points along the segment.
I66: ¢ | J66: How road and traffic characteristics vary along the road segment
I67: ¢ | J67: Existence of guard railings in some points along the segment
I68: ¢ | J68: Existence and type of crossing facilities in any point along the segment
I69: ¢ | J69: Waiting time at pedestrian refuges and signalised crossings
J71: After filling this information, the tool user can see the results in the Outputs page or go to Design page

Sheet Note
A1: NOTE
A2: ROAD CHARACTERISTICS AND CROSSING FACILITIES SUPPORTED BY THE TOOL
B4: ROAD DESIGN AND TRAFFIC DENSITY
C7: ROAD DESIGN AND TRAFFIC DENSITY
L17: 2 lanes | T17: 1 lane
L27: narrow central reservation | T27: wide central reservation
L37: medium traffic density | T37: low traffic density
B40: TRAFFIC SPEED
L42: The following values are supported:
L43: When choosing inputs, please consider that traffic speed depends on traffic density
L44: The combination of high traffic density with 40mph is unrealistic, because of congestion
L46: 10 | M46: mph | O46: =1.60934*L46 -> 16 | P46: km/h
L47: 20 | M47: mph | O47: =1.60934*L47 -> 32 | P47: km/h
L48: 30 | M48: mph | O48: =1.60934*L48 -> 48 | P48: km/h
L49: 40 | M49: mph | O49: =1.60934*L49 -> 64 | P49: km/h
B53: CROSSING FACILITIES
C55: The tool supports the assessment of the crosing facilities represented below
C56: The tool does not support the assessment of zebras (marked unsignalised crossings) or signalised crossings other than pelicans (e.g. puffins, toucans)
C58: PEDESTRIAN PLATFORM | G58: PEDESTRIAN REFUGE | K58: STRAIGHT PELICAN | O58: STAGGERED PELICAN | S58: FOOTBRIDGE | W58: UNDERPASS
C67: A place where the road goes through a tunnel and pedestrians can cross at the surface | G67: Combination of a traffic island with dropped kerbs (and possible colour/tactile warnings). Not signalised | K67: Signalised crossing where user can push button to wait for green | O67: 2-stage pelican crossing, with an offset in the middle. Also known as Danish offset | S67: Bridge over road, with steps and ramp | W67: Subway under road, with steps and ramp

Sheet Direct
A1: DIRECT
B3: STEP 1
E4: Insert general information about the road and projects
C5: ¢ | D5: TIP: Demand is the sum of all walking trips by all people. It is recommended the tool is used in roads with values above 1,000/day
C6: ¢ | D6: TIP: Demand of trips depends on factor such as land uses on both sides of the road and location of bus stops along the road
D8: Name of the road segment | F8: Euston Road
D9: Road segment length (100-5000m) | F9: 800 | G9: metres | H9: If left blank, the tool will assume a default value of: 1000m
D10: Demand for walking trips | F10: 10,000 | G10: walking trips/day | H10: Have more detailed information? Fill it in Demand page
F11: 5
D12: Lifetime of the projects | F12: 5 | G12: years | H12: If demand left blank, the tool will use a default value of 1,000
D13: Annual discount rate | F13: 5 | G13: % | H13: If left blank, the tool will assume a default value of 10 years
D14: Country | F14: United Kingdom | H14: Choose from dropdown menu
B17: STEP 2
E18: Choose road conditions for each option from dropdown menus in green cells below
F19: Want to insert more detailed information? Do it in Design page
E21: Number of lanes | F21: Central reservation | G21: Traffic density | H21: Traffic speed
D22: choose from | E22: 1,2,3 (each direction) | F22: wide, narrow, no | G22: low, medium, high | H22: 10, 20, 30, 40 mph
D24: Do-nothing | E24: 3 | F24: no | G24: high | H24: 40
D25: Option 1 | E25: 1 | F25: no | G25: high | H25: 40
D26: Option 2 | E26: 3 | F26: no | G26: low | H26: 40
D27: Option 3 | E27: 3 | F27: no | G27: high | H27: 40
B30: STEP 3
E31: Choose crossing facilities in the middle and extreme points of the road segment from dropdown menus in green cells below
F32: Leave blank if there are no facilities
F33: Want to insert more detailed information? Do it in Design page
E35: Extreme Point | F35: Middle | G35: Extreme Point | I35: Choose from
D36: Do-nothing | E36: Underpass | I36: Pedestrian refuge
D37: Option 1 | E37: Underpass | I37: Straight pelican
D38: Option 2 | E38: Underpass | I38: Staggered pelican
D39: Option 3 | E39: Underpass | G39: Straight pelican | I39: Footbridge
I40: Underpass

Sheet Demand
A1: DEMAND
D3: ="In the Direct page, you said that the demand was " & Direct!F10 & " walking trips per day" -> In the Direct page, you said that the demand was 10000 walking trips per day
D5: ="If you have information on who wants to make those " & Direct!F10 & " trips (age group), how (walking speed) and why (trip purpose), please fill it below" -> If you have information on who wants to make those 10000 trips (age group), how (walking speed) and why (trip purpose), please fill it below
C6: ¢ | D6: TIP: Examples of leisure trips: trips to restaurants/pubs/cafés; parks/playing fields/community/leisure centres, house of friends or relatives
D8: WHO WANTS TO WALK | M8: WHY THEY WALK
E10: What is the % of each age group in total demand? | O10: What is the % of each trip purpose in the trips made by each age group?
G12: =IF($E$18=0,"!! You did not specify any value. The tool will allocate the values as follows",IF($E$18<100,"!! Total adds to " & $E$18 & "%. Please reassign the remaining " & 100-$E$18 &"%. Otherwise, the tool will allocate the values:",IF($E$18>100,"!! Total adds to " & $E$18 & "%. Please remove " & $E$18-100 &"%. Otherwise, the tool will allocate the values:",""))) -> !! You did not specify any value. The tool will allocate the values as follows | N12: Age 18-34
D14: Age 18-34 | J14: =IF($G$12="","",IF($E$18=0,100/3,100*E14/$E$18)) -> 33 | K14: =IF($G$12="","","%") -> % | O14: Work | Q14: % | R14: =IF($P$17=0,"!! You did not specify any value. The tool will allocate the values as follows",IF($P$17<100,"!! Total adds to " & $P$17 & "%. Please reassign the remaining " & 100-$P$17 &"%. Otherwise, the tool will allocate the values as follows",IF($P$17>100,"!! Total adds to " & $P$17 & "%. Please remove " & $P$17-100 &"%. Otherwise, the tool will allocate the values:",""))) -> !! You did not specify any value. The tool will allocate the values as follows | V14: =IF($R$14="","",IF($P$17=0,100/3,100*P14/$P$17)) -> 33 | W14: =IF($R$14="","","%") -> %
D15: Age 35-64 | F15: % | J15: =IF($G$12="","",IF($E$18=0,100/3,100*E15/$E$18)) -> 33 | K15: =IF($G$12="","","%") -> % | O15: Shopping | Q15: % | V15: =IF($R$14="","",IF($P$17=0,100/3,100*P15/$P$17)) -> 33 | W15: =IF($R$14="","","%") -> %
D16: Age 65+ | F16: % | J16: =IF($G$12="","",IF($E$18=0,100/3,100*E16/$E$18)) -> 33 | K16: =IF($G$12="","","%") -> % | O16: Leisure | Q16: % | V16: =IF($R$14="","",IF($P$17=0,100/3,100*P16/$P$17)) -> 33 | W16: =IF($R$14="","","%") -> %
I17: =IF($G$12="","","Total") -> Total | J17: =IF($G$12="","",J14+J15+J16) -> 100 | K17: =IF($G$12="","","%") -> % | O17: Total | P17: =P14+P15+P16 -> 0 | Q17: % | U17: =IF($R$14="","","Total") -> Total | V17: =IF($R$14="","",V14+V15+V16) -> 100 | W17: =IF($R$14="","","%") -> %
D18: Total | E18: =E14+E15+E16 -> 0 | F18: %
N19: Age 35-64
O21: Work | Q21: % | R21: =IF($P$24=0,"!! You did not specify any value. The tool will allocate the values as follows",IF($P$24<100,"!! Total adds to " & $P$24 & "%. Please reassign the remaining " & 100-$P$24 &"%. Otherwise, the tool will allocate the values as follows",IF($P$24>100,"!! Total adds to " & $P$24 & "%. Please remove " & $P$24-100 &"%. Otherwise, the tool will allocate the values:",""))) -> !! You did not specify any value. The tool will allocate the values as follows | V21: =IF($R$21="","",IF($P$24=0,100/3,100*P21/$P$24)) -> 33 | W21: =IF($R$21="","","%") -> %
D22: HOW THEY WALK | O22: Shopping | Q22: % | V22: =IF($R$21="","",IF($P$24=0,100/3,100*P22/$P$24)) -> 33 | W22: =IF($R$21="","","%") -> %
O23: Leisure | Q23: % | V23: =IF($R$21="","",IF($P$24=0,100/3,100*P23/$P$24)) -> 33 | W23: =IF($R$21="","","%") -> %
E24: The tool uses a default walking speed of 4.86 km/h. Here you can specify different values | O24: Total | P24: =P21+P22+P23 -> 0 | Q24: % | U24: =IF($R$21="","","Total") -> Total | V24: =IF($R$21="","",V21+V22+V23) -> 100 | W24: =IF($R$21="","","%") -> %
N26: Age 65+
D28: Age 18-34 | F28: km/h | G28: =IF(OR(E28="",E29="",E30=""),"!! You did not specify at least one of the values. The tool will allocate the values as follows","") -> !! You did not specify at least one of the values. The tool will allocate the values as follows | J28: =IF($E28="",4.86,"") -> 4.86 | K28: =IF($E28="","km/h","") -> km/h | O28: Shopping | Q28: % | R28: =IF($P$30=0,"!! You did not specify any value. The tool will allocate the values as follows",IF($P$30<100,"!! Total adds to " & $P$30 & "%. Please reassign the remaining " & 100-$P$30 &"%. Otherwise, the tool will allocate the values as follows",IF($P$30>100,"!! Total adds to " & $P$30 & "%. Please remove " & $P$30-100 &"%. Otherwise, the tool will allocate the values:",""))) -> !! You did not specify any value. The tool will allocate the values as follows | V28: =IF($R$28="","",IF($Q$31=0,100/2,100*P28/$Q$31)) -> 50 | W28: =IF($R$28="","","%") -> %
D29: Age 35-64 | F29: km/h | J29: =IF($E29="",4.86,"") -> 4.86 | K29: km/h | O29: Leisure | Q29: % | V29: =IF($R$28="","",IF($Q$31=0,100/2,100*P29/$Q$31)) -> 50 | W29: =IF($R$28="","","%") -> %
D30: Age 65+ | F30: km/h | J30: =IF($E30="",3.06,"") -> 3.06 | K30: km/h | O30: Total | P30: =P28+P29 -> 0 | Q30: % | U30: =IF($R$28="","","Total") -> Total | V30: =IF($R$28="","",V28+V29) -> 100 | W30: =IF($R$28="","","%") -> %
C36: ="If you have information on the location where those " & Direct!F10 & " trips would ideally cross the road, please fill it below" -> If you have information on the location where those 10000 trips would ideally cross the road, please fill it below
B37: ¢ | C37: TIP: Please think of an ideal world, where the road cause no severance at all. Pedestrians would cross at their desire lines, i.e. using the most direct route across the road to go from their origins to their destinations
C39: WHERE THEY CROSS THE ROAD
D41: EXTREME POINT | N41: MIDDLE POINT | X41: EXTREME POINT
C42: distance from left extreme point (m) | D42: 0 | E42: =D42+length/20 -> 50 | F42: 100 | G42: 150 | H42: 200 | I42: 250 | J42: 300 | K42: 350 | L42: 400 | M42: 450 | N42: 500 | O42: 550 | P42: 600 | Q42: 650 | R42: 700 | S42: 750 | T42: 800 | U42: 850 | V42: 900 | W42: 950 | X42: 1000
C43: ROAD
C44: Demand for walking trips (%) | Y44: =SUM(D44:X44) -> 0
D45: % | E45: % | F45: % | G45: % | H45: % | I45: % | J45: % | K45: % | L45: % | M45: % | N45: % | O45: % | P45: % | Q45: % | R45: % | S45: % | T45: % | U45: % | V45: % | W45: % | X45: % | Y45: %
Y46: Total
D47: =IF($Y$44=0,"!! You did not specify any value",IF($Y$44<100,"!! Total adds to " & $Y$44 & "%. Please reassign the remaining " & 100-$Y$44 &"%",IF($Y$44>100,"!! Total adds to " & $Y$44 & "%. Please remove " & $Y$44-100 &"%",""))) -> !! You did not specify any value
D48: =IF($Y$44=0,"The tool will allocate the values as follows",IF($Y$44<>100,"Otherwise, the tool will allocate the values as follows:","")) -> The tool will allocate the values as follows | Y48: =IF($D$47="","","Total") -> Total
D49: =IF($D$47="","",IF($Y$44=0,100/21,100*D44/$Y$44)) -> 4.8 | E49: =IF($D$47="","",IF($Y$44=0,100/21,100*E44/$Y$44)) -> 4.8 | F49: 4.8 | G49: 4.8 | H49: 4.8 | I49: 4.8 | J49: =IF($D$47="","",IF($Y$44=0,100/21,100*J44/$Y$44)) -> 4.8 | K49: 4.8 | L49: 4.8 | M49: 4.8 | N49: 4.8 | O49: 4.8 | P49: 4.8 | Q49: 4.8 | R49: 4.8 | S49: 4.8 | T49: 4.8 | U49: 4.8 | V49: 4.8 | W49: 4.8 | X49: 4.8 | Y49: =IF($D$47="","",SUM(D49:X49)) -> 100
D50: =IF($D$47="","","%") -> % | E50: =IF($D$47="","","%") -> % | F50: % | G50: % | H50: % | I50: % | J50: % | K50: % | L50: % | M50: % | N50: % | O50: % | P50: % | Q50: % | R50: % | S50: % | T50: % | U50: % | V50: % | W50: % | X50: % | Y50: %

Sheet Design
A1: DESIGN
C3: In the Quick tool, you specified the general road and traffic characteristics in the Do-Nothing and in the 3 options.
C4: In this page, you can add more detail by changing these characteristics in some parts of the road segment
C5: You can also identify the parts of the road where there are guard railings or other physical barriers to movement across the road
B6: ¢ | C6: TIP: You may want to assign a slower speed and higher traffic density near juntions, to account for cars platooning at traffic signals. Near junctions, the number of lanes may also increase.
B7: ¢ | C7: TIP: A traffic island for pedestrians may exist in a specific point along the road. That counts as a "central reservation"
B8: ¢ | C8: TIP: The default is what you specified in the Quick page. Click on the CLEAN buttons to revert to the default
C10: In the Quick tool, you also specified the crossing facilities that exist in the extreme points of the road segment and in the middle point, in the do-nothing and in the 3 options.
C11: In this page, you can add more detail by specifying crossing facilities that are not in those points.
C12: If you choose signalised crossings or pedestrian refuges, you can also add average waiting time for pedestrians to cross the road
C14: Legend: | D14: R | E14: Pedestrian refuge
D15: P | E15: Straight pelican
D16: S | E16: Staggered pelican
D17: F | E17: Footbridge
D18: U | E18: Underpass
E21: Add information about road and crossing facilities in the road segment representations below
E22: The 2 extreme points and middle point of the segment are identified above the representation. Below, you can see the distance from each point to the left extreme point of the segment
D23: ¢ | E23: TIP: Press the CLEAN button to copy over the default values for the whole segment that you specified in the Direct page. You can then change the cells one by one, as required
C25: DO NOTHING
D27: EXTREME POINT | N27: MIDDLE POINT | X27: EXTREME POINT
C28: distance from left extreme point (m) | D28: 0 | E28: =D28+length/20 -> 50 | F28: 100 | G28: 150 | H28: 200 | I28: 250 | J28: 300 | K28: 350 | L28: 400 | M28: 450 | N28: 500 | O28: 550 | P28: 600 | Q28: 650 | R28: 700 | S28: 750 | T28: 800 | U28: 850 | V28: 900 | W28: 950 | X28: 1000
C29: Number of lanes | D29: =Direct!$E$24 -> 3 | E29: 3 | F29: =Direct!$E$24 -> 3 | G29: =Direct!$E$24 -> 3 | H29: =Direct!$E$24 -> 3 | I29: =Direct!$E$24 -> 3 | J29: =Direct!$E$24 -> 3 | K29: =Direct!$E$24 -> 3 | L29: =Direct!$E$24 -> 3 | M29: =Direct!$E$24 -> 3 | N29: =Direct!$E$24 -> 3 | O29: =Direct!$E$24 -> 3 | P29: =Direct!$E$24 -> 3 | Q29: =Direct!$E$24 -> 3 | R29: =Direct!$E$24 -> 3 | S29: =Direct!$E$24 -> 3 | T29: =Direct!$E$24 -> 3 | U29: =Direct!$E$24 -> 3 | V29: =Direct!$E$24 -> 3 | W29: =Direct!$E$24 -> 3 | X29: =Direct!$E$24 -> 3
C30: Central reservation | D30: =Direct!$F$24 -> no | E30: =Direct!$F$24 -> no | F30: =Direct!$F$24 -> no | G30: =Direct!$F$24 -> no | H30: =Direct!$F$24 -> no | I30: =Direct!$F$24 -> no | J30: =Direct!$F$24 -> no | K30: =Direct!$F$24 -> no | L30: =Direct!$F$24 -> no | M30: =Direct!$F$24 -> no | N30: =Direct!$F$24 -> no | O30: =Direct!$F$24 -> no | P30: =Direct!$F$24 -> no | Q30: =Direct!$F$24 -> no | R30: =Direct!$F$24 -> no | S30: =Direct!$F$24 -> no | T30: =Direct!$F$24 -> no | U30: =Direct!$F$24 -> no | V30: =Direct!$F$24 -> no | W30: =Direct!$F$24 -> no | X30: =Direct!$F$24 -> no
C31: Traffic density | D31: =Direct!$G$24 -> high | E31: =Direct!$G$24 -> high | F31: =Direct!$G$24 -> high | G31: =Direct!$G$24 -> high | H31: =Direct!$G$24 -> high | I31: =Direct!$G$24 -> high | J31: =Direct!$G$24 -> high | K31: =Direct!$G$24 -> high | L31: =Direct!$G$24 -> high | M31: =Direct!$G$24 -> high | N31: =Direct!$G$24 -> high | O31: =Direct!$G$24 -> high | P31: =Direct!$G$24 -> high | Q31: =Direct!$G$24 -> high | R31: =Direct!$G$24 -> high | S31: =Direct!$G$24 -> high | T31: =Direct!$G$24 -> high | U31: =Direct!$G$24 -> high | V31: =Direct!$G$24 -> high | W31: =Direct!$G$24 -> high | X31: =Direct!$G$24 -> high
C32: Traffic speed (mph) | D32: =Direct!$H$24 -> 40 | E32: =Direct!$H$24 -> 40 | F32: =Direct!$H$24 -> 40 | G32: =Direct!$H$24 -> 40 | H32: =Direct!$H$24 -> 40 | I32: =Direct!$H$24 -> 40 | J32: =Direct!$H$24 -> 40 | K32: =Direct!$H$24 -> 40 | L32: =Direct!$H$24 -> 40 | M32: =Direct!$H$24 -> 40 | N32: =Direct!$H$24 -> 40 | O32: =Direct!$H$24 -> 40 | P32: =Direct!$H$24 -> 40 | Q32: =Direct!$H$24 -> 40 | R32: =Direct!$H$24 -> 40 | S32: =Direct!$H$24 -> 40 | T32: =Direct!$H$24 -> 40 | U32: =Direct!$H$24 -> 40 | V32: =Direct!$H$24 -> 40 | W32: =Direct!$H$24 -> 40 | X32: =Direct!$H$24 -> 40
C34: Guard railings
C36: Type of crossing | D36: =IFERROR(VLOOKUP(Direct!$E$36,fac_inv,2,0),"") -> U | N36: =IFERROR(VLOOKUP(Direct!$F$36,fac_inv,2,0),"") ->  | X36: =IFERROR(VLOOKUP(Direct!$G$36,fac_inv,2,0),"") -> 
C38: Waiting time (0-5 mins.)
C41: Press this button to clean everything and restore the values inputted in the Direct page
C45: OPTION 1
D47: EXTREME POINT | N47: MIDDLE POINT | X47: EXTREME POINT
C48: distance from left extreme point (m) | D48: 0 | E48: =D48+length/20 -> 50 | F48: =E48+length/20 -> 100 | G48: =F48+length/20 -> 150 | H48: =G48+length/20 -> 200 | I48: =H48+length/20 -> 250 | J48: =I48+length/20 -> 300 | K48: =J48+length/20 -> 350 | L48: =K48+length/20 -> 400 | M48: =L48+length/20 -> 450 | N48: =M48+length/20 -> 500 | O48: =N48+length/20 -> 550 | P48: =O48+length/20 -> 600 | Q48: =P48+length/20 -> 650 | R48: =Q48+length/20 -> 700 | S48: =R48+length/20 -> 750 | T48: =S48+length/20 -> 800 | U48: =T48+length/20 -> 850 | V48: =U48+length/20 -> 900 | W48: =V48+length/20 -> 950 | X48: =W48+length/20 -> 1000
C49: Number of lanes | D49: =Direct!$E$25 -> 1 | E49: =Direct!$E$25 -> 1 | F49: =Direct!$E$25 -> 1 | G49: =Direct!$E$25 -> 1 | H49: =Direct!$E$25 -> 1 | I49: =Direct!$E$25 -> 1 | J49: =Direct!$E$25 -> 1 | K49: =Direct!$E$25 -> 1 | L49: =Direct!$E$25 -> 1 | M49: =Direct!$E$25 -> 1 | N49: =Direct!$E$25 -> 1 | O49: =Direct!$E$25 -> 1 | P49: =Direct!$E$25 -> 1 | Q49: =Direct!$E$25 -> 1 | R49: =Direct!$E$25 -> 1 | S49: =Direct!$E$25 -> 1 | T49: =Direct!$E$25 -> 1 | U49: =Direct!$E$25 -> 1 | V49: =Direct!$E$25 -> 1 | W49: =Direct!$E$25 -> 1 | X49: =Direct!$E$25 -> 1
C50: Central reservation | D50: =Direct!$F$25 -> no | E50: =Direct!$F$25 -> no | F50: =Direct!$F$25 -> no | G50: =Direct!$F$25 -> no | H50: =Direct!$F$25 -> no | I50: =Direct!$F$25 -> no | J50: =Direct!$F$25 -> no | K50: =Direct!$F$25 -> no | L50: =Direct!$F$25 -> no | M50: =Direct!$F$25 -> no | N50: =Direct!$F$25 -> no | O50: =Direct!$F$25 -> no | P50: =Direct!$F$25 -> no | Q50: =Direct!$F$25 -> no | R50: =Direct!$F$25 -> no | S50: =Direct!$F$25 -> no | T50: =Direct!$F$25 -> no | U50: =Direct!$F$25 -> no | V50: =Direct!$F$25 -> no | W50: =Direct!$F$25 -> no | X50: =Direct!$F$25 -> no
C51: Traffic density | D51: =Direct!$G$25 -> high | E51: =Direct!$G$25 -> high | F51: =Direct!$G$25 -> high | G51: =Direct!$G$25 -> high | H51: =Direct!$G$25 -> high | I51: =Direct!$G$25 -> high | J51: =Direct!$G$25 -> high | K51: =Direct!$G$25 -> high | L51: =Direct!$G$25 -> high | M51: =Direct!$G$25 -> high | N51: =Direct!$G$25 -> high | O51: =Direct!$G$25 -> high | P51: =Direct!$G$25 -> high | Q51: =Direct!$G$25 -> high | R51: =Direct!$G$25 -> high | S51: =Direct!$G$25 -> high | T51: =Direct!$G$25 -> high | U51: =Direct!$G$25 -> high | V51: =Direct!$G$25 -> high | W51: =Direct!$G$25 -> high | X51: =Direct!$G$25 -> high
C52: Traffic speed (mph) | D52: =Direct!$H$25 -> 40 | E52: =Direct!$H$25 -> 40 | F52: =Direct!$H$25 -> 40 | G52: =Direct!$H$25 -> 40 | H52: =Direct!$H$25 -> 40 | I52: =Direct!$H$25 -> 40 | J52: =Direct!$H$25 -> 40 | K52: =Direct!$H$25 -> 40 | L52: =Direct!$H$25 -> 40 | M52: =Direct!$H$25 -> 40 | N52: =Direct!$H$25 -> 40 | O52: =Direct!$H$25 -> 40 | P52: =Direct!$H$25 -> 40 | Q52: =Direct!$H$25 -> 40 | R52: =Direct!$H$25 -> 40 | S52: =Direct!$H$25 -> 40 | T52: =Direct!$H$25 -> 40 | U52: =Direct!$H$25 -> 40 | V52: =Direct!$H$25 -> 40 | W52: =Direct!$H$25 -> 40 | X52: =Direct!$H$25 -> 40
C54: Guard railings
D55: =IF(AND(D54="yes",D56<>""),"!! No guard railings and crossings in same point","") -> 
C56: Type of crossing | D56: =IFERROR(VLOOKUP(Direct!$E37,fac_inv,2,0),"") -> U | N56: =IFERROR(VLOOKUP(Direct!$F37,fac_inv,2,0),"") ->  | X56: =IFERROR(VLOOKUP(Direct!$G37,fac_inv,2,0),"") -> 
D57: =IFERROR(VLOOKUP(D56,fac,2,0),"") -> Underpass | E57: =IFERROR(VLOOKUP(E56,fac,2,0),"") ->  | F57: =IFERROR(VLOOKUP(F56,fac,2,0),"") -> 
C58: Waiting time (0-5 mins.)
C61: Press this button to clean everything and restore the values inputted in the Direct page
C65: OPTION 2
D67: EXTREME POINT | N67: MIDDLE POINT | X67: EXTREME POINT
C68: distance from left extreme point (m) | D68: 0 | E68: =D68+length/20 -> 50 | F68: =E68+length/20 -> 100 | G68: =F68+length/20 -> 150 | H68: =G68+length/20 -> 200 | I68: =H68+length/20 -> 250 | J68: =I68+length/20 -> 300 | K68: =J68+length/20 -> 350 | L68: =K68+length/20 -> 400 | M68: =L68+length/20 -> 450 | N68: =M68+length/20 -> 500 | O68: =N68+length/20 -> 550 | P68: =O68+length/20 -> 600 | Q68: =P68+length/20 -> 650 | R68: =Q68+length/20 -> 700 | S68: =R68+length/20 -> 750 | T68: =S68+length/20 -> 800 | U68: =T68+length/20 -> 850 | V68: =U68+length/20 -> 900 | W68: =V68+length/20 -> 950 | X68: =W68+length/20 -> 1000
C69: Number of lanes | D69: =Direct!$E$26 -> 3 | E69: =Direct!$E$26 -> 3 | F69: =Direct!$E$26 -> 3 | G69: =Direct!$E$26 -> 3 | H69: =Direct!$E$26 -> 3 | I69: =Direct!$E$26 -> 3 | J69: =Direct!$E$26 -> 3 | K69: =Direct!$E$26 -> 3 | L69: =Direct!$E$26 -> 3 | M69: =Direct!$E$26 -> 3 | N69: =Direct!$E$26 -> 3 | O69: =Direct!$E$26 -> 3 | P69: =Direct!$E$26 -> 3 | Q69: =Direct!$E$26 -> 3 | R69: =Direct!$E$26 -> 3 | S69: =Direct!$E$26 -> 3 | T69: =Direct!$E$26 -> 3 | U69: =Direct!$E$26 -> 3 | V69: =Direct!$E$26 -> 3 | W69: =Direct!$E$26 -> 3 | X69: =Direct!$E$26 -> 3
C70: Central reservation | D70: =Direct!$F$26 -> no | E70: =Direct!$F$26 -> no | F70: =Direct!$F$26 -> no | G70: =Direct!$F$26 -> no | H70: =Direct!$F$26 -> no | I70: =Direct!$F$26 -> no | J70: =Direct!$F$26 -> no | K70: =Direct!$F$26 -> no | L70: =Direct!$F$26 -> no | M70: =Direct!$F$26 -> no | N70: =Direct!$F$26 -> no | O70: =Direct!$F$26 -> no | P70: =Direct!$F$26 -> no | Q70: =Direct!$F$26 -> no | R70: =Direct!$F$26 -> no | S70: =Direct!$F$26 -> no | T70: =Direct!$F$26 -> no | U70: =Direct!$F$26 -> no | V70: =Direct!$F$26 -> no | W70: =Direct!$F$26 -> no | X70: =Direct!$F$26 -> no
C71: Traffic density | D71: =Direct!$G$26 -> low | E71: =Direct!$G$26 -> low | F71: =Direct!$G$26 -> low | G71: =Direct!$G$26 -> low | H71: =Direct!$G$26 -> low | I71: =Direct!$G$26 -> low | J71: =Direct!$G$26 -> low | K71: =Direct!$G$26 -> low | L71: =Direct!$G$26 -> low | M71: =Direct!$G$26 -> low | N71: =Direct!$G$26 -> low | O71: =Direct!$G$26 -> low | P71: =Direct!$G$26 -> low | Q71: =Direct!$G$26 -> low | R71: =Direct!$G$26 -> low | S71: =Direct!$G$26 -> low | T71: =Direct!$G$26 -> low | U71: =Direct!$G$26 -> low | V71: =Direct!$G$26 -> low | W71: =Direct!$G$26 -> low | X71: =Direct!$G$26 -> low
C72: Traffic speed (mph) | D72: =Direct!$H$26 -> 40 | E72: =Direct!$H$26 -> 40 | F72: =Direct!$H$26 -> 40 | G72: =Direct!$H$26 -> 40 | H72: =Direct!$H$26 -> 40 | I72: =Direct!$H$26 -> 40 | J72: =Direct!$H$26 -> 40 | K72: =Direct!$H$26 -> 40 | L72: =Direct!$H$26 -> 40 | M72: =Direct!$H$26 -> 40 | N72: =Direct!$H$26 -> 40 | O72: =Direct!$H$26 -> 40 | P72: =Direct!$H$26 -> 40 | Q72: =Direct!$H$26 -> 40 | R72: =Direct!$H$26 -> 40 | S72: =Direct!$H$26 -> 40 | T72: =Direct!$H$26 -> 40 | U72: =Direct!$H$26 -> 40 | V72: =Direct!$H$26 -> 40 | W72: =Direct!$H$26 -> 40 | X72: =Direct!$H$26 -> 40
C74: Guard railings
D75: =IF(AND(D74="yes",D76<>""),"!! No guard railings and crossings in same point","") -> 
C76: Type of crossing | D76: =IFERROR(VLOOKUP(Direct!$E38,fac_inv,2,0),"") -> U | N76: =IFERROR(VLOOKUP(Direct!$F38,fac_inv,2,0),"") ->  | X76: =IFERROR(VLOOKUP(Direct!$G38,fac_inv,2,0),"") -> 
D77: =IFERROR(VLOOKUP(D76,fac,2,0),"") -> Underpass | E77: =IFERROR(VLOOKUP(E76,fac,2,0),"") ->  | F77: =IFERROR(VLOOKUP(F76,fac,2,0),"") -> 
C78: Waiting time (0-5 mins.)
C81: Press this button to clean everything and restore the values inputted in the Direct page
C85: OPTION 3
D87: EXTREME POINT | N87: MIDDLE POINT | X87: EXTREME POINT
C88: distance from left extreme point (m) | D88: 0 | E88: =D88+length/20 -> 50 | F88: =E88+length/20 -> 100 | G88: =F88+length/20 -> 150 | H88: =G88+length/20 -> 200 | I88: =H88+length/20 -> 250 | J88: =I88+length/20 -> 300 | K88: =J88+length/20 -> 350 | L88: =K88+length/20 -> 400 | M88: =L88+length/20 -> 450 | N88: =M88+length/20 -> 500 | O88: =N88+length/20 -> 550 | P88: =O88+length/20 -> 600 | Q88: =P88+length/20 -> 650 | R88: =Q88+length/20 -> 700 | S88: =R88+length/20 -> 750 | T88: =S88+length/20 -> 800 | U88: =T88+length/20 -> 850 | V88: =U88+length/20 -> 900 | W88: =V88+length/20 -> 950 | X88: =W88+length/20 -> 1000
C89: Number of lanes | D89: =Direct!$E$27 -> 3 | E89: =Direct!$E$27 -> 3 | F89: =Direct!$E$27 -> 3 | G89: =Direct!$E$27 -> 3 | H89: =Direct!$E$27 -> 3 | I89: =Direct!$E$27 -> 3 | J89: =Direct!$E$27 -> 3 | K89: =Direct!$E$27 -> 3 | L89: =Direct!$E$27 -> 3 | M89: =Direct!$E$27 -> 3 | N89: =Direct!$E$27 -> 3 | O89: =Direct!$E$27 -> 3 | P89: =Direct!$E$27 -> 3 | Q89: =Direct!$E$27 -> 3 | R89: =Direct!$E$27 -> 3 | S89: =Direct!$E$27 -> 3 | T89: =Direct!$E$27 -> 3 | U89: =Direct!$E$27 -> 3 | V89: =Direct!$E$27 -> 3 | W89: =Direct!$E$27 -> 3 | X89: =Direct!$E$27 -> 3
C90: Central reservation | D90: =Direct!$F$27 -> no | E90: =Direct!$F$27 -> no | F90: =Direct!$F$27 -> no | G90: =Direct!$F$27 -> no | H90: =Direct!$F$27 -> no | I90: =Direct!$F$27 -> no | J90: =Direct!$F$27 -> no | K90: =Direct!$F$27 -> no | L90: =Direct!$F$27 -> no | M90: =Direct!$F$27 -> no | N90: =Direct!$F$27 -> no | O90: =Direct!$F$27 -> no | P90: =Direct!$F$27 -> no | Q90: =Direct!$F$27 -> no | R90: =Direct!$F$27 -> no | S90: =Direct!$F$27 -> no | T90: =Direct!$F$27 -> no | U90: =Direct!$F$27 -> no | V90: =Direct!$F$27 -> no | W90: =Direct!$F$27 -> no | X90: =Direct!$F$27 -> no
C91: Traffic density | D91: =Direct!$G$27 -> high | E91: =Direct!$G$27 -> high | F91: =Direct!$G$27 -> high | G91: =Direct!$G$27 -> high | H91: =Direct!$G$27 -> high | I91: =Direct!$G$27 -> high | J91: =Direct!$G$27 -> high | K91: =Direct!$G$27 -> high | L91: =Direct!$G$27 -> high | M91: =Direct!$G$27 -> high | N91: =Direct!$G$27 -> high | O91: =Direct!$G$27 -> high | P91: =Direct!$G$27 -> high | Q91: =Direct!$G$27 -> high | R91: =Direct!$G$27 -> high | S91: =Direct!$G$27 -> high | T91: =Direct!$G$27 -> high | U91: =Direct!$G$27 -> high | V91: =Direct!$G$27 -> high | W91: =Direct!$G$27 -> high | X91: =Direct!$G$27 -> high
C92: Traffic speed (mph) | D92: =Direct!$H$27 -> 40 | E92: =Direct!$H$27 -> 40 | F92: =Direct!$H$27 -> 40 | G92: =Direct!$H$27 -> 40 | H92: =Direct!$H$27 -> 40 | I92: =Direct!$H$27 -> 40 | J92: =Direct!$H$27 -> 40 | K92: =Direct!$H$27 -> 40 | L92: =Direct!$H$27 -> 40 | M92: =Direct!$H$27 -> 40 | N92: =Direct!$H$27 -> 40 | O92: =Direct!$H$27 -> 40 | P92: =Direct!$H$27 -> 40 | Q92: =Direct!$H$27 -> 40 | R92: =Direct!$H$27 -> 40 | S92: =Direct!$H$27 -> 40 | T92: =Direct!$H$27 -> 40 | U92: =Direct!$H$27 -> 40 | V92: =Direct!$H$27 -> 40 | W92: =Direct!$H$27 -> 40 | X92: =Direct!$H$27 -> 40
C94: Guard railings
C96: Type of crossing | D96: =IFERROR(VLOOKUP(Direct!$E39,fac_inv,2,0),"") -> U | N96: =IFERROR(VLOOKUP(Direct!$F39,fac_inv,2,0),"") ->  | X96: =IFERROR(VLOOKUP(Direct!$G39,fac_inv,2,0),"") -> P
C98: Waiting time (0-5 mins.)
C101: Press this button to clean everything and restore the values inputted in the Direct page

Sheet Output
A1: OUTPUT
I4: OVERVIEW OF SEVERANCE ASSESSMENT
J6: Option highlighted in green is the best options
J8: Do-nothing | L8: Option 1 | N8: Option 2 | P8: Option 3
D9: Overall severance index (0-100) | J9: =IFERROR(AVERAGEIF($D32:$X32,">=0"),"") -> 78 | L9: =IFERROR(AVERAGEIF($D54:$X54,">=0"),"") -> 54 | N9: =IFERROR(AVERAGEIF($D76:$X76,">=0"),"") -> 64 | P9: =IFERROR(AVERAGEIF($D98:$X98,">=0"),"") -> 51 | R9: =IF(OR(J9<>"",L9<>"",N9<>"",P9<>""),MIN(J9, L9, N9, P9),"no data") -> 51
D10: Severance cost per trip | J10: =IFERROR(SUMPRODUCT(--($D33:$X33>=0),$D33:$X33,$D$35:$X$35)/SUMIF($D33:$X33,">=0",$D$35:$X$35),"") -> £2.47 | L10: =IFERROR(SUMPRODUCT(--($D55:$X55>=0),$D55:$X55,$D$57:$X$57)/SUMIF($D55:$X55,">=0",$D$57:$X$57),"") -> £1.62 | N10: =IFERROR(SUMPRODUCT(--($D77:$X77>=0),$D77:$X77,$D$79:$X$79)/SUMIF($D77:$X77,">=0",$D$79:$X$79),"") -> £1.97 | P10: =IFERROR(SUMPRODUCT(--($D99:$X99>=0),$D99:$X99,$D$101:$X$101)/SUMIF($D99:$X99,">=0",$D$101:$X$101),"") -> £1.55 | R10: =IF(OR(J10<>"",L10<>"",N10<>"",P10<>""),MIN(J10, L10, N10, P10),"no data") -> 1.55
D11: Average detour to walking trips | J11: =IFERROR(SUMPRODUCT(--($D42:$X42>=0),$D42:$X42,$D$35:$X$35)/SUMIF($D42:$X42,">=0",$D$35:$X$35),"") -> 255 | L11: =IFERROR(SUMPRODUCT(--($D64:$X64>=0),$D64:$X64,$D$57:$X$57)/SUMIF($D64:$X64,">=0",$D$57:$X$57),"") -> 210 | N11: =IFERROR(SUMPRODUCT(--($D86:$X86>=0),$D86:$X86,$D$79:$X$79)/SUMIF($D86:$X86,">=0",$D$79:$X$79),"") -> 248 | P11: =IFERROR(SUMPRODUCT(--($D108:$X108>=0),$D108:$X108,$D$101:$X$101)/SUMIF($D108:$X108,">=0",$D$101:$X$101),"") -> 222 | R11: =IF(OR(J11<>"",L11<>"",N11<>"",P11<>""),MIN(J11, L11, N11, P11),"no data") -> 210.31
D12: Average delay to walking trips | J12: =IFERROR(SUMPRODUCT(--($D43:$X43>=0),$D43:$X43,$D$35:$X$35)/SUMIF($D43:$X43,">=0",$D$35:$X$35),"") -> 3.1 | L12: =IFERROR(SUMPRODUCT(--($D65:$X65>=0),$D65:$X65,$D$57:$X$57)/SUMIF($D65:$X65,">=0",$D$57:$X$57),"") -> 2.6 | N12: =IFERROR(SUMPRODUCT(--($D87:$X87>=0),$D87:$X87,$D$79:$X$79)/SUMIF($D87:$X87,">=0",$D$79:$X$79),"") -> 3.1 | P12: =IFERROR(SUMPRODUCT(--($D109:$X109>=0),$D109:$X109,$D$101:$X$101)/SUMIF($D109:$X109,">=0",$D$101:$X$101),"") -> 2.7 | R12: =IF(OR(J12<>"",L12<>"",N12<>"",P12<>""),MIN(J12, L12, N12, P12),"no data") -> 2.60
D13: Trips crossing informally/year | J13: =SUM($D36:$X36,$D38:$X38) -> 497,922 | L13: =SUM($D58:$X58,$D60:$X60) -> 1,286,618 | N13: =SUM($D80:$X80,$D82:$X82) -> 1,040,924 | P13: =SUM($D102:$X102,$D104:$X104) -> 282,962 | R13: =IF(OR(J13<>"",L13<>"",N13<>"",P13<>""),MIN(J13, L13, N13, P13),"no data") -> 282962
D14: Trips crossing in crossing facilities/year | J14: =SUM($D37:$X37,$D39:$X39) -> 2,580,865 | L14: 2,345,965 | N14: 2,546,481 | P14: =SUM($D103:$X103,$D105:$X105) -> 3,355,175 | R14: =IF(OR(J14<>"",L14<>"",N14<>"",P14<>""),MAX(J14, L14, N14, P14),"no data") -> 3355175
D15: Suppressed trips/year | J15: =IF(J9="","",SUM($D40:$X40)) -> 571,213 | L15: =IF(L9="","",SUM($D62:$X62)) -> 17,417 | N15: =IF(N9="","",SUM($D84:$X84)) -> 62,595 | P15: =IF(P9="","",SUM($D106:$X106)) -> 11,859 | R15: =IF(OR(J15<>"",L15<>"",N15<>"",P15<>""),MIN(J15, L15, N15, P15),"no data") -> 11859
D16: Total severance cost/year | J16: =IFERROR(J10*(J13+J14+0.5*J15),"") -> £8,299,529 | L16: £5,886,119 | N16: £7,146,749 | P16: £5,630,601 | R16: =IF(OR(J16<>"",L16<>"",N16<>"",P16<>""),MIN(J16, L16, N16, P16),"no data") -> 5630601
D17: Benefit of the option (1st year) | J17: - | L17: =IFERROR($J16-L16,"") -> £2,413,410 | N17: £1,152,780 | P17: £2,668,927 | R17: =IF(OR(J17<>"",L17<>"",N17<>"",P17<>""),MAX(J17, L17, N17, P17),"no data") -> £2,668,927
D18: Present value of benefit over the lifetime of the project | J18: - | L18: =IFERROR(L17*VLOOKUP(lifetime,stream,2,0),"") -> £10,971,241 | N18: =IFERROR(N17*VLOOKUP(lifetime,stream,2,0),"") -> £5,240,479 | P18: =IFERROR(P17*VLOOKUP(lifetime,stream,2,0),"") -> £12,132,812 | R18: =IF(OR(J18<>"",L18<>"",N18<>"",P18<>""),MAX(J18, L18, N18, P18),"no data") -> £12,132,812
B21: DETAILED SEVERANCE ASSESSMENT
J23: Places highlighted in pink have severance index above 50%
J24: Places highlighted in red have severance index above 75%
D26: 1 | E26: 2 | F26: 3 | G26: 4 | H26: 5 | I26: 6 | J26: 7 | K26: 8 | L26: 9 | M26: 10 | N26: 11 | O26: 12 | P26: 13 | Q26: 14 | R26: 15 | S26: 16 | T26: 17 | U26: 18 | V26: 19 | W26: 20 | X26: 21
A27: 0 | B27: DO-NOTHING
D29: EXTREME POINT | N29: MIDDLE POINT | X29: EXTREME POINT
C30: distance from left extreme point (m) | D30: 0 | E30: =D30+length/20 -> 50 | F30: 100 | G30: 150 | H30: 200 | I30: 250 | J30: 300 | K30: 350 | L30: 400 | M30: 450 | N30: 500 | O30: 550 | P30: 600 | Q30: 650 | R30: 700 | S30: 750 | T30: 800 | U30: 850 | V30: 900 | W30: 950 | X30: 1000
C31: Crossing facilities | D31: =Design!D37 -> 0 | E31: =Design!E37 -> 0 | F31: =Design!F37 -> 0 | G31: =Design!G37 -> 0 | H31: =Design!H37 -> 0 | I31: =Design!I37 -> 0 | J31: =Design!J37 -> 0 | K31: =Design!K37 -> 0 | L31: =Design!L37 -> 0 | M31: =Design!M37 -> 0 | N31: =Design!N37 -> 0 | O31: =Design!O37 -> 0 | P31: =Design!P37 -> 0 | Q31: =Design!Q37 -> 0 | R31: =Design!R37 -> 0 | S31: =Design!S37 -> 0 | T31: =Design!T37 -> 0 | U31: =Design!U37 -> 0 | V31: =Design!V37 -> 0 | W31: =Design!W37 -> 0 | X31: =Design!X37 -> 0
A32: 2 | C32: Severance index | D32: =IFERROR(INDEX(INDIRECT("output"&$A27),$A32,D$26),"") -> 33 | E32: 38 | F32: =IFERROR(INDEX(INDIRECT("output"&$A27),$A32,F$26),"") -> 44 | G32: 49 | H32: 54 | I32: 60 | J32: 65 | K32: 70 | L32: 76 | M32: 81 | N32: 86 | O32: 90 | P32: 94 | Q32: 97 | R32: 100 | S32: 100 | T32: 100 | U32: 100 | V32: 100 | W32: 100 | X32: 100
A33: 3 | C33: Cost per trip | D33: =IFERROR(INDEX(INDIRECT("output"&$A27),$A33,D$26),"") -> £0.95 | E33: =IFERROR(INDEX(INDIRECT("output"&$A27),$A33,E$26),"") -> £1.12 | F33: £1.29 | G33: £1.46 | H33: £1.64 | I33: £1.81 | J33: £1.98 | K33: £2.16 | L33: £2.33 | M33: £2.50 | N33: £2.68 | O33: £2.80 | P33: £2.91 | Q33: £3.02 | R33: £3.13 | S33: £3.23 | T33: £3.34 | U33: £3.37 | V33: £3.37 | W33: £3.37 | X33: £3.37
A35: 4 | C35: What was the demand to cross here (per year) | D35: =IF(D32="","",INDEX(INDIRECT("output"&$A27),$A35,D$26)) -> 173,810 | E35: 173,810 | F35: 173,810 | G35: 173,810 | H35: 173,810 | I35: 173,810 | J35: 173,810 | K35: 173,810 | L35: 173,810 | M35: 173,810 | N35: 173,810 | O35: 173,810 | P35: 173,810 | Q35: 173,810 | R35: 173,810 | S35: 173,810 | T35: 173,810 | U35: 173,810 | V35: 173,810 | W35: 173,810 | X35: 173,810
A36: 5 | C36: How many of those trips cross here (informal) | D36: =IFERROR(INDEX(INDIRECT("output"&$A27),$A36,D$26),"") -> 5 | E36: =IFERROR(INDEX(INDIRECT("output"&$A27),$A36,E$26),"") -> 8 | F36: 14 | G36: 23 | H36: 37 | I36: 61 | J36: 101 | K36: 165 | L36: 270 | M36: 441 | N36: 720 | O36: 18,240 | P36: 18,326 | Q36: 18,466 | R36: 18,691 | S36: 19,050 | T36: 19,611 | U36: 34,384 | V36: 34,384 | W36: 34,384 | X36: 34,384
A37: 6 | C37: How many of those trips cross here (using facilities) | D37: =IFERROR(INDEX(INDIRECT("output"&$A27),$A37,D$26),"") -> 173,800 | E37: 0 | F37: 0 | G37: 0 | H37: 0 | I37: 0 | J37: 0 | K37: 0 | L37: 0 | M37: 0 | N37: 0 | O37: 0 | P37: 0 | Q37: 0 | R37: 0 | S37: 0 | T37: 0 | U37: 0 | V37: 0 | W37: 0 | X37: 0
A38: 7 | C38: How many cross in other places (informal) | D38: =IFERROR(INDEX(INDIRECT("output"&$A27),$A38,D$26),"") -> 0 | E38: 0 | F38: 0 | G38: 0 | H38: 0 | I38: 0 | J38: 0 | K38: 0 | L38: 0 | M38: 0 | N38: 0 | O38: 18,103 | P38: 18,103 | Q38: 18,103 | R38: 18,103 | S38: 18,103 | T38: 18,103 | U38: 34,384 | V38: 34,384 | W38: 34,384 | X38: 34,384
A39: 8 | C39: How many cross in other places (using facilities) | D39: =IFERROR(INDEX(INDIRECT("output"&$A27),$A39,D$26)-D37,"") -> 0 | E39: 173,793 | F39: 173,783 | G39: 173,765 | H39: 173,737 | I39: 173,691 | J39: 173,616 | K39: 173,492 | L39: 173,290 | M39: 172,960 | N39: 172,422 | O39: 115,050 | P39: 114,529 | Q39: 113,685 | R39: 112,325 | S39: 110,159 | T39: 106,767 | U39: 0 | V39: 0 | W39: 0 | X39: 0
A40: 9 | C40: How many trips are suppressed | D40: =IFERROR(INDEX(INDIRECT("output"&$A27),$A40,D$26),"") -> 5 | E40: 8 | F40: 13 | G40: 21 | H40: 35 | I40: 57 | J40: 93 | K40: 152 | L40: 250 | M40: 408 | N40: 667 | O40: 22,417 | P40: 22,851 | Q40: 23,556 | R40: 24,690 | S40: 26,498 | T40: 29,328 | U40: 105,041 | V40: 105,041 | W40: 105,041 | X40: 105,041
A42: 10 | C42: Average detour of trips (m) | D42: =IFERROR(INDEX(INDIRECT("output"&$A27),$A42,D$26),"") -> 0 | E42: 50 | F42: 100 | G42: 150 | H42: 200 | I42: 250 | J42: 300 | K42: 349 | L42: 399 | M42: 448 | N42: 496 | O42: 364 | P42: 395 | Q42: 425 | R42: 452 | S42: 475 | T42: 491 | U42: 0 | V42: 0 | W42: 0 | X42: 0
A43: 11 | C43: Average delay of trips (mins.) | D43: =IFERROR(INDEX(INDIRECT("output"&$A27),$A43,D$26),"") -> 0.0 | E43: 0.6 | F43: 1.2 | G43: 1.9 | H43: 2.5 | I43: 3.1 | J43: 3.7 | K43: 4.3 | L43: 4.9 | M43: 5.5 | N43: 6.1 | O43: 4.5 | P43: 4.9 | Q43: 5.2 | R43: 5.6 | S43: 5.9 | T43: 6.1 | U43: 0.0 | V43: 0.0 | W43: 0.0 | X43: 0.0
A45: 12 | C45: How many trips from other places cross here | D45: =IFERROR(INDEX(INDIRECT("output"&$A27),$A45,D$26),"") -> 2,407,065 | E45: 0 | F45: 0 | G45: 0 | H45: 0 | I45: 0 | J45: 0 | K45: 0 | L45: 0 | M45: 0 | N45: 0 | O45: 18,103 | P45: 18,103 | Q45: 18,103 | R45: 18,103 | S45: 18,103 | T45: 18,103 | U45: 34,384 | V45: 34,384 | W45: 34,384 | X45: 34,384
A46: 13 | C46: Total number trips crossing here | D46: =IFERROR(INDEX(INDIRECT("output"&$A27),$A46,D$26),"") -> 2,580,870 | E46: 8 | F46: 14 | G46: 23 | H46: 37 | I46: 61 | J46: 101 | K46: 165 | L46: 270 | M46: 441 | N46: 720 | O46: 36,343 | P46: 36,429 | Q46: 36,569 | R46: 36,794 | S46: 37,153 | T46: 37,714 | U46: 68,769 | V46: 68,769 | W46: 68,769 | X46: 68,769
A49: 1 | B49: OPTION 1
D51: EXTREME POINT | N51: MIDDLE POINT | X51: EXTREME POINT
C52: distance from left extreme point (m) | D52: 0 | E52: =D52+length/20 -> 50 | F52: =E52+length/20 -> 100 | G52: =F52+length/20 -> 150 | H52: =G52+length/20 -> 200 | I52: =H52+length/20 -> 250 | J52: =I52+length/20 -> 300 | K52: =J52+length/20 -> 350 | L52: =K52+length/20 -> 400 | M52: =L52+length/20 -> 450 | N52: =M52+length/20 -> 500 | O52: =N52+length/20 -> 550 | P52: =O52+length/20 -> 600 | Q52: =P52+length/20 -> 650 | R52: =Q52+length/20 -> 700 | S52: =R52+length/20 -> 750 | T52: =S52+length/20 -> 800 | U52: =T52+length/20 -> 850 | V52: =U52+length/20 -> 900 | W52: =V52+length/20 -> 950 | X52: =W52+length/20 -> 1000
C53: Crossing facilities | D53: =Design!D57 -> Underpass | E53: =Design!E57 ->  | F53: =Design!F57 ->  | G53: =Design!G57 ->  | H53: =Design!H57 ->  | I53: =Design!I57 ->  | J53: =Design!J57 ->  | K53: =Design!K57 ->  | L53: =Design!L57 ->  | M53: =Design!M57 ->  | N53: =Design!N57 ->  | O53: =Design!O57 ->  | P53: =Design!P57 ->  | Q53: =Design!Q57 ->  | R53: =Design!R57 ->  | S53: =Design!S57 ->  | T53: =Design!T57 ->  | U53: =Design!U57 ->  | V53: =Design!V57 ->  | W53: =Design!W57 ->  | X53: =Design!X57 -> 
A54: 2 | C54: Severance index | D54: =IFERROR(INDEX(INDIRECT("output"&$A49),$A54,D$26),"") -> 33 | E54: 35 | F54: 38 | G54: 40 | H54: 43 | I54: 45 | J54: 48 | K54: 50 | L54: 53 | M54: 55 | N54: 58 | O54: 59 | P54: 61 | Q54: 62 | R54: 63 | S54: 65 | T54: 66 | U54: 66 | V54: 66 | W54: 66 | X54: 66
A55: 3 | C55: Cost per trip | D55: =IFERROR(INDEX(INDIRECT("output"&$A49),$A55,D$26),"") -> £0.93 | E55: £1.01 | F55: £1.09 | G55: £1.17 | H55: £1.25 | I55: £1.33 | J55: £1.41 | K55: £1.49 | L55: £1.57 | M55: £1.65 | N55: £1.73 | O55: £1.78 | P55: £1.82 | Q55: £1.87 | R55: £1.91 | S55: £1.95 | T55: £1.99 | U55: £2.00 | V55: £2.00 | W55: £2.00 | X55: £2.00
A57: 4 | C57: What was the demand to cross here (per year) | D57: =IF(D54="","",INDEX(INDIRECT("output"&$A49),$A57,D$26)) -> 173,810 | E57: 173,810 | F57: 173,810 | G57: 173,810 | H57: 173,810 | I57: 173,810 | J57: 173,810 | K57: 173,810 | L57: 173,810 | M57: 173,810 | N57: 173,810 | O57: 173,810 | P57: 173,810 | Q57: 173,810 | R57: 173,810 | S57: 173,810 | T57: 173,810 | U57: 173,810 | V57: 173,810 | W57: 173,810 | X57: 173,810
A58: 5 | C58: How many of those trips cross here (informal) | D58: =IFERROR(INDEX(INDIRECT("output"&$A49),$A58,D$26),"") -> 73 | E58: 121 | F58: 200 | G58: 331 | H58: 549 | I58: 908 | J58: 1,502 | K58: 2,476 | L58: 4,065 | M58: 6,633 | N58: 10,708 | O58: 41,209 | P58: 48,178 | Q58: 57,845 | R58: 70,180 | S58: 84,374 | T58: 98,900 | U58: 85,988 | V58: 85,988 | W58: 85,988 | X58: 85,988
A59: 6 | C59: How many of those trips cross here (using facilities) | D59: =IFERROR(INDEX(INDIRECT("output"&$A49),$A59,D$26),"") -> 173,736 | E59: 0 | F59: 0 | G59: 0 | H59: 0 | I59: 0 | J59: 0 | K59: 0 | L59: 0 | M59: 0 | N59: 0 | O59: 0 | P59: 0 | Q59: 0 | R59: 0 | S59: 0 | T59: 0 | U59: 0 | V59: 0 | W59: 0 | X59: 0
A60: 7 | C60: How many cross in other places (informal) | D60: =IFERROR(INDEX(INDIRECT("output"&$A49),$A60,D$26),"") -> 0 | E60: 0 | F60: 0 | G60: 0 | H60: 0 | I60: 0 | J60: 0 | K60: 0 | L60: 0 | M60: 0 | N60: 0 | O60: 28,411 | P60: 28,411 | Q60: 28,411 | R60: 28,411 | S60: 28,411 | T60: 28,411 | U60: 85,987 | V60: 85,987 | W60: 85,987 | X60: 85,987
A61: 8 | C61: How many cross in other places (using facilities) | D61: =IFERROR(INDEX(INDIRECT("output"&$A49),$A61,D$26)-D59,"") -> 0 | E61: 173,687 | F61: 173,606 | G61: 173,473 | H61: 173,252 | I61: 172,886 | J61: 172,283 | K61: 171,293 | L61: 169,678 | M61: 167,069 | N61: 162,927 | O61: 102,910 | P61: 95,851 | Q61: 86,060 | R61: 73,568 | S61: 59,196 | T61: 44,490 | U61: 0 | V61: 0 | W61: 0 | X61: 0
A62: 9 | C62: How many trips are suppressed | D62: =IFERROR(INDEX(INDIRECT("output"&$A49),$A62,D$26),"") -> 1 | E62: 2 | F62: 3 | G62: 5 | H62: 9 | I62: 15 | J62: 25 | K62: 40 | L62: 66 | M62: 108 | N62: 175 | O62: 1,279 | P62: 1,369 | Q62: 1,493 | R62: 1,649 | S62: 1,828 | T62: 2,008 | U62: 1,835 | V62: 1,835 | W62: 1,835 | X62: 1,835
A64: 10 | C64: Average detour of trips (m) | D64: =IFERROR(INDEX(INDIRECT("output"&$A49),$A64,D$26),"") -> 0 | E64: 50 | F64: 100 | G64: 150 | H64: 199 | I64: 249 | J64: 297 | K64: 345 | L64: 390 | M64: 433 | N64: 469 | O64: 326 | P64: 331 | Q64: 322 | R64: 296 | S64: 255 | T64: 205 | U64: 0 | V64: 0 | W64: 0 | X64: 0
A65: 11 | C65: Average delay of trips (mins.) | D65: =IFERROR(INDEX(INDIRECT("output"&$A49),$A65,D$26),"") -> 0.0 | E65: 0.6 | F65: 1.2 | G65: 1.8 | H65: 2.5 | I65: 3.1 | J65: 3.7 | K65: 4.3 | L65: 4.8 | M65: 5.3 | N65: 5.8 | O65: 4.0 | P65: 4.1 | Q65: 4.0 | R65: 3.7 | S65: 3.2 | T65: 2.5 | U65: 0.0 | V65: 0.0 | W65: 0.0 | X65: 0.0
A67: 12 | C67: How many trips from other places cross here | D67: =IFERROR(INDEX(INDIRECT("output"&$A49),$A67,D$26),"") -> 2,172,229 | E67: 0 | F67: 0 | G67: 0 | H67: 0 | I67: 0 | J67: 0 | K67: 0 | L67: 0 | M67: 0 | N67: 0 | O67: 28,411 | P67: 28,411 | Q67: 28,411 | R67: 28,411 | S67: 28,411 | T67: 28,411 | U67: 85,987 | V67: 85,987 | W67: 85,987 | X67: 85,987
A68: 13 | C68: Total number trips crossing here | D68: =IFERROR(INDEX(INDIRECT("output"&$A49),$A68,D$26),"") -> 2,346,038 | E68: 121 | F68: 200 | G68: 331 | H68: 549 | I68: 908 | J68: 1,502 | K68: 2,476 | L68: 4,065 | M68: 6,633 | N68: 10,708 | O68: 69,620 | P68: 76,590 | Q68: 86,256 | R68: 98,592 | S68: 112,786 | T68: 127,312 | U68: 171,975 | V68: 171,975 | W68: 171,975 | X68: 171,975
A71: 2 | B71: OPTION 2
D73: EXTREME POINT | N73: MIDDLE POINT | X73: EXTREME POINT
C74: distance from left extreme point (m) | D74: 0 | E74: =D74+length/20 -> 50 | F74: =E74+length/20 -> 100 | G74: =F74+length/20 -> 150 | H74: =G74+length/20 -> 200 | I74: =H74+length/20 -> 250 | J74: =I74+length/20 -> 300 | K74: =J74+length/20 -> 350 | L74: =K74+length/20 -> 400 | M74: =L74+length/20 -> 450 | N74: =M74+length/20 -> 500 | O74: =N74+length/20 -> 550 | P74: =O74+length/20 -> 600 | Q74: =P74+length/20 -> 650 | R74: =Q74+length/20 -> 700 | S74: =R74+length/20 -> 750 | T74: =S74+length/20 -> 800 | U74: =T74+length/20 -> 850 | V74: =U74+length/20 -> 900 | W74: =V74+length/20 -> 950 | X74: =W74+length/20 -> 1000
C75: Crossing facilities | D75: =Design!D77 -> Underpass | E75: =Design!E77 ->  | F75: =Design!F77 ->  | G75: =Design!G77 ->  | H75: =Design!H77 ->  | I75: =Design!I77 ->  | J75: =Design!J77 ->  | K75: =Design!K77 ->  | L75: =Design!L77 ->  | M75: =Design!M77 ->  | N75: =Design!N77 ->  | O75: =Design!O77 ->  | P75: =Design!P77 ->  | Q75: =Design!Q77 ->  | R75: =Design!R77 ->  | S75: =Design!S77 ->  | T75: =Design!T77 ->  | U75: =Design!U77 ->  | V75: =Design!V77 ->  | W75: =Design!W77 ->  | X75: =Design!X77 -> 
A76: 2 | C76: Severance index | D76: =IFERROR(INDEX(INDIRECT("output"&$A71),$A76,D$26),"") -> 33 | E76: 37 | F76: 40 | G76: 44 | H76: 47 | I76: 51 | J76: 54 | K76: 58 | L76: 62 | M76: 65 | N76: 69 | O76: 71 | P76: 73 | Q76: 75 | R76: 78 | S76: 80 | T76: 82 | U76: 82 | V76: 82 | W76: 82 | X76: 82
A77: 3 | C77: Cost per trip | D77: =IFERROR(INDEX(INDIRECT("output"&$A71),$A77,D$26),"") -> £0.95 | E77: =IFERROR(INDEX(INDIRECT("output"&$A71),$A77,E$26),"") -> £1.07 | F77: £1.19 | G77: £1.30 | H77: £1.42 | I77: £1.54 | J77: £1.66 | K77: £1.77 | L77: £1.89 | M77: £2.01 | N77: £2.13 | O77: £2.20 | P77: £2.27 | Q77: £2.34 | R77: £2.41 | S77: £2.48 | T77: £2.55 | U77: £2.57 | V77: £2.57 | W77: £2.57 | X77: £2.57
A79: 4 | C79: What was the demand to cross here (per year) | D79: =IF(D76="","",INDEX(INDIRECT("output"&$A71),$A79,D$26)) -> 173,810 | E79: 173,810 | F79: 173,810 | G79: 173,810 | H79: 173,810 | I79: 173,810 | J79: 173,810 | K79: 173,810 | L79: 173,810 | M79: 173,810 | N79: 173,810 | O79: 173,810 | P79: 173,810 | Q79: 173,810 | R79: 173,810 | S79: 173,810 | T79: 173,810 | U79: 173,810 | V79: 173,810 | W79: 173,810 | X79: 173,810
A80: 5 | C80: How many of those trips cross here (informal) | D80: =IFERROR(INDEX(INDIRECT("output"&$A71),$A80,D$26),"") -> 15 | E80: 24 | F80: 40 | G80: 65 | H80: 107 | I80: 177 | J80: 291 | K80: 480 | L80: 790 | M80: 1,298 | N80: 2,130 | O80: 29,500 | P80: 30,628 | Q80: 32,448 | R80: 35,337 | S80: 39,812 | T80: 46,478 | U80: 81,866 | V80: 81,866 | W80: 81,866 | X80: 81,866
A81: 6 | C81: How many of those trips cross here (using facilities) | D81: =IFERROR(INDEX(INDIRECT("output"&$A71),$A81,D$26),"") -> 173,793 | E81: 0 | F81: 0 | G81: 0 | H81: 0 | I81: 0 | J81: 0 | K81: 0 | L81: 0 | M81: 0 | N81: 0 | O81: 0 | P81: 0 | Q81: 0 | R81: 0 | S81: 0 | T81: 0 | U81: 0 | V81: 0 | W81: 0 | X81: 0
A82: 7 | C82: How many cross in other places (informal) | D82: =IFERROR(INDEX(INDIRECT("output"&$A71),$A82,D$26),"") -> 0 | E82: 0 | F82: 0 | G82: 0 | H82: 0 | I82: 0 | J82: 0 | K82: 0 | L82: 0 | M82: 0 | N82: 0 | O82: 27,730 | P82: 27,730 | Q82: 27,730 | R82: 27,730 | S82: 27,730 | T82: 27,730 | U82: 81,866 | V82: 81,866 | W82: 81,866 | X82: 81,866
A83: 8 | C83: How many cross in other places (using facilities) | D83: =IFERROR(INDEX(INDIRECT("output"&$A71),$A83,D$26)-D81,"") -> 0 | E83: 173,783 | F83: 173,765 | G83: 173,737 | H83: 173,690 | I83: 173,612 | J83: 173,485 | K83: 173,275 | L83: 172,930 | M83: 172,363 | N83: 171,435 | O83: 113,851 | P83: 112,562 | Q83: 110,483 | R83: 107,183 | S83: 102,073 | T83: 94,461 | U83: 0 | V83: 0 | W83: 0 | X83: 0
A84: 9 | C84: How many trips are suppressed | D84: =IFERROR(INDEX(INDIRECT("output"&$A71),$A84,D$26),"") -> 2 | E84: 3 | F84: 4 | G84: 7 | H84: 12 | I84: 20 | J84: 33 | K84: 55 | L84: 90 | M84: 149 | N84: 244 | O84: 2,729 | P84: 2,890 | Q84: 3,149 | R84: 3,560 | S84: 4,196 | T84: 5,140 | U84: 10,078 | V84: 10,078 | W84: 10,078 | X84: 10,078
A86: 10 | C86: Average detour of trips (m) | D86: =IFERROR(INDEX(INDIRECT("output"&$A71),$A86,D$26),"") -> 0 | E86: 50 | F86: 100 | G86: 150 | H86: 200 | I86: 250 | J86: 299 | K86: 349 | L86: 398 | M86: 446 | N86: 493 | O86: 360 | P86: 389 | Q86: 413 | R86: 432 | S86: 440 | T86: 435 | U86: 0 | V86: 0 | W86: 0 | X86: 0
A87: 11 | C87: Average delay of trips (mins.) | D87: =IFERROR(INDEX(INDIRECT("output"&$A71),$A87,D$26),"") -> 0.0 | E87: 0.6 | F87: 1.2 | G87: 1.9 | H87: 2.5 | I87: 3.1 | J87: 3.7 | K87: 4.3 | L87: 4.9 | M87: 5.5 | N87: 6.1 | O87: 4.4 | P87: 4.8 | Q87: 5.1 | R87: 5.3 | S87: 5.4 | T87: 5.4 | U87: 0.0 | V87: 0.0 | W87: 0.0 | X87: 0.0
A89: 12 | C89: How many trips from other places cross here | D89: =IFERROR(INDEX(INDIRECT("output"&$A71),$A89,D$26),"") -> 2,372,688 | E89: 0 | F89: 0 | G89: 0 | H89: 0 | I89: 0 | J89: 0 | K89: 0 | L89: 0 | M89: 0 | N89: 0 | O89: 27,730 | P89: 27,730 | Q89: 27,730 | R89: 27,730 | S89: 27,730 | T89: 27,730 | U89: 81,866 | V89: 81,866 | W89: 81,866 | X89: 81,866
A90: 13 | C90: Total number trips crossing here | D90: =IFERROR(INDEX(INDIRECT("output"&$A71),$A90,D$26),"") -> 2,546,496 | E90: 24 | F90: 40 | G90: 65 | H90: 107 | I90: 177 | J90: 291 | K90: 480 | L90: 790 | M90: 1,298 | N90: 2,130 | O90: 57,230 | P90: 58,358 | Q90: 60,178 | R90: 63,067 | S90: 67,541 | T90: 74,208 | U90: 163,732 | V90: 163,732 | W90: 163,732 | X90: 163,732
A93: 3 | B93: OPTION 3
D95: EXTREME POINT | N95: MIDDLE POINT | X95: EXTREME POINT
C96: distance from left extreme point (m) | D96: 0 | E96: =D96+length/20 -> 50 | F96: =E96+length/20 -> 100 | G96: =F96+length/20 -> 150 | H96: =G96+length/20 -> 200 | I96: =H96+length/20 -> 250 | J96: =I96+length/20 -> 300 | K96: =J96+length/20 -> 350 | L96: =K96+length/20 -> 400 | M96: =L96+length/20 -> 450 | N96: =M96+length/20 -> 500 | O96: =N96+length/20 -> 550 | P96: =O96+length/20 -> 600 | Q96: =P96+length/20 -> 650 | R96: =Q96+length/20 -> 700 | S96: =R96+length/20 -> 750 | T96: =S96+length/20 -> 800 | U96: =T96+length/20 -> 850 | V96: =U96+length/20 -> 900 | W96: =V96+length/20 -> 950 | X96: =W96+length/20 -> 1000
C97: Crossing facilities | D97: =Design!D97 -> 0 | E97: =Design!E97 -> 0 | F97: =Design!F97 -> 0 | G97: =Design!G97 -> 0 | H97: =Design!H97 -> 0 | I97: =Design!I97 -> 0 | J97: =Design!J97 -> 0 | K97: =Design!K97 -> 0 | L97: =Design!L97 -> 0 | M97: =Design!M97 -> 0 | N97: =Design!N97 -> 0 | O97: =Design!O97 -> 0 | P97: =Design!P97 -> 0 | Q97: =Design!Q97 -> 0 | R97: =Design!R97 -> 0 | S97: =Design!S97 -> 0 | T97: =Design!T97 -> 0 | U97: =Design!U97 -> 0 | V97: =Design!V97 -> 0 | W97: =Design!W97 -> 0 | X97: =Design!X97 -> 0
A98: 2 | C98: Severance index | D98: =IFERROR(INDEX(INDIRECT("output"&$A93),$A98,D$26),"") -> 33 | E98: 38 | F98: 44 | G98: 49 | H98: 54 | I98: 60 | J98: 65 | K98: 70 | L98: 76 | M98: 80 | N98: 78 | O98: 72 | P98: 65 | Q98: 59 | R98: 52 | S98: 46 | T98: 39 | U98: 33 | V98: 26 | W98: 20 | X98: 13
A99: 3 | C99: Cost per trip | D99: =IFERROR(INDEX(INDIRECT("output"&$A93),$A99,D$26),"") -> £0.95 | E99: £1.12 | F99: £1.29 | G99: £1.46 | H99: £1.64 | I99: £1.81 | J99: £1.98 | K99: £2.16 | L99: £2.33 | M99: £2.48 | N99: £2.42 | O99: £2.21 | P99: £2.00 | Q99: £1.79 | R99: £1.58 | S99: £1.37 | T99: £1.17 | U99: £0.96 | V99: £0.75 | W99: £0.54 | X99: £0.43
A101: 4 | C101: What was the demand to cross here (per year) | D101: =IF(D98="","",INDEX(INDIRECT("output"&$A93),$A101,D$26)) -> 173,810 | E101: 173,810 | F101: 173,810 | G101: 173,810 | H101: 173,810 | I101: 173,810 | J101: 173,810 | K101: 173,810 | L101: 173,810 | M101: 173,810 | N101: 173,810 | O101: 173,810 | P101: 173,810 | Q101: 173,810 | R101: 173,810 | S101: 173,810 | T101: 173,810 | U101: 173,810 | V101: 173,810 | W101: 173,810 | X101: 173,810
A102: 5 | C102: How many of those trips cross here (informal) | D102: =IFERROR(INDEX(INDIRECT("output"&$A93),$A102,D$26),"") -> 5 | E102: 8 | F102: 14 | G102: 23 | H102: 37 | I102: 61 | J102: 101 | K102: 165 | L102: 270 | M102: 514 | N102: 720 | O102: 14,119 | P102: 14,089 | Q102: 14,071 | R102: 14,060 | S102: 14,053 | T102: 14,049 | U102: 14,046 | V102: 14,045 | W102: 14,044 | X102: 14,043
A103: 6 | C103: How many of those trips cross here (using facilities) | D103: =IFERROR(INDEX(INDIRECT("output"&$A93),$A103,D$26),"") -> 173,800 | E103: 0 | F103: 0 | G103: 0 | H103: 0 | I103: 0 | J103: 0 | K103: 0 | L103: 0 | M103: 0 | N103: 0 | O103: 0 | P103: 0 | Q103: 0 | R103: 0 | S103: 0 | T103: 0 | U103: 0 | V103: 0 | W103: 0 | X103: 144,836
A104: 7 | C104: How many cross in other places (informal) | D104: =IFERROR(INDEX(INDIRECT("output"&$A93),$A104,D$26),"") -> 0 | E104: 0 | F104: 0 | G104: 0 | H104: 0 | I104: 0 | J104: 0 | K104: 0 | L104: 0 | M104: 0 | N104: 0 | O104: 14,042 | P104: 14,042 | Q104: 14,042 | R104: 14,042 | S104: 14,042 | T104: 14,042 | U104: 14,042 | V104: 14,042 | W104: 14,042 | X104: 14,042
A105: 8 | C105: How many cross in other places (using facilities) | D105: =IFERROR(INDEX(INDIRECT("output"&$A93),$A105,D$26)-D103,"") -> 0 | E105: 173,793 | F105: 173,783 | G105: 173,765 | H105: 173,737 | I105: 173,691 | J105: 173,616 | K105: 173,492 | L105: 173,290 | M105: 172,551 | N105: 172,422 | O105: 144,380 | P105: 144,559 | Q105: 144,669 | R105: 144,736 | S105: 144,777 | T105: 144,802 | U105: 144,817 | V105: 144,827 | W105: 144,832 | X105: 0
A106: 9 | C106: How many trips are suppressed | D106: =IFERROR(INDEX(INDIRECT("output"&$A93),$A106,D$26),"") -> 5 | E106: 8 | F106: 13 | G106: 21 | H106: 35 | I106: 57 | J106: 93 | K106: 152 | L106: 250 | M106: 744 | N106: 667 | O106: 1,269 | P106: 1,119 | Q106: 1,027 | R106: 971 | S106: 937 | T106: 916 | U106: 903 | V106: 896 | W106: 891 | X106: 883
A108: 10 | C108: Average detour of trips (m) | D108: =IFERROR(INDEX(INDIRECT("output"&$A93),$A108,D$26),"") -> 0 | E108: 50 | F108: 100 | G108: 150 | H108: 200 | I108: 250 | J108: 300 | K108: 349 | L108: 399 | M108: 491 | N108: 496 | O108: 374 | P108: 333 | Q108: 291 | R108: 250 | S108: 208 | T108: 167 | U108: 125 | V108: 83 | W108: 42 | X108: 0
A109: 11 | C109: Average delay of trips (mins.) | D109: =IFERROR(INDEX(INDIRECT("output"&$A93),$A109,D$26),"") -> 0.0 | E109: 0.6 | F109: 1.2 | G109: 1.9 | H109: 2.5 | I109: 3.1 | J109: 3.7 | K109: 4.3 | L109: 4.9 | M109: 6.1 | N109: 6.1 | O109: 4.6 | P109: 4.1 | Q109: 3.6 | R109: 3.1 | S109: 2.6 | T109: 2.1 | U109: 1.5 | V109: 1.0 | W109: 0.5 | X109: 0.0
A111: 12 | C111: How many trips from other places cross here | D111: =IFERROR(INDEX(INDIRECT("output"&$A93),$A111,D$26),"") -> 1,513,460 | E111: 0 | F111: 0 | G111: 0 | H111: 0 | I111: 0 | J111: 0 | K111: 0 | L111: 0 | M111: 0 | N111: 0 | O111: 14,042 | P111: 14,042 | Q111: 14,042 | R111: 14,042 | S111: 14,042 | T111: 14,042 | U111: 14,042 | V111: 14,042 | W111: 14,042 | X111: 1,537,122
A112: 13 | C112: Total number trips crossing here | D112: =IFERROR(INDEX(INDIRECT("output"&$A93),$A112,D$26),"") -> 1,687,264 | E112: 8 | F112: 14 | G112: 23 | H112: 37 | I112: 61 | J112: 101 | K112: 165 | L112: 270 | M112: 514 | N112: 720 | O112: 28,161 | P112: 28,131 | Q112: 28,113 | R112: 28,102 | S112: 28,095 | T112: 28,091 | U112: 28,089 | V112: 28,087 | W112: 28,086 | X112: 1,696,001

Sheet parameters (hidden)
A1: MODELS
E5: COEFFICIENTS | N5: INDEX | W5: WILLINGNESS TO WALK
E6: work1834 | F6: work3564 | G6: shop1834 | H6: shop3564 | I6: shop65 | J6: lei1834 | K6: lei3564 | L6: lei65 | N6: work1834 | O6: work3564 | P6: shop1834 | Q6: shop3564 | R6: shop65 | S6: lei1834 | T6: lei3564 | U6: lei65 | W6: work1834 | X6: work3564 | Y6: shop1834 | Z6: shop3564 | AA6: shop65 | AB6: lei1834 | AC6: lei3564 | AD6: lei65
A7: SP1 | B7: time1 | E7: -0.41 | F7: -0.41 | G7: -0.41 | H7: -0.41 | I7: -0.41 | J7: -0.41 | K7: -0.41 | L7: -0.41
B8: 1
B9: 2 | E9: -4.85 | F9: -4.49 | G9: -4.86 | H9: -4.79 | I9: -4.88 | J9: -3.81 | K9: -4.91 | L9: -4.79 | N9: 42 | O9: 39 | P9: 44 | Q9: 39 | R9: 41 | S9: 35 | T9: 41 | U9: 43 | W9: 11.8 | X9: 10.9 | Y9: 11.8 | Z9: 11.7 | AA9: 11.9 | AB9: 9.3 | AC9: 11.9 | AD9: 11.6
B10: 3 | E10: -10.38 | F10: -10.69 | G10: -10.38 | H10: -10.33 | I10: -10.27 | J10: -10.45 | K10: -10.45 | L10: -10.61 | N10: 84 | O10: 92 | P10: 83 | Q10: 82 | R10: 84 | S10: 92 | T10: 84 | U10: 82 | W10: 25.2 | X10: 26.0 | Y10: 25.2 | Z10: 25.1 | AA10: 25.0 | AB10: 25.4 | AC10: 25.4 | AD10: 25.8
B11: wide
B12: narrow
B13: no | E13: -2.77 | F13: -2.58 | G13: -2.76 | H13: -2.36 | I13: -2.17 | J13: -2.06 | K13: -2.55 | L13: -2.66 | N13: 23 | O13: 24 | P13: 22 | Q13: 20 | R13: 20 | S13: 21 | T13: 22 | U13: 21 | W13: 6.7 | X13: 6.3 | Y13: 6.7 | Z13: 5.7 | AA13: 5.3 | AB13: 5.0 | AC13: 6.2 | AD13: 6.5
B14: low
B15: medium | E15: -4.46 | F15: -4.08 | G15: -4.44 | H15: -4.48 | I15: -4.37 | J15: -4.32 | K15: -4.41 | L15: -4.68 | N15: 40 | O15: 40 | P15: 39 | Q15: 37 | R15: 37 | S15: 39 | T15: 38 | U15: 36 | W15: 10.8 | X15: 9.9 | Y15: 10.8 | Z15: 10.9 | AA15: 10.6 | AB15: 10.5 | AC15: 10.7 | AD15: 11.4
B16: high | E16: -5.85 | F16: -5.84 | G16: -6.29 | H16: -6.10 | I16: -6.19 | J16: -6.10 | K16: -6.02 | L16: -6.56 | N16: 52 | O16: 52 | P16: 56 | Q16: 51 | R16: 55 | S16: 54 | T16: 50 | U16: 54 | W16: 14.2 | X16: 14.2 | Y16: 15.3 | Z16: 14.8 | AA16: 15.1 | AB16: 14.8 | AC16: 14.6 | AD16: 15.9
B17: 10
B18: 20
B19: 30 | E19: -1.70 | F19: -1.54 | G19: -2.12 | H19: -1.32 | I19: -1.04 | J19: -1.00 | K19: -1.54 | L19: -2.54 | N19: 16 | O19: 12 | P19: 20 | Q19: 11 | R19: 11 | S19: 12 | T19: 12 | U19: 21 | W19: 4.1 | X19: 3.7 | Y19: 5.2 | Z19: 3.2 | AA19: 2.5 | AB19: 2.4 | AC19: 3.7 | AD19: 6.2
B20: 40 | E20: -4.13 | F20: -4.01 | G20: -4.34 | H20: -4.41 | I20: -4.21 | J20: -4.12 | K20: -4.20 | L20: -4.13 | N20: 35 | O20: 37 | P20: 35 | Q20: 37 | R20: 38 | S20: 36 | T20: 35 | U20: 33 | W20: 10.0 | X20: 9.8 | Y20: 10.5 | Z20: 10.7 | AA20: 10.2 | AB20: 10.0 | AC20: 10.2 | AD20: 10.0
B21: no1 | E21: -12.26 | F21: -11.49 | G21: -12.68 | H21: -12.55 | I21: -11.90 | J21: -11.57 | K21: -12.42 | L21: -12.80 | W21: 29.8 | X21: 27.9 | Y21: 30.8 | Z21: 30.5 | AA21: 28.9 | AB21: 28.1 | AC21: 30.2 | AD21: 31.1
A22: SP3 | B22: time3 | E22: -0.40 | F22: -0.40 | G22: -0.40 | H22: -0.40 | I22: -0.40 | J22: -0.40 | K22: -0.40 | L22: -0.40
B23: wait | E23: -0.44 | F23: -0.15 | G23: -0.46 | H23: -0.13 | I23: -0.39 | J23: -0.11 | K23: -0.32 | L23: -0.06 | N23: 3 | O23: 1 | P23: 3 | Q23: 1 | R23: 2 | S23: 1 | T23: 2 | U23: 1 | W23: 1.1 | X23: 0.4 | Y23: 1.2 | Z23: 0.3 | AA23: 1.0 | AB23: 0.3 | AC23: 0.8 | AD23: 0.2
B24: R | C24: Pedestrian refuge | D24: R | E24: -2.30 | F24: -2.82 | G24: -2.75 | H24: -2.22 | I24: -2.45 | J24: -1.81 | K24: -2.58 | L24: -2.42 | N24: 15 | O24: 18 | P24: 18 | Q24: 14 | R24: 17 | S24: 14 | T24: 16 | U24: 16 | W24: 5.8 | X24: 7.1 | Y24: 6.9 | Z24: 5.6 | AA24: 6.2 | AB24: 4.6 | AC24: 6.5 | AD24: 6.1
B25: P | C25: Straight pelican | D25: P | E25: 0.84 | F25: 0.87 | G25: 0.74 | H25: 0.85 | I25: 0.75 | J25: 0.93 | K25: 0.85 | L25: 0.82 | N25: -6 | O25: -6 | P25: -5 | Q25: -5 | R25: -5 | S25: -6 | T25: -6 | U25: -5 | W25: -2.1 | X25: -2.2 | Y25: -1.9 | Z25: -2.1 | AA25: -1.9 | AB25: -2.3 | AC25: -2.1 | AD25: -2.1
B26: S | C26: Staggered pelican | D26: S | E26: 1.14 | F26: 1.25 | G26: 1.29 | H26: 1.23 | I26: 1.30 | J26: 1.17 | K26: 1.26 | L26: 1.26 | N26: -8 | O26: -8 | P26: -8 | Q26: -8 | R26: -9 | S26: -8 | T26: -8 | U26: -8 | W26: -2.9 | X26: -3.2 | Y26: -3.3 | Z26: -3.1 | AA26: -3.3 | AB26: -2.9 | AC26: -3.2 | AD26: -3.2
B27: F | C27: Footbridge | D27: F | E27: -0.08 | F27: -0.72 | G27: -0.20 | H27: -0.55 | I27: -3.24 | J27: 0.01 | K27: -0.54 | L27: -2.71 | N27: 0 | O27: 5 | P27: 1 | Q27: 3 | R27: 21 | S27: -0 | T27: 4 | U27: 17 | W27: 0.2 | X27: 1.8 | Y27: 0.5 | Z27: 1.4 | AA27: 8.2 | AB27: -0.0 | AC27: 1.3 | AD27: 6.8
B28: U | C28: Underpass | D28: U | E28: -5.24 | F28: -4.60 | G28: -2.86 | H28: -5.29 | I28: -5.68 | J28: -5.21 | K28: -5.12 | L28: -5.72 | N28: 34 | O28: 32 | P28: 18 | Q28: 34 | R28: 37 | S28: 34 | T28: 34 | U28: 37 | W28: 13.2 | X28: 11.6 | Y28: 7.2 | Z28: 13.3 | AA28: 14.3 | AB28: 13.1 | AC28: 12.9 | AD28: 14.4
B29: no3 | E29: -15.57 | F29: -15.49 | G29: -15.51 | H29: -15.62 | I29: -15.48 | J29: -15.59 | K29: -15.61 | L29: -14.84 | W29: 39.3 | X29: 39.1 | Y29: 39.1 | Z29: 39.4 | AA29: 39.0 | AB29: 39.3 | AC29: 39.4 | AD29: 39.6
D31: Exchange rate (2018 mean)
A32: Countries | C32: United Kingdom | D32: 1
C33: New Zealand | D33: 1.929
A35: Guard railings | C35: Yes
C36: No
A38: Relationship between willingness to walk and willingness to pay
C39: Original (£) | D39: Converted
B40: Slope | C40: 0.1411 | D40: =C40*VLOOKUP(in_country,$C$32:$D$33,2,0) -> 0.1411269415
B41: Intercept | C41: -0.1762 | D41: =C41*VLOOKUP(in_country,$C$32:$D$33,2,0) -> -0.1761908703
A43: Other constants
B44: RP-SP scaling factor: | C44: 42%
B45: pnontraders | C45: 29%
B46: wtp_unit_nontraders | C46: 0.0096
B47: max I | C47: 173
A49: Constants defined by user (or default if not)
B50: Length | C50: 1000
B51: Demand/year | C51: =365*IF(in_demand="",1000,in_demand) -> 3650000
B52: Lifetime | C52: =IF(in_lifetime="",10,in_lifetime) -> 5
B53: Discount rate | C53: =IF(in_discount="",0.05,in_discount)/100 -> 5%
A55: Benefits per year
B56: 1 | C56: 1
B57: 2 | C57: =C56+1/(1+discount)^(B57-1) -> 1.95
B58: 3 | C58: =C57+1/(1+discount)^(B58-1) -> 2.86
B59: 4 | C59: 3.72
B60: 5 | C60: 4.55
B61: 6 | C61: 5.33
B62: 7 | C62: 6.08
B63: 8 | C63: 6.79
B64: 9 | C64: 7.46
B65: 10 | C65: 8.11
A67: Walking speed
B68: speed1834 | C68: =IF(in_speed1834="",as_speed1834,in_speed1834) -> 4.86
B69: speed3564 | C69: =IF(in_speed3564="",as_speed3564,in_speed3564) -> 4.86
B70: speed65 | C70: =IF(in_speed65="",as_speed65,in_speed65) -> 3.06
A72: Segments
B73: p_work1834 | C73: =0.0001*IF(in_p1834="",as_p1834,in_p1834)*IF(in_pwork1834="",as_pwork1834,in_pwork1834) -> 11%
B74: p_work3564 | C74: =0.0001*IF(in_p3564="",as_p3564,in_p3564)*IF(in_pwork3564="",as_pwork3564,in_pwork3564) -> 11%
B75: p_shop1834 | C75: =0.0001*IF(in_p1834="",as_p1834,in_p1834)*IF(in_pshop1834="",as_pshop1834,in_pshop1834) -> 11%
B76: p_shop3564 | C76: =0.0001*IF(in_p3564="",as_p3564,in_p3564)*IF(in_pshop3564="",as_pshop3564,in_pshop3564) -> 11%
B77: p_shop65 | C77: =0.0001*IF(in_p65="",as_p65,in_p65)*IF(in_pshop65="",as_pshop65,in_pshop65) -> 17%
B78: p_lei1834 | C78: =0.0001*IF(in_p1834="",as_p1834,in_p1834)*IF(in_plei1834="",as_plei1834,in_plei1834) -> 11%
B79: p_lei3564 | C79: =0.0001*IF(in_p3564="",as_p3564,in_p3564)*IF(in_plei3564="",as_plei3564,in_plei3564) -> 11%
B80: p_lei65 | C80: =0.0001*IF(in_p65="",as_p65,in_p65)*IF(in_plei65="",as_plei65,in_plei65) -> 17%
C81: =SUM(C73:C80) -> 100%

Sheet calcs_segs (hidden)
A1: work1834 | AD1: shop1834 | BG1: lei1834 | CJ1: work3564 | DM1: shop3564 | EP1: lei3564 | FS1: shop65 | GV1: lei65
A2: work1834 | B2: 1834 | AD2: shop1834 | AE2: 1834 | BG2: lei1834 | BH2: 1834 | CJ2: work3564 | CK2: 3564 | DM2: shop3564 | DN2: 3564 | EP2: lei3564 | EQ2: 3564 | FS2: shop65 | FT2: 65 | GV2: lei65 | GW2: 65
A3: point | G3: 1 | H3: 2 | I3: 3 | J3: 4 | K3: 5 | L3: 6 | M3: 7 | N3: 8 | O3: 9 | P3: 10 | Q3: 11 | R3: 12 | S3: 13 | T3: 14 | U3: 15 | V3: 16 | W3: 17 | X3: 18 | Y3: 19 | Z3: 20 | AA3: 21 | CJ3: point | CP3: 1 | CQ3: 2 | CR3: 3 | CS3: 4 | CT3: 5 | CU3: 6 | CV3: 7 | CW3: 8 | CX3: 9 | CY3: 10 | CZ3: 11 | DA3: 12 | DB3: 13 | DC3: 14 | DD3: 15 | DE3: 16 | DF3: 17 | DG3: 18 | DH3: 19 | DI3: 20 | DJ3: 21 | FS3: point | FY3: 1 | FZ3: 2 | GA3: 3 | GB3: 4 | GC3: 5 | GD3: 6 | GE3: 7 | GF3: 8 | GG3: 9 | GH3: 10 | GI3: 11 | GJ3: 12 | GK3: 13 | GL3: 14 | GM3: 15 | GN3: 16 | GO3: 17 | GP3: 18 | GQ3: 19 | GR3: 20 | GS3: 21
A4: timeto1 | F4: 1 | G4: =(60/INDIRECT("speed"&B$2))*(length/1000)*ABS(G$3-$F4)/20 -> 0.0 | H4: =(60/INDIRECT("speed"&B$2))*(length/1000)*ABS(H$3-$F4)/20 -> 0.6 | I4: =(60/INDIRECT("speed"&B$2))*(length/1000)*ABS(I$3-$F4)/20 -> 1.2 | J4: =(60/INDIRECT("speed"&B$2))*(length/1000)*ABS(J$3-$F4)/20 -> 1.9 | K4: =(60/INDIRECT("speed"&B$2))*(length/1000)*ABS(K$3-$F4)/20 -> 2.5 | L4: =(60/INDIRECT("speed"&B$2))*(length/1000)*ABS(L$3-$F4)/20 -> 3.1 | M4: =(60/INDIRECT("speed"&B$2))*(length/1000)*ABS(M$3-$F4)/20 -> 3.7 | N4: =(60/INDIRECT("speed"&B$2))*(length/1000)*ABS(N$3-$F4)/20 -> 4.3 | O4: =(60/INDIRECT("speed"&B$2))*(length/1000)*ABS(O$3-$F4)/20 -> 4.9 | P4: =(60/INDIRECT("speed"&B$2))*(length/1000)*ABS(P$3-$F4)/20 -> 5.6 | Q4: =(60/INDIRECT("speed"&B$2))*(length/1000)*ABS(Q$3-$F4)/20 -> 6.2 | R4: =(60/INDIRECT("speed"&B$2))*(length/1000)*ABS(R$3-$F4)/20 -> 6.8 | S4: =(60/INDIRECT("speed"&B$2))*(length/1000)*ABS(S$3-$F4)/20 -> 7.4 | T4: =(60/INDIRECT("speed"&B$2))*(length/1000)*ABS(T$3-$F4)/20 -> 8.0 | U4: =(60/INDIRECT("speed"&B$2))*(length/1000)*ABS(U$3-$F4)/20 -> 8.6 | V4: =(60/INDIRECT("speed"&B$2))*(length/1000)*ABS(V$3-$F4)/20 -> 9.3 | W4: =(60/INDIRECT("speed"&B$2))*(length/1000)*ABS(W$3-$F4)/20 -> 9.9 | X4: =(60/INDIRECT("speed"&B$2))*(length/1000)*ABS(X$3-$F4)/20 -> 10.5 | Y4: =(60/INDIRECT("speed"&B$2))*(length/1000)*ABS(Y$3-$F4)/20 -> 11.1 | Z4: =(60/INDIRECT("speed"&B$2))*(length/1000)*ABS(Z$3-$F4)/20 -> 11.7 | AA4: =(60/INDIRECT("speed"&B$2))*(length/1000)*ABS(AA$3-$F4)/20 -> 12.3 | CJ4: timeto1 | CO4: 1 | CP4: =(60/INDIRECT("speed"&$CK$2))*(length/1000)*ABS(CP$3-$CO4)/20 -> 0.0 | CQ4: =(60/INDIRECT("speed"&$CK$2))*(length/1000)*ABS(CQ$3-$CO4)/20 -> 0.6 | CR4: =(60/INDIRECT("speed"&$CK$2))*(length/1000)*ABS(CR$3-$CO4)/20 -> 1.2 | CS4: =(60/INDIRECT("speed"&$CK$2))*(length/1000)*ABS(CS$3-$CO4)/20 -> 1.9 | CT4: =(60/INDIRECT("speed"&$CK$2))*(length/1000)*ABS(CT$3-$CO4)/20 -> 2.5 | CU4: =(60/INDIRECT("speed"&$CK$2))*(length/1000)*ABS(CU$3-$CO4)/20 -> 3.1 | CV4: =(60/INDIRECT("speed"&$CK$2))*(length/1000)*ABS(CV$3-$CO4)/20 -> 3.7 | CW4: =(60/INDIRECT("speed"&$CK$2))*(length/1000)*ABS(CW$3-$CO4)/20 -> 4.3 | CX4: =(60/INDIRECT("speed"&$CK$2))*(length/1000)*ABS(CX$3-$CO4)/20 -> 4.9 | CY4: =(60/INDIRECT("speed"&$CK$2))*(length/1000)*ABS(CY$3-$CO4)/20 -> 5.6 | CZ4: =(60/INDIRECT("speed"&$CK$2))*(length/1000)*ABS(CZ$3-$CO4)/20 -> 6.2 | DA4: =(60/INDIRECT("speed"&$CK$2))*(length/1000)*ABS(DA$3-$CO4)/20 -> 6.8 | DB4: =(60/INDIRECT("speed"&$CK$2))*(length/1000)*ABS(DB$3-$CO4)/20 -> 7.4 | DC4: =(60/INDIRECT("speed"&$CK$2))*(length/1000)*ABS(DC$3-$CO4)/20 -> 8.0 | DD4: =(60/INDIRECT("speed"&$CK$2))*(length/1000)*ABS(DD$3-$CO4)/20 -> 8.6 | DE4: =(60/INDIRECT("speed"&$CK$2))*(length/1000)*ABS(DE$3-$CO4)/20 -> 9.3 | DF4: =(60/INDIRECT("speed"&$CK$2))*(length/1000)*ABS(DF$3-$CO4)/20 -> 9.9 | DG4: =(60/INDIRECT("speed"&$CK$2))*(length/1000)*ABS(DG$3-$CO4)/20 -> 10.5 | DH4: =(60/INDIRECT("speed"&$CK$2))*(length/1000)*ABS(DH$3-$CO4)/20 -> 11.1 | DI4: =(60/INDIRECT("speed"&$CK$2))*(length/1000)*ABS(DI$3-$CO4)/20 -> 11.7 | DJ4: =(60/INDIRECT("speed"&$CK$2))*(length/1000)*ABS(DJ$3-$CO4)/20 -> 12.3 | FS4: timeto1 | FX4: 1 | FY4: =(60/INDIRECT("speed"&$FT$2))*(length/1000)*ABS(FY$3-$FX4)/20 -> 0.0 | FZ4: =(60/INDIRECT("speed"&$FT$2))*(length/1000)*ABS(FZ$3-$FX4)/20 -> 1.0 | GA4: =(60/INDIRECT("speed"&$FT$2))*(length/1000)*ABS(GA$3-$FX4)/20 -> 2.0 | GB4: =(60/INDIRECT("speed"&$FT$2))*(length/1000)*ABS(GB$3-$FX4)/20 -> 2.9 | GC4: =(60/INDIRECT("speed"&$FT$2))*(length/1000)*ABS(GC$3-$FX4)/20 -> 3.9 | GD4: =(60/INDIRECT("speed"&$FT$2))*(length/1000)*ABS(GD$3-$FX4)/20 -> 4.9 | GE4: =(60/INDIRECT("speed"&$FT$2))*(length/1000)*ABS(GE$3-$FX4)/20 -> 5.9 | GF4: =(60/INDIRECT("speed"&$FT$2))*(length/1000)*ABS(GF$3-$FX4)/20 -> 6.9 | GG4: =(60/INDIRECT("speed"&$FT$2))*(length/1000)*ABS(GG$3-$FX4)/20 -> 7.8 | GH4: =(60/INDIRECT("speed"&$FT$2))*(length/1000)*ABS(GH$3-$FX4)/20 -> 8.8 | GI4: =(60/INDIRECT("speed"&$FT$2))*(length/1000)*ABS(GI$3-$FX4)/20 -> 9.8 | GJ4: =(60/INDIRECT("speed"&$FT$2))*(length/1000)*ABS(GJ$3-$FX4)/20 -> 10.8 | GK4: =(60/INDIRECT("speed"&$FT$2))*(length/1000)*ABS(GK$3-$FX4)/20 -> 11.8 | GL4: =(60/INDIRECT("speed"&$FT$2))*(length/1000)*ABS(GL$3-$FX4)/20 -> 12.7 | GM4: =(60/INDIRECT("speed"&$FT$2))*(length/1000)*ABS(GM$3-$FX4)/20 -> 13.7 | GN4: =(60/INDIRECT("speed"&$FT$2))*(length/1000)*ABS(GN$3-$FX4)/20 -> 14.7 | GO4: =(60/INDIRECT("speed"&$FT$2))*(length/1000)*ABS(GO$3-$FX4)/20 -> 15.7 | GP4: =(60/INDIRECT("speed"&$FT$2))*(length/1000)*ABS(GP$3-$FX4)/20 -> 16.7 | GQ4: =(60/INDIRECT("speed"&$FT$2))*(length/1000)*ABS(GQ$3-$FX4)/20 -> 17.6 | GR4: =(60/INDIRECT("speed"&$FT$2))*(length/1000)*ABS(GR$3-$FX4)/20 -> 18.6 | GS4: =(60/INDIRECT("speed"&$FT$2))*(length/1000)*ABS(GS$3-$FX4)/20 -> 19.6
A5: timeto2 | F5: 2 | G5: =(60/INDIRECT("speed"&B$2))*(length/1000)*ABS(G$3-$F5)/20 -> 0.6 | H5: =(60/INDIRECT("speed"&B$2))*(length/1000)*ABS(H$3-$F5)/20 -> 0.0 | I5: =(60/INDIRECT("speed"&B$2))*(length/1000)*ABS(I$3-$F5)/20 -> 0.6 | J5: =(60/INDIRECT("speed"&B$2))*(length/1000)*ABS(J$3-$F5)/20 -> 1.2 | K5: =(60/INDIRECT("speed"&B$2))*(length/1000)*ABS(K$3-$F5)/20 -> 1.9 | L5: =(60/INDIRECT("speed"&B$2))*(length/1000)*ABS(L$3-$F5)/20 -> 2.5 | M5: =(60/INDIRECT("speed"&B$2))*(length/1000)*ABS(M$3-$F5)/20 -> 3.1 | N5: =(60/INDIRECT("speed"&B$2))*(length/1000)*ABS(N$3-$F5)/20 -> 3.7 | O5: =(60/INDIRECT("speed"&B$2))*(length/1000)*ABS(O$3-$F5)/20 -> 4.3 | P5: =(60/INDIRECT("speed"&B$2))*(length/1000)*ABS(P$3-$F5)/20 -> 4.9 | Q5: =(60/INDIRECT("speed"&B$2))*(length/1000)*ABS(Q$3-$F5)/20 -> 5.6 | R5: =(60/INDIRECT("speed"&B$2))*(length/1000)*ABS(R$3-$F5)/20 -> 6.2 | S5: =(60/INDIRECT("speed"&B$2))*(length/1000)*ABS(S$3-$F5)/20 -> 6.8 | T5: =(60/INDIRECT("speed"&B$2))*(length/1000)*ABS(T$3-$F5)/20 -> 7.4 | U5: =(60/INDIRECT("speed"&B$2))*(length/1000)*ABS(U$3-$F5)/20 -> 8.0 | V5: =(60/INDIRECT("speed"&B$2))*(length/1000)*ABS(V$3-$F5)/20 -> 8.6 | W5: =(60/INDIRECT("speed"&B$2))*(length/1000)*ABS(W$3-$F5)/20 -> 9.3 | X5: =(60/INDIRECT("speed"&B$2))*(length/1000)*ABS(X$3-$F5)/20 -> 9.9 | Y5: =(60/INDIRECT("speed"&B$2))*(length/1000)*ABS(Y$3-$F5)/20 -> 10.5 | Z5: =(60/INDIRECT("speed"&B$2))*(length/1000)*ABS(Z$3-$F5)/20 -> 11.1 | AA5: =(60/INDIRECT("speed"&B$2))*(length/1000)*ABS(AA$3-$F5)/20 -> 11.7 | CJ5: timeto2 | CO5: 2 | CP5: =(60/INDIRECT("speed"&$CK$2))*(length/1000)*ABS(CP$3-$CO5)/20 -> 0.6 | CQ5: =(60/INDIRECT("speed"&$CK$2))*(length/1000)*ABS(CQ$3-$CO5)/20 -> 0.0 | CR5: =(60/INDIRECT("speed"&$CK$2))*(length/1000)*ABS(CR$3-$CO5)/20 -> 0.6 | CS5: =(60/INDIRECT("speed"&$CK$2))*(length/1000)*ABS(CS$3-$CO5)/20 -> 1.2 | CT5: =(60/INDIRECT("speed"&$CK$2))*(length/1000)*ABS(CT$3-$CO5)/20 -> 1.9 | CU5: =(60/INDIRECT("speed"&$CK$2))*(length/1000)*ABS(CU$3-$CO5)/20 -> 2.5 | CV5: =(60/INDIRECT("speed"&$CK$2))*(length/1000)*ABS(CV$3-$CO5)/20 -> 3.1 | CW5: =(60/INDIRECT("speed"&$CK$2))*(length/1000)*ABS(CW$3-$CO5)/20 -> 3.7 | CX5: =(60/INDIRECT("speed"&$CK$2))*(length/1000)*ABS(CX$3-$CO5)/20 -> 4.3 | CY5: =(60/INDIRECT("speed"&$CK$2))*(length/1000)*ABS(CY$3-$CO5)/20 -> 4.9 | CZ5: =(60/INDIRECT("speed"&$CK$2))*(length/1000)*ABS(CZ$3-$CO5)/20 -> 5.6 | DA5: =(60/INDIRECT("speed"&$CK$2))*(length/1000)*ABS(DA$3-$CO5)/20 -> 6.2 | DB5: =(60/INDIRECT("speed"&$CK$2))*(length/1000)*ABS(DB$3-$CO5)/20 -> 6.8 | DC5: =(60/INDIRECT("speed"&$CK$2))*(length/1000)*ABS(DC$3-$CO5)/20 -> 7.4 | DD5: =(60/INDIRECT("speed"&$CK$2))*(length/1000)*ABS(DD$3-$CO5)/20 -> 8.0 | DE5: =(60/INDIRECT("speed"&$CK$2))*(length/1000)*ABS(DE$3-$CO5)/20 -> 8.6 | DF5: =(60/INDIRECT("speed"&$CK$2))*(length/1000)*ABS(DF$3-$CO5)/20 -> 9.3 | DG5: =(60/INDIRECT("speed"&$CK$2))*(length/1000)*ABS(DG$3-$CO5)/20 -> 9.9 | DH5: =(60/INDIRECT("speed"&$CK$2))*(length/1000)*ABS(DH$3-$CO5)/20 -> 10.5 | DI5: =(60/INDIRECT("speed"&$CK$2))*(length/1000)*ABS(DI$3-$CO5)/20 -> 11.1 | DJ5: =(60/INDIRECT("speed"&$CK$2))*(length/1000)*ABS(DJ$3-$CO5)/20 -> 11.7 | FS5: timeto2 | FX5: 2 | FY5: =(60/INDIRECT("speed"&$FT$2))*(length/1000)*ABS(FY$3-$FX5)/20 -> 1.0 | FZ5: =(60/INDIRECT("speed"&$FT$2))*(length/1000)*ABS(FZ$3-$FX5)/20 -> 0.0 | GA5: =(60/INDIRECT("speed"&$FT$2))*(length/1000)*ABS(GA$3-$FX5)/20 -> 1.0 | GB5: =(60/INDIRECT("speed"&$FT$2))*(length/1000)*ABS(GB$3-$FX5)/20 -> 2.0 | GC5: =(60/INDIRECT("speed"&$FT$2))*(length/1000)*ABS(GC$3-$FX5)/20 -> 2.9 | GD5: =(60/INDIRECT("speed"&$FT$2))*(length/1000)*ABS(GD$3-$FX5)/20 -> 3.9 | GE5: =(60/INDIRECT("speed"&$FT$2))*(length/1000)*ABS(GE$3-$FX5)/20 -> 4.9 | GF5: =(60/INDIRECT("speed"&$FT$2))*(length/1000)*ABS(GF$3-$FX5)/20 -> 5.9 | GG5: =(60/INDIRECT("speed"&$FT$2))*(length/1000)*ABS(GG$3-$FX5)/20 -> 6.9 | GH5: =(60/INDIRECT("speed"&$FT$2))*(length/1000)*ABS(GH$3-$FX5)/20 -> 7.8 | GI5: =(60/INDIRECT("speed"&$FT$2))*(length/1000)*ABS(GI$3-$FX5)/20 -> 8.8 | GJ5: =(60/INDIRECT("speed"&$FT$2))*(length/1000)*ABS(GJ$3-$FX5)/20 -> 9.8 | GK5: =(60/INDIRECT("speed"&$FT$2))*(length/1000)*ABS(GK$3-$FX5)/20 -> 10.8 | GL5: =(60/INDIRECT("speed"&$FT$2))*(length/1000)*ABS(GL$3-$FX5)/20 -> 11.8 | GM5: =(60/INDIRECT("speed"&$FT$2))*(length/1000)*ABS(GM$3-$FX5)/20 -> 12.7 | GN5: =(60/INDIRECT("speed"&$FT$2))*(length/1000)*ABS(GN$3-$FX5)/20 -> 13.7 | GO5: =(60/INDIRECT("speed"&$FT$2))*(length/1000)*ABS(GO$3-$FX5)/20 -> 14.7 | GP5: =(60/INDIRECT("speed"&$FT$2))*(length/1000)*ABS(GP$3-$FX5)/20 -> 15.7 | GQ5: =(60/INDIRECT("speed"&$FT$2))*(length/1000)*ABS(GQ$3-$FX5)/20 -> 16.7 | GR5: =(60/INDIRECT("speed"&$FT$2))*(length/1000)*ABS(GR$3-$FX5)/20 -> 17.6 | GS5: =(60/INDIRECT("speed"&$FT$2))*(length/1000)*ABS(GS$3-$FX5)/20 -> 18.6
A6: timeto3 | F6: 3 | G6: =(60/INDIRECT("speed"&B$2))*(length/1000)*ABS(G$3-$F6)/20 -> 1.2 | H6: =(60/INDIRECT("speed"&B$2))*(length/1000)*ABS(H$3-$F6)/20 -> 0.6 | I6: =(60/INDIRECT("speed"&B$2))*(length/1000)*ABS(I$3-$F6)/20 -> 0.0 | J6: =(60/INDIRECT("speed"&B$2))*(length/1000)*ABS(J$3-$F6)/20 -> 0.6 | K6: =(60/INDIRECT("speed"&B$2))*(length/1000)*ABS(K$3-$F6)/20 -> 1.2 | L6: =(60/INDIRECT("speed"&B$2))*(length/1000)*ABS(L$3-$F6)/20 -> 1.9 | M6: =(60/INDIRECT("speed"&B$2))*(length/1000)*ABS(M$3-$F6)/20 -> 2.5 | N6: =(60/INDIRECT("speed"&B$2))*(length/1000)*ABS(N$3-$F6)/20 -> 3.1 | O6: =(60/INDIRECT("speed"&B$2))*(length/1000)*ABS(O$3-$F6)/20 -> 3.7 | P6: =(60/INDIRECT("speed"&B$2))*(length/1000)*ABS(P$3-$F6)/20 -> 4.3 | Q6: =(60/INDIRECT("speed"&B$2))*(length/1000)*ABS(Q$3-$F6)/20 -> 4.9 | R6: =(60/INDIRECT("speed"&B$2))*(length/1000)*ABS(R$3-$F6)/20 -> 5.6 | S6: =(60/INDIRECT("speed"&B$2))*(length/1000)*ABS(S$3-$F6)/20 -> 6.2 | T6: =(60/INDIRECT("speed"&B$2))*(length/1000)*ABS(T$3-$F6)/20 -> 6.8 | U6: =(60/INDIRECT("speed"&B$2))*(length/1000)*ABS(U$3-$F6)/20 -> 7.4 | V6: =(60/INDIRECT("speed"&B$2))*(length/1000)*ABS(V$3-$F6)/20 -> 8.0 | W6: =(60/INDIRECT("speed"&B$2))*(length/1000)*ABS(W$3-$F6)/20 -> 8.6 | X6: =(60/INDIRECT("speed"&B$2))*(length/1000)*ABS(X$3-$F6)/20 -> 9.3 | Y6: =(60/INDIRECT("speed"&B$2))*(length/1000)*ABS(Y$3-$F6)/20 -> 9.9 | Z6: =(60/INDIRECT("speed"&B$2))*(length/1000)*ABS(Z$3-$F6)/20 -> 10.5 | AA6: =(60/INDIRECT("speed"&B$2))*(length/1000)*ABS(AA$3-$F6)/20 -> 11.1 | CJ6: timeto3 | CO6: 3 | CP6: =(60/INDIRECT("speed"&$CK$2))*(length/1000)*ABS(CP$3-$CO6)/20 -> 1.2 | CQ6: =(60/INDIRECT("speed"&$CK$2))*(length/1000)*ABS(CQ$3-$CO6)/20 -> 0.6 | CR6: =(60/INDIRECT("speed"&$CK$2))*(length/1000)*ABS(CR$3-$CO6)/20 -> 0.0 | CS6: =(60/INDIRECT("speed"&$CK$2))*(length/1000)*ABS(CS$3-$CO6)/20 -> 0.6 | CT6: =(60/INDIRECT("speed"&$CK$2))*(length/1000)*ABS(CT$3-$CO6)/20 -> 1.2 | CU6: =(60/INDIRECT("speed"&$CK$2))*(length/1000)*ABS(CU$3-$CO6)/20 -> 1.9 | CV6: =(60/INDIRECT("speed"&$CK$2))*(length/1000)*ABS(CV$3-$CO6)/20 -> 2.5 | CW6: =(60/INDIRECT("speed"&$CK$2))*(length/1000)*ABS(CW$3-$CO6)/20 -> 3.1 | CX6: =(60/INDIRECT("speed"&$CK$2))*(length/1000)*ABS(CX$3-$CO6)/20 -> 3.7 | CY6: =(60/INDIRECT("speed"&$CK$2))*(length/1000)*ABS(CY$3-$CO6)/20 -> 4.3 | CZ6: =(60/INDIRECT("speed"&$CK$2))*(length/1000)*ABS(CZ$3-$CO6)/20 -> 4.9 | DA6: =(60/INDIRECT("speed"&$CK$2))*(length/1000)*ABS(DA$3-$CO6)/20 -> 5.6 | DB6: =(60/INDIRECT("speed"&$CK$2))*(length/1000)*ABS(DB$3-$CO6)/20 -> 6.2 | DC6: =(60/INDIRECT("speed"&$CK$2))*(length/1000)*ABS(DC$3-$CO6)/20 -> 6.8 | DD6: =(60/INDIRECT("speed"&$CK$2))*(length/1000)*ABS(DD$3-$CO6)/20 -> 7.4 | DE6: =(60/INDIRECT("speed"&$CK$2))*(length/1000)*ABS(DE$3-$CO6)/20 -> 8.0 | DF6: =(60/INDIRECT("speed"&$CK$2))*(length/1000)*ABS(DF$3-$CO6)/20 -> 8.6 | DG6: =(60/INDIRECT("speed"&$CK$2))*(length/1000)*ABS(DG$3-$CO6)/20 -> 9.3 | DH6: =(60/INDIRECT("speed"&$CK$2))*(length/1000)*ABS(DH$3-$CO6)/20 -> 9.9 | DI6: =(60/INDIRECT("speed"&$CK$2))*(length/1000)*ABS(DI$3-$CO6)/20 -> 10.5 | DJ6: =(60/INDIRECT("speed"&$CK$2))*(length/1000)*ABS(DJ$3-$CO6)/20 -> 11.1 | FS6: timeto3 | FX6: 3 | FY6: =(60/INDIRECT("speed"&$FT$2))*(length/1000)*ABS(FY$3-$FX6)/20 -> 2.0 | FZ6: =(60/INDIRECT("speed"&$FT$2))*(length/1000)*ABS(FZ$3-$FX6)/20 -> 1.0 | GA6: =(60/INDIRECT("speed"&$FT$2))*(length/1000)*ABS(GA$3-$FX6)/20 -> 0.0 | GB6: =(60/INDIRECT("speed"&$FT$2))*(length/1000)*ABS(GB$3-$FX6)/20 -> 1.0 | GC6: =(60/INDIRECT("speed"&$FT$2))*(length/1000)*ABS(GC$3-$FX6)/20 -> 2.0 | GD6: =(60/INDIRECT("speed"&$FT$2))*(length/1000)*ABS(GD$3-$FX6)/20 -> 2.9 | GE6: =(60/INDIRECT("speed"&$FT$2))*(length/1000)*ABS(GE$3-$FX6)/20 -> 3.9 | GF6: =(60/INDIRECT("speed"&$FT$2))*(length/1000)*ABS(GF$3-$FX6)/20 -> 4.9 | GG6: =(60/INDIRECT("speed"&$FT$2))*(length/1000)*ABS(GG$3-$FX6)/20 -> 5.9 | GH6: =(60/INDIRECT("speed"&$FT$2))*(length/1000)*ABS(GH$3-$FX6)/20 -> 6.9 | GI6: =(60/INDIRECT("speed"&$FT$2))*(length/1000)*ABS(GI$3-$FX6)/20 -> 7.8 | GJ6: =(60/INDIRECT("speed"&$FT$2))*(length/1000)*ABS(GJ$3-$FX6)/20 -> 8.8 | GK6: =(60/INDIRECT("speed"&$FT$2))*(length/1000)*ABS(GK$3-$FX6)/20 -> 9.8 | GL6: =(60/INDIRECT("speed"&$FT$2))*(length/1000)*ABS(GL$3-$FX6)/20 -> 10.8 | GM6: =(60/INDIRECT("speed"&$FT$2))*(length/1000)*ABS(GM$3-$FX6)/20 -> 11.8 | GN6: =(60/INDIRECT("speed"&$FT$2))*(length/1000)*ABS(GN$3-$FX6)/20 -> 12.7 | GO6: =(60/INDIRECT("speed"&$FT$2))*(length/1000)*ABS(GO$3-$FX6)/20 -> 13.7 | GP6: =(60/INDIRECT("speed"&$FT$2))*(length/1000)*ABS(GP$3-$FX6)/20 -> 14.7 | GQ6: =(60/INDIRECT("speed"&$FT$2))*(length/1000)*ABS(GQ$3-$FX6)/20 -> 15.7 | GR6: =(60/INDIRECT("speed"&$FT$2))*(length/1000)*ABS(GR$3-$FX6)/20 -> 16.7 | GS6: =(60/INDIRECT("speed"&$FT$2))*(length/1000)*ABS(GS$3-$FX6)/20 -> 17.6
A7: timeto4 | F7: 4 | G7: =(60/INDIRECT("speed"&B$2))*(length/1000)*ABS(G$3-$F7)/20 -> 1.9 | H7: =(60/INDIRECT("speed"&B$2))*(length/1000)*ABS(H$3-$F7)/20 -> 1.2 | I7: =(60/INDIRECT("speed"&B$2))*(length/1000)*ABS(I$3-$F7)/20 -> 0.6 | J7: =(60/INDIRECT("speed"&B$2))*(length/1000)*ABS(J$3-$F7)/20 -> 0.0 | K7: =(60/INDIRECT("speed"&B$2))*(length/1000)*ABS(K$3-$F7)/20 -> 0.6 | L7: =(60/INDIRECT("speed"&B$2))*(length/1000)*ABS(L$3-$F7)/20 -> 1.2 | M7: =(60/INDIRECT("speed"&B$2))*(length/1000)*ABS(M$3-$F7)/20 -> 1.9 | N7: =(60/INDIRECT("speed"&B$2))*(length/1000)*ABS(N$3-$F7)/20 -> 2.5 | O7: =(60/INDIRECT("speed"&B$2))*(length/1000)*ABS(O$3-$F7)/20 -> 3.1 | P7: =(60/INDIRECT("speed"&B$2))*(length/1000)*ABS(P$3-$F7)/20 -> 3.7 | Q7: =(60/INDIRECT("speed"&B$2))*(length/1000)*ABS(Q$3-$F7)/20 -> 4.3 | R7: =(60/INDIRECT("speed"&B$2))*(length/1000)*ABS(R$3-$F7)/20 -> 4.9 | S7: =(60/INDIRECT("speed"&B$2))*(length/1000)*ABS(S$3-$F7)/20 -> 5.6 | T7: =(60/INDIRECT("speed"&B$2))*(length/1000)*ABS(T$3-$F7)/20 -> 6.2 | U7: =(60/INDIRECT("speed"&B$2))*(length/1000)*ABS(U$3-$F7)/20 -> 6.8 | V7: =(60/INDIRECT("speed"&B$2))*(length/1000)*ABS(V$3-$F7)/20 -> 7.4 | W7: =(60/INDIRECT("speed"&B$2))*(length/1000)*ABS(W$3-$F7)/20 -> 8.0 | X7: =(60/INDIRECT("speed"&B$2))*(length/1000)*ABS(X$3-$F7)/20 -> 8.6 | Y7: =(60/INDIRECT("speed"&B$2))*(length/1000)*ABS(Y$3-$F7)/20 -> 9.3 | Z7: =(60/INDIRECT("speed"&B$2))*(length/1000)*ABS(Z$3-$F7)/20 -> 9.9 | AA7: =(60/INDIRECT("speed"&B$2))*(length/1000)*ABS(AA$3-$F7)/20 -> 10.5 | CJ7: timeto4 | CO7: 4 | CP7: =(60/INDIRECT("speed"&$CK$2))*(length/1000)*ABS(CP$3-$CO7)/20 -> 1.9 | CQ7: =(60/INDIRECT("speed"&$CK$2))*(length/1000)*ABS(CQ$3-$CO7)/20 -> 1.2 | CR7: =(60/INDIRECT("speed"&$CK$2))*(length/1000)*ABS(CR$3-$CO7)/20 -> 0.6 | CS7: =(60/INDIRECT("speed"&$CK$2))*(length/1000)*ABS(CS$3-$CO7)/20 -> 0.0 | CT7: =(60/INDIRECT("speed"&$CK$2))*(length/1000)*ABS(CT$3-$CO7)/20 -> 0.6 | CU7: =(60/INDIRECT("speed"&$CK$2))*(length/1000)*ABS(CU$3-$CO7)/20 -> 1.2 | CV7: =(60/INDIRECT("speed"&$CK$2))*(length/1000)*ABS(CV$3-$CO7)/20 -> 1.9 | CW7: =(60/INDIRECT("speed"&$CK$2))*(length/1000)*ABS(CW$3-$CO7)/20 -> 2.5 | CX7: =(60/INDIRECT("speed"&$CK$2))*(length/1000)*ABS(CX$3-$CO7)/20 -> 3.1 | CY7: =(60/INDIRECT("speed"&$CK$2))*(length/1000)*ABS(CY$3-$CO7)/20 -> 3.7 | CZ7: =(60/INDIRECT("speed"&$CK$2))*(length/1000)*ABS(CZ$3-$CO7)/20 -> 4.3 | DA7: =(60/INDIRECT("speed"&$CK$2))*(length/1000)*ABS(DA$3-$CO7)/20 -> 4.9 | DB7: =(60/INDIRECT("speed"&$CK$2))*(length/1000)*ABS(DB$3-$CO7)/20 -> 5.6 | DC7: =(60/INDIRECT("speed"&$CK$2))*(length/1000)*ABS(DC$3-$CO7)/20 -> 6.2 | DD7: =(60/INDIRECT("speed"&$CK$2))*(length/1000)*ABS(DD$3-$CO7)/20 -> 6.8 | DE7: =(60/INDIRECT("speed"&$CK$2))*(length/1000)*ABS(DE$3-$CO7)/20 -> 7.4 | DF7: =(60/INDIRECT("speed"&$CK$2))*(length/1000)*ABS(DF$3-$CO7)/20 -> 8.0 | DG7: =(60/INDIRECT("speed"&$CK$2))*(length/1000)*ABS(DG$3-$CO7)/20 -> 8.6 | DH7: =(60/INDIRECT("speed"&$CK$2))*(length/1000)*ABS(DH$3-$CO7)/20 -> 9.3 | DI7: =(60/INDIRECT("speed"&$CK$2))*(length/1000)*ABS(DI$3-$CO7)/20 -> 9.9 | DJ7: =(60/INDIRECT("speed"&$CK$2))*(length/1000)*ABS(DJ$3-$CO7)/20 -> 10.5 | FS7: timeto4 | FX7: 4 | FY7: =(60/INDIRECT("speed"&$FT$2))*(length/1000)*ABS(FY$3-$FX7)/20 -> 2.9 | FZ7: =(60/INDIRECT("speed"&$FT$2))*(length/1000)*ABS(FZ$3-$FX7)/20 -> 2.0 | GA7: =(60/INDIRECT("speed"&$FT$2))*(length/1000)*ABS(GA$3-$FX7)/20 -> 1.0 | GB7: =(60/INDIRECT("speed"&$FT$2))*(length/1000)*ABS(GB$3-$FX7)/20 -> 0.0 | GC7: =(60/INDIRECT("speed"&$FT$2))*(length/1000)*ABS(GC$3-$FX7)/20 -> 1.0 | GD7: =(60/INDIRECT("speed"&$FT$2))*(length/1000)*ABS(GD$3-$FX7)/20 -> 2.0 | GE7: =(60/INDIRECT("speed"&$FT$2))*(length/1000)*ABS(GE$3-$FX7)/20 -> 2.9 | GF7: =(60/INDIRECT("speed"&$FT$2))*(length/1000)*ABS(GF$3-$FX7)/20 -> 3.9 | GG7: =(60/INDIRECT("speed"&$FT$2))*(length/1000)*ABS(GG$3-$FX7)/20 -> 4.9 | GH7: =(60/INDIRECT("speed"&$FT$2))*(length/1000)*ABS(GH$3-$FX7)/20 -> 5.9 | GI7: =(60/INDIRECT("speed"&$FT$2))*(length/1000)*ABS(GI$3-$FX7)/20 -> 6.9 | GJ7: =(60/INDIRECT("speed"&$FT$2))*(length/1000)*ABS(GJ$3-$FX7)/20 -> 7.8 | GK7: =(60/INDIRECT("speed"&$FT$2))*(length/1000)*ABS(GK$3-$FX7)/20 -> 8.8 | GL7: =(60/INDIRECT("speed"&$FT$2))*(length/1000)*ABS(GL$3-$FX7)/20 -> 9.8 | GM7: =(60/INDIRECT("speed"&$FT$2))*(length/1000)*ABS(GM$3-$FX7)/20 -> 10.8 | GN7: =(60/INDIRECT("speed"&$FT$2))*(length/1000)*ABS(GN$3-$FX7)/20 -> 11.8 | GO7: =(60/INDIRECT("speed"&$FT$2))*(length/1000)*ABS(GO$3-$FX7)/20 -> 12.7 | GP7: =(60/INDIRECT("speed"&$FT$2))*(length/1000)*ABS(GP$3-$FX7)/20 -> 13.7 | GQ7: =(60/INDIRECT("speed"&$FT$2))*(length/1000)*ABS(GQ$3-$FX7)/20 -> 14.7 | GR7: =(60/INDIRECT("speed"&$FT$2))*(length/1000)*ABS(GR$3-$FX7)/20 -> 15.7 | GS7: =(60/INDIRECT("speed"&$FT$2))*(length/1000)*ABS(GS$3-$FX7)/20 -> 16.7
A8: timeto5 | F8: 5 | G8: =(60/INDIRECT("speed"&B$2))*(length/1000)*ABS(G$3-$F8)/20 -> 2.5 | H8: =(60/INDIRECT("speed"&B$2))*(length/1000)*ABS(H$3-$F8)/20 -> 1.9 | I8: =(60/INDIRECT("speed"&B$2))*(length/1000)*ABS(I$3-$F8)/20 -> 1.2 | J8: =(60/INDIRECT("speed"&B$2))*(length/1000)*ABS(J$3-$F8)/20 -> 0.6 | K8: =(60/INDIRECT("speed"&B$2))*(length/1000)*ABS(K$3-$F8)/20 -> 0.0 | L8: =(60/INDIRECT("speed"&B$2))*(length/1000)*ABS(L$3-$F8)/20 -> 0.6 | M8: =(60/INDIRECT("speed"&B$2))*(length/1000)*ABS(M$3-$F8)/20 -> 1.2 | N8: =(60/INDIRECT("speed"&B$2))*(length/1000)*ABS(N$3-$F8)/20 -> 1.9 | O8: =(60/INDIRECT("speed"&B$2))*(length/1000)*ABS(O$3-$F8)/20 -> 2.5 | P8: =(60/INDIRECT("speed"&B$2))*(length/1000)*ABS(P$3-$F8)/20 -> 3.1 | Q8: =(60/INDIRECT("speed"&B$2))*(length/1000)*ABS(Q$3-$F8)/20 -> 3.7 | R8: =(60/INDIRECT("speed"&B$2))*(length/1000)*ABS(R$3-$F8)/20 -> 4.3 | S8: =(60/INDIRECT("speed"&B$2))*(length/1000)*ABS(S$3-$F8)/20 -> 4.9 | T8: =(60/INDIRECT("speed"&B$2))*(length/1000)*ABS(T$3-$F8)/20 -> 5.6 | U8: =(60/INDIRECT("speed"&B$2))*(length/1000)*ABS(U$3-$F8)/20 -> 6.2 | V8: =(60/INDIRECT("speed"&B$2))*(length/1000)*ABS(V$3-$F8)/20 -> 6.8 | W8: =(60/INDIRECT("speed"&B$2))*(length/1000)*ABS(W$3-$F8)/20 -> 7.4 | X8: =(60/INDIRECT("speed"&B$2))*(length/1000)*ABS(X$3-$F8)/20 -> 8.0 | Y8: =(60/INDIRECT("speed"&B$2))*(length/1000)*ABS(Y$3-$F8)/20 -> 8.6 | Z8: =(60/INDIRECT("speed"&B$2))*(length/1000)*ABS(Z$3-$F8)/20 -> 9.3 | AA8: =(60/INDIRECT("speed"&B$2))*(length/1000)*ABS(AA$3-$F8)/20 -> 9.9 | CJ8: timeto5 | CO8: 5 | CP8: =(60/INDIRECT("speed"&$CK$2))*(length/1000)*ABS(CP$3-$CO8)/20 -> 2.5 | CQ8: =(60/INDIRECT("speed"&$CK$2))*(length/1000)*ABS(CQ$3-$CO8)/20 -> 1.9 | CR8: =(60/INDIRECT("speed"&$CK$2))*(length/1000)*ABS(CR$3-$CO8)/20 -> 1.2 | CS8: =(60/INDIRECT("speed"&$CK$2))*(length/1000)*ABS(CS$3-$CO8)/20 -> 0.6 | CT8: =(60/INDIRECT("speed"&$CK$2))*(length/1000)*ABS(CT$3-$CO8)/20 -> 0.0 | CU8: =(60/INDIRECT("speed"&$CK$2))*(length/1000)*ABS(CU$3-$CO8)/20 -> 0.6 | CV8: =(60/INDIRECT("speed"&$CK$2))*(length/1000)*ABS(CV$3-$CO8)/20 -> 1.2 | CW8: =(60/INDIRECT("speed"&$CK$2))*(length/1000)*ABS(CW$3-$CO8)/20 -> 1.9 | CX8: =(60/INDIRECT("speed"&$CK$2))*(length/1000)*ABS(CX$3-$CO8)/20 -> 2.5 | CY8: =(60/INDIRECT("speed"&$CK$2))*(length/1000)*ABS(CY$3-$CO8)/20 -> 3.1 | CZ8: =(60/INDIRECT("speed"&$CK$2))*(length/1000)*ABS(CZ$3-$CO8)/20 -> 3.7 | DA8: =(60/INDIRECT("speed"&$CK$2))*(length/1000)*ABS(DA$3-$CO8)/20 -> 4.3 | DB8: =(60/INDIRECT("speed"&$CK$2))*(length/1000)*ABS(DB$3-$CO8)/20 -> 4.9 | DC8: =(60/INDIRECT("speed"&$CK$2))*(length/1000)*ABS(DC$3-$CO8)/20 -> 5.6 | DD8: =(60/INDIRECT("speed"&$CK$2))*(length/1000)*ABS(DD$3-$CO8)/20 -> 6.2 | DE8: =(60/INDIRECT("speed"&$CK$2))*(length/1000)*ABS(DE$3-$CO8)/20 -> 6.8 | DF8: =(60/INDIRECT("speed"&$CK$2))*(length/1000)*ABS(DF$3-$CO8)/20 -> 7.4 | DG8: =(60/INDIRECT("speed"&$CK$2))*(length/1000)*ABS(DG$3-$CO8)/20 -> 8.0 | DH8: =(60/INDIRECT("speed"&$CK$2))*(length/1000)*ABS(DH$3-$CO8)/20 -> 8.6 | DI8: =(60/INDIRECT("speed"&$CK$2))*(length/1000)*ABS(DI$3-$CO8)/20 -> 9.3 | DJ8: =(60/INDIRECT("speed"&$CK$2))*(length/1000)*ABS(DJ$3-$CO8)/20 -> 9.9 | FS8: timeto5 | FX8: 5 | FY8: =(60/INDIRECT("speed"&$FT$2))*(length/1000)*ABS(FY$3-$FX8)/20 -> 3.9 | FZ8: =(60/INDIRECT("speed"&$FT$2))*(length/1000)*ABS(FZ$3-$FX8)/20 -> 2.9 | GA8: =(60/INDIRECT("speed"&$FT$2))*(length/1000)*ABS(GA$3-$FX8)/20 -> 2.0 | GB8: =(60/INDIRECT("speed"&$FT$2))*(length/1000)*ABS(GB$3-$FX8)/20 -> 1.0 | GC8: =(60/INDIRECT("speed"&$FT$2))*(length/1000)*ABS(GC$3-$FX8)/20 -> 0.0 | GD8: =(60/INDIRECT("speed"&$FT$2))*(length/1000)*ABS(GD$3-$FX8)/20 -> 1.0 | GE8: =(60/INDIRECT("speed"&$FT$2))*(length/1000)*ABS(GE$3-$FX8)/20 -> 2.0 | GF8: =(60/INDIRECT("speed"&$FT$2))*(length/1000)*ABS(GF$3-$FX8)/20 -> 2.9 | GG8: =(60/INDIRECT("speed"&$FT$2))*(length/1000)*ABS(GG$3-$FX8)/20 -> 3.9 | GH8: =(60/INDIRECT("speed"&$FT$2))*(length/1000)*ABS(GH$3-$FX8)/20 -> 4.9 | GI8: =(60/INDIRECT("speed"&$FT$2))*(length/1000)*ABS(GI$3-$FX8)/20 -> 5.9 | GJ8: =(60/INDIRECT("speed"&$FT$2))*(length/1000)*ABS(GJ$3-$FX8)/20 -> 6.9 | GK8: =(60/INDIRECT("speed"&$FT$2))*(length/1000)*ABS(GK$3-$FX8)/20 -> 7.8 | GL8: =(60/INDIRECT("speed"&$FT$2))*(length/1000)*ABS(GL$3-$FX8)/20 -> 8.8 | GM8: =(60/INDIRECT("speed"&$FT$2))*(length/1000)*ABS(GM$3-$FX8)/20 -> 9.8 | GN8: =(60/INDIRECT("speed"&$FT$2))*(length/1000)*ABS(GN$3-$FX8)/20 -> 10.8 | GO8: =(60/INDIRECT("speed"&$FT$2))*(length/1000)*ABS(GO$3-$FX8)/20 -> 11.8 | GP8: =(60/INDIRECT("speed"&$FT$2))*(length/1000)*ABS(GP$3-$FX8)/20 -> 12.7 | GQ8: =(60/INDIRECT("speed"&$FT$2))*(length/1000)*ABS(GQ$3-$FX8)/20 -> 13.7 | GR8: =(60/INDIRECT("speed"&$FT$2))*(length/1000)*ABS(GR$3-$FX8)/20 -> 14.7 | GS8: =(60/INDIRECT("speed"&$FT$2))*(length/1000)*ABS(GS$3-$FX8)/20 -> 15.7
A9: timeto6 | F9: 6 | G9: =(60/INDIRECT("speed"&B$2))*(length/1000)*ABS(G$3-$F9)/20 -> 3.1 | H9: =(60/INDIRECT("speed"&B$2))*(length/1000)*ABS(H$3-$F9)/20 -> 2.5 | I9: =(60/INDIRECT("speed"&B$2))*(length/1000)*ABS(I$3-$F9)/20 -> 1.9 | J9: =(60/INDIRECT("speed"&B$2))*(length/1000)*ABS(J$3-$F9)/20 -> 1.2 | K9: =(60/INDIRECT("speed"&B$2))*(length/1000)*ABS(K$3-$F9)/20 -> 0.6 | L9: =(60/INDIRECT("speed"&B$2))*(length/1000)*ABS(L$3-$F9)/20 -> 0.0 | M9: =(60/INDIRECT("speed"&B$2))*(length/1000)*ABS(M$3-$F9)/20 -> 0.6 | N9: =(60/INDIRECT("speed"&B$2))*(length/1000)*ABS(N$3-$F9)/20 -> 1.2 | O9: =(60/INDIRECT("speed"&B$2))*(length/1000)*ABS(O$3-$F9)/20 -> 1.9 | P9: =(60/INDIRECT("speed"&B$2))*(length/1000)*ABS(P$3-$F9)/20 -> 2.5 | Q9: =(60/INDIRECT("speed"&B$2))*(length/1000)*ABS(Q$3-$F9)/20 -> 3.1 | R9: =(60/INDIRECT("speed"&B$2))*(length/1000)*ABS(R$3-$F9)/20 -> 3.7 | S9: =(60/INDIRECT("speed"&B$2))*(length/1000)*ABS(S$3-$F9)/20 -> 4.3 | T9: =(60/INDIRECT("speed"&B$2))*(length/1000)*ABS(T$3-$F9)/20 -> 4.9 | U9: =(60/INDIRECT("speed"&B$2))*(length/1000)*ABS(U$3-$F9)/20 -> 5.6 | V9: =(60/INDIRECT("speed"&B$2))*(length/1000)*ABS(V$3-$F9)/20 -> 6.2 | W9: =(60/INDIRECT("speed"&B$2))*(length/1000)*ABS(W$3-$F9)/20 -> 6.8 | X9: =(60/INDIRECT("speed"&B$2))*(length/1000)*ABS(X$3-$F9)/20 -> 7.4 | Y9: =(60/INDIRECT("speed"&B$2))*(length/1000)*ABS(Y$3-$F9)/20 -> 8.0 | Z9: =(60/INDIRECT("speed"&B$2))*(length/1000)*ABS(Z$3-$F9)/20 -> 8.6 | AA9: =(60/INDIRECT("speed"&B$2))*(length/1000)*ABS(AA$3-$F9)/20 -> 9.3 | CJ9: timeto6 | CO9: 6 | CP9: =(60/INDIRECT("speed"&$CK$2))*(length/1000)*ABS(CP$3-$CO9)/20 -> 3.1 | CQ9: =(60/INDIRECT("speed"&$CK$2))*(length/1000)*ABS(CQ$3-$CO9)/20 -> 2.5 | CR9: =(60/INDIRECT("speed"&$CK$2))*(length/1000)*ABS(CR$3-$CO9)/20 -> 1.9 | CS9: =(60/INDIRECT("speed"&$CK$2))*(length/1000)*ABS(CS$3-$CO9)/20 -> 1.2 | CT9: =(60/INDIRECT("speed"&$CK$2))*(length/1000)*ABS(CT$3-$CO9)/20 -> 0.6 | CU9: =(60/INDIRECT("speed"&$CK$2))*(length/1000)*ABS(CU$3-$CO9)/20 -> 0.0 | CV9: =(60/INDIRECT("speed"&$CK$2))*(length/1000)*ABS(CV$3-$CO9)/20 -> 0.6 | CW9: =(60/INDIRECT("speed"&$CK$2))*(length/1000)*ABS(CW$3-$CO9)/20 -> 1.2 | CX9: =(60/INDIRECT("speed"&$CK$2))*(length/1000)*ABS(CX$3-$CO9)/20 -> 1.9 | CY9: =(60/INDIRECT("speed"&$CK$2))*(length/1000)*ABS(CY$3-$CO9)/20 -> 2.5 | CZ9: =(60/INDIRECT("speed"&$CK$2))*(length/1000)*ABS(CZ$3-$CO9)/20 -> 3.1 | DA9: =(60/INDIRECT("speed"&$CK$2))*(length/1000)*ABS(DA$3-$CO9)/20 -> 3.7 | DB9: =(60/INDIRECT("speed"&$CK$2))*(length/1000)*ABS(DB$3-$CO9)/20 -> 4.3 | DC9: =(60/INDIRECT("speed"&$CK$2))*(length/1000)*ABS(DC$3-$CO9)/20 -> 4.9 | DD9: =(60/INDIRECT("speed"&$CK$2))*(length/1000)*ABS(DD$3-$CO9)/20 -> 5.6 | DE9: =(60/INDIRECT("speed"&$CK$2))*(length/1000)*ABS(DE$3-$CO9)/20 -> 6.2 | DF9: =(60/INDIRECT("speed"&$CK$2))*(length/1000)*ABS(DF$3-$CO9)/20 -> 6.8 | DG9: =(60/INDIRECT("speed"&$CK$2))*(length/1000)*ABS(DG$3-$CO9)/20 -> 7.4 | DH9: =(60/INDIRECT("speed"&$CK$2))*(length/1000)*ABS(DH$3-$CO9)/20 -> 8.0 | DI9: =(60/INDIRECT("speed"&$CK$2))*(length/1000)*ABS(DI$3-$CO9)/20 -> 8.6 | DJ9: =(60/INDIRECT("speed"&$CK$2))*(length/1000)*ABS(DJ$3-$CO9)/20 -> 9.3 | FS9: timeto6 | FX9: 6 | FY9: =(60/INDIRECT("speed"&$FT$2))*(length/1000)*ABS(FY$3-$FX9)/20 -> 4.9 | FZ9: =(60/INDIRECT("speed"&$FT$2))*(length/1000)*ABS(FZ$3-$FX9)/20 -> 3.9 | GA9: =(60/INDIRECT("speed"&$FT$2))*(length/1000)*ABS(GA$3-$FX9)/20 -> 2.9 | GB9: =(60/INDIRECT("speed"&$FT$2))*(length/1000)*ABS(GB$3-$FX9)/20 -> 2.0 | GC9: =(60/INDIRECT("speed"&$FT$2))*(length/1000)*ABS(GC$3-$FX9)/20 -> 1.0 | GD9: =(60/INDIRECT("speed"&$FT$2))*(length/1000)*ABS(GD$3-$FX9)/20 -> 0.0 | GE9: =(60/INDIRECT("speed"&$FT$2))*(length/1000)*ABS(GE$3-$FX9)/20 -> 1.0 | GF9: =(60/INDIRECT("speed"&$FT$2))*(length/1000)*ABS(GF$3-$FX9)/20 -> 2.0 | GG9: =(60/INDIRECT("speed"&$FT$2))*(length/1000)*ABS(GG$3-$FX9)/20 -> 2.9 | GH9: =(60/INDIRECT("speed"&$FT$2))*(length/1000)*ABS(GH$3-$FX9)/20 -> 3.9 | GI9: =(60/INDIRECT("speed"&$FT$2))*(length/1000)*ABS(GI$3-$FX9)/20 -> 4.9 | GJ9: =(60/INDIRECT("speed"&$FT$2))*(length/1000)*ABS(GJ$3-$FX9)/20 -> 5.9 | GK9: =(60/INDIRECT("speed"&$FT$2))*(length/1000)*ABS(GK$3-$FX9)/20 -> 6.9 | GL9: =(60/INDIRECT("speed"&$FT$2))*(length/1000)*ABS(GL$3-$FX9)/20 -> 7.8 | GM9: =(60/INDIRECT("speed"&$FT$2))*(length/1000)*ABS(GM$3-$FX9)/20 -> 8.8 | GN9: =(60/INDIRECT("speed"&$FT$2))*(length/1000)*ABS(GN$3-$FX9)/20 -> 9.8 | GO9: =(60/INDIRECT("speed"&$FT$2))*(length/1000)*ABS(GO$3-$FX9)/20 -> 10.8 | GP9: =(60/INDIRECT("speed"&$FT$2))*(length/1000)*ABS(GP$3-$FX9)/20 -> 11.8 | GQ9: =(60/INDIRECT("speed"&$FT$2))*(length/1000)*ABS(GQ$3-$FX9)/20 -> 12.7 | GR9: =(60/INDIRECT("speed"&$FT$2))*(length/1000)*ABS(GR$3-$FX9)/20 -> 13.7 | GS9: =(60/INDIRECT("speed"&$FT$2))*(length/1000)*ABS(GS$3-$FX9)/20 -> 14.7
A10: timeto7 | F10: 7 | G10: =(60/INDIRECT("speed"&B$2))*(length/1000)*ABS(G$3-$F10)/20 -> 3.7 | H10: =(60/INDIRECT("speed"&B$2))*(length/1000)*ABS(H$3-$F10)/20 -> 3.1 | I10: =(60/INDIRECT("speed"&B$2))*(length/1000)*ABS(I$3-$F10)/20 -> 2.5 | J10: =(60/INDIRECT("speed"&B$2))*(length/1000)*ABS(J$3-$F10)/20 -> 1.9 | K10: =(60/INDIRECT("speed"&B$2))*(length/1000)*ABS(K$3-$F10)/20 -> 1.2 | L10: =(60/INDIRECT("speed"&B$2))*(length/1000)*ABS(L$3-$F10)/20 -> 0.6 | M10: =(60/INDIRECT("speed"&B$2))*(length/1000)*ABS(M$3-$F10)/20 -> 0.0 | N10: =(60/INDIRECT("speed"&B$2))*(length/1000)*ABS(N$3-$F10)/20 -> 0.6 | O10: =(60/INDIRECT("speed"&B$2))*(length/1000)*ABS(O$3-$F10)/20 -> 1.2 | P10: =(60/INDIRECT("speed"&B$2))*(length/1000)*ABS(P$3-$F10)/20 -> 1.9 | Q10: =(60/INDIRECT("speed"&B$2))*(length/1000)*ABS(Q$3-$F10)/20 -> 2.5 | R10: =(60/INDIRECT("speed"&B$2))*(length/1000)*ABS(R$3-$F10)/20 -> 3.1 | S10: =(60/INDIRECT("speed"&B$2))*(length/1000)*ABS(S$3-$F10)/20 -> 3.7 | T10: =(60/INDIRECT("speed"&B$2))*(length/1000)*ABS(T$3-$F10)/20 -> 4.3 | U10: =(60/INDIRECT("speed"&B$2))*(length/1000)*ABS(U$3-$F10)/20 -> 4.9 | V10: =(60/INDIRECT("speed"&B$2))*(length/1000)*ABS(V$3-$F10)/20 -> 5.6 | W10: =(60/INDIRECT("speed"&B$2))*(length/1000)*ABS(W$3-$F10)/20 -> 6.2 | X10: =(60/INDIRECT("speed"&B$2))*(length/1000)*ABS(X$3-$F10)/20 -> 6.8 | Y10: =(60/INDIRECT("speed"&B$2))*(length/1000)*ABS(Y$3-$F10)/20 -> 7.4 | Z10: =(60/INDIRECT("speed"&B$2))*(length/1000)*ABS(Z$3-$F10)/20 -> 8.0 | AA10: =(60/INDIRECT("speed"&B$2))*(length/1000)*ABS(AA$3-$F10)/20 -> 8.6 | CJ10: timeto7 | CO10: 7 | CP10: =(60/INDIRECT("speed"&$CK$2))*(length/1000)*ABS(CP$3-$CO10)/20 -> 3.7 | CQ10: =(60/INDIRECT("speed"&$CK$2))*(length/1000)*ABS(CQ$3-$CO10)/20 -> 3.1 | CR10: =(60/INDIRECT("speed"&$CK$2))*(length/1000)*ABS(CR$3-$CO10)/20 -> 2.5 | CS10: =(60/INDIRECT("speed"&$CK$2))*(length/1000)*ABS(CS$3-$CO10)/20 -> 1.9 | CT10: =(60/INDIRECT("speed"&$CK$2))*(length/1000)*ABS(CT$3-$CO10)/20 -> 1.2 | CU10: =(60/INDIRECT("speed"&$CK$2))*(length/1000)*ABS(CU$3-$CO10)/20 -> 0.6 | CV10: =(60/INDIRECT("speed"&$CK$2))*(length/1000)*ABS(CV$3-$CO10)/20 -> 0.0 | CW10: =(60/INDIRECT("speed"&$CK$2))*(length/1000)*ABS(CW$3-$CO10)/20 -> 0.6 | CX10: =(60/INDIRECT("speed"&$CK$2))*(length/1000)*ABS(CX$3-$CO10)/20 -> 1.2 | CY10: =(60/INDIRECT("speed"&$CK$2))*(length/1000)*ABS(CY$3-$CO10)/20 -> 1.9 | CZ10: =(60/INDIRECT("speed"&$CK$2))*(length/1000)*ABS(CZ$3-$CO10)/20 -> 2.5 | DA10: =(60/INDIRECT("speed"&$CK$2))*(length/1000)*ABS(DA$3-$CO10)/20 -> 3.1 | DB10: =(60/INDIRECT("speed"&$CK$2))*(length/1000)*ABS(DB$3-$CO10)/20 -> 3.7 | DC10: =(60/INDIRECT("speed"&$CK$2))*(length/1000)*ABS(DC$3-$CO10)/20 -> 4.3 | DD10: =(60/INDIRECT("speed"&$CK$2))*(length/1000)*ABS(DD$3-$CO10)/20 -> 4.9 | DE10: =(60/INDIRECT("speed"&$CK$2))*(length/1000)*ABS(DE$3-$CO10)/20 -> 5.6 | DF10: =(60/INDIRECT("speed"&$CK$2))*(length/1000)*ABS(DF$3-$CO10)/20 -> 6.2 | DG10: =(60/INDIRECT("speed"&$CK$2))*(length/1000)*ABS(DG$3-$CO10)/20 -> 6.8 | DH10: =(60/INDIRECT("speed"&$CK$2))*(length/1000)*ABS(DH$3-$CO10)/20 -> 7.4 | DI10: =(60/INDIRECT("speed"&$CK$2))*(length/1000)*ABS(DI$3-$CO10)/20 -> 8.0 | DJ10: =(60/INDIRECT("speed"&$CK$2))*(length/1000)*ABS(DJ$3-$CO10)/20 -> 8.6 | FS10: timeto7 | FX10: 7 | FY10: =(60/INDIRECT("speed"&$FT$2))*(length/1000)*ABS(FY$3-$FX10)/20 -> 5.9 | FZ10: =(60/INDIRECT("speed"&$FT$2))*(length/1000)*ABS(FZ$3-$FX10)/20 -> 4.9 | GA10: =(60/INDIRECT("speed"&$FT$2))*(length/1000)*ABS(GA$3-$FX10)/20 -> 3.9 | GB10: =(60/INDIRECT("speed"&$FT$2))*(length/1000)*ABS(GB$3-$FX10)/20 -> 2.9 | GC10: =(60/INDIRECT("speed"&$FT$2))*(length/1000)*ABS(GC$3-$FX10)/20 -> 2.0 | GD10: =(60/INDIRECT("speed"&$FT$2))*(length/1000)*ABS(GD$3-$FX10)/20 -> 1.0 | GE10: =(60/INDIRECT("speed"&$FT$2))*(length/1000)*ABS(GE$3-$FX10)/20 -> 0.0 | GF10: =(60/INDIRECT("speed"&$FT$2))*(length/1000)*ABS(GF$3-$FX10)/20 -> 1.0 | GG10: =(60/INDIRECT("speed"&$FT$2))*(length/1000)*ABS(GG$3-$FX10)/20 -> 2.0 | GH10: =(60/INDIRECT("speed"&$FT$2))*(length/1000)*ABS(GH$3-$FX10)/20 -> 2.9 | GI10: =(60/INDIRECT("speed"&$FT$2))*(length/1000)*ABS(GI$3-$FX10)/20 -> 3.9 | GJ10: =(60/INDIRECT("speed"&$FT$2))*(length/1000)*ABS(GJ$3-$FX10)/20 -> 4.9 | GK10: =(60/INDIRECT("speed"&$FT$2))*(length/1000)*ABS(GK$3-$FX10)/20 -> 5.9 | GL10: =(60/INDIRECT("speed"&$FT$2))*(length/1000)*ABS(GL$3-$FX10)/20 -> 6.9 | GM10: =(60/INDIRECT("speed"&$FT$2))*(length/1000)*ABS(GM$3-$FX10)/20 -> 7.8 | GN10: =(60/INDIRECT("speed"&$FT$2))*(length/1000)*ABS(GN$3-$FX10)/20 -> 8.8 | GO10: =(60/INDIRECT("speed"&$FT$2))*(length/1000)*ABS(GO$3-$FX10)/20 -> 9.8 | GP10: =(60/INDIRECT("speed"&$FT$2))*(length/1000)*ABS(GP$3-$FX10)/20 -> 10.8 | GQ10: =(60/INDIRECT("speed"&$FT$2))*(length/1000)*ABS(GQ$3-$FX10)/20 -> 11.8 | GR10: =(60/INDIRECT("speed"&$FT$2))*(length/1000)*ABS(GR$3-$FX10)/20 -> 12.7 | GS10: =(60/INDIRECT("speed"&$FT$2))*(length/1000)*ABS(GS$3-$FX10)/20 -> 13.7
A11: timeto8 | F11: 8 | G11: =(60/INDIRECT("speed"&B$2))*(length/1000)*ABS(G$3-$F11)/20 -> 4.3 | H11: =(60/INDIRECT("speed"&B$2))*(length/1000)*ABS(H$3-$F11)/20 -> 3.7 | I11: =(60/INDIRECT("speed"&B$2))*(length/1000)*ABS(I$3-$F11)/20 -> 3.1 | J11: =(60/INDIRECT("speed"&B$2))*(length/1000)*ABS(J$3-$F11)/20 -> 2.5 | K11: =(60/INDIRECT("speed"&B$2))*(length/1000)*ABS(K$3-$F11)/20 -> 1.9 | L11: =(60/INDIRECT("speed"&B$2))*(length/1000)*ABS(L$3-$F11)/20 -> 1.2 | M11: =(60/INDIRECT("speed"&B$2))*(length/1000)*ABS(M$3-$F11)/20 -> 0.6 | N11: =(60/INDIRECT("speed"&B$2))*(length/1000)*ABS(N$3-$F11)/20 -> 0.0 | O11: =(60/INDIRECT("speed"&B$2))*(length/1000)*ABS(O$3-$F11)/20 -> 0.6 | P11: =(60/INDIRECT("speed"&B$2))*(length/1000)*ABS(P$3-$F11)/20 -> 1.2 | Q11: =(60/INDIRECT("speed"&B$2))*(length/1000)*ABS(Q$3-$F11)/20 -> 1.9 | R11: =(60/INDIRECT("speed"&B$2))*(length/1000)*ABS(R$3-$F11)/20 -> 2.5 | S11: =(60/INDIRECT("speed"&B$2))*(length/1000)*ABS(S$3-$F11)/20 -> 3.1 | T11: =(60/INDIRECT("speed"&B$2))*(length/1000)*ABS(T$3-$F11)/20 -> 3.7 | U11: =(60/INDIRECT("speed"&B$2))*(length/1000)*ABS(U$3-$F11)/20 -> 4.3 | V11: =(60/INDIRECT("speed"&B$2))*(length/1000)*ABS(V$3-$F11)/20 -> 4.9 | W11: =(60/INDIRECT("speed"&B$2))*(length/1000)*ABS(W$3-$F11)/20 -> 5.6 | X11: =(60/INDIRECT("speed"&B$2))*(length/1000)*ABS(X$3-$F11)/20 -> 6.2 | Y11: =(60/INDIRECT("speed"&B$2))*(length/1000)*ABS(Y$3-$F11)/20 -> 6.8 | Z11: =(60/INDIRECT("speed"&B$2))*(length/1000)*ABS(Z$3-$F11)/20 -> 7.4 | AA11: =(60/INDIRECT("speed"&B$2))*(length/1000)*ABS(AA$3-$F11)/20 -> 8.0 | CJ11: timeto8 | CO11: 8 | CP11: =(60/INDIRECT("speed"&$CK$2))*(length/1000)*ABS(CP$3-$CO11)/20 -> 4.3 | CQ11: =(60/INDIRECT("speed"&$CK$2))*(length/1000)*ABS(CQ$3-$CO11)/20 -> 3.7 | CR11: =(60/INDIRECT("speed"&$CK$2))*(length/1000)*ABS(CR$3-$CO11)/20 -> 3.1 | CS11: =(60/INDIRECT("speed"&$CK$2))*(length/1000)*ABS(CS$3-$CO11)/20 -> 2.5 | CT11: =(60/INDIRECT("speed"&$CK$2))*(length/1000)*ABS(CT$3-$CO11)/20 -> 1.9 | CU11: =(60/INDIRECT("speed"&$CK$2))*(length/1000)*ABS(CU$3-$CO11)/20 -> 1.2 | CV11: =(60/INDIRECT("speed"&$CK$2))*(length/1000)*ABS(CV$3-$CO11)/20 -> 0.6 | CW11: =(60/INDIRECT("speed"&$CK$2))*(length/1000)*ABS(CW$3-$CO11)/20 -> 0.0 | CX11: =(60/INDIRECT("speed"&$CK$2))*(length/1000)*ABS(CX$3-$CO11)/20 -> 0.6 | CY11: =(60/INDIRECT("speed"&$CK$2))*(length/1000)*ABS(CY$3-$CO11)/20 -> 1.2 | CZ11: =(60/INDIRECT("speed"&$CK$2))*(length/1000)*ABS(CZ$3-$CO11)/20 -> 1.9 | DA11: =(60/INDIRECT("speed"&$CK$2))*(length/1000)*ABS(DA$3-$CO11)/20 -> 2.5 | DB11: =(60/INDIRECT("speed"&$CK$2))*(length/1000)*ABS(DB$3-$CO11)/20 -> 3.1 | DC11: =(60/INDIRECT("speed"&$CK$2))*(length/1000)*ABS(DC$3-$CO11)/20 -> 3.7 | DD11: =(60/INDIRECT("speed"&$CK$2))*(length/1000)*ABS(DD$3-$CO11)/20 -> 4.3 | DE11: =(60/INDIRECT("speed"&$CK$2))*(length/1000)*ABS(DE$3-$CO11)/20 -> 4.9 | DF11: =(60/INDIRECT("speed"&$CK$2))*(length/1000)*ABS(DF$3-$CO11)/20 -> 5.6 | DG11: =(60/INDIRECT("speed"&$CK$2))*(length/1000)*ABS(DG$3-$CO11)/20 -> 6.2 | DH11: =(60/INDIRECT("speed"&$CK$2))*(length/1000)*ABS(DH$3-$CO11)/20 -> 6.8 | DI11: =(60/INDIRECT("speed"&$CK$2))*(length/1000)*ABS(DI$3-$CO11)/20 -> 7.4 | DJ11: =(60/INDIRECT("speed"&$CK$2))*(length/1000)*ABS(DJ$3-$CO11)/20 -> 8.0 | FS11: timeto8 | FX11: 8 | FY11: =(60/INDIRECT("speed"&$FT$2))*(length/1000)*ABS(FY$3-$FX11)/20 -> 6.9 | FZ11: =(60/INDIRECT("speed"&$FT$2))*(length/1000)*ABS(FZ$3-$FX11)/20 -> 5.9 | GA11: =(60/INDIRECT("speed"&$FT$2))*(length/1000)*ABS(GA$3-$FX11)/20 -> 4.9 | GB11: =(60/INDIRECT("speed"&$FT$2))*(length/1000)*ABS(GB$3-$FX11)/20 -> 3.9 | GC11: =(60/INDIRECT("speed"&$FT$2))*(length/1000)*ABS(GC$3-$FX11)/20 -> 2.9 | GD11: =(60/INDIRECT("speed"&$FT$2))*(length/1000)*ABS(GD$3-$FX11)/20 -> 2.0 | GE11: =(60/INDIRECT("speed"&$FT$2))*(length/1000)*ABS(GE$3-$FX11)/20 -> 1.0 | GF11: =(60/INDIRECT("speed"&$FT$2))*(length/1000)*ABS(GF$3-$FX11)/20 -> 0.0 | GG11: =(60/INDIRECT("speed"&$FT$2))*(length/1000)*ABS(GG$3-$FX11)/20 -> 1.0 | GH11: =(60/INDIRECT("speed"&$FT$2))*(length/1000)*ABS(GH$3-$FX11)/20 -> 2.0 | GI11: =(60/INDIRECT("speed"&$FT$2))*(length/1000)*ABS(GI$3-$FX11)/20 -> 2.9 | GJ11: =(60/INDIRECT("speed"&$FT$2))*(length/1000)*ABS(GJ$3-$FX11)/20 -> 3.9 | GK11: =(60/INDIRECT("speed"&$FT$2))*(length/1000)*ABS(GK$3-$FX11)/20 -> 4.9 | GL11: =(60/INDIRECT("speed"&$FT$2))*(length/1000)*ABS(GL$3-$FX11)/20 -> 5.9 | GM11: =(60/INDIRECT("speed"&$FT$2))*(length/1000)*ABS(GM$3-$FX11)/20 -> 6.9 | GN11: =(60/INDIRECT("speed"&$FT$2))*(length/1000)*ABS(GN$3-$FX11)/20 -> 7.8 | GO11: =(60/INDIRECT("speed"&$FT$2))*(length/1000)*ABS(GO$3-$FX11)/20 -> 8.8 | GP11: =(60/INDIRECT("speed"&$FT$2))*(length/1000)*ABS(GP$3-$FX11)/20 -> 9.8 | GQ11: =(60/INDIRECT("speed"&$FT$2))*(length/1000)*ABS(GQ$3-$FX11)/20 -> 10.8 | GR11: =(60/INDIRECT("speed"&$FT$2))*(length/1000)*ABS(GR$3-$FX11)/20 -> 11.8 | GS11: =(60/INDIRECT("speed"&$FT$2))*(length/1000)*ABS(GS$3-$FX11)/20 -> 12.7
A12: timeto9 | F12: 9 | G12: =(60/INDIRECT("speed"&B$2))*(length/1000)*ABS(G$3-$F12)/20 -> 4.9 | H12: =(60/INDIRECT("speed"&B$2))*(length/1000)*ABS(H$3-$F12)/20 -> 4.3 | I12: =(60/INDIRECT("speed"&B$2))*(length/1000)*ABS(I$3-$F12)/20 -> 3.7 | J12: =(60/INDIRECT("speed"&B$2))*(length/1000)*ABS(J$3-$F12)/20 -> 3.1 | K12: =(60/INDIRECT("speed"&B$2))*(length/1000)*ABS(K$3-$F12)/20 -> 2.5 | L12: =(60/INDIRECT("speed"&B$2))*(length/1000)*ABS(L$3-$F12)/20 -> 1.9 | M12: =(60/INDIRECT("speed"&B$2))*(length/1000)*ABS(M$3-$F12)/20 -> 1.2 | N12: =(60/INDIRECT("speed"&B$2))*(length/1000)*ABS(N$3-$F12)/20 -> 0.6 | O12: =(60/INDIRECT("speed"&B$2))*(length/1000)*ABS(O$3-$F12)/20 -> 0.0 | P12: =(60/INDIRECT("speed"&B$2))*(length/1000)*ABS(P$3-$F12)/20 -> 0.6 | Q12: =(60/INDIRECT("speed"&B$2))*(length/1000)*ABS(Q$3-$F12)/20 -> 1.2 | R12: =(60/INDIRECT("speed"&B$2))*(length/1000)*ABS(R$3-$F12)/20 -> 1.9 | S12: =(60/INDIRECT("speed"&B$2))*(length/1000)*ABS(S$3-$F12)/20 -> 2.5 | T12: =(60/INDIRECT("speed"&B$2))*(length/1000)*ABS(T$3-$F12)/20 -> 3.1 | U12: =(60/INDIRECT("speed"&B$2))*(length/1000)*ABS(U$3-$F12)/20 -> 3.7 | V12: =(60/INDIRECT("speed"&B$2))*(length/1000)*ABS(V$3-$F12)/20 -> 4.3 | W12: =(60/INDIRECT("speed"&B$2))*(length/1000)*ABS(W$3-$F12)/20 -> 4.9 | X12: =(60/INDIRECT("speed"&B$2))*(length/1000)*ABS(X$3-$F12)/20 -> 5.6 | Y12: =(60/INDIRECT("speed"&B$2))*(length/1000)*ABS(Y$3-$F12)/20 -> 6.2 | Z12: =(60/INDIRECT("speed"&B$2))*(length/1000)*ABS(Z$3-$F12)/20 -> 6.8 | AA12: =(60/INDIRECT("speed"&B$2))*(length/1000)*ABS(AA$3-$F12)/20 -> 7.4 | CJ12: timeto9 | CO12: 9 | CP12: =(60/INDIRECT("speed"&$CK$2))*(length/1000)*ABS(CP$3-$CO12)/20 -> 4.9 | CQ12: =(60/INDIRECT("speed"&$CK$2))*(length/1000)*ABS(CQ$3-$CO12)/20 -> 4.3 | CR12: =(60/INDIRECT("speed"&$CK$2))*(length/1000)*ABS(CR$3-$CO12)/20 -> 3.7 | CS12: =(60/INDIRECT("speed"&$CK$2))*(length/1000)*ABS(CS$3-$CO12)/20 -> 3.1 | CT12: =(60/INDIRECT("speed"&$CK$2))*(length/1000)*ABS(CT$3-$CO12)/20 -> 2.5 | CU12: =(60/INDIRECT("speed"&$CK$2))*(length/1000)*ABS(CU$3-$CO12)/20 -> 1.9 | CV12: =(60/INDIRECT("speed"&$CK$2))*(length/1000)*ABS(CV$3-$CO12)/20 -> 1.2 | CW12: =(60/INDIRECT("speed"&$CK$2))*(length/1000)*ABS(CW$3-$CO12)/20 -> 0.6 | CX12: =(60/INDIRECT("speed"&$CK$2))*(length/1000)*ABS(CX$3-$CO12)/20 -> 0.0 | CY12: =(60/INDIRECT("speed"&$CK$2))*(length/1000)*ABS(CY$3-$CO12)/20 -> 0.6 | CZ12: =(60/INDIRECT("speed"&$CK$2))*(length/1000)*ABS(CZ$3-$CO12)/20 -> 1.2 | DA12: =(60/INDIRECT("speed"&$CK$2))*(length/1000)*ABS(DA$3-$CO12)/20 -> 1.9 | DB12: =(60/INDIRECT("speed"&$CK$2))*(length/1000)*ABS(DB$3-$CO12)/20 -> 2.5 | DC12: =(60/INDIRECT("speed"&$CK$2))*(length/1000)*ABS(DC$3-$CO12)/20 -> 3.1 | DD12: =(60/INDIRECT("speed"&$CK$2))*(length/1000)*ABS(DD$3-$CO12)/20 -> 3.7 | DE12: =(60/INDIRECT("speed"&$CK$2))*(length/1000)*ABS(DE$3-$CO12)/20 -> 4.3 | DF12: =(60/INDIRECT("speed"&$CK$2))*(length/1000)*ABS(DF$3-$CO12)/20 -> 4.9 | DG12: =(60/INDIRECT("speed"&$CK$2))*(length/1000)*ABS(DG$3-$CO12)/20 -> 5.6 | DH12: =(60/INDIRECT("speed"&$CK$2))*(length/1000)*ABS(DH$3-$CO12)/20 -> 6.2 | DI12: =(60/INDIRECT("speed"&$CK$2))*(length/1000)*ABS(DI$3-$CO12)/20 -> 6.8 | DJ12: =(60/INDIRECT("speed"&$CK$2))*(length/1000)*ABS(DJ$3-$CO12)/20 -> 7.4 | FS12: timeto9 | FX12: 9 | FY12: =(60/INDIRECT("speed"&$FT$2))*(length/1000)*ABS(FY$3-$FX12)/20 -> 7.8 | FZ12: =(60/INDIRECT("speed"&$FT$2))*(length/1000)*ABS(FZ$3-$FX12)/20 -> 6.9 | GA12: =(60/INDIRECT("speed"&$FT$2))*(length/1000)*ABS(GA$3-$FX12)/20 -> 5.9 | GB12: =(60/INDIRECT("speed"&$FT$2))*(length/1000)*ABS(GB$3-$FX12)/20 -> 4.9 | GC12: =(60/INDIRECT("speed"&$FT$2))*(length/1000)*ABS(GC$3-$FX12)/20 -> 3.9 | GD12: =(60/INDIRECT("speed"&$FT$2))*(length/1000)*ABS(GD$3-$FX12)/20 -> 2.9 | GE12: =(60/INDIRECT("speed"&$FT$2))*(length/1000)*ABS(GE$3-$FX12)/20 -> 2.0 | GF12: =(60/INDIRECT("speed"&$FT$2))*(length/1000)*ABS(GF$3-$FX12)/20 -> 1.0 | GG12: =(60/INDIRECT("speed"&$FT$2))*(length/1000)*ABS(GG$3-$FX12)/20 -> 0.0 | GH12: =(60/INDIRECT("speed"&$FT$2))*(length/1000)*ABS(GH$3-$FX12)/20 -> 1.0 | GI12: =(60/INDIRECT("speed"&$FT$2))*(length/1000)*ABS(GI$3-$FX12)/20 -> 2.0 | GJ12: =(60/INDIRECT("speed"&$FT$2))*(length/1000)*ABS(GJ$3-$FX12)/20 -> 2.9 | GK12: =(60/INDIRECT("speed"&$FT$2))*(length/1000)*ABS(GK$3-$FX12)/20 -> 3.9 | GL12: =(60/INDIRECT("speed"&$FT$2))*(length/1000)*ABS(GL$3-$FX12)/20 -> 4.9 | GM12: =(60/INDIRECT("speed"&$FT$2))*(length/1000)*ABS(GM$3-$FX12)/20 -> 5.9 | GN12: =(60/INDIRECT("speed"&$FT$2))*(length/1000)*ABS(GN$3-$FX12)/20 -> 6.9 | GO12: =(60/INDIRECT("speed"&$FT$2))*(length/1000)*ABS(GO$3-$FX12)/20 -> 7.8 | GP12: =(60/INDIRECT("speed"&$FT$2))*(length/1000)*ABS(GP$3-$FX12)/20 -> 8.8 | GQ12: =(60/INDIRECT("speed"&$FT$2))*(length/1000)*ABS(GQ$3-$FX12)/20 -> 9.8 | GR12: =(60/INDIRECT("speed"&$FT$2))*(length/1000)*ABS(GR$3-$FX12)/20 -> 10.8 | GS12: =(60/INDIRECT("speed"&$FT$2))*(length/1000)*ABS(GS$3-$FX12)/20 -> 11.8
A13: timeto10 | F13: 10 | G13: =(60/INDIRECT("speed"&B$2))*(length/1000)*ABS(G$3-$F13)/20 -> 5.6 | H13: =(60/INDIRECT("speed"&B$2))*(length/1000)*ABS(H$3-$F13)/20 -> 4.9 | I13: =(60/INDIRECT("speed"&B$2))*(length/1000)*ABS(I$3-$F13)/20 -> 4.3 | J13: =(60/INDIRECT("speed"&B$2))*(length/1000)*ABS(J$3-$F13)/20 -> 3.7 | K13: =(60/INDIRECT("speed"&B$2))*(length/1000)*ABS(K$3-$F13)/20 -> 3.1 | L13: =(60/INDIRECT("speed"&B$2))*(length/1000)*ABS(L$3-$F13)/20 -> 2.5 | M13: =(60/INDIRECT("speed"&B$2))*(length/1000)*ABS(M$3-$F13)/20 -> 1.9 | N13: =(60/INDIRECT("speed"&B$2))*(length/1000)*ABS(N$3-$F13)/20 -> 1.2 | O13: =(60/INDIRECT("speed"&B$2))*(length/1000)*ABS(O$3-$F13)/20 -> 0.6 | P13: =(60/INDIRECT("speed"&B$2))*(length/1000)*ABS(P$3-$F13)/20 -> 0.0 | Q13: =(60/INDIRECT("speed"&B$2))*(length/1000)*ABS(Q$3-$F13)/20 -> 0.6 | R13: =(60/INDIRECT("speed"&B$2))*(length/1000)*ABS(R$3-$F13)/20 -> 1.2 | S13: =(60/INDIRECT("speed"&B$2))*(length/1000)*ABS(S$3-$F13)/20 -> 1.9 | T13: =(60/INDIRECT("speed"&B$2))*(length/1000)*ABS(T$3-$F13)/20 -> 2.5 | U13: =(60/INDIRECT("speed"&B$2))*(length/1000)*ABS(U$3-$F13)/20 -> 3.1 | V13: =(60/INDIRECT("speed"&B$2))*(length/1000)*ABS(V$3-$F13)/20 -> 3.7 | W13: =(60/INDIRECT("speed"&B$2))*(length/1000)*ABS(W$3-$F13)/20 -> 4.3 | X13: =(60/INDIRECT("speed"&B$2))*(length/1000)*ABS(X$3-$F13)/20 -> 4.9 | Y13: =(60/INDIRECT("speed"&B$2))*(length/1000)*ABS(Y$3-$F13)/20 -> 5.6 | Z13: =(60/INDIRECT("speed"&B$2))*(length/1000)*ABS(Z$3-$F13)/20 -> 6.2 | AA13: =(60/INDIRECT("speed"&B$2))*(length/1000)*ABS(AA$3-$F13)/20 -> 6.8 | CJ13: timeto10 | CO13: 10 | CP13: =(60/INDIRECT("speed"&$CK$2))*(length/1000)*ABS(CP$3-$CO13)/20 -> 5.6 | CQ13: =(60/INDIRECT("speed"&$CK$2))*(length/1000)*ABS(CQ$3-$CO13)/20 -> 4.9 | CR13: =(60/INDIRECT("speed"&$CK$2))*(length/1000)*ABS(CR$3-$CO13)/20 -> 4.3 | CS13: =(60/INDIRECT("speed"&$CK$2))*(length/1000)*ABS(CS$3-$CO13)/20 -> 3.7 | CT13: =(60/INDIRECT("speed"&$CK$2))*(length/1000)*ABS(CT$3-$CO13)/20 -> 3.1 | CU13: =(60/INDIRECT("speed"&$CK$2))*(length/1000)*ABS(CU$3-$CO13)/20 -> 2.5 | CV13: =(60/INDIRECT("speed"&$CK$2))*(length/1000)*ABS(CV$3-$CO13)/20 -> 1.9 | CW13: =(60/INDIRECT("speed"&$CK$2))*(length/1000)*ABS(CW$3-$CO13)/20 -> 1.2 | CX13: =(60/INDIRECT("speed"&$CK$2))*(length/1000)*ABS(CX$3-$CO13)/20 -> 0.6 | CY13: =(60/INDIRECT("speed"&$CK$2))*(length/1000)*ABS(CY$3-$CO13)/20 -> 0.0 | CZ13: =(60/INDIRECT("speed"&$CK$2))*(length/1000)*ABS(CZ$3-$CO13)/20 -> 0.6 | DA13: =(60/INDIRECT("speed"&$CK$2))*(length/1000)*ABS(DA$3-$CO13)/20 -> 1.2 | DB13: =(60/INDIRECT("speed"&$CK$2))*(length/1000)*ABS(DB$3-$CO13)/20 -> 1.9 | DC13: =(60/INDIRECT("speed"&$CK$2))*(length/1000)*ABS(DC$3-$CO13)/20 -> 2.5 | DD13: =(60/INDIRECT("speed"&$CK$2))*(length/1000)*ABS(DD$3-$CO13)/20 -> 3.1 | DE13: =(60/INDIRECT("speed"&$CK$2))*(length/1000)*ABS(DE$3-$CO13)/20 -> 3.7 | DF13: =(60/INDIRECT("speed"&$CK$2))*(length/1000)*ABS(DF$3-$CO13)/20 -> 4.3 | DG13: =(60/INDIRECT("speed"&$CK$2))*(length/1000)*ABS(DG$3-$CO13)/20 -> 4.9 | DH13: =(60/INDIRECT("speed"&$CK$2))*(length/1000)*ABS(DH$3-$CO13)/20 -> 5.6 | DI13: =(60/INDIRECT("speed"&$CK$2))*(length/1000)*ABS(DI$3-$CO13)/20 -> 6.2 | DJ13: =(60/INDIRECT("speed"&$CK$2))*(length/1000)*ABS(DJ$3-$CO13)/20 -> 6.8 | FS13: timeto10 | FX13: 10 | FY13: =(60/INDIRECT("speed"&$FT$2))*(length/1000)*ABS(FY$3-$FX13)/20 -> 8.8 | FZ13: =(60/INDIRECT("speed"&$FT$2))*(length/1000)*ABS(FZ$3-$FX13)/20 -> 7.8 | GA13: =(60/INDIRECT("speed"&$FT$2))*(length/1000)*ABS(GA$3-$FX13)/20 -> 6.9 | GB13: =(60/INDIRECT("speed"&$FT$2))*(length/1000)*ABS(GB$3-$FX13)/20 -> 5.9 | GC13: =(60/INDIRECT("speed"&$FT$2))*(length/1000)*ABS(GC$3-$FX13)/20 -> 4.9 | GD13: =(60/INDIRECT("speed"&$FT$2))*(length/1000)*ABS(GD$3-$FX13)/20 -> 3.9 | GE13: =(60/INDIRECT("speed"&$FT$2))*(length/1000)*ABS(GE$3-$FX13)/20 -> 2.9 | GF13: =(60/INDIRECT("speed"&$FT$2))*(length/1000)*ABS(GF$3-$FX13)/20 -> 2.0 | GG13: =(60/INDIRECT("speed"&$FT$2))*(length/1000)*ABS(GG$3-$FX13)/20 -> 1.0 | GH13: =(60/INDIRECT("speed"&$FT$2))*(length/1000)*ABS(GH$3-$FX13)/20 -> 0.0 | GI13: =(60/INDIRECT("speed"&$FT$2))*(length/1000)*ABS(GI$3-$FX13)/20 -> 1.0 | GJ13: =(60/INDIRECT("speed"&$FT$2))*(length/1000)*ABS(GJ$3-$FX13)/20 -> 2.0 | GK13: =(60/INDIRECT("speed"&$FT$2))*(length/1000)*ABS(GK$3-$FX13)/20 -> 2.9 | GL13: =(60/INDIRECT("speed"&$FT$2))*(length/1000)*ABS(GL$3-$FX13)/20 -> 3.9 | GM13: =(60/INDIRECT("speed"&$FT$2))*(length/1000)*ABS(GM$3-$FX13)/20 -> 4.9 | GN13: =(60/INDIRECT("speed"&$FT$2))*(length/1000)*ABS(GN$3-$FX13)/20 -> 5.9 | GO13: =(60/INDIRECT("speed"&$FT$2))*(length/1000)*ABS(GO$3-$FX13)/20 -> 6.9 | GP13: =(60/INDIRECT("speed"&$FT$2))*(length/1000)*ABS(GP$3-$FX13)/20 -> 7.8 | GQ13: =(60/INDIRECT("speed"&$FT$2))*(length/1000)*ABS(GQ$3-$FX13)/20 -> 8.8 | GR13: =(60/INDIRECT("speed"&$FT$2))*(length/1000)*ABS(GR$3-$FX13)/20 -> 9.8 | GS13: =(60/INDIRECT("speed"&$FT$2))*(length/1000)*ABS(GS$3-$FX13)/20 -> 10.8
A14: timeto11 | F14: 11 | G14: =(60/INDIRECT("speed"&B$2))*(length/1000)*ABS(G$3-$F14)/20 -> 6.2 | H14: =(60/INDIRECT("speed"&B$2))*(length/1000)*ABS(H$3-$F14)/20 -> 5.6 | I14: =(60/INDIRECT("speed"&B$2))*(length/1000)*ABS(I$3-$F14)/20 -> 4.9 | J14: =(60/INDIRECT("speed"&B$2))*(length/1000)*ABS(J$3-$F14)/20 -> 4.3 | K14: =(60/INDIRECT("speed"&B$2))*(length/1000)*ABS(K$3-$F14)/20 -> 3.7 | L14: =(60/INDIRECT("speed"&B$2))*(length/1000)*ABS(L$3-$F14)/20 -> 3.1 | M14: =(60/INDIRECT("speed"&B$2))*(length/1000)*ABS(M$3-$F14)/20 -> 2.5 | N14: =(60/INDIRECT("speed"&B$2))*(length/1000)*ABS(N$3-$F14)/20 -> 1.9 | O14: =(60/INDIRECT("speed"&B$2))*(length/1000)*ABS(O$3-$F14)/20 -> 1.2 | P14: =(60/INDIRECT("speed"&B$2))*(length/1000)*ABS(P$3-$F14)/20 -> 0.6 | Q14: =(60/INDIRECT("speed"&B$2))*(length/1000)*ABS(Q$3-$F14)/20 -> 0.0 | R14: =(60/INDIRECT("speed"&B$2))*(length/1000)*ABS(R$3-$F14)/20 -> 0.6 | S14: =(60/INDIRECT("speed"&B$2))*(length/1000)*ABS(S$3-$F14)/20 -> 1.2 | T14: =(60/INDIRECT("speed"&B$2))*(length/1000)*ABS(T$3-$F14)/20 -> 1.9 | U14: =(60/INDIRECT("speed"&B$2))*(length/1000)*ABS(U$3-$F14)/20 -> 2.5 | V14: =(60/INDIRECT("speed"&B$2))*(length/1000)*ABS(V$3-$F14)/20 -> 3.1 | W14: =(60/INDIRECT("speed"&B$2))*(length/1000)*ABS(W$3-$F14)/20 -> 3.7 | X14: =(60/INDIRECT("speed"&B$2))*(length/1000)*ABS(X$3-$F14)/20 -> 4.3 | Y14: =(60/INDIRECT("speed"&B$2))*(length/1000)*ABS(Y$3-$F14)/20 -> 4.9 | Z14: =(60/INDIRECT("speed"&B$2))*(length/1000)*ABS(Z$3-$F14)/20 -> 5.6 | AA14: =(60/INDIRECT("speed"&B$2))*(length/1000)*ABS(AA$3-$F14)/20 -> 6.2 | CJ14: timeto11 | CO14: 11 | CP14: =(60/INDIRECT("speed"&$CK$2))*(length/1000)*ABS(CP$3-$CO14)/20 -> 6.2 | CQ14: =(60/INDIRECT("speed"&$CK$2))*(length/1000)*ABS(CQ$3-$CO14)/20 -> 5.6 | CR14: =(60/INDIRECT("speed"&$CK$2))*(length/1000)*ABS(CR$3-$CO14)/20 -> 4.9 | CS14: =(60/INDIRECT("speed"&$CK$2))*(length/1000)*ABS(CS$3-$CO14)/20 -> 4.3 | CT14: =(60/INDIRECT("speed"&$CK$2))*(length/1000)*ABS(CT$3-$CO14)/20 -> 3.7 | CU14: =(60/INDIRECT("speed"&$CK$2))*(length/1000)*ABS(CU$3-$CO14)/20 -> 3.1 | CV14: =(60/INDIRECT("speed"&$CK$2))*(length/1000)*ABS(CV$3-$CO14)/20 -> 2.5 | CW14: =(60/INDIRECT("speed"&$CK$2))*(length/1000)*ABS(CW$3-$CO14)/20 -> 1.9 | CX14: =(60/INDIRECT("speed"&$CK$2))*(length/1000)*ABS(CX$3-$CO14)/20 -> 1.2 | CY14: =(60/INDIRECT("speed"&$CK$2))*(length/1000)*ABS(CY$3-$CO14)/20 -> 0.6 | CZ14: =(60/INDIRECT("speed"&$CK$2))*(length/1000)*ABS(CZ$3-$CO14)/20 -> 0.0 | DA14: =(60/INDIRECT("speed"&$CK$2))*(length/1000)*ABS(DA$3-$CO14)/20 -> 0.6 | DB14: =(60/INDIRECT("speed"&$CK$2))*(length/1000)*ABS(DB$3-$CO14)/20 -> 1.2 | DC14: =(60/INDIRECT("speed"&$CK$2))*(length/1000)*ABS(DC$3-$CO14)/20 -> 1.9 | DD14: =(60/INDIRECT("speed"&$CK$2))*(length/1000)*ABS(DD$3-$CO14)/20 -> 2.5 | DE14: =(60/INDIRECT("speed"&$CK$2))*(length/1000)*ABS(DE$3-$CO14)/20 -> 3.1 | DF14: =(60/INDIRECT("speed"&$CK$2))*(length/1000)*ABS(DF$3-$CO14)/20 -> 3.7 | DG14: =(60/INDIRECT("speed"&$CK$2))*(length/1000)*ABS(DG$3-$CO14)/20 -> 4.3 | DH14: =(60/INDIRECT("speed"&$CK$2))*(length/1000)*ABS(DH$3-$CO14)/20 -> 4.9 | DI14: =(60/INDIRECT("speed"&$CK$2))*(length/1000)*ABS(DI$3-$CO14)/20 -> 5.6 | DJ14: =(60/INDIRECT("speed"&$CK$2))*(length/1000)*ABS(DJ$3-$CO14)/20 -> 6.2 | FS14: timeto11 | FX14: 11 | FY14: =(60/INDIRECT("speed"&$FT$2))*(length/1000)*ABS(FY$3-$FX14)/20 -> 9.8 | FZ14: =(60/INDIRECT("speed"&$FT$2))*(length/1000)*ABS(FZ$3-$FX14)/20 -> 8.8 | GA14: =(60/INDIRECT("speed"&$FT$2))*(length/1000)*ABS(GA$3-$FX14)/20 -> 7.8 | GB14: =(60/INDIRECT("speed"&$FT$2))*(length/1000)*ABS(GB$3-$FX14)/20 -> 6.9 | GC14: =(60/INDIRECT("speed"&$FT$2))*(length/1000)*ABS(GC$3-$FX14)/20 -> 5.9 | GD14: =(60/INDIRECT("speed"&$FT$2))*(length/1000)*ABS(GD$3-$FX14)/20 -> 4.9 | GE14: =(60/INDIRECT("speed"&$FT$2))*(length/1000)*ABS(GE$3-$FX14)/20 -> 3.9 | GF14: =(60/INDIRECT("speed"&$FT$2))*(length/1000)*ABS(GF$3-$FX14)/20 -> 2.9 | GG14: =(60/INDIRECT("speed"&$FT$2))*(length/1000)*ABS(GG$3-$FX14)/20 -> 2.0 | GH14: =(60/INDIRECT("speed"&$FT$2))*(length/1000)*ABS(GH$3-$FX14)/20 -> 1.0 | GI14: =(60/INDIRECT("speed"&$FT$2))*(length/1000)*ABS(GI$3-$FX14)/20 -> 0.0 | GJ14: =(60/INDIRECT("speed"&$FT$2))*(length/1000)*ABS(GJ$3-$FX14)/20 -> 1.0 | GK14: =(60/INDIRECT("speed"&$FT$2))*(length/1000)*ABS(GK$3-$FX14)/20 -> 2.0 | GL14: =(60/INDIRECT("speed"&$FT$2))*(length/1000)*ABS(GL$3-$FX14)/20 -> 2.9 | GM14: =(60/INDIRECT("speed"&$FT$2))*(length/1000)*ABS(GM$3-$FX14)/20 -> 3.9 | GN14: =(60/INDIRECT("speed"&$FT$2))*(length/1000)*ABS(GN$3-$FX14)/20 -> 4.9 | GO14: =(60/INDIRECT("speed"&$FT$2))*(length/1000)*ABS(GO$3-$FX14)/20 -> 5.9 | GP14: =(60/INDIRECT("speed"&$FT$2))*(length/1000)*ABS(GP$3-$FX14)/20 -> 6.9 | GQ14: =(60/INDIRECT("speed"&$FT$2))*(length/1000)*ABS(GQ$3-$FX14)/20 -> 7.8 | GR14: =(60/INDIRECT("speed"&$FT$2))*(length/1000)*ABS(GR$3-$FX14)/20 -> 8.8 | GS14: =(60/INDIRECT("speed"&$FT$2))*(length/1000)*ABS(GS$3-$FX14)/20 -> 9.8
A15: timeto12 | F15: 12 | G15: =(60/INDIRECT("speed"&B$2))*(length/1000)*ABS(G$3-$F15)/20 -> 6.8 | H15: =(60/INDIRECT("speed"&B$2))*(length/1000)*ABS(H$3-$F15)/20 -> 6.2 | I15: =(60/INDIRECT("speed"&B$2))*(length/1000)*ABS(I$3-$F15)/20 -> 5.6 | J15: =(60/INDIRECT("speed"&B$2))*(length/1000)*ABS(J$3-$F15)/20 -> 4.9 | K15: =(60/INDIRECT("speed"&B$2))*(length/1000)*ABS(K$3-$F15)/20 -> 4.3 | L15: =(60/INDIRECT("speed"&B$2))*(length/1000)*ABS(L$3-$F15)/20 -> 3.7 | M15: =(60/INDIRECT("speed"&B$2))*(length/1000)*ABS(M$3-$F15)/20 -> 3.1 | N15: =(60/INDIRECT("speed"&B$2))*(length/1000)*ABS(N$3-$F15)/20 -> 2.5 | O15: =(60/INDIRECT("speed"&B$2))*(length/1000)*ABS(O$3-$F15)/20 -> 1.9 | P15: =(60/INDIRECT("speed"&B$2))*(length/1000)*ABS(P$3-$F15)/20 -> 1.2 | Q15: =(60/INDIRECT("speed"&B$2))*(length/1000)*ABS(Q$3-$F15)/20 -> 0.6 | R15: =(60/INDIRECT("speed"&B$2))*(length/1000)*ABS(R$3-$F15)/20 -> 0.0 | S15: =(60/INDIRECT("speed"&B$2))*(length/1000)*ABS(S$3-$F15)/20 -> 0.6 | T15: =(60/INDIRECT("speed"&B$2))*(length/1000)*ABS(T$3-$F15)/20 -> 1.2 | U15: =(60/INDIRECT("speed"&B$2))*(length/1000)*ABS(U$3-$F15)/20 -> 1.9 | V15: =(60/INDIRECT("speed"&B$2))*(length/1000)*ABS(V$3-$F15)/20 -> 2.5 | W15: =(60/INDIRECT("speed"&B$2))*(length/1000)*ABS(W$3-$F15)/20 -> 3.1 | X15: =(60/INDIRECT("speed"&B$2))*(length/1000)*ABS(X$3-$F15)/20 -> 3.7 | Y15: =(60/INDIRECT("speed"&B$2))*(length/1000)*ABS(Y$3-$F15)/20 -> 4.3 | Z15: =(60/INDIRECT("speed"&B$2))*(length/1000)*ABS(Z$3-$F15)/20 -> 4.9 | AA15: =(60/INDIRECT("speed"&B$2))*(length/1000)*ABS(AA$3-$F15)/20 -> 5.6 | CJ15: timeto12 | CO15: 12 | CP15: =(60/INDIRECT("speed"&$CK$2))*(length/1000)*ABS(CP$3-$CO15)/20 -> 6.8 | CQ15: =(60/INDIRECT("speed"&$CK$2))*(length/1000)*ABS(CQ$3-$CO15)/20 -> 6.2 | CR15: =(60/INDIRECT("speed"&$CK$2))*(length/1000)*ABS(CR$3-$CO15)/20 -> 5.6 | CS15: =(60/INDIRECT("speed"&$CK$2))*(length/1000)*ABS(CS$3-$CO15)/20 -> 4.9 | CT15: =(60/INDIRECT("speed"&$CK$2))*(length/1000)*ABS(CT$3-$CO15)/20 -> 4.3 | CU15: =(60/INDIRECT("speed"&$CK$2))*(length/1000)*ABS(CU$3-$CO15)/20 -> 3.7 | CV15: =(60/INDIRECT("speed"&$CK$2))*(length/1000)*ABS(CV$3-$CO15)/20 -> 3.1 | CW15: =(60/INDIRECT("speed"&$CK$2))*(length/1000)*ABS(CW$3-$CO15)/20 -> 2.5 | CX15: =(60/INDIRECT("speed"&$CK$2))*(length/1000)*ABS(CX$3-$CO15)/20 -> 1.9 | CY15: =(60/INDIRECT("speed"&$CK$2))*(length/1000)*ABS(CY$3-$CO15)/20 -> 1.2 | CZ15: =(60/INDIRECT("speed"&$CK$2))*(length/1000)*ABS(CZ$3-$CO15)/20 -> 0.6 | DA15: =(60/INDIRECT("speed"&$CK$2))*(length/1000)*ABS(DA$3-$CO15)/20 -> 0.0 | DB15: =(60/INDIRECT("speed"&$CK$2))*(length/1000)*ABS(DB$3-$CO15)/20 -> 0.6 | DC15: =(60/INDIRECT("speed"&$CK$2))*(length/1000)*ABS(DC$3-$CO15)/20 -> 1.2 | DD15: =(60/INDIRECT("speed"&$CK$2))*(length/1000)*ABS(DD$3-$CO15)/20 -> 1.9 | DE15: =(60/INDIRECT("speed"&$CK$2))*(length/1000)*ABS(DE$3-$CO15)/20 -> 2.5 | DF15: =(60/INDIRECT("speed"&$CK$2))*(length/1000)*ABS(DF$3-$CO15)/20 -> 3.1 | DG15: =(60/INDIRECT("speed"&$CK$2))*(length/1000)*ABS(DG$3-$CO15)/20 -> 3.7 | DH15: =(60/INDIRECT("speed"&$CK$2))*(length/1000)*ABS(DH$3-$CO15)/20 -> 4.3 | DI15: =(60/INDIRECT("speed"&$CK$2))*(length/1000)*ABS(DI$3-$CO15)/20 -> 4.9 | DJ15: =(60/INDIRECT("speed"&$CK$2))*(length/1000)*ABS(DJ$3-$CO15)/20 -> 5.6 | FS15: timeto12 | FX15: 12 | FY15: =(60/INDIRECT("speed"&$FT$2))*(length/1000)*ABS(FY$3-$FX15)/20 -> 10.8 | FZ15: =(60/INDIRECT("speed"&$FT$2))*(length/1000)*ABS(FZ$3-$FX15)/20 -> 9.8 | GA15: =(60/INDIRECT("speed"&$FT$2))*(length/1000)*ABS(GA$3-$FX15)/20 -> 8.8 | GB15: =(60/INDIRECT("speed"&$FT$2))*(length/1000)*ABS(GB$3-$FX15)/20 -> 7.8 | GC15: =(60/INDIRECT("speed"&$FT$2))*(length/1000)*ABS(GC$3-$FX15)/20 -> 6.9 | GD15: =(60/INDIRECT("speed"&$FT$2))*(length/1000)*ABS(GD$3-$FX15)/20 -> 5.9 | GE15: =(60/INDIRECT("speed"&$FT$2))*(length/1000)*ABS(GE$3-$FX15)/20 -> 4.9 | GF15: =(60/INDIRECT("speed"&$FT$2))*(length/1000)*ABS(GF$3-$FX15)/20 -> 3.9 | GG15: =(60/INDIRECT("speed"&$FT$2))*(length/1000)*ABS(GG$3-$FX15)/20 -> 2.9 | GH15: =(60/INDIRECT("speed"&$FT$2))*(length/1000)*ABS(GH$3-$FX15)/20 -> 2.0 | GI15: =(60/INDIRECT("speed"&$FT$2))*(length/1000)*ABS(GI$3-$FX15)/20 -> 1.0 | GJ15: =(60/INDIRECT("speed"&$FT$2))*(length/1000)*ABS(GJ$3-$FX15)/20 -> 0.0 | GK15: =(60/INDIRECT("speed"&$FT$2))*(length/1000)*ABS(GK$3-$FX15)/20 -> 1.0 | GL15: =(60/INDIRECT("speed"&$FT$2))*(length/1000)*ABS(GL$3-$FX15)/20 -> 2.0 | GM15: =(60/INDIRECT("speed"&$FT$2))*(length/1000)*ABS(GM$3-$FX15)/20 -> 2.9 | GN15: =(60/INDIRECT("speed"&$FT$2))*(length/1000)*ABS(GN$3-$FX15)/20 -> 3.9 | GO15: =(60/INDIRECT("speed"&$FT$2))*(length/1000)*ABS(GO$3-$FX15)/20 -> 4.9 | GP15: =(60/INDIRECT("speed"&$FT$2))*(length/1000)*ABS(GP$3-$FX15)/20 -> 5.9 | GQ15: =(60/INDIRECT("speed"&$FT$2))*(length/1000)*ABS(GQ$3-$FX15)/20 -> 6.9 | GR15: =(60/INDIRECT("speed"&$FT$2))*(length/1000)*ABS(GR$3-$FX15)/20 -> 7.8 | GS15: =(60/INDIRECT("speed"&$FT$2))*(length/1000)*ABS(GS$3-$FX15)/20 -> 8.8
A16: timeto13 | F16: 13 | G16: =(60/INDIRECT("speed"&B$2))*(length/1000)*ABS(G$3-$F16)/20 -> 7.4 | H16: =(60/INDIRECT("speed"&B$2))*(length/1000)*ABS(H$3-$F16)/20 -> 6.8 | I16: =(60/INDIRECT("speed"&B$2))*(length/1000)*ABS(I$3-$F16)/20 -> 6.2 | J16: =(60/INDIRECT("speed"&B$2))*(length/1000)*ABS(J$3-$F16)/20 -> 5.6 | K16: =(60/INDIRECT("speed"&B$2))*(length/1000)*ABS(K$3-$F16)/20 -> 4.9 | L16: =(60/INDIRECT("speed"&B$2))*(length/1000)*ABS(L$3-$F16)/20 -> 4.3 | M16: =(60/INDIRECT("speed"&B$2))*(length/1000)*ABS(M$3-$F16)/20 -> 3.7 | N16: =(60/INDIRECT("speed"&B$2))*(length/1000)*ABS(N$3-$F16)/20 -> 3.1 | O16: =(60/INDIRECT("speed"&B$2))*(length/1000)*ABS(O$3-$F16)/20 -> 2.5 | P16: =(60/INDIRECT("speed"&B$2))*(length/1000)*ABS(P$3-$F16)/20 -> 1.9 | Q16: =(60/INDIRECT("speed"&B$2))*(length/1000)*ABS(Q$3-$F16)/20 -> 1.2 | R16: =(60/INDIRECT("speed"&B$2))*(length/1000)*ABS(R$3-$F16)/20 -> 0.6 | S16: =(60/INDIRECT("speed"&B$2))*(length/1000)*ABS(S$3-$F16)/20 -> 0.0 | T16: =(60/INDIRECT("speed"&B$2))*(length/1000)*ABS(T$3-$F16)/20 -> 0.6 | U16: =(60/INDIRECT("speed"&B$2))*(length/1000)*ABS(U$3-$F16)/20 -> 1.2 | V16: =(60/INDIRECT("speed"&B$2))*(length/1000)*ABS(V$3-$F16)/20 -> 1.9 | W16: =(60/INDIRECT("speed"&B$2))*(length/1000)*ABS(W$3-$F16)/20 -> 2.5 | X16: =(60/INDIRECT("speed"&B$2))*(length/1000)*ABS(X$3-$F16)/20 -> 3.1 | Y16: =(60/INDIRECT("speed"&B$2))*(length/1000)*ABS(Y$3-$F16)/20 -> 3.7 | Z16: =(60/INDIRECT("speed"&B$2))*(length/1000)*ABS(Z$3-$F16)/20 -> 4.3 | AA16: =(60/INDIRECT("speed"&B$2))*(length/1000)*ABS(AA$3-$F16)/20 -> 4.9 | CJ16: timeto13 | CO16: 13 | CP16: =(60/INDIRECT("speed"&$CK$2))*(length/1000)*ABS(CP$3-$CO16)/20 -> 7.4 | CQ16: =(60/INDIRECT("speed"&$CK$2))*(length/1000)*ABS(CQ$3-$CO16)/20 -> 6.8 | CR16: =(60/INDIRECT("speed"&$CK$2))*(length/1000)*ABS(CR$3-$CO16)/20 -> 6.2 | CS16: =(60/INDIRECT("speed"&$CK$2))*(length/1000)*ABS(CS$3-$CO16)/20 -> 5.6 | CT16: =(60/INDIRECT("speed"&$CK$2))*(length/1000)*ABS(CT$3-$CO16)/20 -> 4.9 | CU16: =(60/INDIRECT("speed"&$CK$2))*(length/1000)*ABS(CU$3-$CO16)/20 -> 4.3 | CV16: =(60/INDIRECT("speed"&$CK$2))*(length/1000)*ABS(CV$3-$CO16)/20 -> 3.7 | CW16: =(60/INDIRECT("speed"&$CK$2))*(length/1000)*ABS(CW$3-$CO16)/20 -> 3.1 | CX16: =(60/INDIRECT("speed"&$CK$2))*(length/1000)*ABS(CX$3-$CO16)/20 -> 2.5 | CY16: =(60/INDIRECT("speed"&$CK$2))*(length/1000)*ABS(CY$3-$CO16)/20 -> 1.9 | CZ16: =(60/INDIRECT("speed"&$CK$2))*(length/1000)*ABS(CZ$3-$CO16)/20 -> 1.2 | DA16: =(60/INDIRECT("speed"&$CK$2))*(length/1000)*ABS(DA$3-$CO16)/20 -> 0.6 | DB16: =(60/INDIRECT("speed"&$CK$2))*(length/1000)*ABS(DB$3-$CO16)/20 -> 0.0 | DC16: =(60/INDIRECT("speed"&$CK$2))*(length/1000)*ABS(DC$3-$CO16)/20 -> 0.6 | DD16: =(60/INDIRECT("speed"&$CK$2))*(length/1000)*ABS(DD$3-$CO16)/20 -> 1.2 | DE16: =(60/INDIRECT("speed"&$CK$2))*(length/1000)*ABS(DE$3-$CO16)/20 -> 1.9 | DF16: =(60/INDIRECT("speed"&$CK$2))*(length/1000)*ABS(DF$3-$CO16)/20 -> 2.5 | DG16: =(60/INDIRECT("speed"&$CK$2))*(length/1000)*ABS(DG$3-$CO16)/20 -> 3.1 | DH16: =(60/INDIRECT("speed"&$CK$2))*(length/1000)*ABS(DH$3-$CO16)/20 -> 3.7 | DI16: =(60/INDIRECT("speed"&$CK$2))*(length/1000)*ABS(DI$3-$CO16)/20 -> 4.3 | DJ16: =(60/INDIRECT("speed"&$CK$2))*(length/1000)*ABS(DJ$3-$CO16)/20 -> 4.9 | FS16: timeto13 | FX16: 13 | FY16: =(60/INDIRECT("speed"&$FT$2))*(length/1000)*ABS(FY$3-$FX16)/20 -> 11.8 | FZ16: =(60/INDIRECT("speed"&$FT$2))*(length/1000)*ABS(FZ$3-$FX16)/20 -> 10.8 | GA16: =(60/INDIRECT("speed"&$FT$2))*(length/1000)*ABS(GA$3-$FX16)/20 -> 9.8 | GB16: =(60/INDIRECT("speed"&$FT$2))*(length/1000)*ABS(GB$3-$FX16)/20 -> 8.8 | GC16: =(60/INDIRECT("speed"&$FT$2))*(length/1000)*ABS(GC$3-$FX16)/20 -> 7.8 | GD16: =(60/INDIRECT("speed"&$FT$2))*(length/1000)*ABS(GD$3-$FX16)/20 -> 6.9 | GE16: =(60/INDIRECT("speed"&$FT$2))*(length/1000)*ABS(GE$3-$FX16)/20 -> 5.9 | GF16: =(60/INDIRECT("speed"&$FT$2))*(length/1000)*ABS(GF$3-$FX16)/20 -> 4.9 | GG16: =(60/INDIRECT("speed"&$FT$2))*(length/1000)*ABS(GG$3-$FX16)/20 -> 3.9 | GH16: =(60/INDIRECT("speed"&$FT$2))*(length/1000)*ABS(GH$3-$FX16)/20 -> 2.9 | GI16: =(60/INDIRECT("speed"&$FT$2))*(length/1000)*ABS(GI$3-$FX16)/20 -> 2.0 | GJ16: =(60/INDIRECT("speed"&$FT$2))*(length/1000)*ABS(GJ$3-$FX16)/20 -> 1.0 | GK16: =(60/INDIRECT("speed"&$FT$2))*(length/1000)*ABS(GK$3-$FX16)/20 -> 0.0 | GL16: =(60/INDIRECT("speed"&$FT$2))*(length/1000)*ABS(GL$3-$FX16)/20 -> 1.0 | GM16: =(60/INDIRECT("speed"&$FT$2))*(length/1000)*ABS(GM$3-$FX16)/20 -> 2.0 | GN16: =(60/INDIRECT("speed"&$FT$2))*(length/1000)*ABS(GN$3-$FX16)/20 -> 2.9 | GO16: =(60/INDIRECT("speed"&$FT$2))*(length/1000)*ABS(GO$3-$FX16)/20 -> 3.9 | GP16: =(60/INDIRECT("speed"&$FT$2))*(length/1000)*ABS(GP$3-$FX16)/20 -> 4.9 | GQ16: =(60/INDIRECT("speed"&$FT$2))*(length/1000)*ABS(GQ$3-$FX16)/20 -> 5.9 | GR16: =(60/INDIRECT("speed"&$FT$2))*(length/1000)*ABS(GR$3-$FX16)/20 -> 6.9 | GS16: =(60/INDIRECT("speed"&$FT$2))*(length/1000)*ABS(GS$3-$FX16)/20 -> 7.8
A17: timeto14 | F17: 14 | G17: =(60/INDIRECT("speed"&B$2))*(length/1000)*ABS(G$3-$F17)/20 -> 8.0 | H17: =(60/INDIRECT("speed"&B$2))*(length/1000)*ABS(H$3-$F17)/20 -> 7.4 | I17: =(60/INDIRECT("speed"&B$2))*(length/1000)*ABS(I$3-$F17)/20 -> 6.8 | J17: =(60/INDIRECT("speed"&B$2))*(length/1000)*ABS(J$3-$F17)/20 -> 6.2 | K17: =(60/INDIRECT("speed"&B$2))*(length/1000)*ABS(K$3-$F17)/20 -> 5.6 | L17: =(60/INDIRECT("speed"&B$2))*(length/1000)*ABS(L$3-$F17)/20 -> 4.9 | M17: =(60/INDIRECT("speed"&B$2))*(length/1000)*ABS(M$3-$F17)/20 -> 4.3 | N17: =(60/INDIRECT("speed"&B$2))*(length/1000)*ABS(N$3-$F17)/20 -> 3.7 | O17: =(60/INDIRECT("speed"&B$2))*(length/1000)*ABS(O$3-$F17)/20 -> 3.1 | P17: =(60/INDIRECT("speed"&B$2))*(length/1000)*ABS(P$3-$F17)/20 -> 2.5 | Q17: =(60/INDIRECT("speed"&B$2))*(length/1000)*ABS(Q$3-$F17)/20 -> 1.9 | R17: =(60/INDIRECT("speed"&B$2))*(length/1000)*ABS(R$3-$F17)/20 -> 1.2 | S17: =(60/INDIRECT("speed"&B$2))*(length/1000)*ABS(S$3-$F17)/20 -> 0.6 | T17: =(60/INDIRECT("speed"&B$2))*(length/1000)*ABS(T$3-$F17)/20 -> 0.0 | U17: =(60/INDIRECT("speed"&B$2))*(length/1000)*ABS(U$3-$F17)/20 -> 0.6 | V17: =(60/INDIRECT("speed"&B$2))*(length/1000)*ABS(V$3-$F17)/20 -> 1.2 | W17: =(60/INDIRECT("speed"&B$2))*(length/1000)*ABS(W$3-$F17)/20 -> 1.9 | X17: =(60/INDIRECT("speed"&B$2))*(length/1000)*ABS(X$3-$F17)/20 -> 2.5 | Y17: =(60/INDIRECT("speed"&B$2))*(length/1000)*ABS(Y$3-$F17)/20 -> 3.1 | Z17: =(60/INDIRECT("speed"&B$2))*(length/1000)*ABS(Z$3-$F17)/20 -> 3.7 | AA17: =(60/INDIRECT("speed"&B$2))*(length/1000)*ABS(AA$3-$F17)/20 -> 4.3 | CJ17: timeto14 | CO17: 14 | CP17: =(60/INDIRECT("speed"&$CK$2))*(length/1000)*ABS(CP$3-$CO17)/20 -> 8.0 | CQ17: =(60/INDIRECT("speed"&$CK$2))*(length/1000)*ABS(CQ$3-$CO17)/20 -> 7.4 | CR17: =(60/INDIRECT("speed"&$CK$2))*(length/1000)*ABS(CR$3-$CO17)/20 -> 6.8 | CS17: =(60/INDIRECT("speed"&$CK$2))*(length/1000)*ABS(CS$3-$CO17)/20 -> 6.2 | CT17: =(60/INDIRECT("speed"&$CK$2))*(length/1000)*ABS(CT$3-$CO17)/20 -> 5.6 | CU17: =(60/INDIRECT("speed"&$CK$2))*(length/1000)*ABS(CU$3-$CO17)/20 -> 4.9 | CV17: =(60/INDIRECT("speed"&$CK$2))*(length/1000)*ABS(CV$3-$CO17)/20 -> 4.3 | CW17: =(60/INDIRECT("speed"&$CK$2))*(length/1000)*ABS(CW$3-$CO17)/20 -> 3.7 | CX17: =(60/INDIRECT("speed"&$CK$2))*(length/1000)*ABS(CX$3-$CO17)/20 -> 3.1 | CY17: =(60/INDIRECT("speed"&$CK$2))*(length/1000)*ABS(CY$3-$CO17)/20 -> 2.5 | CZ17: =(60/INDIRECT("speed"&$CK$2))*(length/1000)*ABS(CZ$3-$CO17)/20 -> 1.9 | DA17: =(60/INDIRECT("speed"&$CK$2))*(length/1000)*ABS(DA$3-$CO17)/20 -> 1.2 | DB17: =(60/INDIRECT("speed"&$CK$2))*(length/1000)*ABS(DB$3-$CO17)/20 -> 0.6 | DC17: =(60/INDIRECT("speed"&$CK$2))*(length/1000)*ABS(DC$3-$CO17)/20 -> 0.0 | DD17: =(60/INDIRECT("speed"&$CK$2))*(length/1000)*ABS(DD$3-$CO17)/20 -> 0.6 | DE17: =(60/INDIRECT("speed"&$CK$2))*(length/1000)*ABS(DE$3-$CO17)/20 -> 1.2 | DF17: =(60/INDIRECT("speed"&$CK$2))*(length/1000)*ABS(DF$3-$CO17)/20 -> 1.9 | DG17: =(60/INDIRECT("speed"&$CK$2))*(length/1000)*ABS(DG$3-$CO17)/20 -> 2.5 | DH17: =(60/INDIRECT("speed"&$CK$2))*(length/1000)*ABS(DH$3-$CO17)/20 -> 3.1 | DI17: =(60/INDIRECT("speed"&$CK$2))*(length/1000)*ABS(DI$3-$CO17)/20 -> 3.7 | DJ17: =(60/INDIRECT("speed"&$CK$2))*(length/1000)*ABS(DJ$3-$CO17)/20 -> 4.3 | FS17: timeto14 | FX17: 14 | FY17: =(60/INDIRECT("speed"&$FT$2))*(length/1000)*ABS(FY$3-$FX17)/20 -> 12.7 | FZ17: =(60/INDIRECT("speed"&$FT$2))*(length/1000)*ABS(FZ$3-$FX17)/20 -> 11.8 | GA17: =(60/INDIRECT("speed"&$FT$2))*(length/1000)*ABS(GA$3-$FX17)/20 -> 10.8 | GB17: =(60/INDIRECT("speed"&$FT$2))*(length/1000)*ABS(GB$3-$FX17)/20 -> 9.8 | GC17: =(60/INDIRECT("speed"&$FT$2))*(length/1000)*ABS(GC$3-$FX17)/20 -> 8.8 | GD17: =(60/INDIRECT("speed"&$FT$2))*(length/1000)*ABS(GD$3-$FX17)/20 -> 7.8 | GE17: =(60/INDIRECT("speed"&$FT$2))*(length/1000)*ABS(GE$3-$FX17)/20 -> 6.9 | GF17: =(60/INDIRECT("speed"&$FT$2))*(length/1000)*ABS(GF$3-$FX17)/20 -> 5.9 | GG17: =(60/INDIRECT("speed"&$FT$2))*(length/1000)*ABS(GG$3-$FX17)/20 -> 4.9 | GH17: =(60/INDIRECT("speed"&$FT$2))*(length/1000)*ABS(GH$3-$FX17)/20 -> 3.9 | GI17: =(60/INDIRECT("speed"&$FT$2))*(length/1000)*ABS(GI$3-$FX17)/20 -> 2.9 | GJ17: =(60/INDIRECT("speed"&$FT$2))*(length/1000)*ABS(GJ$3-$FX17)/20 -> 2.0 | GK17: =(60/INDIRECT("speed"&$FT$2))*(length/1000)*ABS(GK$3-$FX17)/20 -> 1.0 | GL17: =(60/INDIRECT("speed"&$FT$2))*(length/1000)*ABS(GL$3-$FX17)/20 -> 0.0 | GM17: =(60/INDIRECT("speed"&$FT$2))*(length/1000)*ABS(GM$3-$FX17)/20 -> 1.0 | GN17: =(60/INDIRECT("speed"&$FT$2))*(length/1000)*ABS(GN$3-$FX17)/20 -> 2.0 | GO17: =(60/INDIRECT("speed"&$FT$2))*(length/1000)*ABS(GO$3-$FX17)/20 -> 2.9 | GP17: =(60/INDIRECT("speed"&$FT$2))*(length/1000)*ABS(GP$3-$FX17)/20 -> 3.9 | GQ17: =(60/INDIRECT("speed"&$FT$2))*(length/1000)*ABS(GQ$3-$FX17)/20 -> 4.9 | GR17: =(60/INDIRECT("speed"&$FT$2))*(length/1000)*ABS(GR$3-$FX17)/20 -> 5.9 | GS17: =(60/INDIRECT("speed"&$FT$2))*(length/1000)*ABS(GS$3-$FX17)/20 -> 6.9
A18: timeto15 | F18: 15 | G18: =(60/INDIRECT("speed"&B$2))*(length/1000)*ABS(G$3-$F18)/20 -> 8.6 | H18: =(60/INDIRECT("speed"&B$2))*(length/1000)*ABS(H$3-$F18)/20 -> 8.0 | I18: =(60/INDIRECT("speed"&B$2))*(length/1000)*ABS(I$3-$F18)/20 -> 7.4 | J18: =(60/INDIRECT("speed"&B$2))*(length/1000)*ABS(J$3-$F18)/20 -> 6.8 | K18: =(60/INDIRECT("speed"&B$2))*(length/1000)*ABS(K$3-$F18)/20 -> 6.2 | L18: =(60/INDIRECT("speed"&B$2))*(length/1000)*ABS(L$3-$F18)/20 -> 5.6 | M18: =(60/INDIRECT("speed"&B$2))*(length/1000)*ABS(M$3-$F18)/20 -> 4.9 | N18: =(60/INDIRECT("speed"&B$2))*(length/1000)*ABS(N$3-$F18)/20 -> 4.3 | O18: =(60/INDIRECT("speed"&B$2))*(length/1000)*ABS(O$3-$F18)/20 -> 3.7 | P18: =(60/INDIRECT("speed"&B$2))*(length/1000)*ABS(P$3-$F18)/20 -> 3.1 | Q18: =(60/INDIRECT("speed"&B$2))*(length/1000)*ABS(Q$3-$F18)/20 -> 2.5 | R18: =(60/INDIRECT("speed"&B$2))*(length/1000)*ABS(R$3-$F18)/20 -> 1.9 | S18: =(60/INDIRECT("speed"&B$2))*(length/1000)*ABS(S$3-$F18)/20 -> 1.2 | T18: =(60/INDIRECT("speed"&B$2))*(length/1000)*ABS(T$3-$F18)/20 -> 0.6 | U18: =(60/INDIRECT("speed"&B$2))*(length/1000)*ABS(U$3-$F18)/20 -> 0.0 | V18: =(60/INDIRECT("speed"&B$2))*(length/1000)*ABS(V$3-$F18)/20 -> 0.6 | W18: =(60/INDIRECT("speed"&B$2))*(length/1000)*ABS(W$3-$F18)/20 -> 1.2 | X18: =(60/INDIRECT("speed"&B$2))*(length/1000)*ABS(X$3-$F18)/20 -> 1.9 | Y18: =(60/INDIRECT("speed"&B$2))*(length/1000)*ABS(Y$3-$F18)/20 -> 2.5 | Z18: =(60/INDIRECT("speed"&B$2))*(length/1000)*ABS(Z$3-$F18)/20 -> 3.1 | AA18: =(60/INDIRECT("speed"&B$2))*(length/1000)*ABS(AA$3-$F18)/20 -> 3.7 | CJ18: timeto15 | CO18: 15 | CP18: =(60/INDIRECT("speed"&$CK$2))*(length/1000)*ABS(CP$3-$CO18)/20 -> 8.6 | CQ18: =(60/INDIRECT("speed"&$CK$2))*(length/1000)*ABS(CQ$3-$CO18)/20 -> 8.0 | CR18: =(60/INDIRECT("speed"&$CK$2))*(length/1000)*ABS(CR$3-$CO18)/20 -> 7.4 | CS18: =(60/INDIRECT("speed"&$CK$2))*(length/1000)*ABS(CS$3-$CO18)/20 -> 6.8 | CT18: =(60/INDIRECT("speed"&$CK$2))*(length/1000)*ABS(CT$3-$CO18)/20 -> 6.2 | CU18: =(60/INDIRECT("speed"&$CK$2))*(length/1000)*ABS(CU$3-$CO18)/20 -> 5.6 | CV18: =(60/INDIRECT("speed"&$CK$2))*(length/1000)*ABS(CV$3-$CO18)/20 -> 4.9 | CW18: =(60/INDIRECT("speed"&$CK$2))*(length/1000)*ABS(CW$3-$CO18)/20 -> 4.3 | CX18: =(60/INDIRECT("speed"&$CK$2))*(length/1000)*ABS(CX$3-$CO18)/20 -> 3.7 | CY18: =(60/INDIRECT("speed"&$CK$2))*(length/1000)*ABS(CY$3-$CO18)/20 -> 3.1 | CZ18: =(60/INDIRECT("speed"&$CK$2))*(length/1000)*ABS(CZ$3-$CO18)/20 -> 2.5 | DA18: =(60/INDIRECT("speed"&$CK$2))*(length/1000)*ABS(DA$3-$CO18)/20 -> 1.9 | DB18: =(60/INDIRECT("speed"&$CK$2))*(length/1000)*ABS(DB$3-$CO18)/20 -> 1.2 | DC18: =(60/INDIRECT("speed"&$CK$2))*(length/1000)*ABS(DC$3-$CO18)/20 -> 0.6 | DD18: =(60/INDIRECT("speed"&$CK$2))*(length/1000)*ABS(DD$3-$CO18)/20 -> 0.0 | DE18: =(60/INDIRECT("speed"&$CK$2))*(length/1000)*ABS(DE$3-$CO18)/20 -> 0.6 | DF18: =(60/INDIRECT("speed"&$CK$2))*(length/1000)*ABS(DF$3-$CO18)/20 -> 1.2 | DG18: =(60/INDIRECT("speed"&$CK$2))*(length/1000)*ABS(DG$3-$CO18)/20 -> 1.9 | DH18: =(60/INDIRECT("speed"&$CK$2))*(length/1000)*ABS(DH$3-$CO18)/20 -> 2.5 | DI18: =(60/INDIRECT("speed"&$CK$2))*(length/1000)*ABS(DI$3-$CO18)/20 -> 3.1 | DJ18: =(60/INDIRECT("speed"&$CK$2))*(length/1000)*ABS(DJ$3-$CO18)/20 -> 3.7 | FS18: timeto15 | FX18: 15 | FY18: =(60/INDIRECT("speed"&$FT$2))*(length/1000)*ABS(FY$3-$FX18)/20 -> 13.7 | FZ18: =(60/INDIRECT("speed"&$FT$2))*(length/1000)*ABS(FZ$3-$FX18)/20 -> 12.7 | GA18: =(60/INDIRECT("speed"&$FT$2))*(length/1000)*ABS(GA$3-$FX18)/20 -> 11.8 | GB18: =(60/INDIRECT("speed"&$FT$2))*(length/1000)*ABS(GB$3-$FX18)/20 -> 10.8 | GC18: =(60/INDIRECT("speed"&$FT$2))*(length/1000)*ABS(GC$3-$FX18)/20 -> 9.8 | GD18: =(60/INDIRECT("speed"&$FT$2))*(length/1000)*ABS(GD$3-$FX18)/20 -> 8.8 | GE18: =(60/INDIRECT("speed"&$FT$2))*(length/1000)*ABS(GE$3-$FX18)/20 -> 7.8 | GF18: =(60/INDIRECT("speed"&$FT$2))*(length/1000)*ABS(GF$3-$FX18)/20 -> 6.9 | GG18: =(60/INDIRECT("speed"&$FT$2))*(length/1000)*ABS(GG$3-$FX18)/20 -> 5.9 | GH18: =(60/INDIRECT("speed"&$FT$2))*(length/1000)*ABS(GH$3-$FX18)/20 -> 4.9 | GI18: =(60/INDIRECT("speed"&$FT$2))*(length/1000)*ABS(GI$3-$FX18)/20 -> 3.9 | GJ18: =(60/INDIRECT("speed"&$FT$2))*(length/1000)*ABS(GJ$3-$FX18)/20 -> 2.9 | GK18: =(60/INDIRECT("speed"&$FT$2))*(length/1000)*ABS(GK$3-$FX18)/20 -> 2.0 | GL18: =(60/INDIRECT("speed"&$FT$2))*(length/1000)*ABS(GL$3-$FX18)/20 -> 1.0 | GM18: =(60/INDIRECT("speed"&$FT$2))*(length/1000)*ABS(GM$3-$FX18)/20 -> 0.0 | GN18: =(60/INDIRECT("speed"&$FT$2))*(length/1000)*ABS(GN$3-$FX18)/20 -> 1.0 | GO18: =(60/INDIRECT("speed"&$FT$2))*(length/1000)*ABS(GO$3-$FX18)/20 -> 2.0 | GP18: =(60/INDIRECT("speed"&$FT$2))*(length/1000)*ABS(GP$3-$FX18)/20 -> 2.9 | GQ18: =(60/INDIRECT("speed"&$FT$2))*(length/1000)*ABS(GQ$3-$FX18)/20 -> 3.9 | GR18: =(60/INDIRECT("speed"&$FT$2))*(length/1000)*ABS(GR$3-$FX18)/20 -> 4.9 | GS18: =(60/INDIRECT("speed"&$FT$2))*(length/1000)*ABS(GS$3-$FX18)/20 -> 5.9
A19: timeto16 | F19: 16 | G19: =(60/INDIRECT("speed"&B$2))*(length/1000)*ABS(G$3-$F19)/20 -> 9.3 | H19: =(60/INDIRECT("speed"&B$2))*(length/1000)*ABS(H$3-$F19)/20 -> 8.6 | I19: =(60/INDIRECT("speed"&B$2))*(length/1000)*ABS(I$3-$F19)/20 -> 8.0 | J19: =(60/INDIRECT("speed"&B$2))*(length/1000)*ABS(J$3-$F19)/20 -> 7.4 | K19: =(60/INDIRECT("speed"&B$2))*(length/1000)*ABS(K$3-$F19)/20 -> 6.8 | L19: =(60/INDIRECT("speed"&B$2))*(length/1000)*ABS(L$3-$F19)/20 -> 6.2 | M19: =(60/INDIRECT("speed"&B$2))*(length/1000)*ABS(M$3-$F19)/20 -> 5.6 | N19: =(60/INDIRECT("speed"&B$2))*(length/1000)*ABS(N$3-$F19)/20 -> 4.9 | O19: =(60/INDIRECT("speed"&B$2))*(length/1000)*ABS(O$3-$F19)/20 -> 4.3 | P19: =(60/INDIRECT("speed"&B$2))*(length/1000)*ABS(P$3-$F19)/20 -> 3.7 | Q19: =(60/INDIRECT("speed"&B$2))*(length/1000)*ABS(Q$3-$F19)/20 -> 3.1 | R19: =(60/INDIRECT("speed"&B$2))*(length/1000)*ABS(R$3-$F19)/20 -> 2.5 | S19: =(60/INDIRECT("speed"&B$2))*(length/1000)*ABS(S$3-$F19)/20 -> 1.9 | T19: =(60/INDIRECT("speed"&B$2))*(length/1000)*ABS(T$3-$F19)/20 -> 1.2 | U19: =(60/INDIRECT("speed"&B$2))*(length/1000)*ABS(U$3-$F19)/20 -> 0.6 | V19: =(60/INDIRECT("speed"&B$2))*(length/1000)*ABS(V$3-$F19)/20 -> 0.0 | W19: =(60/INDIRECT("speed"&B$2))*(length/1000)*ABS(W$3-$F19)/20 -> 0.6 | X19: =(60/INDIRECT("speed"&B$2))*(length/1000)*ABS(X$3-$F19)/20 -> 1.2 | Y19: =(60/INDIRECT("speed"&B$2))*(length/1000)*ABS(Y$3-$F19)/20 -> 1.9 | Z19: =(60/INDIRECT("speed"&B$2))*(length/1000)*ABS(Z$3-$F19)/20 -> 2.5 | AA19: =(60/INDIRECT("speed"&B$2))*(length/1000)*ABS(AA$3-$F19)/20 -> 3.1 | CJ19: timeto16 | CO19: 16 | CP19: =(60/INDIRECT("speed"&$CK$2))*(length/1000)*ABS(CP$3-$CO19)/20 -> 9.3 | CQ19: =(60/INDIRECT("speed"&$CK$2))*(length/1000)*ABS(CQ$3-$CO19)/20 -> 8.6 | CR19: =(60/INDIRECT("speed"&$CK$2))*(length/1000)*ABS(CR$3-$CO19)/20 -> 8.0 | CS19: =(60/INDIRECT("speed"&$CK$2))*(length/1000)*ABS(CS$3-$CO19)/20 -> 7.4 | CT19: =(60/INDIRECT("speed"&$CK$2))*(length/1000)*ABS(CT$3-$CO19)/20 -> 6.8 | CU19: =(60/INDIRECT("speed"&$CK$2))*(length/1000)*ABS(CU$3-$CO19)/20 -> 6.2 | CV19: =(60/INDIRECT("speed"&$CK$2))*(length/1000)*ABS(CV$3-$CO19)/20 -> 5.6 | CW19: =(60/INDIRECT("speed"&$CK$2))*(length/1000)*ABS(CW$3-$CO19)/20 -> 4.9 | CX19: =(60/INDIRECT("speed"&$CK$2))*(length/1000)*ABS(CX$3-$CO19)/20 -> 4.3 | CY19: =(60/INDIRECT("speed"&$CK$2))*(length/1000)*ABS(CY$3-$CO19)/20 -> 3.7 | CZ19: =(60/INDIRECT("speed"&$CK$2))*(length/1000)*ABS(CZ$3-$CO19)/20 -> 3.1 | DA19: =(60/INDIRECT("speed"&$CK$2))*(length/1000)*ABS(DA$3-$CO19)/20 -> 2.5 | DB19: =(60/INDIRECT("speed"&$CK$2))*(length/1000)*ABS(DB$3-$CO19)/20 -> 1.9 | DC19: =(60/INDIRECT("speed"&$CK$2))*(length/1000)*ABS(DC$3-$CO19)/20 -> 1.2 | DD19: =(60/INDIRECT("speed"&$CK$2))*(length/1000)*ABS(DD$3-$CO19)/20 -> 0.6 | DE19: =(60/INDIRECT("speed"&$CK$2))*(length/1000)*ABS(DE$3-$CO19)/20 -> 0.0 | DF19: =(60/INDIRECT("speed"&$CK$2))*(length/1000)*ABS(DF$3-$CO19)/20 -> 0.6 | DG19: =(60/INDIRECT("speed"&$CK$2))*(length/1000)*ABS(DG$3-$CO19)/20 -> 1.2 | DH19: =(60/INDIRECT("speed"&$CK$2))*(length/1000)*ABS(DH$3-$CO19)/20 -> 1.9 | DI19: =(60/INDIRECT("speed"&$CK$2))*(length/1000)*ABS(DI$3-$CO19)/20 -> 2.5 | DJ19: =(60/INDIRECT("speed"&$CK$2))*(length/1000)*ABS(DJ$3-$CO19)/20 -> 3.1 | FS19: timeto16 | FX19: 16 | FY19: =(60/INDIRECT("speed"&$FT$2))*(length/1000)*ABS(FY$3-$FX19)/20 -> 14.7 | FZ19: =(60/INDIRECT("speed"&$FT$2))*(length/1000)*ABS(FZ$3-$FX19)/20 -> 13.7 | GA19: =(60/INDIRECT("speed"&$FT$2))*(length/1000)*ABS(GA$3-$FX19)/20 -> 12.7 | GB19: =(60/INDIRECT("speed"&$FT$2))*(length/1000)*ABS(GB$3-$FX19)/20 -> 11.8 | GC19: =(60/INDIRECT("speed"&$FT$2))*(length/1000)*ABS(GC$3-$FX19)/20 -> 10.8 | GD19: =(60/INDIRECT("speed"&$FT$2))*(length/1000)*ABS(GD$3-$FX19)/20 -> 9.8 | GE19: =(60/INDIRECT("speed"&$FT$2))*(length/1000)*ABS(GE$3-$FX19)/20 -> 8.8 | GF19: =(60/INDIRECT("speed"&$FT$2))*(length/1000)*ABS(GF$3-$FX19)/20 -> 7.8 | GG19: =(60/INDIRECT("speed"&$FT$2))*(length/1000)*ABS(GG$3-$FX19)/20 -> 6.9 | GH19: =(60/INDIRECT("speed"&$FT$2))*(length/1000)*ABS(GH$3-$FX19)/20 -> 5.9 | GI19: =(60/INDIRECT("speed"&$FT$2))*(length/1000)*ABS(GI$3-$FX19)/20 -> 4.9 | GJ19: =(60/INDIRECT("speed"&$FT$2))*(length/1000)*ABS(GJ$3-$FX19)/20 -> 3.9 | GK19: =(60/INDIRECT("speed"&$FT$2))*(length/1000)*ABS(GK$3-$FX19)/20 -> 2.9 | GL19: =(60/INDIRECT("speed"&$FT$2))*(length/1000)*ABS(GL$3-$FX19)/20 -> 2.0 | GM19: =(60/INDIRECT("speed"&$FT$2))*(length/1000)*ABS(GM$3-$FX19)/20 -> 1.0 | GN19: =(60/INDIRECT("speed"&$FT$2))*(length/1000)*ABS(GN$3-$FX19)/20 -> 0.0 | GO19: =(60/INDIRECT("speed"&$FT$2))*(length/1000)*ABS(GO$3-$FX19)/20 -> 1.0 | GP19: =(60/INDIRECT("speed"&$FT$2))*(length/1000)*ABS(GP$3-$FX19)/20 -> 2.0 | GQ19: =(60/INDIRECT("speed"&$FT$2))*(length/1000)*ABS(GQ$3-$FX19)/20 -> 2.9 | GR19: =(60/INDIRECT("speed"&$FT$2))*(length/1000)*ABS(GR$3-$FX19)/20 -> 3.9 | GS19: =(60/INDIRECT("speed"&$FT$2))*(length/1000)*ABS(GS$3-$FX19)/20 -> 4.9
A20: timeto17 | F20: 17 | G20: =(60/INDIRECT("speed"&B$2))*(length/1000)*ABS(G$3-$F20)/20 -> 9.9 | H20: =(60/INDIRECT("speed"&B$2))*(length/1000)*ABS(H$3-$F20)/20 -> 9.3 | I20: =(60/INDIRECT("speed"&B$2))*(length/1000)*ABS(I$3-$F20)/20 -> 8.6 | J20: =(60/INDIRECT("speed"&B$2))*(length/1000)*ABS(J$3-$F20)/20 -> 8.0 | K20: =(60/INDIRECT("speed"&B$2))*(length/1000)*ABS(K$3-$F20)/20 -> 7.4 | L20: =(60/INDIRECT("speed"&B$2))*(length/1000)*ABS(L$3-$F20)/20 -> 6.8 | M20: =(60/INDIRECT("speed"&B$2))*(length/1000)*ABS(M$3-$F20)/20 -> 6.2 | N20: =(60/INDIRECT("speed"&B$2))*(length/1000)*ABS(N$3-$F20)/20 -> 5.6 | O20: =(60/INDIRECT("speed"&B$2))*(length/1000)*ABS(O$3-$F20)/20 -> 4.9 | P20: =(60/INDIRECT("speed"&B$2))*(length/1000)*ABS(P$3-$F20)/20 -> 4.3 | Q20: =(60/INDIRECT("speed"&B$2))*(length/1000)*ABS(Q$3-$F20)/20 -> 3.7 | R20: =(60/INDIRECT("speed"&B$2))*(length/1000)*ABS(R$3-$F20)/20 -> 3.1 | S20: =(60/INDIRECT("speed"&B$2))*(length/1000)*ABS(S$3-$F20)/20 -> 2.5 | T20: =(60/INDIRECT("speed"&B$2))*(length/1000)*ABS(T$3-$F20)/20 -> 1.9 | U20: =(60/INDIRECT("speed"&B$2))*(length/1000)*ABS(U$3-$F20)/20 -> 1.2 | V20: =(60/INDIRECT("speed"&B$2))*(length/1000)*ABS(V$3-$F20)/20 -> 0.6 | W20: =(60/INDIRECT("speed"&B$2))*(length/1000)*ABS(W$3-$F20)/20 -> 0.0 | X20: =(60/INDIRECT("speed"&B$2))*(length/1000)*ABS(X$3-$F20)/20 -> 0.6 | Y20: =(60/INDIRECT("speed"&B$2))*(length/1000)*ABS(Y$3-$F20)/20 -> 1.2 | Z20: =(60/INDIRECT("speed"&B$2))*(length/1000)*ABS(Z$3-$F20)/20 -> 1.9 | AA20: =(60/INDIRECT("speed"&B$2))*(length/1000)*ABS(AA$3-$F20)/20 -> 2.5 | CJ20: timeto17 | CO20: 17 | CP20: =(60/INDIRECT("speed"&$CK$2))*(length/1000)*ABS(CP$3-$CO20)/20 -> 9.9 | CQ20: =(60/INDIRECT("speed"&$CK$2))*(length/1000)*ABS(CQ$3-$CO20)/20 -> 9.3 | CR20: =(60/INDIRECT("speed"&$CK$2))*(length/1000)*ABS(CR$3-$CO20)/20 -> 8.6 | CS20: =(60/INDIRECT("speed"&$CK$2))*(length/1000)*ABS(CS$3-$CO20)/20 -> 8.0 | CT20: =(60/INDIRECT("speed"&$CK$2))*(length/1000)*ABS(CT$3-$CO20)/20 -> 7.4 | CU20: =(60/INDIRECT("speed"&$CK$2))*(length/1000)*ABS(CU$3-$CO20)/20 -> 6.8 | CV20: =(60/INDIRECT("speed"&$CK$2))*(length/1000)*ABS(CV$3-$CO20)/20 -> 6.2 | CW20: =(60/INDIRECT("speed"&$CK$2))*(length/1000)*ABS(CW$3-$CO20)/20 -> 5.6 | CX20: =(60/INDIRECT("speed"&$CK$2))*(length/1000)*ABS(CX$3-$CO20)/20 -> 4.9 | CY20: =(60/INDIRECT("speed"&$CK$2))*(length/1000)*ABS(CY$3-$CO20)/20 -> 4.3 | CZ20: =(60/INDIRECT("speed"&$CK$2))*(length/1000)*ABS(CZ$3-$CO20)/20 -> 3.7 | DA20: =(60/INDIRECT("speed"&$CK$2))*(length/1000)*ABS(DA$3-$CO20)/20 -> 3.1 | DB20: =(60/INDIRECT("speed"&$CK$2))*(length/1000)*ABS(DB$3-$CO20)/20 -> 2.5 | DC20: =(60/INDIRECT("speed"&$CK$2))*(length/1000)*ABS(DC$3-$CO20)/20 -> 1.9 | DD20: =(60/INDIRECT("speed"&$CK$2))*(length/1000)*ABS(DD$3-$CO20)/20 -> 1.2 | DE20: =(60/INDIRECT("speed"&$CK$2))*(length/1000)*ABS(DE$3-$CO20)/20 -> 0.6 | DF20: =(60/INDIRECT("speed"&$CK$2))*(length/1000)*ABS(DF$3-$CO20)/20 -> 0.0 | DG20: =(60/INDIRECT("speed"&$CK$2))*(length/1000)*ABS(DG$3-$CO20)/20 -> 0.6 | DH20: =(60/INDIRECT("speed"&$CK$2))*(length/1000)*ABS(DH$3-$CO20)/20 -> 1.2 | DI20: =(60/INDIRECT("speed"&$CK$2))*(length/1000)*ABS(DI$3-$CO20)/20 -> 1.9 | DJ20: =(60/INDIRECT("speed"&$CK$2))*(length/1000)*ABS(DJ$3-$CO20)/20 -> 2.5 | FS20: timeto17 | FX20: 17 | FY20: =(60/INDIRECT("speed"&$FT$2))*(length/1000)*ABS(FY$3-$FX20)/20 -> 15.7 | FZ20: =(60/INDIRECT("speed"&$FT$2))*(length/1000)*ABS(FZ$3-$FX20)/20 -> 14.7 | GA20: =(60/INDIRECT("speed"&$FT$2))*(length/1000)*ABS(GA$3-$FX20)/20 -> 13.7 | GB20: =(60/INDIRECT("speed"&$FT$2))*(length/1000)*ABS(GB$3-$FX20)/20 -> 12.7 | GC20: =(60/INDIRECT("speed"&$FT$2))*(length/1000)*ABS(GC$3-$FX20)/20 -> 11.8 | GD20: =(60/INDIRECT("speed"&$FT$2))*(length/1000)*ABS(GD$3-$FX20)/20 -> 10.8 | GE20: =(60/INDIRECT("speed"&$FT$2))*(length/1000)*ABS(GE$3-$FX20)/20 -> 9.8 | GF20: =(60/INDIRECT("speed"&$FT$2))*(length/1000)*ABS(GF$3-$FX20)/20 -> 8.8 | GG20: =(60/INDIRECT("speed"&$FT$2))*(length/1000)*ABS(GG$3-$FX20)/20 -> 7.8 | GH20: =(60/INDIRECT("speed"&$FT$2))*(length/1000)*ABS(GH$3-$FX20)/20 -> 6.9 | GI20: =(60/INDIRECT("speed"&$FT$2))*(length/1000)*ABS(GI$3-$FX20)/20 -> 5.9 | GJ20: =(60/INDIRECT("speed"&$FT$2))*(length/1000)*ABS(GJ$3-$FX20)/20 -> 4.9 | GK20: =(60/INDIRECT("speed"&$FT$2))*(length/1000)*ABS(GK$3-$FX20)/20 -> 3.9 | GL20: =(60/INDIRECT("speed"&$FT$2))*(length/1000)*ABS(GL$3-$FX20)/20 -> 2.9 | GM20: =(60/INDIRECT("speed"&$FT$2))*(length/1000)*ABS(GM$3-$FX20)/20 -> 2.0 | GN20: =(60/INDIRECT("speed"&$FT$2))*(length/1000)*ABS(GN$3-$FX20)/20 -> 1.0 | GO20: =(60/INDIRECT("speed"&$FT$2))*(length/1000)*ABS(GO$3-$FX20)/20 -> 0.0 | GP20: =(60/INDIRECT("speed"&$FT$2))*(length/1000)*ABS(GP$3-$FX20)/20 -> 1.0 | GQ20: =(60/INDIRECT("speed"&$FT$2))*(length/1000)*ABS(GQ$3-$FX20)/20 -> 2.0 | GR20: =(60/INDIRECT("speed"&$FT$2))*(length/1000)*ABS(GR$3-$FX20)/20 -> 2.9 | GS20: =(60/INDIRECT("speed"&$FT$2))*(length/1000)*ABS(GS$3-$FX20)/20 -> 3.9
A21: timeto18 | F21: 18 | G21: =(60/INDIRECT("speed"&B$2))*(length/1000)*ABS(G$3-$F21)/20 -> 10.5 | H21: =(60/INDIRECT("speed"&B$2))*(length/1000)*ABS(H$3-$F21)/20 -> 9.9 | I21: =(60/INDIRECT("speed"&B$2))*(length/1000)*ABS(I$3-$F21)/20 -> 9.3 | J21: =(60/INDIRECT("speed"&B$2))*(length/1000)*ABS(J$3-$F21)/20 -> 8.6 | K21: =(60/INDIRECT("speed"&B$2))*(length/1000)*ABS(K$3-$F21)/20 -> 8.0 | L21: =(60/INDIRECT("speed"&B$2))*(length/1000)*ABS(L$3-$F21)/20 -> 7.4 | M21: =(60/INDIRECT("speed"&B$2))*(length/1000)*ABS(M$3-$F21)/20 -> 6.8 | N21: =(60/INDIRECT("speed"&B$2))*(length/1000)*ABS(N$3-$F21)/20 -> 6.2 | O21: =(60/INDIRECT("speed"&B$2))*(length/1000)*ABS(O$3-$F21)/20 -> 5.6 | P21: =(60/INDIRECT("speed"&B$2))*(length/1000)*ABS(P$3-$F21)/20 -> 4.9 | Q21: =(60/INDIRECT("speed"&B$2))*(length/1000)*ABS(Q$3-$F21)/20 -> 4.3 | R21: =(60/INDIRECT("speed"&B$2))*(length/1000)*ABS(R$3-$F21)/20 -> 3.7 | S21: =(60/INDIRECT("speed"&B$2))*(length/1000)*ABS(S$3-$F21)/20 -> 3.1 | T21: =(60/INDIRECT("speed"&B$2))*(length/1000)*ABS(T$3-$F21)/20 -> 2.5 | U21: =(60/INDIRECT("speed"&B$2))*(length/1000)*ABS(U$3-$F21)/20 -> 1.9 | V21: =(60/INDIRECT("speed"&B$2))*(length/1000)*ABS(V$3-$F21)/20 -> 1.2 | W21: =(60/INDIRECT("speed"&B$2))*(length/1000)*ABS(W$3-$F21)/20 -> 0.6 | X21: =(60/INDIRECT("speed"&B$2))*(length/1000)*ABS(X$3-$F21)/20 -> 0.0 | Y21: =(60/INDIRECT("speed"&B$2))*(length/1000)*ABS(Y$3-$F21)/20 -> 0.6 | Z21: =(60/INDIRECT("speed"&B$2))*(length/1000)*ABS(Z$3-$F21)/20 -> 1.2 | AA21: =(60/INDIRECT("speed"&B$2))*(length/1000)*ABS(AA$3-$F21)/20 -> 1.9 | CJ21: timeto18 | CO21: 18 | CP21: =(60/INDIRECT("speed"&$CK$2))*(length/1000)*ABS(CP$3-$CO21)/20 -> 10.5 | CQ21: =(60/INDIRECT("speed"&$CK$2))*(length/1000)*ABS(CQ$3-$CO21)/20 -> 9.9 | CR21: =(60/INDIRECT("speed"&$CK$2))*(length/1000)*ABS(CR$3-$CO21)/20 -> 9.3 | CS21: =(60/INDIRECT("speed"&$CK$2))*(length/1000)*ABS(CS$3-$CO21)/20 -> 8.6 | CT21: =(60/INDIRECT("speed"&$CK$2))*(length/1000)*ABS(CT$3-$CO21)/20 -> 8.0 | CU21: =(60/INDIRECT("speed"&$CK$2))*(length/1000)*ABS(CU$3-$CO21)/20 -> 7.4 | CV21: =(60/INDIRECT("speed"&$CK$2))*(length/1000)*ABS(CV$3-$CO21)/20 -> 6.8 | CW21: =(60/INDIRECT("speed"&$CK$2))*(length/1000)*ABS(CW$3-$CO21)/20 -> 6.2 | CX21: =(60/INDIRECT("speed"&$CK$2))*(length/1000)*ABS(CX$3-$CO21)/20 -> 5.6 | CY21: =(60/INDIRECT("speed"&$CK$2))*(length/1000)*ABS(CY$3-$CO21)/20 -> 4.9 | CZ21: =(60/INDIRECT("speed"&$CK$2))*(length/1000)*ABS(CZ$3-$CO21)/20 -> 4.3 | DA21: =(60/INDIRECT("speed"&$CK$2))*(length/1000)*ABS(DA$3-$CO21)/20 -> 3.7 | DB21: =(60/INDIRECT("speed"&$CK$2))*(length/1000)*ABS(DB$3-$CO21)/20 -> 3.1 | DC21: =(60/INDIRECT("speed"&$CK$2))*(length/1000)*ABS(DC$3-$CO21)/20 -> 2.5 | DD21: =(60/INDIRECT("speed"&$CK$2))*(length/1000)*ABS(DD$3-$CO21)/20 -> 1.9 | DE21: =(60/INDIRECT("speed"&$CK$2))*(length/1000)*ABS(DE$3-$CO21)/20 -> 1.2 | DF21: =(60/INDIRECT("speed"&$CK$2))*(length/1000)*ABS(DF$3-$CO21)/20 -> 0.6 | DG21: =(60/INDIRECT("speed"&$CK$2))*(length/1000)*ABS(DG$3-$CO21)/20 -> 0.0 | DH21: =(60/INDIRECT("speed"&$CK$2))*(length/1000)*ABS(DH$3-$CO21)/20 -> 0.6 | DI21: =(60/INDIRECT("speed"&$CK$2))*(length/1000)*ABS(DI$3-$CO21)/20 -> 1.2 | DJ21: =(60/INDIRECT("speed"&$CK$2))*(length/1000)*ABS(DJ$3-$CO21)/20 -> 1.9 | FS21: timeto18 | FX21: 18 | FY21: =(60/INDIRECT("speed"&$FT$2))*(length/1000)*ABS(FY$3-$FX21)/20 -> 16.7 | FZ21: =(60/INDIRECT("speed"&$FT$2))*(length/1000)*ABS(FZ$3-$FX21)/20 -> 15.7 | GA21: =(60/INDIRECT("speed"&$FT$2))*(length/1000)*ABS(GA$3-$FX21)/20 -> 14.7 | GB21: =(60/INDIRECT("speed"&$FT$2))*(length/1000)*ABS(GB$3-$FX21)/20 -> 13.7 | GC21: =(60/INDIRECT("speed"&$FT$2))*(length/1000)*ABS(GC$3-$FX21)/20 -> 12.7 | GD21: =(60/INDIRECT("speed"&$FT$2))*(length/1000)*ABS(GD$3-$FX21)/20 -> 11.8 | GE21: =(60/INDIRECT("speed"&$FT$2))*(length/1000)*ABS(GE$3-$FX21)/20 -> 10.8 | GF21: =(60/INDIRECT("speed"&$FT$2))*(length/1000)*ABS(GF$3-$FX21)/20 -> 9.8 | GG21: =(60/INDIRECT("speed"&$FT$2))*(length/1000)*ABS(GG$3-$FX21)/20 -> 8.8 | GH21: =(60/INDIRECT("speed"&$FT$2))*(length/1000)*ABS(GH$3-$FX21)/20 -> 7.8 | GI21: =(60/INDIRECT("speed"&$FT$2))*(length/1000)*ABS(GI$3-$FX21)/20 -> 6.9 | GJ21: =(60/INDIRECT("speed"&$FT$2))*(length/1000)*ABS(GJ$3-$FX21)/20 -> 5.9 | GK21: =(60/INDIRECT("speed"&$FT$2))*(length/1000)*ABS(GK$3-$FX21)/20 -> 4.9 | GL21: =(60/INDIRECT("speed"&$FT$2))*(length/1000)*ABS(GL$3-$FX21)/20 -> 3.9 | GM21: =(60/INDIRECT("speed"&$FT$2))*(length/1000)*ABS(GM$3-$FX21)/20 -> 2.9 | GN21: =(60/INDIRECT("speed"&$FT$2))*(length/1000)*ABS(GN$3-$FX21)/20 -> 2.0 | GO21: =(60/INDIRECT("speed"&$FT$2))*(length/1000)*ABS(GO$3-$FX21)/20 -> 1.0 | GP21: =(60/INDIRECT("speed"&$FT$2))*(length/1000)*ABS(GP$3-$FX21)/20 -> 0.0 | GQ21: =(60/INDIRECT("speed"&$FT$2))*(length/1000)*ABS(GQ$3-$FX21)/20 -> 1.0 | GR21: =(60/INDIRECT("speed"&$FT$2))*(length/1000)*ABS(GR$3-$FX21)/20 -> 2.0 | GS21: =(60/INDIRECT("speed"&$FT$2))*(length/1000)*ABS(GS$3-$FX21)/20 -> 2.9
A22: timeto19 | F22: 19 | G22: =(60/INDIRECT("speed"&B$2))*(length/1000)*ABS(G$3-$F22)/20 -> 11.1 | H22: =(60/INDIRECT("speed"&B$2))*(length/1000)*ABS(H$3-$F22)/20 -> 10.5 | I22: =(60/INDIRECT("speed"&B$2))*(length/1000)*ABS(I$3-$F22)/20 -> 9.9 | J22: =(60/INDIRECT("speed"&B$2))*(length/1000)*ABS(J$3-$F22)/20 -> 9.3 | K22: =(60/INDIRECT("speed"&B$2))*(length/1000)*ABS(K$3-$F22)/20 -> 8.6 | L22: =(60/INDIRECT("speed"&B$2))*(length/1000)*ABS(L$3-$F22)/20 -> 8.0 | M22: =(60/INDIRECT("speed"&B$2))*(length/1000)*ABS(M$3-$F22)/20 -> 7.4 | N22: =(60/INDIRECT("speed"&B$2))*(length/1000)*ABS(N$3-$F22)/20 -> 6.8 | O22: =(60/INDIRECT("speed"&B$2))*(length/1000)*ABS(O$3-$F22)/20 -> 6.2 | P22: =(60/INDIRECT("speed"&B$2))*(length/1000)*ABS(P$3-$F22)/20 -> 5.6 | Q22: =(60/INDIRECT("speed"&B$2))*(length/1000)*ABS(Q$3-$F22)/20 -> 4.9 | R22: =(60/INDIRECT("speed"&B$2))*(length/1000)*ABS(R$3-$F22)/20 -> 4.3 | S22: =(60/INDIRECT("speed"&B$2))*(length/1000)*ABS(S$3-$F22)/20 -> 3.7 | T22: =(60/INDIRECT("speed"&B$2))*(length/1000)*ABS(T$3-$F22)/20 -> 3.1 | U22: =(60/INDIRECT("speed"&B$2))*(length/1000)*ABS(U$3-$F22)/20 -> 2.5 | V22: =(60/INDIRECT("speed"&B$2))*(length/1000)*ABS(V$3-$F22)/20 -> 1.9 | W22: =(60/INDIRECT("speed"&B$2))*(length/1000)*ABS(W$3-$F22)/20 -> 1.2 | X22: =(60/INDIRECT("speed"&B$2))*(length/1000)*ABS(X$3-$F22)/20 -> 0.6 | Y22: =(60/INDIRECT("speed"&B$2))*(length/1000)*ABS(Y$3-$F22)/20 -> 0.0 | Z22: =(60/INDIRECT("speed"&B$2))*(length/1000)*ABS(Z$3-$F22)/20 -> 0.6 | AA22: =(60/INDIRECT("speed"&B$2))*(length/1000)*ABS(AA$3-$F22)/20 -> 1.2 | CJ22: timeto19 | CO22: 19 | CP22: =(60/INDIRECT("speed"&$CK$2))*(length/1000)*ABS(CP$3-$CO22)/20 -> 11.1 | CQ22: =(60/INDIRECT("speed"&$CK$2))*(length/1000)*ABS(CQ$3-$CO22)/20 -> 10.5 | CR22: =(60/INDIRECT("speed"&$CK$2))*(length/1000)*ABS(CR$3-$CO22)/20 -> 9.9 | CS22: =(60/INDIRECT("speed"&$CK$2))*(length/1000)*ABS(CS$3-$CO22)/20 -> 9.3 | CT22: =(60/INDIRECT("speed"&$CK$2))*(length/1000)*ABS(CT$3-$CO22)/20 -> 8.6 | CU22: =(60/INDIRECT("speed"&$CK$2))*(length/1000)*ABS(CU$3-$CO22)/20 -> 8.0 | CV22: =(60/INDIRECT("speed"&$CK$2))*(length/1000)*ABS(CV$3-$CO22)/20 -> 7.4 | CW22: =(60/INDIRECT("speed"&$CK$2))*(length/1000)*ABS(CW$3-$CO22)/20 -> 6.8 | CX22: =(60/INDIRECT("speed"&$CK$2))*(length/1000)*ABS(CX$3-$CO22)/20 -> 6.2 | CY22: =(60/INDIRECT("speed"&$CK$2))*(length/1000)*ABS(CY$3-$CO22)/20 -> 5.6 | CZ22: =(60/INDIRECT("speed"&$CK$2))*(length/1000)*ABS(CZ$3-$CO22)/20 -> 4.9 | DA22: =(60/INDIRECT("speed"&$CK$2))*(length/1000)*ABS(DA$3-$CO22)/20 -> 4.3 | DB22: =(60/INDIRECT("speed"&$CK$2))*(length/1000)*ABS(DB$3-$CO22)/20 -> 3.7 | DC22: =(60/INDIRECT("speed"&$CK$2))*(length/1000)*ABS(DC$3-$CO22)/20 -> 3.1 | DD22: =(60/INDIRECT("speed"&$CK$2))*(length/1000)*ABS(DD$3-$CO22)/20 -> 2.5 | DE22: =(60/INDIRECT("speed"&$CK$2))*(length/1000)*ABS(DE$3-$CO22)/20 -> 1.9 | DF22: =(60/INDIRECT("speed"&$CK$2))*(length/1000)*ABS(DF$3-$CO22)/20 -> 1.2 | DG22: =(60/INDIRECT("speed"&$CK$2))*(length/1000)*ABS(DG$3-$CO22)/20 -> 0.6 | DH22: =(60/INDIRECT("speed"&$CK$2))*(length/1000)*ABS(DH$3-$CO22)/20 -> 0.0 | DI22: =(60/INDIRECT("speed"&$CK$2))*(length/1000)*ABS(DI$3-$CO22)/20 -> 0.6 | DJ22: =(60/INDIRECT("speed"&$CK$2))*(length/1000)*ABS(DJ$3-$CO22)/20 -> 1.2 | FS22: timeto19 | FX22: 19 | FY22: =(60/INDIRECT("speed"&$FT$2))*(length/1000)*ABS(FY$3-$FX22)/20 -> 17.6 | FZ22: =(60/INDIRECT("speed"&$FT$2))*(length/1000)*ABS(FZ$3-$FX22)/20 -> 16.7 | GA22: =(60/INDIRECT("speed"&$FT$2))*(length/1000)*ABS(GA$3-$FX22)/20 -> 15.7 | GB22: =(60/INDIRECT("speed"&$FT$2))*(length/1000)*ABS(GB$3-$FX22)/20 -> 14.7 | GC22: =(60/INDIRECT("speed"&$FT$2))*(length/1000)*ABS(GC$3-$FX22)/20 -> 13.7 | GD22: =(60/INDIRECT("speed"&$FT$2))*(length/1000)*ABS(GD$3-$FX22)/20 -> 12.7 | GE22: =(60/INDIRECT("speed"&$FT$2))*(length/1000)*ABS(GE$3-$FX22)/20 -> 11.8 | GF22: =(60/INDIRECT("speed"&$FT$2))*(length/1000)*ABS(GF$3-$FX22)/20 -> 10.8 | GG22: =(60/INDIRECT("speed"&$FT$2))*(length/1000)*ABS(GG$3-$FX22)/20 -> 9.8 | GH22: =(60/INDIRECT("speed"&$FT$2))*(length/1000)*ABS(GH$3-$FX22)/20 -> 8.8 | GI22: =(60/INDIRECT("speed"&$FT$2))*(length/1000)*ABS(GI$3-$FX22)/20 -> 7.8 | GJ22: =(60/INDIRECT("speed"&$FT$2))*(length/1000)*ABS(GJ$3-$FX22)/20 -> 6.9 | GK22: =(60/INDIRECT("speed"&$FT$2))*(length/1000)*ABS(GK$3-$FX22)/20 -> 5.9 | GL22: =(60/INDIRECT("speed"&$FT$2))*(length/1000)*ABS(GL$3-$FX22)/20 -> 4.9 | GM22: =(60/INDIRECT("speed"&$FT$2))*(length/1000)*ABS(GM$3-$FX22)/20 -> 3.9 | GN22: =(60/INDIRECT("speed"&$FT$2))*(length/1000)*ABS(GN$3-$FX22)/20 -> 2.9 | GO22: =(60/INDIRECT("speed"&$FT$2))*(length/1000)*ABS(GO$3-$FX22)/20 -> 2.0 | GP22: =(60/INDIRECT("speed"&$FT$2))*(length/1000)*ABS(GP$3-$FX22)/20 -> 1.0 | GQ22: =(60/INDIRECT("speed"&$FT$2))*(length/1000)*ABS(GQ$3-$FX22)/20 -> 0.0 | GR22: =(60/INDIRECT("speed"&$FT$2))*(length/1000)*ABS(GR$3-$FX22)/20 -> 1.0 | GS22: =(60/INDIRECT("speed"&$FT$2))*(length/1000)*ABS(GS$3-$FX22)/20 -> 2.0
A23: timeto20 | F23: 20 | G23: =(60/INDIRECT("speed"&B$2))*(length/1000)*ABS(G$3-$F23)/20 -> 11.7 | H23: =(60/INDIRECT("speed"&B$2))*(length/1000)*ABS(H$3-$F23)/20 -> 11.1 | I23: =(60/INDIRECT("speed"&B$2))*(length/1000)*ABS(I$3-$F23)/20 -> 10.5 | J23: =(60/INDIRECT("speed"&B$2))*(length/1000)*ABS(J$3-$F23)/20 -> 9.9 | K23: =(60/INDIRECT("speed"&B$2))*(length/1000)*ABS(K$3-$F23)/20 -> 9.3 | L23: =(60/INDIRECT("speed"&B$2))*(length/1000)*ABS(L$3-$F23)/20 -> 8.6 | M23: =(60/INDIRECT("speed"&B$2))*(length/1000)*ABS(M$3-$F23)/20 -> 8.0 | N23: =(60/INDIRECT("speed"&B$2))*(length/1000)*ABS(N$3-$F23)/20 -> 7.4 | O23: =(60/INDIRECT("speed"&B$2))*(length/1000)*ABS(O$3-$F23)/20 -> 6.8 | P23: =(60/INDIRECT("speed"&B$2))*(length/1000)*ABS(P$3-$F23)/20 -> 6.2 | Q23: =(60/INDIRECT("speed"&B$2))*(length/1000)*ABS(Q$3-$F23)/20 -> 5.6 | R23: =(60/INDIRECT("speed"&B$2))*(length/1000)*ABS(R$3-$F23)/20 -> 4.9 | S23: =(60/INDIRECT("speed"&B$2))*(length/1000)*ABS(S$3-$F23)/20 -> 4.3 | T23: =(60/INDIRECT("speed"&B$2))*(length/1000)*ABS(T$3-$F23)/20 -> 3.7 | U23: =(60/INDIRECT("speed"&B$2))*(length/1000)*ABS(U$3-$F23)/20 -> 3.1 | V23: =(60/INDIRECT("speed"&B$2))*(length/1000)*ABS(V$3-$F23)/20 -> 2.5 | W23: =(60/INDIRECT("speed"&B$2))*(length/1000)*ABS(W$3-$F23)/20 -> 1.9 | X23: =(60/INDIRECT("speed"&B$2))*(length/1000)*ABS(X$3-$F23)/20 -> 1.2 | Y23: =(60/INDIRECT("speed"&B$2))*(length/1000)*ABS(Y$3-$F23)/20 -> 0.6 | Z23: =(60/INDIRECT("speed"&B$2))*(length/1000)*ABS(Z$3-$F23)/20 -> 0.0 | AA23: =(60/INDIRECT("speed"&B$2))*(length/1000)*ABS(AA$3-$F23)/20 -> 0.6 | CJ23: timeto20 | CO23: 20 | CP23: =(60/INDIRECT("speed"&$CK$2))*(length/1000)*ABS(CP$3-$CO23)/20 -> 11.7 | CQ23: =(60/INDIRECT("speed"&$CK$2))*(length/1000)*ABS(CQ$3-$CO23)/20 -> 11.1 | CR23: =(60/INDIRECT("speed"&$CK$2))*(length/1000)*ABS(CR$3-$CO23)/20 -> 10.5 | CS23: =(60/INDIRECT("speed"&$CK$2))*(length/1000)*ABS(CS$3-$CO23)/20 -> 9.9 | CT23: =(60/INDIRECT("speed"&$CK$2))*(length/1000)*ABS(CT$3-$CO23)/20 -> 9.3 | CU23: =(60/INDIRECT("speed"&$CK$2))*(length/1000)*ABS(CU$3-$CO23)/20 -> 8.6 | CV23: =(60/INDIRECT("speed"&$CK$2))*(length/1000)*ABS(CV$3-$CO23)/20 -> 8.0 | CW23: =(60/INDIRECT("speed"&$CK$2))*(length/1000)*ABS(CW$3-$CO23)/20 -> 7.4 | CX23: =(60/INDIRECT("speed"&$CK$2))*(length/1000)*ABS(CX$3-$CO23)/20 -> 6.8 | CY23: =(60/INDIRECT("speed"&$CK$2))*(length/1000)*ABS(CY$3-$CO23)/20 -> 6.2 | CZ23: =(60/INDIRECT("speed"&$CK$2))*(length/1000)*ABS(CZ$3-$CO23)/20 -> 5.6 | DA23: =(60/INDIRECT("speed"&$CK$2))*(length/1000)*ABS(DA$3-$CO23)/20 -> 4.9 | DB23: =(60/INDIRECT("speed"&$CK$2))*(length/1000)*ABS(DB$3-$CO23)/20 -> 4.3 | DC23: =(60/INDIRECT("speed"&$CK$2))*(length/1000)*ABS(DC$3-$CO23)/20 -> 3.7 | DD23: =(60/INDIRECT("speed"&$CK$2))*(length/1000)*ABS(DD$3-$CO23)/20 -> 3.1 | DE23: =(60/INDIRECT("speed"&$CK$2))*(length/1000)*ABS(DE$3-$CO23)/20 -> 2.5 | DF23: =(60/INDIRECT("speed"&$CK$2))*(length/1000)*ABS(DF$3-$CO23)/20 -> 1.9 | DG23: =(60/INDIRECT("speed"&$CK$2))*(length/1000)*ABS(DG$3-$CO23)/20 -> 1.2 | DH23: =(60/INDIRECT("speed"&$CK$2))*(length/1000)*ABS(DH$3-$CO23)/20 -> 0.6 | DI23: =(60/INDIRECT("speed"&$CK$2))*(length/1000)*ABS(DI$3-$CO23)/20 -> 0.0 | DJ23: =(60/INDIRECT("speed"&$CK$2))*(length/1000)*ABS(DJ$3-$CO23)/20 -> 0.6 | FS23: timeto20 | FX23: 20 | FY23: =(60/INDIRECT("speed"&$FT$2))*(length/1000)*ABS(FY$3-$FX23)/20 -> 18.6 | FZ23: =(60/INDIRECT("speed"&$FT$2))*(length/1000)*ABS(FZ$3-$FX23)/20 -> 17.6 | GA23: =(60/INDIRECT("speed"&$FT$2))*(length/1000)*ABS(GA$3-$FX23)/20 -> 16.7 | GB23: =(60/INDIRECT("speed"&$FT$2))*(length/1000)*ABS(GB$3-$FX23)/20 -> 15.7 | GC23: =(60/INDIRECT("speed"&$FT$2))*(length/1000)*ABS(GC$3-$FX23)/20 -> 14.7 | GD23: =(60/INDIRECT("speed"&$FT$2))*(length/1000)*ABS(GD$3-$FX23)/20 -> 13.7 | GE23: =(60/INDIRECT("speed"&$FT$2))*(length/1000)*ABS(GE$3-$FX23)/20 -> 12.7 | GF23: =(60/INDIRECT("speed"&$FT$2))*(length/1000)*ABS(GF$3-$FX23)/20 -> 11.8 | GG23: =(60/INDIRECT("speed"&$FT$2))*(length/1000)*ABS(GG$3-$FX23)/20 -> 10.8 | GH23: =(60/INDIRECT("speed"&$FT$2))*(length/1000)*ABS(GH$3-$FX23)/20 -> 9.8 | GI23: =(60/INDIRECT("speed"&$FT$2))*(length/1000)*ABS(GI$3-$FX23)/20 -> 8.8 | GJ23: =(60/INDIRECT("speed"&$FT$2))*(length/1000)*ABS(GJ$3-$FX23)/20 -> 7.8 | GK23: =(60/INDIRECT("speed"&$FT$2))*(length/1000)*ABS(GK$3-$FX23)/20 -> 6.9 | GL23: =(60/INDIRECT("speed"&$FT$2))*(length/1000)*ABS(GL$3-$FX23)/20 -> 5.9 | GM23: =(60/INDIRECT("speed"&$FT$2))*(length/1000)*ABS(GM$3-$FX23)/20 -> 4.9 | GN23: =(60/INDIRECT("speed"&$FT$2))*(length/1000)*ABS(GN$3-$FX23)/20 -> 3.9 | GO23: =(60/INDIRECT("speed"&$FT$2))*(length/1000)*ABS(GO$3-$FX23)/20 -> 2.9 | GP23: =(60/INDIRECT("speed"&$FT$2))*(length/1000)*ABS(GP$3-$FX23)/20 -> 2.0 | GQ23: =(60/INDIRECT("speed"&$FT$2))*(length/1000)*ABS(GQ$3-$FX23)/20 -> 1.0 | GR23: =(60/INDIRECT("speed"&$FT$2))*(length/1000)*ABS(GR$3-$FX23)/20 -> 0.0 | GS23: =(60/INDIRECT("speed"&$FT$2))*(length/1000)*ABS(GS$3-$FX23)/20 -> 1.0
A24: timeto21 | F24: 21 | G24: =(60/INDIRECT("speed"&B$2))*(length/1000)*ABS(G$3-$F24)/20 -> 12.3 | H24: =(60/INDIRECT("speed"&B$2))*(length/1000)*ABS(H$3-$F24)/20 -> 11.7 | I24: =(60/INDIRECT("speed"&B$2))*(length/1000)*ABS(I$3-$F24)/20 -> 11.1 | J24: =(60/INDIRECT("speed"&B$2))*(length/1000)*ABS(J$3-$F24)/20 -> 10.5 | K24: =(60/INDIRECT("speed"&B$2))*(length/1000)*ABS(K$3-$F24)/20 -> 9.9 | L24: =(60/INDIRECT("speed"&B$2))*(length/1000)*ABS(L$3-$F24)/20 -> 9.3 | M24: =(60/INDIRECT("speed"&B$2))*(length/1000)*ABS(M$3-$F24)/20 -> 8.6 | N24: =(60/INDIRECT("speed"&B$2))*(length/1000)*ABS(N$3-$F24)/20 -> 8.0 | O24: =(60/INDIRECT("speed"&B$2))*(length/1000)*ABS(O$3-$F24)/20 -> 7.4 | P24: =(60/INDIRECT("speed"&B$2))*(length/1000)*ABS(P$3-$F24)/20 -> 6.8 | Q24: =(60/INDIRECT("speed"&B$2))*(length/1000)*ABS(Q$3-$F24)/20 -> 6.2 | R24: =(60/INDIRECT("speed"&B$2))*(length/1000)*ABS(R$3-$F24)/20 -> 5.6 | S24: =(60/INDIRECT("speed"&B$2))*(length/1000)*ABS(S$3-$F24)/20 -> 4.9 | T24: =(60/INDIRECT("speed"&B$2))*(length/1000)*ABS(T$3-$F24)/20 -> 4.3 | U24: =(60/INDIRECT("speed"&B$2))*(length/1000)*ABS(U$3-$F24)/20 -> 3.7 | V24: =(60/INDIRECT("speed"&B$2))*(length/1000)*ABS(V$3-$F24)/20 -> 3.1 | W24: =(60/INDIRECT("speed"&B$2))*(length/1000)*ABS(W$3-$F24)/20 -> 2.5 | X24: =(60/INDIRECT("speed"&B$2))*(length/1000)*ABS(X$3-$F24)/20 -> 1.9 | Y24: =(60/INDIRECT("speed"&B$2))*(length/1000)*ABS(Y$3-$F24)/20 -> 1.2 | Z24: =(60/INDIRECT("speed"&B$2))*(length/1000)*ABS(Z$3-$F24)/20 -> 0.6 | AA24: =(60/INDIRECT("speed"&B$2))*(length/1000)*ABS(AA$3-$F24)/20 -> 0.0 | CJ24: timeto21 | CO24: 21 | CP24: =(60/INDIRECT("speed"&$CK$2))*(length/1000)*ABS(CP$3-$CO24)/20 -> 12.3 | CQ24: =(60/INDIRECT("speed"&$CK$2))*(length/1000)*ABS(CQ$3-$CO24)/20 -> 11.7 | CR24: =(60/INDIRECT("speed"&$CK$2))*(length/1000)*ABS(CR$3-$CO24)/20 -> 11.1 | CS24: =(60/INDIRECT("speed"&$CK$2))*(length/1000)*ABS(CS$3-$CO24)/20 -> 10.5 | CT24: =(60/INDIRECT("speed"&$CK$2))*(length/1000)*ABS(CT$3-$CO24)/20 -> 9.9 | CU24: =(60/INDIRECT("speed"&$CK$2))*(length/1000)*ABS(CU$3-$CO24)/20 -> 9.3 | CV24: =(60/INDIRECT("speed"&$CK$2))*(length/1000)*ABS(CV$3-$CO24)/20 -> 8.6 | CW24: =(60/INDIRECT("speed"&$CK$2))*(length/1000)*ABS(CW$3-$CO24)/20 -> 8.0 | CX24: =(60/INDIRECT("speed"&$CK$2))*(length/1000)*ABS(CX$3-$CO24)/20 -> 7.4 | CY24: =(60/INDIRECT("speed"&$CK$2))*(length/1000)*ABS(CY$3-$CO24)/20 -> 6.8 | CZ24: =(60/INDIRECT("speed"&$CK$2))*(length/1000)*ABS(CZ$3-$CO24)/20 -> 6.2 | DA24: =(60/INDIRECT("speed"&$CK$2))*(length/1000)*ABS(DA$3-$CO24)/20 -> 5.6 | DB24: =(60/INDIRECT("speed"&$CK$2))*(length/1000)*ABS(DB$3-$CO24)/20 -> 4.9 | DC24: =(60/INDIRECT("speed"&$CK$2))*(length/1000)*ABS(DC$3-$CO24)/20 -> 4.3 | DD24: =(60/INDIRECT("speed"&$CK$2))*(length/1000)*ABS(DD$3-$CO24)/20 -> 3.7 | DE24: =(60/INDIRECT("speed"&$CK$2))*(length/1000)*ABS(DE$3-$CO24)/20 -> 3.1 | DF24: =(60/INDIRECT("speed"&$CK$2))*(length/1000)*ABS(DF$3-$CO24)/20 -> 2.5 | DG24: =(60/INDIRECT("speed"&$CK$2))*(length/1000)*ABS(DG$3-$CO24)/20 -> 1.9 | DH24: =(60/INDIRECT("speed"&$CK$2))*(length/1000)*ABS(DH$3-$CO24)/20 -> 1.2 | DI24: =(60/INDIRECT("speed"&$CK$2))*(length/1000)*ABS(DI$3-$CO24)/20 -> 0.6 | DJ24: =(60/INDIRECT("speed"&$CK$2))*(length/1000)*ABS(DJ$3-$CO24)/20 -> 0.0 | FS24: timeto21 | FX24: 21 | FY24: =(60/INDIRECT("speed"&$FT$2))*(length/1000)*ABS(FY$3-$FX24)/20 -> 19.6 | FZ24: =(60/INDIRECT("speed"&$FT$2))*(length/1000)*ABS(FZ$3-$FX24)/20 -> 18.6 | GA24: =(60/INDIRECT("speed"&$FT$2))*(length/1000)*ABS(GA$3-$FX24)/20 -> 17.6 | GB24: =(60/INDIRECT("speed"&$FT$2))*(length/1000)*ABS(GB$3-$FX24)/20 -> 16.7 | GC24: =(60/INDIRECT("speed"&$FT$2))*(length/1000)*ABS(GC$3-$FX24)/20 -> 15.7 | GD24: =(60/INDIRECT("speed"&$FT$2))*(length/1000)*ABS(GD$3-$FX24)/20 -> 14.7 | GE24: =(60/INDIRECT("speed"&$FT$2))*(length/1000)*ABS(GE$3-$FX24)/20 -> 13.7 | GF24: =(60/INDIRECT("speed"&$FT$2))*(length/1000)*ABS(GF$3-$FX24)/20 -> 12.7 | GG24: =(60/INDIRECT("speed"&$FT$2))*(length/1000)*ABS(GG$3-$FX24)/20 -> 11.8 | GH24: =(60/INDIRECT("speed"&$FT$2))*(length/1000)*ABS(GH$3-$FX24)/20 -> 10.8 | GI24: =(60/INDIRECT("speed"&$FT$2))*(length/1000)*ABS(GI$3-$FX24)/20 -> 9.8 | GJ24: =(60/INDIRECT("speed"&$FT$2))*(length/1000)*ABS(GJ$3-$FX24)/20 -> 8.8 | GK24: =(60/INDIRECT("speed"&$FT$2))*(length/1000)*ABS(GK$3-$FX24)/20 -> 7.8 | GL24: =(60/INDIRECT("speed"&$FT$2))*(length/1000)*ABS(GL$3-$FX24)/20 -> 6.9 | GM24: =(60/INDIRECT("speed"&$FT$2))*(length/1000)*ABS(GM$3-$FX24)/20 -> 5.9 | GN24: =(60/INDIRECT("speed"&$FT$2))*(length/1000)*ABS(GN$3-$FX24)/20 -> 4.9 | GO24: =(60/INDIRECT("speed"&$FT$2))*(length/1000)*ABS(GO$3-$FX24)/20 -> 3.9 | GP24: =(60/INDIRECT("speed"&$FT$2))*(length/1000)*ABS(GP$3-$FX24)/20 -> 2.9 | GQ24: =(60/INDIRECT("speed"&$FT$2))*(length/1000)*ABS(GQ$3-$FX24)/20 -> 2.0 | GR24: =(60/INDIRECT("speed"&$FT$2))*(length/1000)*ABS(GR$3-$FX24)/20 -> 1.0 | GS24: =(60/INDIRECT("speed"&$FT$2))*(length/1000)*ABS(GS$3-$FX24)/20 -> 0.0
A26: 0 | AD26: 0 | BG26: 0 | CJ26: 0 | DM26: 0 | EP26: 0 | FS26: 0 | GV26: 0
A27: =A$2 -> work1834 | AD27: =AD$2 -> shop1834 | BG27: =BG$2 -> lei1834 | CJ27: =CJ$2 -> work3564 | DM27: =DM$2 -> shop3564 | EP27: =EP$2 -> lei3564 | FS27: =FS$2 -> shop65 | GV27: =GV$2 -> lei65
B28: option | C28: seg | D28: core | E28: ref | F28: to | G28: 1 | H28: 2 | I28: 3 | J28: 4 | K28: 5 | L28: 6 | M28: 7 | N28: 8 | O28: 9 | P28: 10 | Q28: 11 | R28: 12 | S28: 13 | T28: 14 | U28: 15 | V28: 16 | W28: 17 | X28: 18 | Y28: 19 | Z28: 20 | AA28: 21 | AE28: option | AF28: seg | AG28: core | AH28: ref | AI28: to | AJ28: 1 | AK28: 2 | AL28: 3 | AM28: 4 | AN28: 5 | AO28: 6 | AP28: 7 | AQ28: 8 | AR28: 9 | AS28: 10 | AT28: 11 | AU28: 12 | AV28: 13 | AW28: 14 | AX28: 15 | AY28: 16 | AZ28: 17 | BA28: 18 | BB28: 19 | BC28: 20 | BD28: 21 | BH28: option | BI28: seg | BJ28: core | BK28: ref | BL28: to | BM28: 1 | BN28: 2 | BO28: 3 | BP28: 4 | BQ28: 5 | BR28: 6 | BS28: 7 | BT28: 8 | BU28: 9 | BV28: 10 | BW28: 11 | BX28: 12 | BY28: 13 | BZ28: 14 | CA28: 15 | CB28: 16 | CC28: 17 | CD28: 18 | CE28: 19 | CF28: 20 | CG28: 21 | CK28: option | CL28: seg | CM28: core | CN28: ref | CO28: to | CP28: 1 | CQ28: 2 | CR28: 3 | CS28: 4 | CT28: 5 | CU28: 6 | CV28: 7 | CW28: 8 | CX28: 9 | CY28: 10 | CZ28: 11 | DA28: 12 | DB28: 13 | DC28: 14 | DD28: 15 | DE28: 16 | DF28: 17 | DG28: 18 | DH28: 19 | DI28: 20 | DJ28: 21 | DN28: option | DO28: seg | DP28: core | DQ28: ref | DR28: to | DS28: 1 | DT28: 2 | DU28: 3 | DV28: 4 | DW28: 5 | DX28: 6 | DY28: 7 | DZ28: 8 | EA28: 9 | EB28: 10 | EC28: 11 | ED28: 12 | EE28: 13 | EF28: 14 | EG28: 15 | EH28: 16 | EI28: 17 | EJ28: 18 | EK28: 19 | EL28: 20 | EM28: 21 | EQ28: option | ER28: seg | ES28: core | ET28: ref | EU28: to | EV28: 1 | EW28: 2 | EX28: 3 | EY28: 4 | EZ28: 5 | FA28: 6 | FB28: 7 | FC28: 8 | FD28: 9 | FE28: 10 | FF28: 11 | FG28: 12 | FH28: 13 | FI28: 14 | FJ28: 15 | FK28: 16 | FL28: 17 | FM28: 18 | FN28: 19 | FO28: 20 | FP28: 21 | FT28: option | FU28: seg | FV28: core | FW28: ref | FX28: to | FY28: 1 | FZ28: 2 | GA28: 3 | GB28: 4 | GC28: 5 | GD28: 6 | GE28: 7 | GF28: 8 | GG28: 9 | GH28: 10 | GI28: 11 | GJ28: 12 | GK28: 13 | GL28: 14 | GM28: 15 | GN28: 16 | GO28: 17 | GP28: 18 | GQ28: 19 | GR28: 20 | GS28: 21 | GW28: option | GX28: seg | GY28: core | GZ28: ref | HA28: to | HB28: 1 | HC28: 2 | HD28: 3 | HE28: 4 | HF28: 5 | HG28: 6 | HH28: 7 | HI28: 8 | HJ28: 9 | HK28: 10 | HL28: 11 | HM28: 12 | HN28: 13 | HO28: 14 | HP28: 15 | HQ28: 16 | HR28: 17 | HS28: 18 | HT28: 19 | HU28: 20 | HV28: 21
A29: Number of lanes | B29: =A26 -> 0 | C29: =A27 -> work1834 | E29: 1 | G29: =INDEX(INDIRECT("in_input"&$B29),$E29,G$28) -> 3 | H29: =INDEX(INDIRECT("in_input"&$B29),$E29,H$28) -> 3 | I29: =INDEX(INDIRECT("in_input"&$B29),$E29,I$28) -> 3 | J29: =INDEX(INDIRECT("in_input"&$B29),$E29,J$28) -> 3 | K29: =INDEX(INDIRECT("in_input"&$B29),$E29,K$28) -> 3 | L29: =INDEX(INDIRECT("in_input"&$B29),$E29,L$28) -> 3 | M29: =INDEX(INDIRECT("in_input"&$B29),$E29,M$28) -> 3 | N29: =INDEX(INDIRECT("in_input"&$B29),$E29,N$28) -> 3 | O29: =INDEX(INDIRECT("in_input"&$B29),$E29,O$28) -> 3 | P29: =INDEX(INDIRECT("in_input"&$B29),$E29,P$28) -> 3 | Q29: =INDEX(INDIRECT("in_input"&$B29),$E29,Q$28) -> 3 | R29: =INDEX(INDIRECT("in_input"&$B29),$E29,R$28) -> 3 | S29: =INDEX(INDIRECT("in_input"&$B29),$E29,S$28) -> 3 | T29: =INDEX(INDIRECT("in_input"&$B29),$E29,T$28) -> 3 | U29: =INDEX(INDIRECT("in_input"&$B29),$E29,U$28) -> 3 | V29: =INDEX(INDIRECT("in_input"&$B29),$E29,V$28) -> 3 | W29: =INDEX(INDIRECT("in_input"&$B29),$E29,W$28) -> 3 | X29: =INDEX(INDIRECT("in_input"&$B29),$E29,X$28) -> 3 | Y29: =INDEX(INDIRECT("in_input"&$B29),$E29,Y$28) -> 3 | Z29: =INDEX(INDIRECT("in_input"&$B29),$E29,Z$28) -> 3 | AA29: =INDEX(INDIRECT("in_input"&$B29),$E29,AA$28) -> 3 | AD29: Number of lanes | AE29: =AD26 -> 0 | AF29: =AD27 -> shop1834 | AH29: 1 | AJ29: =INDEX(INDIRECT("in_input"&$B29),$E29,AJ$28) -> 3 | AK29: =INDEX(INDIRECT("in_input"&$B29),$E29,AK$28) -> 3 | AL29: =INDEX(INDIRECT("in_input"&$B29),$E29,AL$28) -> 3 | AM29: =INDEX(INDIRECT("in_input"&$B29),$E29,AM$28) -> 3 | AN29: =INDEX(INDIRECT("in_input"&$B29),$E29,AN$28) -> 3 | AO29: =INDEX(INDIRECT("in_input"&$B29),$E29,AO$28) -> 3 | AP29: =INDEX(INDIRECT("in_input"&$B29),$E29,AP$28) -> 3 | AQ29: =INDEX(INDIRECT("in_input"&$B29),$E29,AQ$28) -> 3 | AR29: =INDEX(INDIRECT("in_input"&$B29),$E29,AR$28) -> 3 | AS29: =INDEX(INDIRECT("in_input"&$B29),$E29,AS$28) -> 3 | AT29: =INDEX(INDIRECT("in_input"&$B29),$E29,AT$28) -> 3 | AU29: =INDEX(INDIRECT("in_input"&$B29),$E29,AU$28) -> 3 | AV29: =INDEX(INDIRECT("in_input"&$B29),$E29,AV$28) -> 3 | AW29: =INDEX(INDIRECT("in_input"&$B29),$E29,AW$28) -> 3 | AX29: =INDEX(INDIRECT("in_input"&$B29),$E29,AX$28) -> 3 | AY29: =INDEX(INDIRECT("in_input"&$B29),$E29,AY$28) -> 3 | AZ29: =INDEX(INDIRECT("in_input"&$B29),$E29,AZ$28) -> 3 | BA29: =INDEX(INDIRECT("in_input"&$B29),$E29,BA$28) -> 3 | BB29: =INDEX(INDIRECT("in_input"&$B29),$E29,BB$28) -> 3 | BC29: =INDEX(INDIRECT("in_input"&$B29),$E29,BC$28) -> 3 | BD29: =INDEX(INDIRECT("in_input"&$B29),$E29,BD$28) -> 3 | BG29: Number of lanes | BH29: =BG26 -> 0 | BI29: =BG27 -> lei1834 | BK29: 1 | BM29: =INDEX(INDIRECT("in_input"&$B29),$E29,BM$28) -> 3 | BN29: =INDEX(INDIRECT("in_input"&$B29),$E29,BN$28) -> 3 | BO29: =INDEX(INDIRECT("in_input"&$B29),$E29,BO$28) -> 3 | BP29: =INDEX(INDIRECT("in_input"&$B29),$E29,BP$28) -> 3 | BQ29: =INDEX(INDIRECT("in_input"&$B29),$E29,BQ$28) -> 3 | BR29: =INDEX(INDIRECT("in_input"&$B29),$E29,BR$28) -> 3 | BS29: =INDEX(INDIRECT("in_input"&$B29),$E29,BS$28) -> 3 | BT29: =INDEX(INDIRECT("in_input"&$B29),$E29,BT$28) -> 3 | BU29: =INDEX(INDIRECT("in_input"&$B29),$E29,BU$28) -> 3 | BV29: =INDEX(INDIRECT("in_input"&$B29),$E29,BV$28) -> 3 | BW29: =INDEX(INDIRECT("in_input"&$B29),$E29,BW$28) -> 3 | BX29: =INDEX(INDIRECT("in_input"&$B29),$E29,BX$28) -> 3 | BY29: =INDEX(INDIRECT("in_input"&$B29),$E29,BY$28) -> 3 | BZ29: =INDEX(INDIRECT("in_input"&$B29),$E29,BZ$28) -> 3 | CA29: =INDEX(INDIRECT("in_input"&$B29),$E29,CA$28) -> 3 | CB29: =INDEX(INDIRECT("in_input"&$B29),$E29,CB$28) -> 3 | CC29: =INDEX(INDIRECT("in_input"&$B29),$E29,CC$28) -> 3 | CD29: =INDEX(INDIRECT("in_input"&$B29),$E29,CD$28) -> 3 | CE29: =INDEX(INDIRECT("in_input"&$B29),$E29,CE$28) -> 3 | CF29: =INDEX(INDIRECT("in_input"&$B29),$E29,CF$28) -> 3 | CG29: =INDEX(INDIRECT("in_input"&$B29),$E29,CG$28) -> 3 | CJ29: Number of lanes | CK29: =CJ26 -> 0 | CL29: =CJ27 -> work3564 | CN29: 1 | CP29: =INDEX(INDIRECT("in_input"&$B29),$E29,CP$28) -> 3 | CQ29: =INDEX(INDIRECT("in_input"&$B29),$E29,CQ$28) -> 3 | CR29: =INDEX(INDIRECT("in_input"&$B29),$E29,CR$28) -> 3 | CS29: =INDEX(INDIRECT("in_input"&$B29),$E29,CS$28) -> 3 | CT29: =INDEX(INDIRECT("in_input"&$B29),$E29,CT$28) -> 3 | CU29: =INDEX(INDIRECT("in_input"&$B29),$E29,CU$28) -> 3 | CV29: =INDEX(INDIRECT("in_input"&$B29),$E29,CV$28) -> 3 | CW29: =INDEX(INDIRECT("in_input"&$B29),$E29,CW$28) -> 3 | CX29: =INDEX(INDIRECT("in_input"&$B29),$E29,CX$28) -> 3 | CY29: =INDEX(INDIRECT("in_input"&$B29),$E29,CY$28) -> 3 | CZ29: =INDEX(INDIRECT("in_input"&$B29),$E29,CZ$28) -> 3 | DA29: =INDEX(INDIRECT("in_input"&$B29),$E29,DA$28) -> 3 | DB29: =INDEX(INDIRECT("in_input"&$B29),$E29,DB$28) -> 3 | DC29: =INDEX(INDIRECT("in_input"&$B29),$E29,DC$28) -> 3 | DD29: =INDEX(INDIRECT("in_input"&$B29),$E29,DD$28) -> 3 | DE29: =INDEX(INDIRECT("in_input"&$B29),$E29,DE$28) -> 3 | DF29: =INDEX(INDIRECT("in_input"&$B29),$E29,DF$28) -> 3 | DG29: =INDEX(INDIRECT("in_input"&$B29),$E29,DG$28) -> 3 | DH29: =INDEX(INDIRECT("in_input"&$B29),$E29,DH$28) -> 3 | DI29: =INDEX(INDIRECT("in_input"&$B29),$E29,DI$28) -> 3 | DJ29: =INDEX(INDIRECT("in_input"&$B29),$E29,DJ$28) -> 3 | DM29: Number of lanes | DN29: =DM26 -> 0 | DO29: =DM27 -> shop3564 | DQ29: 1 | DS29: =INDEX(INDIRECT("in_input"&$B29),$E29,DS$28) -> 3 | DT29: =INDEX(INDIRECT("in_input"&$B29),$E29,DT$28) -> 3 | DU29: =INDEX(INDIRECT("in_input"&$B29),$E29,DU$28) -> 3 | DV29: =INDEX(INDIRECT("in_input"&$B29),$E29,DV$28) -> 3 | DW29: =INDEX(INDIRECT("in_input"&$B29),$E29,DW$28) -> 3 | DX29: =INDEX(INDIRECT("in_input"&$B29),$E29,DX$28) -> 3 | DY29: =INDEX(INDIRECT("in_input"&$B29),$E29,DY$28) -> 3 | DZ29: =INDEX(INDIRECT("in_input"&$B29),$E29,DZ$28) -> 3 | EA29: =INDEX(INDIRECT("in_input"&$B29),$E29,EA$28) -> 3 | EB29: =INDEX(INDIRECT("in_input"&$B29),$E29,EB$28) -> 3 | EC29: =INDEX(INDIRECT("in_input"&$B29),$E29,EC$28) -> 3 | ED29: =INDEX(INDIRECT("in_input"&$B29),$E29,ED$28) -> 3 | EE29: =INDEX(INDIRECT("in_input"&$B29),$E29,EE$28) -> 3 | EF29: =INDEX(INDIRECT("in_input"&$B29),$E29,EF$28) -> 3 | EG29: =INDEX(INDIRECT("in_input"&$B29),$E29,EG$28) -> 3 | EH29: =INDEX(INDIRECT("in_input"&$B29),$E29,EH$28) -> 3 | EI29: =INDEX(INDIRECT("in_input"&$B29),$E29,EI$28) -> 3 | EJ29: =INDEX(INDIRECT("in_input"&$B29),$E29,EJ$28) -> 3 | EK29: =INDEX(INDIRECT("in_input"&$B29),$E29,EK$28) -> 3 | EL29: =INDEX(INDIRECT("in_input"&$B29),$E29,EL$28) -> 3 | EM29: =INDEX(INDIRECT("in_input"&$B29),$E29,EM$28) -> 3 | EP29: Number of lanes | EQ29: =EP26 -> 0 | ER29: =EP27 -> lei3564 | ET29: 1 | EV29: =INDEX(INDIRECT("in_input"&$B29),$E29,EV$28) -> 3 | EW29: =INDEX(INDIRECT("in_input"&$B29),$E29,EW$28) -> 3 | EX29: =INDEX(INDIRECT("in_input"&$B29),$E29,EX$28) -> 3 | EY29: =INDEX(INDIRECT("in_input"&$B29),$E29,EY$28) -> 3 | EZ29: =INDEX(INDIRECT("in_input"&$B29),$E29,EZ$28) -> 3 | FA29: =INDEX(INDIRECT("in_input"&$B29),$E29,FA$28) -> 3 | FB29: =INDEX(INDIRECT("in_input"&$B29),$E29,FB$28) -> 3 | FC29: =INDEX(INDIRECT("in_input"&$B29),$E29,FC$28) -> 3 | FD29: =INDEX(INDIRECT("in_input"&$B29),$E29,FD$28) -> 3 | FE29: =INDEX(INDIRECT("in_input"&$B29),$E29,FE$28) -> 3 | FF29: =INDEX(INDIRECT("in_input"&$B29),$E29,FF$28) -> 3 | FG29: =INDEX(INDIRECT("in_input"&$B29),$E29,FG$28) -> 3 | FH29: =INDEX(INDIRECT("in_input"&$B29),$E29,FH$28) -> 3 | FI29: =INDEX(INDIRECT("in_input"&$B29),$E29,FI$28) -> 3 | FJ29: =INDEX(INDIRECT("in_input"&$B29),$E29,FJ$28) -> 3 | FK29: =INDEX(INDIRECT("in_input"&$B29),$E29,FK$28) -> 3 | FL29: =INDEX(INDIRECT("in_input"&$B29),$E29,FL$28) -> 3 | FM29: =INDEX(INDIRECT("in_input"&$B29),$E29,FM$28) -> 3 | FN29: =INDEX(INDIRECT("in_input"&$B29),$E29,FN$28) -> 3 | FO29: =INDEX(INDIRECT("in_input"&$B29),$E29,FO$28) -> 3 | FP29: =INDEX(INDIRECT("in_input"&$B29),$E29,FP$28) -> 3 | FS29: Number of lanes | FT29: =FS26 -> 0 | FU29: =FS27 -> shop65 | FW29: 1 | FY29: =INDEX(INDIRECT("in_input"&$B29),$E29,FY$28) -> 3 | FZ29: =INDEX(INDIRECT("in_input"&$B29),$E29,FZ$28) -> 3 | GA29: =INDEX(INDIRECT("in_input"&$B29),$E29,GA$28) -> 3 | GB29: =INDEX(INDIRECT("in_input"&$B29),$E29,GB$28) -> 3 | GC29: =INDEX(INDIRECT("in_input"&$B29),$E29,GC$28) -> 3 | GD29: =INDEX(INDIRECT("in_input"&$B29),$E29,GD$28) -> 3 | GE29: =INDEX(INDIRECT("in_input"&$B29),$E29,GE$28) -> 3 | GF29: =INDEX(INDIRECT("in_input"&$B29),$E29,GF$28) -> 3 | GG29: =INDEX(INDIRECT("in_input"&$B29),$E29,GG$28) -> 3 | GH29: =INDEX(INDIRECT("in_input"&$B29),$E29,GH$28) -> 3 | GI29: =INDEX(INDIRECT("in_input"&$B29),$E29,GI$28) -> 3 | GJ29: =INDEX(INDIRECT("in_input"&$B29),$E29,GJ$28) -> 3 | GK29: =INDEX(INDIRECT("in_input"&$B29),$E29,GK$28) -> 3 | GL29: =INDEX(INDIRECT("in_input"&$B29),$E29,GL$28) -> 3 | GM29: =INDEX(INDIRECT("in_input"&$B29),$E29,GM$28) -> 3 | GN29: =INDEX(INDIRECT("in_input"&$B29),$E29,GN$28) -> 3 | GO29: =INDEX(INDIRECT("in_input"&$B29),$E29,GO$28) -> 3 | GP29: =INDEX(INDIRECT("in_input"&$B29),$E29,GP$28) -> 3 | GQ29: =INDEX(INDIRECT("in_input"&$B29),$E29,GQ$28) -> 3 | GR29: =INDEX(INDIRECT("in_input"&$B29),$E29,GR$28) -> 3 | GS29: =INDEX(INDIRECT("in_input"&$B29),$E29,GS$28) -> 3 | GV29: Number of lanes | GW29: =GV26 -> 0 | GX29: =GV27 -> lei65 | GZ29: 1 | HB29: =INDEX(INDIRECT("in_input"&$B29),$E29,HB$28) -> 3 | HC29: =INDEX(INDIRECT("in_input"&$B29),$E29,HC$28) -> 3 | HD29: =INDEX(INDIRECT("in_input"&$B29),$E29,HD$28) -> 3 | HE29: =INDEX(INDIRECT("in_input"&$B29),$E29,HE$28) -> 3 | HF29: =INDEX(INDIRECT("in_input"&$B29),$E29,HF$28) -> 3 | HG29: =INDEX(INDIRECT("in_input"&$B29),$E29,HG$28) -> 3 | HH29: =INDEX(INDIRECT("in_input"&$B29),$E29,HH$28) -> 3 | HI29: =INDEX(INDIRECT("in_input"&$B29),$E29,HI$28) -> 3 | HJ29: =INDEX(INDIRECT("in_input"&$B29),$E29,HJ$28) -> 3 | HK29: =INDEX(INDIRECT("in_input"&$B29),$E29,HK$28) -> 3 | HL29: =INDEX(INDIRECT("in_input"&$B29),$E29,HL$28) -> 3 | HM29: =INDEX(INDIRECT("in_input"&$B29),$E29,HM$28) -> 3 | HN29: =INDEX(INDIRECT("in_input"&$B29),$E29,HN$28) -> 3 | HO29: =INDEX(INDIRECT("in_input"&$B29),$E29,HO$28) -> 3 | HP29: =INDEX(INDIRECT("in_input"&$B29),$E29,HP$28) -> 3 | HQ29: =INDEX(INDIRECT("in_input"&$B29),$E29,HQ$28) -> 3 | HR29: =INDEX(INDIRECT("in_input"&$B29),$E29,HR$28) -> 3 | HS29: =INDEX(INDIRECT("in_input"&$B29),$E29,HS$28) -> 3 | HT29: =INDEX(INDIRECT("in_input"&$B29),$E29,HT$28) -> 3 | HU29: =INDEX(INDIRECT("in_input"&$B29),$E29,HU$28) -> 3 | HV29: =INDEX(INDIRECT("in_input"&$B29),$E29,HV$28) -> 3
A30: Central reservation | B30: =A26 -> 0 | C30: =A27 -> work1834 | E30: 2 | G30: =INDEX(INDIRECT("in_input"&$B30),$E30,G$28) -> no | H30: =INDEX(INDIRECT("in_input"&$B30),$E30,H$28) -> no | I30: =INDEX(INDIRECT("in_input"&$B30),$E30,I$28) -> no | J30: =INDEX(INDIRECT("in_input"&$B30),$E30,J$28) -> no | K30: =INDEX(INDIRECT("in_input"&$B30),$E30,K$28) -> no | L30: =INDEX(INDIRECT("in_input"&$B30),$E30,L$28) -> no | M30: =INDEX(INDIRECT("in_input"&$B30),$E30,M$28) -> no | N30: =INDEX(INDIRECT("in_input"&$B30),$E30,N$28) -> no | O30: =INDEX(INDIRECT("in_input"&$B30),$E30,O$28) -> no | P30: =INDEX(INDIRECT("in_input"&$B30),$E30,P$28) -> no | Q30: =INDEX(INDIRECT("in_input"&$B30),$E30,Q$28) -> no | R30: =INDEX(INDIRECT("in_input"&$B30),$E30,R$28) -> no | S30: =INDEX(INDIRECT("in_input"&$B30),$E30,S$28) -> no | T30: =INDEX(INDIRECT("in_input"&$B30),$E30,T$28) -> no | U30: =INDEX(INDIRECT("in_input"&$B30),$E30,U$28) -> no | V30: =INDEX(INDIRECT("in_input"&$B30),$E30,V$28) -> no | W30: =INDEX(INDIRECT("in_input"&$B30),$E30,W$28) -> no | X30: =INDEX(INDIRECT("in_input"&$B30),$E30,X$28) -> no | Y30: =INDEX(INDIRECT("in_input"&$B30),$E30,Y$28) -> no | Z30: =INDEX(INDIRECT("in_input"&$B30),$E30,Z$28) -> no | AA30: =INDEX(INDIRECT("in_input"&$B30),$E30,AA$28) -> no | AD30: Central reservation | AE30: =AD26 -> 0 | AF30: =AD27 -> shop1834 | AH30: 2 | AJ30: =INDEX(INDIRECT("in_input"&$B30),$E30,AJ$28) -> no | AK30: =INDEX(INDIRECT("in_input"&$B30),$E30,AK$28) -> no | AL30: =INDEX(INDIRECT("in_input"&$B30),$E30,AL$28) -> no | AM30: =INDEX(INDIRECT("in_input"&$B30),$E30,AM$28) -> no | AN30: =INDEX(INDIRECT("in_input"&$B30),$E30,AN$28) -> no | AO30: =INDEX(INDIRECT("in_input"&$B30),$E30,AO$28) -> no | AP30: =INDEX(INDIRECT("in_input"&$B30),$E30,AP$28) -> no | AQ30: =INDEX(INDIRECT("in_input"&$B30),$E30,AQ$28) -> no | AR30: =INDEX(INDIRECT("in_input"&$B30),$E30,AR$28) -> no | AS30: =INDEX(INDIRECT("in_input"&$B30),$E30,AS$28) -> no | AT30: =INDEX(INDIRECT("in_input"&$B30),$E30,AT$28) -> no | AU30: =INDEX(INDIRECT("in_input"&$B30),$E30,AU$28) -> no | AV30: =INDEX(INDIRECT("in_input"&$B30),$E30,AV$28) -> no | AW30: =INDEX(INDIRECT("in_input"&$B30),$E30,AW$28) -> no | AX30: =INDEX(INDIRECT("in_input"&$B30),$E30,AX$28) -> no | AY30: =INDEX(INDIRECT("in_input"&$B30),$E30,AY$28) -> no | AZ30: =INDEX(INDIRECT("in_input"&$B30),$E30,AZ$28) -> no | BA30: =INDEX(INDIRECT("in_input"&$B30),$E30,BA$28) -> no | BB30: =INDEX(INDIRECT("in_input"&$B30),$E30,BB$28) -> no | BC30: =INDEX(INDIRECT("in_input"&$B30),$E30,BC$28) -> no | BD30: =INDEX(INDIRECT("in_input"&$B30),$E30,BD$28) -> no | BG30: Central reservation | BH30: =BG26 -> 0 | BI30: =BG27 -> lei1834 | BK30: 2 | BM30: =INDEX(INDIRECT("in_input"&$B30),$E30,BM$28) -> no | BN30: =INDEX(INDIRECT("in_input"&$B30),$E30,BN$28) -> no | BO30: =INDEX(INDIRECT("in_input"&$B30),$E30,BO$28) -> no | BP30: =INDEX(INDIRECT("in_input"&$B30),$E30,BP$28) -> no | BQ30: =INDEX(INDIRECT("in_input"&$B30),$E30,BQ$28) -> no | BR30: =INDEX(INDIRECT("in_input"&$B30),$E30,BR$28) -> no | BS30: =INDEX(INDIRECT("in_input"&$B30),$E30,BS$28) -> no | BT30: =INDEX(INDIRECT("in_input"&$B30),$E30,BT$28) -> no | BU30: =INDEX(INDIRECT("in_input"&$B30),$E30,BU$28) -> no | BV30: =INDEX(INDIRECT("in_input"&$B30),$E30,BV$28) -> no | BW30: =INDEX(INDIRECT("in_input"&$B30),$E30,BW$28) -> no | BX30: =INDEX(INDIRECT("in_input"&$B30),$E30,BX$28) -> no | BY30: =INDEX(INDIRECT("in_input"&$B30),$E30,BY$28) -> no | BZ30: =INDEX(INDIRECT("in_input"&$B30),$E30,BZ$28) -> no | CA30: =INDEX(INDIRECT("in_input"&$B30),$E30,CA$28) -> no | CB30: =INDEX(INDIRECT("in_input"&$B30),$E30,CB$28) -> no | CC30: =INDEX(INDIRECT("in_input"&$B30),$E30,CC$28) -> no | CD30: =INDEX(INDIRECT("in_input"&$B30),$E30,CD$28) -> no | CE30: =INDEX(INDIRECT("in_input"&$B30),$E30,CE$28) -> no | CF30: =INDEX(INDIRECT("in_input"&$B30),$E30,CF$28) -> no | CG30: =INDEX(INDIRECT("in_input"&$B30),$E30,CG$28) -> no | CJ30: Central reservation | CK30: =CJ26 -> 0 | CL30: =CJ27 -> work3564 | CN30: 2 | CP30: =INDEX(INDIRECT("in_input"&$B30),$E30,CP$28) -> no | CQ30: =INDEX(INDIRECT("in_input"&$B30),$E30,CQ$28) -> no | CR30: =INDEX(INDIRECT("in_input"&$B30),$E30,CR$28) -> no | CS30: =INDEX(INDIRECT("in_input"&$B30),$E30,CS$28) -> no | CT30: =INDEX(INDIRECT("in_input"&$B30),$E30,CT$28) -> no | CU30: =INDEX(INDIRECT("in_input"&$B30),$E30,CU$28) -> no | CV30: =INDEX(INDIRECT("in_input"&$B30),$E30,CV$28) -> no | CW30: =INDEX(INDIRECT("in_input"&$B30),$E30,CW$28) -> no | CX30: =INDEX(INDIRECT("in_input"&$B30),$E30,CX$28) -> no | CY30: =INDEX(INDIRECT("in_input"&$B30),$E30,CY$28) -> no | CZ30: =INDEX(INDIRECT("in_input"&$B30),$E30,CZ$28) -> no | DA30: =INDEX(INDIRECT("in_input"&$B30),$E30,DA$28) -> no | DB30: =INDEX(INDIRECT("in_input"&$B30),$E30,DB$28) -> no | DC30: =INDEX(INDIRECT("in_input"&$B30),$E30,DC$28) -> no | DD30: =INDEX(INDIRECT("in_input"&$B30),$E30,DD$28) -> no | DE30: =INDEX(INDIRECT("in_input"&$B30),$E30,DE$28) -> no | DF30: =INDEX(INDIRECT("in_input"&$B30),$E30,DF$28) -> no | DG30: =INDEX(INDIRECT("in_input"&$B30),$E30,DG$28) -> no | DH30: =INDEX(INDIRECT("in_input"&$B30),$E30,DH$28) -> no | DI30: =INDEX(INDIRECT("in_input"&$B30),$E30,DI$28) -> no | DJ30: =INDEX(INDIRECT("in_input"&$B30),$E30,DJ$28) -> no | DM30: Central reservation | DN30: =DM26 -> 0 | DO30: =DM27 -> shop3564 | DQ30: 2 | DS30: =INDEX(INDIRECT("in_input"&$B30),$E30,DS$28) -> no | DT30: =INDEX(INDIRECT("in_input"&$B30),$E30,DT$28) -> no | DU30: =INDEX(INDIRECT("in_input"&$B30),$E30,DU$28) -> no | DV30: =INDEX(INDIRECT("in_input"&$B30),$E30,DV$28) -> no | DW30: =INDEX(INDIRECT("in_input"&$B30),$E30,DW$28) -> no | DX30: =INDEX(INDIRECT("in_input"&$B30),$E30,DX$28) -> no | DY30: =INDEX(INDIRECT("in_input"&$B30),$E30,DY$28) -> no | DZ30: =INDEX(INDIRECT("in_input"&$B30),$E30,DZ$28) -> no | EA30: =INDEX(INDIRECT("in_input"&$B30),$E30,EA$28) -> no | EB30: =INDEX(INDIRECT("in_input"&$B30),$E30,EB$28) -> no | EC30: =INDEX(INDIRECT("in_input"&$B30),$E30,EC$28) -> no | ED30: =INDEX(INDIRECT("in_input"&$B30),$E30,ED$28) -> no | EE30: =INDEX(INDIRECT("in_input"&$B30),$E30,EE$28) -> no | EF30: =INDEX(INDIRECT("in_input"&$B30),$E30,EF$28) -> no | EG30: =INDEX(INDIRECT("in_input"&$B30),$E30,EG$28) -> no | EH30: =INDEX(INDIRECT("in_input"&$B30),$E30,EH$28) -> no | EI30: =INDEX(INDIRECT("in_input"&$B30),$E30,EI$28) -> no | EJ30: =INDEX(INDIRECT("in_input"&$B30),$E30,EJ$28) -> no | EK30: =INDEX(INDIRECT("in_input"&$B30),$E30,EK$28) -> no | EL30: =INDEX(INDIRECT("in_input"&$B30),$E30,EL$28) -> no | EM30: =INDEX(INDIRECT("in_input"&$B30),$E30,EM$28) -> no | EP30: Central reservation | EQ30: =EP26 -> 0 | ER30: =EP27 -> lei3564 | ET30: 2 | EV30: =INDEX(INDIRECT("in_input"&$B30),$E30,EV$28) -> no | EW30: =INDEX(INDIRECT("in_input"&$B30),$E30,EW$28) -> no | EX30: =INDEX(INDIRECT("in_input"&$B30),$E30,EX$28) -> no | EY30: =INDEX(INDIRECT("in_input"&$B30),$E30,EY$28) -> no | EZ30: =INDEX(INDIRECT("in_input"&$B30),$E30,EZ$28) -> no | FA30: =INDEX(INDIRECT("in_input"&$B30),$E30,FA$28) -> no | FB30: =INDEX(INDIRECT("in_input"&$B30),$E30,FB$28) -> no | FC30: =INDEX(INDIRECT("in_input"&$B30),$E30,FC$28) -> no | FD30: =INDEX(INDIRECT("in_input"&$B30),$E30,FD$28) -> no | FE30: =INDEX(INDIRECT("in_input"&$B30),$E30,FE$28) -> no | FF30: =INDEX(INDIRECT("in_input"&$B30),$E30,FF$28) -> no | FG30: =INDEX(INDIRECT("in_input"&$B30),$E30,FG$28) -> no | FH30: =INDEX(INDIRECT("in_input"&$B30),$E30,FH$28) -> no | FI30: =INDEX(INDIRECT("in_input"&$B30),$E30,FI$28) -> no | FJ30: =INDEX(INDIRECT("in_input"&$B30),$E30,FJ$28) -> no | FK30: =INDEX(INDIRECT("in_input"&$B30),$E30,FK$28) -> no | FL30: =INDEX(INDIRECT("in_input"&$B30),$E30,FL$28) -> no | FM30: =INDEX(INDIRECT("in_input"&$B30),$E30,FM$28) -> no | FN30: =INDEX(INDIRECT("in_input"&$B30),$E30,FN$28) -> no | FO30: =INDEX(INDIRECT("in_input"&$B30),$E30,FO$28) -> no | FP30: =INDEX(INDIRECT("in_input"&$B30),$E30,FP$28) -> no | FS30: Central reservation | FT30: =FS26 -> 0 | FU30: =FS27 -> shop65 | FW30: 2 | FY30: =INDEX(INDIRECT("in_input"&$B30),$E30,FY$28) -> no | FZ30: =INDEX(INDIRECT("in_input"&$B30),$E30,FZ$28) -> no | GA30: =INDEX(INDIRECT("in_input"&$B30),$E30,GA$28) -> no | GB30: =INDEX(INDIRECT("in_input"&$B30),$E30,GB$28) -> no | GC30: =INDEX(INDIRECT("in_input"&$B30),$E30,GC$28) -> no | GD30: =INDEX(INDIRECT("in_input"&$B30),$E30,GD$28) -> no | GE30: =INDEX(INDIRECT("in_input"&$B30),$E30,GE$28) -> no | GF30: =INDEX(INDIRECT("in_input"&$B30),$E30,GF$28) -> no | GG30: =INDEX(INDIRECT("in_input"&$B30),$E30,GG$28) -> no | GH30: =INDEX(INDIRECT("in_input"&$B30),$E30,GH$28) -> no | GI30: =INDEX(INDIRECT("in_input"&$B30),$E30,GI$28) -> no | GJ30: =INDEX(INDIRECT("in_input"&$B30),$E30,GJ$28) -> no | GK30: =INDEX(INDIRECT("in_input"&$B30),$E30,GK$28) -> no | GL30: =INDEX(INDIRECT("in_input"&$B30),$E30,GL$28) -> no | GM30: =INDEX(INDIRECT("in_input"&$B30),$E30,GM$28) -> no | GN30: =INDEX(INDIRECT("in_input"&$B30),$E30,GN$28) -> no | GO30: =INDEX(INDIRECT("in_input"&$B30),$E30,GO$28) -> no | GP30: =INDEX(INDIRECT("in_input"&$B30),$E30,GP$28) -> no | GQ30: =INDEX(INDIRECT("in_input"&$B30),$E30,GQ$28) -> no | GR30: =INDEX(INDIRECT("in_input"&$B30),$E30,GR$28) -> no | GS30: =INDEX(INDIRECT("in_input"&$B30),$E30,GS$28) -> no | GV30: Central reservation | GW30: =GV26 -> 0 | GX30: =GV27 -> lei65 | GZ30: 2 | HB30: =INDEX(INDIRECT("in_input"&$B30),$E30,HB$28) -> no | HC30: =INDEX(INDIRECT("in_input"&$B30),$E30,HC$28) -> no | HD30: =INDEX(INDIRECT("in_input"&$B30),$E30,HD$28) -> no | HE30: =INDEX(INDIRECT("in_input"&$B30),$E30,HE$28) -> no | HF30: =INDEX(INDIRECT("in_input"&$B30),$E30,HF$28) -> no | HG30: =INDEX(INDIRECT("in_input"&$B30),$E30,HG$28) -> no | HH30: =INDEX(INDIRECT("in_input"&$B30),$E30,HH$28) -> no | HI30: =INDEX(INDIRECT("in_input"&$B30),$E30,HI$28) -> no | HJ30: =INDEX(INDIRECT("in_input"&$B30),$E30,HJ$28) -> no | HK30: =INDEX(INDIRECT("in_input"&$B30),$E30,HK$28) -> no | HL30: =INDEX(INDIRECT("in_input"&$B30),$E30,HL$28) -> no | HM30: =INDEX(INDIRECT("in_input"&$B30),$E30,HM$28) -> no | HN30: =INDEX(INDIRECT("in_input"&$B30),$E30,HN$28) -> no | HO30: =INDEX(INDIRECT("in_input"&$B30),$E30,HO$28) -> no | HP30: =INDEX(INDIRECT("in_input"&$B30),$E30,HP$28) -> no | HQ30: =INDEX(INDIRECT("in_input"&$B30),$E30,HQ$28) -> no | HR30: =INDEX(INDIRECT("in_input"&$B30),$E30,HR$28) -> no | HS30: =INDEX(INDIRECT("in_input"&$B30),$E30,HS$28) -> no | HT30: =INDEX(INDIRECT("in_input"&$B30),$E30,HT$28) -> no | HU30: =INDEX(INDIRECT("in_input"&$B30),$E30,HU$28) -> no | HV30: =INDEX(INDIRECT("in_input"&$B30),$E30,HV$28) -> no
A31: Traffic density | B31: =A26 -> 0 | C31: =A27 -> work1834 | E31: 3 | G31: =INDEX(INDIRECT("in_input"&$B31),$E31,G$28) -> high | H31: =INDEX(INDIRECT("in_input"&$B31),$E31,H$28) -> high | I31: =INDEX(INDIRECT("in_input"&$B31),$E31,I$28) -> high | J31: =INDEX(INDIRECT("in_input"&$B31),$E31,J$28) -> high | K31: =INDEX(INDIRECT("in_input"&$B31),$E31,K$28) -> high | L31: =INDEX(INDIRECT("in_input"&$B31),$E31,L$28) -> high | M31: =INDEX(INDIRECT("in_input"&$B31),$E31,M$28) -> high | N31: =INDEX(INDIRECT("in_input"&$B31),$E31,N$28) -> high | O31: =INDEX(INDIRECT("in_input"&$B31),$E31,O$28) -> high | P31: =INDEX(INDIRECT("in_input"&$B31),$E31,P$28) -> high | Q31: =INDEX(INDIRECT("in_input"&$B31),$E31,Q$28) -> high | R31: =INDEX(INDIRECT("in_input"&$B31),$E31,R$28) -> high | S31: =INDEX(INDIRECT("in_input"&$B31),$E31,S$28) -> high | T31: =INDEX(INDIRECT("in_input"&$B31),$E31,T$28) -> high | U31: =INDEX(INDIRECT("in_input"&$B31),$E31,U$28) -> high | V31: =INDEX(INDIRECT("in_input"&$B31),$E31,V$28) -> high | W31: =INDEX(INDIRECT("in_input"&$B31),$E31,W$28) -> high | X31: =INDEX(INDIRECT("in_input"&$B31),$E31,X$28) -> high | Y31: =INDEX(INDIRECT("in_input"&$B31),$E31,Y$28) -> high | Z31: =INDEX(INDIRECT("in_input"&$B31),$E31,Z$28) -> high | AA31: =INDEX(INDIRECT("in_input"&$B31),$E31,AA$28) -> high | AD31: Traffic density | AE31: =AD26 -> 0 | AF31: =AD27 -> shop1834 | AH31: 3 | AJ31: =INDEX(INDIRECT("in_input"&$B31),$E31,AJ$28) -> high | AK31: =INDEX(INDIRECT("in_input"&$B31),$E31,AK$28) -> high | AL31: =INDEX(INDIRECT("in_input"&$B31),$E31,AL$28) -> high | AM31: =INDEX(INDIRECT("in_input"&$B31),$E31,AM$28) -> high | AN31: =INDEX(INDIRECT("in_input"&$B31),$E31,AN$28) -> high | AO31: =INDEX(INDIRECT("in_input"&$B31),$E31,AO$28) -> high | AP31: =INDEX(INDIRECT("in_input"&$B31),$E31,AP$28) -> high | AQ31: =INDEX(INDIRECT("in_input"&$B31),$E31,AQ$28) -> high | AR31: =INDEX(INDIRECT("in_input"&$B31),$E31,AR$28) -> high | AS31: =INDEX(INDIRECT("in_input"&$B31),$E31,AS$28) -> high | AT31: =INDEX(INDIRECT("in_input"&$B31),$E31,AT$28) -> high | AU31: =INDEX(INDIRECT("in_input"&$B31),$E31,AU$28) -> high | AV31: =INDEX(INDIRECT("in_input"&$B31),$E31,AV$28) -> high | AW31: =INDEX(INDIRECT("in_input"&$B31),$E31,AW$28) -> high | AX31: =INDEX(INDIRECT("in_input"&$B31),$E31,AX$28) -> high | AY31: =INDEX(INDIRECT("in_input"&$B31),$E31,AY$28) -> high | AZ31: =INDEX(INDIRECT("in_input"&$B31),$E31,AZ$28) -> high | BA31: =INDEX(INDIRECT("in_input"&$B31),$E31,BA$28) -> high | BB31: =INDEX(INDIRECT("in_input"&$B31),$E31,BB$28) -> high | BC31: =INDEX(INDIRECT("in_input"&$B31),$E31,BC$28) -> high | BD31: =INDEX(INDIRECT("in_input"&$B31),$E31,BD$28) -> high | BG31: Traffic density | BH31: =BG26 -> 0 | BI31: =BG27 -> lei1834 | BK31: 3 | BM31: =INDEX(INDIRECT("in_input"&$B31),$E31,BM$28) -> high | BN31: =INDEX(INDIRECT("in_input"&$B31),$E31,BN$28) -> high | BO31: =INDEX(INDIRECT("in_input"&$B31),$E31,BO$28) -> high | BP31: =INDEX(INDIRECT("in_input"&$B31),$E31,BP$28) -> high | BQ31: =INDEX(INDIRECT("in_input"&$B31),$E31,BQ$28) -> high | BR31: =INDEX(INDIRECT("in_input"&$B31),$E31,BR$28) -> high | BS31: =INDEX(INDIRECT("in_input"&$B31),$E31,BS$28) -> high | BT31: =INDEX(INDIRECT("in_input"&$B31),$E31,BT$28) -> high | BU31: =INDEX(INDIRECT("in_input"&$B31),$E31,BU$28) -> high | BV31: =INDEX(INDIRECT("in_input"&$B31),$E31,BV$28) -> high | BW31: =INDEX(INDIRECT("in_input"&$B31),$E31,BW$28) -> high | BX31: =INDEX(INDIRECT("in_input"&$B31),$E31,BX$28) -> high | BY31: =INDEX(INDIRECT("in_input"&$B31),$E31,BY$28) -> high | BZ31: =INDEX(INDIRECT("in_input"&$B31),$E31,BZ$28) -> high | CA31: =INDEX(INDIRECT("in_input"&$B31),$E31,CA$28) -> high | CB31: =INDEX(INDIRECT("in_input"&$B31),$E31,CB$28) -> high | CC31: =INDEX(INDIRECT("in_input"&$B31),$E31,CC$28) -> high | CD31: =INDEX(INDIRECT("in_input"&$B31),$E31,CD$28) -> high | CE31: =INDEX(INDIRECT("in_input"&$B31),$E31,CE$28) -> high | CF31: =INDEX(INDIRECT("in_input"&$B31),$E31,CF$28) -> high | CG31: =INDEX(INDIRECT("in_input"&$B31),$E31,CG$28) -> high | CJ31: Traffic density | CK31: =CJ26 -> 0 | CL31: =CJ27 -> work3564 | CN31: 3 | CP31: =INDEX(INDIRECT("in_input"&$B31),$E31,CP$28) -> high | CQ31: =INDEX(INDIRECT("in_input"&$B31),$E31,CQ$28) -> high | CR31: =INDEX(INDIRECT("in_input"&$B31),$E31,CR$28) -> high | CS31: =INDEX(INDIRECT("in_input"&$B31),$E31,CS$28) -> high | CT31: =INDEX(INDIRECT("in_input"&$B31),$E31,CT$28) -> high | CU31: =INDEX(INDIRECT("in_input"&$B31),$E31,CU$28) -> high | CV31: =INDEX(INDIRECT("in_input"&$B31),$E31,CV$28) -> high | CW31: =INDEX(INDIRECT("in_input"&$B31),$E31,CW$28) -> high | CX31: =INDEX(INDIRECT("in_input"&$B31),$E31,CX$28) -> high | CY31: =INDEX(INDIRECT("in_input"&$B31),$E31,CY$28) -> high | CZ31: =INDEX(INDIRECT("in_input"&$B31),$E31,CZ$28) -> high | DA31: =INDEX(INDIRECT("in_input"&$B31),$E31,DA$28) -> high | DB31: =INDEX(INDIRECT("in_input"&$B31),$E31,DB$28) -> high | DC31: =INDEX(INDIRECT("in_input"&$B31),$E31,DC$28) -> high | DD31: =INDEX(INDIRECT("in_input"&$B31),$E31,DD$28) -> high | DE31: =INDEX(INDIRECT("in_input"&$B31),$E31,DE$28) -> high | DF31: =INDEX(INDIRECT("in_input"&$B31),$E31,DF$28) -> high | DG31: =INDEX(INDIRECT("in_input"&$B31),$E31,DG$28) -> high | DH31: =INDEX(INDIRECT("in_input"&$B31),$E31,DH$28) -> high | DI31: =INDEX(INDIRECT("in_input"&$B31),$E31,DI$28) -> high | DJ31: =INDEX(INDIRECT("in_input"&$B31),$E31,DJ$28) -> high | DM31: Traffic density | DN31: =DM26 -> 0 | DO31: =DM27 -> shop3564 | DQ31: 3 | DS31: =INDEX(INDIRECT("in_input"&$B31),$E31,DS$28) -> high | DT31: =INDEX(INDIRECT("in_input"&$B31),$E31,DT$28) -> high | DU31: =INDEX(INDIRECT("in_input"&$B31),$E31,DU$28) -> high | DV31: =INDEX(INDIRECT("in_input"&$B31),$E31,DV$28) -> high | DW31: =INDEX(INDIRECT("in_input"&$B31),$E31,DW$28) -> high | DX31: =INDEX(INDIRECT("in_input"&$B31),$E31,DX$28) -> high | DY31: =INDEX(INDIRECT("in_input"&$B31),$E31,DY$28) -> high | DZ31: =INDEX(INDIRECT("in_input"&$B31),$E31,DZ$28) -> high | EA31: =INDEX(INDIRECT("in_input"&$B31),$E31,EA$28) -> high | EB31: =INDEX(INDIRECT("in_input"&$B31),$E31,EB$28) -> high | EC31: =INDEX(INDIRECT("in_input"&$B31),$E31,EC$28) -> high | ED31: =INDEX(INDIRECT("in_input"&$B31),$E31,ED$28) -> high | EE31: =INDEX(INDIRECT("in_input"&$B31),$E31,EE$28) -> high | EF31: =INDEX(INDIRECT("in_input"&$B31),$E31,EF$28) -> high | EG31: =INDEX(INDIRECT("in_input"&$B31),$E31,EG$28) -> high | EH31: =INDEX(INDIRECT("in_input"&$B31),$E31,EH$28) -> high | EI31: =INDEX(INDIRECT("in_input"&$B31),$E31,EI$28) -> high | EJ31: =INDEX(INDIRECT("in_input"&$B31),$E31,EJ$28) -> high | EK31: =INDEX(INDIRECT("in_input"&$B31),$E31,EK$28) -> high | EL31: =INDEX(INDIRECT("in_input"&$B31),$E31,EL$28) -> high | EM31: =INDEX(INDIRECT("in_input"&$B31),$E31,EM$28) -> high | EP31: Traffic density | EQ31: =EP26 -> 0 | ER31: =EP27 -> lei3564 | ET31: 3 | EV31: =INDEX(INDIRECT("in_input"&$B31),$E31,EV$28) -> high | EW31: =INDEX(INDIRECT("in_input"&$B31),$E31,EW$28) -> high | EX31: =INDEX(INDIRECT("in_input"&$B31),$E31,EX$28) -> high | EY31: =INDEX(INDIRECT("in_input"&$B31),$E31,EY$28) -> high | EZ31: =INDEX(INDIRECT("in_input"&$B31),$E31,EZ$28) -> high | FA31: =INDEX(INDIRECT("in_input"&$B31),$E31,FA$28) -> high | FB31: =INDEX(INDIRECT("in_input"&$B31),$E31,FB$28) -> high | FC31: =INDEX(INDIRECT("in_input"&$B31),$E31,FC$28) -> high | FD31: =INDEX(INDIRECT("in_input"&$B31),$E31,FD$28) -> high | FE31: =INDEX(INDIRECT("in_input"&$B31),$E31,FE$28) -> high | FF31: =INDEX(INDIRECT("in_input"&$B31),$E31,FF$28) -> high | FG31: =INDEX(INDIRECT("in_input"&$B31),$E31,FG$28) -> high | FH31: =INDEX(INDIRECT("in_input"&$B31),$E31,FH$28) -> high | FI31: =INDEX(INDIRECT("in_input"&$B31),$E31,FI$28) -> high | FJ31: =INDEX(INDIRECT("in_input"&$B31),$E31,FJ$28) -> high | FK31: =INDEX(INDIRECT("in_input"&$B31),$E31,FK$28) -> high | FL31: =INDEX(INDIRECT("in_input"&$B31),$E31,FL$28) -> high | FM31: =INDEX(INDIRECT("in_input"&$B31),$E31,FM$28) -> high | FN31: =INDEX(INDIRECT("in_input"&$B31),$E31,FN$28) -> high | FO31: =INDEX(INDIRECT("in_input"&$B31),$E31,FO$28) -> high | FP31: =INDEX(INDIRECT("in_input"&$B31),$E31,FP$28) -> high | FS31: Traffic density | FT31: =FS26 -> 0 | FU31: =FS27 -> shop65 | FW31: 3 | FY31: =INDEX(INDIRECT("in_input"&$B31),$E31,FY$28) -> high | FZ31: =INDEX(INDIRECT("in_input"&$B31),$E31,FZ$28) -> high | GA31: =INDEX(INDIRECT("in_input"&$B31),$E31,GA$28) -> high | GB31: =INDEX(INDIRECT("in_input"&$B31),$E31,GB$28) -> high | GC31: =INDEX(INDIRECT("in_input"&$B31),$E31,GC$28) -> high | GD31: =INDEX(INDIRECT("in_input"&$B31),$E31,GD$28) -> high | GE31: =INDEX(INDIRECT("in_input"&$B31),$E31,GE$28) -> high | GF31: =INDEX(INDIRECT("in_input"&$B31),$E31,GF$28) -> high | GG31: =INDEX(INDIRECT("in_input"&$B31),$E31,GG$28) -> high | GH31: =INDEX(INDIRECT("in_input"&$B31),$E31,GH$28) -> high | GI31: =INDEX(INDIRECT("in_input"&$B31),$E31,GI$28) -> high | GJ31: =INDEX(INDIRECT("in_input"&$B31),$E31,GJ$28) -> high | GK31: =INDEX(INDIRECT("in_input"&$B31),$E31,GK$28) -> high | GL31: =INDEX(INDIRECT("in_input"&$B31),$E31,GL$28) -> high | GM31: =INDEX(INDIRECT("in_input"&$B31),$E31,GM$28) -> high | GN31: =INDEX(INDIRECT("in_input"&$B31),$E31,GN$28) -> high | GO31: =INDEX(INDIRECT("in_input"&$B31),$E31,GO$28) -> high | GP31: =INDEX(INDIRECT("in_input"&$B31),$E31,GP$28) -> high | GQ31: =INDEX(INDIRECT("in_input"&$B31),$E31,GQ$28) -> high | GR31: =INDEX(INDIRECT("in_input"&$B31),$E31,GR$28) -> high | GS31: =INDEX(INDIRECT("in_input"&$B31),$E31,GS$28) -> high | GV31: Traffic density | GW31: =GV26 -> 0 | GX31: =GV27 -> lei65 | GZ31: 3 | HB31: =INDEX(INDIRECT("in_input"&$B31),$E31,HB$28) -> high | HC31: =INDEX(INDIRECT("in_input"&$B31),$E31,HC$28) -> high | HD31: =INDEX(INDIRECT("in_input"&$B31),$E31,HD$28) -> high | HE31: =INDEX(INDIRECT("in_input"&$B31),$E31,HE$28) -> high | HF31: =INDEX(INDIRECT("in_input"&$B31),$E31,HF$28) -> high | HG31: =INDEX(INDIRECT("in_input"&$B31),$E31,HG$28) -> high | HH31: =INDEX(INDIRECT("in_input"&$B31),$E31,HH$28) -> high | HI31: =INDEX(INDIRECT("in_input"&$B31),$E31,HI$28) -> high | HJ31: =INDEX(INDIRECT("in_input"&$B31),$E31,HJ$28) -> high | HK31: =INDEX(INDIRECT("in_input"&$B31),$E31,HK$28) -> high | HL31: =INDEX(INDIRECT("in_input"&$B31),$E31,HL$28) -> high | HM31: =INDEX(INDIRECT("in_input"&$B31),$E31,HM$28) -> high | HN31: =INDEX(INDIRECT("in_input"&$B31),$E31,HN$28) -> high | HO31: =INDEX(INDIRECT("in_input"&$B31),$E31,HO$28) -> high | HP31: =INDEX(INDIRECT("in_input"&$B31),$E31,HP$28) -> high | HQ31: =INDEX(INDIRECT("in_input"&$B31),$E31,HQ$28) -> high | HR31: =INDEX(INDIRECT("in_input"&$B31),$E31,HR$28) -> high | HS31: =INDEX(INDIRECT("in_input"&$B31),$E31,HS$28) -> high | HT31: =INDEX(INDIRECT("in_input"&$B31),$E31,HT$28) -> high | HU31: =INDEX(INDIRECT("in_input"&$B31),$E31,HU$28) -> high | HV31: =INDEX(INDIRECT("in_input"&$B31),$E31,HV$28) -> high
A32: Traffic speed (mph) | B32: =A26 -> 0 | C32: =A27 -> work1834 | E32: 4 | G32: =INDEX(INDIRECT("in_input"&$B32),$E32,G$28) -> 40 | H32: =INDEX(INDIRECT("in_input"&$B32),$E32,H$28) -> 40 | I32: =INDEX(INDIRECT("in_input"&$B32),$E32,I$28) -> 40 | J32: =INDEX(INDIRECT("in_input"&$B32),$E32,J$28) -> 40 | K32: =INDEX(INDIRECT("in_input"&$B32),$E32,K$28) -> 40 | L32: =INDEX(INDIRECT("in_input"&$B32),$E32,L$28) -> 40 | M32: =INDEX(INDIRECT("in_input"&$B32),$E32,M$28) -> 40 | N32: =INDEX(INDIRECT("in_input"&$B32),$E32,N$28) -> 40 | O32: =INDEX(INDIRECT("in_input"&$B32),$E32,O$28) -> 40 | P32: =INDEX(INDIRECT("in_input"&$B32),$E32,P$28) -> 40 | Q32: =INDEX(INDIRECT("in_input"&$B32),$E32,Q$28) -> 40 | R32: =INDEX(INDIRECT("in_input"&$B32),$E32,R$28) -> 40 | S32: =INDEX(INDIRECT("in_input"&$B32),$E32,S$28) -> 40 | T32: =INDEX(INDIRECT("in_input"&$B32),$E32,T$28) -> 40 | U32: =INDEX(INDIRECT("in_input"&$B32),$E32,U$28) -> 40 | V32: =INDEX(INDIRECT("in_input"&$B32),$E32,V$28) -> 40 | W32: =INDEX(INDIRECT("in_input"&$B32),$E32,W$28) -> 40 | X32: =INDEX(INDIRECT("in_input"&$B32),$E32,X$28) -> 40 | Y32: =INDEX(INDIRECT("in_input"&$B32),$E32,Y$28) -> 40 | Z32: =INDEX(INDIRECT("in_input"&$B32),$E32,Z$28) -> 40 | AA32: =INDEX(INDIRECT("in_input"&$B32),$E32,AA$28) -> 40 | AD32: Traffic speed (mph) | AE32: =AD26 -> 0 | AF32: =AD27 -> shop1834 | AH32: 4 | AJ32: =INDEX(INDIRECT("in_input"&$B32),$E32,AJ$28) -> 40 | AK32: =INDEX(INDIRECT("in_input"&$B32),$E32,AK$28) -> 40 | AL32: =INDEX(INDIRECT("in_input"&$B32),$E32,AL$28) -> 40 | AM32: =INDEX(INDIRECT("in_input"&$B32),$E32,AM$28) -> 40 | AN32: =INDEX(INDIRECT("in_input"&$B32),$E32,AN$28) -> 40 | AO32: =INDEX(INDIRECT("in_input"&$B32),$E32,AO$28) -> 40 | AP32: =INDEX(INDIRECT("in_input"&$B32),$E32,AP$28) -> 40 | AQ32: =INDEX(INDIRECT("in_input"&$B32),$E32,AQ$28) -> 40 | AR32: =INDEX(INDIRECT("in_input"&$B32),$E32,AR$28) -> 40 | AS32: =INDEX(INDIRECT("in_input"&$B32),$E32,AS$28) -> 40 | AT32: =INDEX(INDIRECT("in_input"&$B32),$E32,AT$28) -> 40 | AU32: =INDEX(INDIRECT("in_input"&$B32),$E32,AU$28) -> 40 | AV32: =INDEX(INDIRECT("in_input"&$B32),$E32,AV$28) -> 40 | AW32: =INDEX(INDIRECT("in_input"&$B32),$E32,AW$28) -> 40 | AX32: =INDEX(INDIRECT("in_input"&$B32),$E32,AX$28) -> 40 | AY32: =INDEX(INDIRECT("in_input"&$B32),$E32,AY$28) -> 40 | AZ32: =INDEX(INDIRECT("in_input"&$B32),$E32,AZ$28) -> 40 | BA32: =INDEX(INDIRECT("in_input"&$B32),$E32,BA$28) -> 40 | BB32: =INDEX(INDIRECT("in_input"&$B32),$E32,BB$28) -> 40 | BC32: =INDEX(INDIRECT("in_input"&$B32),$E32,BC$28) -> 40 | BD32: =INDEX(INDIRECT("in_input"&$B32),$E32,BD$28) -> 40 | BG32: Traffic speed (mph) | BH32: =BG26 -> 0 | BI32: =BG27 -> lei1834 | BK32: 4 | BM32: =INDEX(INDIRECT("in_input"&$B32),$E32,BM$28) -> 40 | BN32: =INDEX(INDIRECT("in_input"&$B32),$E32,BN$28) -> 40 | BO32: =INDEX(INDIRECT("in_input"&$B32),$E32,BO$28) -> 40 | BP32: =INDEX(INDIRECT("in_input"&$B32),$E32,BP$28) -> 40 | BQ32: =INDEX(INDIRECT("in_input"&$B32),$E32,BQ$28) -> 40 | BR32: =INDEX(INDIRECT("in_input"&$B32),$E32,BR$28) -> 40 | BS32: =INDEX(INDIRECT("in_input"&$B32),$E32,BS$28) -> 40 | BT32: =INDEX(INDIRECT("in_input"&$B32),$E32,BT$28) -> 40 | BU32: =INDEX(INDIRECT("in_input"&$B32),$E32,BU$28) -> 40 | BV32: =INDEX(INDIRECT("in_input"&$B32),$E32,BV$28) -> 40 | BW32: =INDEX(INDIRECT("in_input"&$B32),$E32,BW$28) -> 40 | BX32: =INDEX(INDIRECT("in_input"&$B32),$E32,BX$28) -> 40 | BY32: =INDEX(INDIRECT("in_input"&$B32),$E32,BY$28) -> 40 | BZ32: =INDEX(INDIRECT("in_input"&$B32),$E32,BZ$28) -> 40 | CA32: =INDEX(INDIRECT("in_input"&$B32),$E32,CA$28) -> 40 | CB32: =INDEX(INDIRECT("in_input"&$B32),$E32,CB$28) -> 40 | CC32: =INDEX(INDIRECT("in_input"&$B32),$E32,CC$28) -> 40 | CD32: =INDEX(INDIRECT("in_input"&$B32),$E32,CD$28) -> 40 | CE32: =INDEX(INDIRECT("in_input"&$B32),$E32,CE$28) -> 40 | CF32: =INDEX(INDIRECT("in_input"&$B32),$E32,CF$28) -> 40 | CG32: =INDEX(INDIRECT("in_input"&$B32),$E32,CG$28) -> 40 | CJ32: Traffic speed (mph) | CK32: =CJ26 -> 0 | CL32: =CJ27 -> work3564 | CN32: 4 | CP32: =INDEX(INDIRECT("in_input"&$B32),$E32,CP$28) -> 40 | CQ32: =INDEX(INDIRECT("in_input"&$B32),$E32,CQ$28) -> 40 | CR32: =INDEX(INDIRECT("in_input"&$B32),$E32,CR$28) -> 40 | CS32: =INDEX(INDIRECT("in_input"&$B32),$E32,CS$28) -> 40 | CT32: =INDEX(INDIRECT("in_input"&$B32),$E32,CT$28) -> 40 | CU32: =INDEX(INDIRECT("in_input"&$B32),$E32,CU$28) -> 40 | CV32: =INDEX(INDIRECT("in_input"&$B32),$E32,CV$28) -> 40 | CW32: =INDEX(INDIRECT("in_input"&$B32),$E32,CW$28) -> 40 | CX32: =INDEX(INDIRECT("in_input"&$B32),$E32,CX$28) -> 40 | CY32: =INDEX(INDIRECT("in_input"&$B32),$E32,CY$28) -> 40 | CZ32: =INDEX(INDIRECT("in_input"&$B32),$E32,CZ$28) -> 40 | DA32: =INDEX(INDIRECT("in_input"&$B32),$E32,DA$28) -> 40 | DB32: =INDEX(INDIRECT("in_input"&$B32),$E32,DB$28) -> 40 | DC32: =INDEX(INDIRECT("in_input"&$B32),$E32,DC$28) -> 40 | DD32: =INDEX(INDIRECT("in_input"&$B32),$E32,DD$28) -> 40 | DE32: =INDEX(INDIRECT("in_input"&$B32),$E32,DE$28) -> 40 | DF32: =INDEX(INDIRECT("in_input"&$B32),$E32,DF$28) -> 40 | DG32: =INDEX(INDIRECT("in_input"&$B32),$E32,DG$28) -> 40 | DH32: =INDEX(INDIRECT("in_input"&$B32),$E32,DH$28) -> 40 | DI32: =INDEX(INDIRECT("in_input"&$B32),$E32,DI$28) -> 40 | DJ32: =INDEX(INDIRECT("in_input"&$B32),$E32,DJ$28) -> 40 | DM32: Traffic speed (mph) | DN32: =DM26 -> 0 | DO32: =DM27 -> shop3564 | DQ32: 4 | DS32: =INDEX(INDIRECT("in_input"&$B32),$E32,DS$28) -> 40 | DT32: =INDEX(INDIRECT("in_input"&$B32),$E32,DT$28) -> 40 | DU32: =INDEX(INDIRECT("in_input"&$B32),$E32,DU$28) -> 40 | DV32: =INDEX(INDIRECT("in_input"&$B32),$E32,DV$28) -> 40 | DW32: =INDEX(INDIRECT("in_input"&$B32),$E32,DW$28) -> 40 | DX32: =INDEX(INDIRECT("in_input"&$B32),$E32,DX$28) -> 40 | DY32: =INDEX(INDIRECT("in_input"&$B32),$E32,DY$28) -> 40 | DZ32: =INDEX(INDIRECT("in_input"&$B32),$E32,DZ$28) -> 40 | EA32: =INDEX(INDIRECT("in_input"&$B32),$E32,EA$28) -> 40 | EB32: =INDEX(INDIRECT("in_input"&$B32),$E32,EB$28) -> 40 | EC32: =INDEX(INDIRECT("in_input"&$B32),$E32,EC$28) -> 40 | ED32: =INDEX(INDIRECT("in_input"&$B32),$E32,ED$28) -> 40 | EE32: =INDEX(INDIRECT("in_input"&$B32),$E32,EE$28) -> 40 | EF32: =INDEX(INDIRECT("in_input"&$B32),$E32,EF$28) -> 40 | EG32: =INDEX(INDIRECT("in_input"&$B32),$E32,EG$28) -> 40 | EH32: =INDEX(INDIRECT("in_input"&$B32),$E32,EH$28) -> 40 | EI32: =INDEX(INDIRECT("in_input"&$B32),$E32,EI$28) -> 40 | EJ32: =INDEX(INDIRECT("in_input"&$B32),$E32,EJ$28) -> 40 | EK32: =INDEX(INDIRECT("in_input"&$B32),$E32,EK$28) -> 40 | EL32: =INDEX(INDIRECT("in_input"&$B32),$E32,EL$28) -> 40 | EM32: =INDEX(INDIRECT("in_input"&$B32),$E32,EM$28) -> 40 | EP32: Traffic speed (mph) | EQ32: =EP26 -> 0 | ER32: =EP27 -> lei3564 | ET32: 4 | EV32: =INDEX(INDIRECT("in_input"&$B32),$E32,EV$28) -> 40 | EW32: =INDEX(INDIRECT("in_input"&$B32),$E32,EW$28) -> 40 | EX32: =INDEX(INDIRECT("in_input"&$B32),$E32,EX$28) -> 40 | EY32: =INDEX(INDIRECT("in_input"&$B32),$E32,EY$28) -> 40 | EZ32: =INDEX(INDIRECT("in_input"&$B32),$E32,EZ$28) -> 40 | FA32: =INDEX(INDIRECT("in_input"&$B32),$E32,FA$28) -> 40 | FB32: =INDEX(INDIRECT("in_input"&$B32),$E32,FB$28) -> 40 | FC32: =INDEX(INDIRECT("in_input"&$B32),$E32,FC$28) -> 40 | FD32: =INDEX(INDIRECT("in_input"&$B32),$E32,FD$28) -> 40 | FE32: =INDEX(INDIRECT("in_input"&$B32),$E32,FE$28) -> 40 | FF32: =INDEX(INDIRECT("in_input"&$B32),$E32,FF$28) -> 40 | FG32: =INDEX(INDIRECT("in_input"&$B32),$E32,FG$28) -> 40 | FH32: =INDEX(INDIRECT("in_input"&$B32),$E32,FH$28) -> 40 | FI32: =INDEX(INDIRECT("in_input"&$B32),$E32,FI$28) -> 40 | FJ32: =INDEX(INDIRECT("in_input"&$B32),$E32,FJ$28) -> 40 | FK32: =INDEX(INDIRECT("in_input"&$B32),$E32,FK$28) -> 40 | FL32: =INDEX(INDIRECT("in_input"&$B32),$E32,FL$28) -> 40 | FM32: =INDEX(INDIRECT("in_input"&$B32),$E32,FM$28) -> 40 | FN32: =INDEX(INDIRECT("in_input"&$B32),$E32,FN$28) -> 40 | FO32: =INDEX(INDIRECT("in_input"&$B32),$E32,FO$28) -> 40 | FP32: =INDEX(INDIRECT("in_input"&$B32),$E32,FP$28) -> 40 | FS32: Traffic speed (mph) | FT32: =FS26 -> 0 | FU32: =FS27 -> shop65 | FW32: 4 | FY32: =INDEX(INDIRECT("in_input"&$B32),$E32,FY$28) -> 40 | FZ32: =INDEX(INDIRECT("in_input"&$B32),$E32,FZ$28) -> 40 | GA32: =INDEX(INDIRECT("in_input"&$B32),$E32,GA$28) -> 40 | GB32: =INDEX(INDIRECT("in_input"&$B32),$E32,GB$28) -> 40 | GC32: =INDEX(INDIRECT("in_input"&$B32),$E32,GC$28) -> 40 | GD32: =INDEX(INDIRECT("in_input"&$B32),$E32,GD$28) -> 40 | GE32: =INDEX(INDIRECT("in_input"&$B32),$E32,GE$28) -> 40 | GF32: =INDEX(INDIRECT("in_input"&$B32),$E32,GF$28) -> 40 | GG32: =INDEX(INDIRECT("in_input"&$B32),$E32,GG$28) -> 40 | GH32: =INDEX(INDIRECT("in_input"&$B32),$E32,GH$28) -> 40 | GI32: =INDEX(INDIRECT("in_input"&$B32),$E32,GI$28) -> 40 | GJ32: =INDEX(INDIRECT("in_input"&$B32),$E32,GJ$28) -> 40 | GK32: =INDEX(INDIRECT("in_input"&$B32),$E32,GK$28) -> 40 | GL32: =INDEX(INDIRECT("in_input"&$B32),$E32,GL$28) -> 40 | GM32: =INDEX(INDIRECT("in_input"&$B32),$E32,GM$28) -> 40 | GN32: =INDEX(INDIRECT("in_input"&$B32),$E32,GN$28) -> 40 | GO32: =INDEX(INDIRECT("in_input"&$B32),$E32,GO$28) -> 40 | GP32: =INDEX(INDIRECT("in_input"&$B32),$E32,GP$28) -> 40 | GQ32: =INDEX(INDIRECT("in_input"&$B32),$E32,GQ$28) -> 40 | GR32: =INDEX(INDIRECT("in_input"&$B32),$E32,GR$28) -> 40 | GS32: =INDEX(INDIRECT("in_input"&$B32),$E32,GS$28) -> 40 | GV32: Traffic speed (mph) | GW32: =GV26 -> 0 | GX32: =GV27 -> lei65 | GZ32: 4 | HB32: =INDEX(INDIRECT("in_input"&$B32),$E32,HB$28) -> 40 | HC32: =INDEX(INDIRECT("in_input"&$B32),$E32,HC$28) -> 40 | HD32: =INDEX(INDIRECT("in_input"&$B32),$E32,HD$28) -> 40 | HE32: =INDEX(INDIRECT("in_input"&$B32),$E32,HE$28) -> 40 | HF32: =INDEX(INDIRECT("in_input"&$B32),$E32,HF$28) -> 40 | HG32: =INDEX(INDIRECT("in_input"&$B32),$E32,HG$28) -> 40 | HH32: =INDEX(INDIRECT("in_input"&$B32),$E32,HH$28) -> 40 | HI32: =INDEX(INDIRECT("in_input"&$B32),$E32,HI$28) -> 40 | HJ32: =INDEX(INDIRECT("in_input"&$B32),$E32,HJ$28) -> 40 | HK32: =INDEX(INDIRECT("in_input"&$B32),$E32,HK$28) -> 40 | HL32: =INDEX(INDIRECT("in_input"&$B32),$E32,HL$28) -> 40 | HM32: =INDEX(INDIRECT("in_input"&$B32),$E32,HM$28) -> 40 | HN32: =INDEX(INDIRECT("in_input"&$B32),$E32,HN$28) -> 40 | HO32: =INDEX(INDIRECT("in_input"&$B32),$E32,HO$28) -> 40 | HP32: =INDEX(INDIRECT("in_input"&$B32),$E32,HP$28) -> 40 | HQ32: =INDEX(INDIRECT("in_input"&$B32),$E32,HQ$28) -> 40 | HR32: =INDEX(INDIRECT("in_input"&$B32),$E32,HR$28) -> 40 | HS32: =INDEX(INDIRECT("in_input"&$B32),$E32,HS$28) -> 40 | HT32: =INDEX(INDIRECT("in_input"&$B32),$E32,HT$28) -> 40 | HU32: =INDEX(INDIRECT("in_input"&$B32),$E32,HU$28) -> 40 | HV32: =INDEX(INDIRECT("in_input"&$B32),$E32,HV$28) -> 40
A33: Guard railing | B33: =A26 -> 0 | C33: =A27 -> work1834 | E33: 6 | G33: =INDEX(INDIRECT("in_input"&$B33),$E33,G$28) -> 0 | H33: =INDEX(INDIRECT("in_input"&$B33),$E33,H$28) -> 0 | I33: =INDEX(INDIRECT("in_input"&$B33),$E33,I$28) -> 0 | J33: =INDEX(INDIRECT("in_input"&$B33),$E33,J$28) -> 0 | K33: =INDEX(INDIRECT("in_input"&$B33),$E33,K$28) -> 0 | L33: =INDEX(INDIRECT("in_input"&$B33),$E33,L$28) -> 0 | M33: =INDEX(INDIRECT("in_input"&$B33),$E33,M$28) -> 0 | N33: =INDEX(INDIRECT("in_input"&$B33),$E33,N$28) -> 0 | O33: =INDEX(INDIRECT("in_input"&$B33),$E33,O$28) -> 0 | P33: =INDEX(INDIRECT("in_input"&$B33),$E33,P$28) -> 0 | Q33: =INDEX(INDIRECT("in_input"&$B33),$E33,Q$28) -> 0 | R33: =INDEX(INDIRECT("in_input"&$B33),$E33,R$28) -> 0 | S33: =INDEX(INDIRECT("in_input"&$B33),$E33,S$28) -> 0 | T33: =INDEX(INDIRECT("in_input"&$B33),$E33,T$28) -> 0 | U33: =INDEX(INDIRECT("in_input"&$B33),$E33,U$28) -> 0 | V33: =INDEX(INDIRECT("in_input"&$B33),$E33,V$28) -> 0 | W33: =INDEX(INDIRECT("in_input"&$B33),$E33,W$28) -> 0 | X33: =INDEX(INDIRECT("in_input"&$B33),$E33,X$28) -> 0 | Y33: =INDEX(INDIRECT("in_input"&$B33),$E33,Y$28) -> 0 | Z33: =INDEX(INDIRECT("in_input"&$B33),$E33,Z$28) -> 0 | AA33: =INDEX(INDIRECT("in_input"&$B33),$E33,AA$28) -> 0 | AD33: Guard railing | AE33: =AD26 -> 0 | AF33: =AD27 -> shop1834 | AH33: 6 | AJ33: =INDEX(INDIRECT("in_input"&$B33),$E33,AJ$28) -> 0 | AK33: =INDEX(INDIRECT("in_input"&$B33),$E33,AK$28) -> 0 | AL33: =INDEX(INDIRECT("in_input"&$B33),$E33,AL$28) -> 0 | AM33: =INDEX(INDIRECT("in_input"&$B33),$E33,AM$28) -> 0 | AN33: =INDEX(INDIRECT("in_input"&$B33),$E33,AN$28) -> 0 | AO33: =INDEX(INDIRECT("in_input"&$B33),$E33,AO$28) -> 0 | AP33: =INDEX(INDIRECT("in_input"&$B33),$E33,AP$28) -> 0 | AQ33: =INDEX(INDIRECT("in_input"&$B33),$E33,AQ$28) -> 0 | AR33: =INDEX(INDIRECT("in_input"&$B33),$E33,AR$28) -> 0 | AS33: =INDEX(INDIRECT("in_input"&$B33),$E33,AS$28) -> 0 | AT33: =INDEX(INDIRECT("in_input"&$B33),$E33,AT$28) -> 0 | AU33: =INDEX(INDIRECT("in_input"&$B33),$E33,AU$28) -> 0 | AV33: =INDEX(INDIRECT("in_input"&$B33),$E33,AV$28) -> 0 | AW33: =INDEX(INDIRECT("in_input"&$B33),$E33,AW$28) -> 0 | AX33: =INDEX(INDIRECT("in_input"&$B33),$E33,AX$28) -> 0 | AY33: =INDEX(INDIRECT("in_input"&$B33),$E33,AY$28) -> 0 | AZ33: =INDEX(INDIRECT("in_input"&$B33),$E33,AZ$28) -> 0 | BA33: =INDEX(INDIRECT("in_input"&$B33),$E33,BA$28) -> 0 | BB33: =INDEX(INDIRECT("in_input"&$B33),$E33,BB$28) -> 0 | BC33: =INDEX(INDIRECT("in_input"&$B33),$E33,BC$28) -> 0 | BD33: =INDEX(INDIRECT("in_input"&$B33),$E33,BD$28) -> 0 | BG33: Guard railing | BH33: =BG26 -> 0 | BI33: =BG27 -> lei1834 | BK33: 6 | BM33: =INDEX(INDIRECT("in_input"&$B33),$E33,BM$28) -> 0 | BN33: =INDEX(INDIRECT("in_input"&$B33),$E33,BN$28) -> 0 | BO33: =INDEX(INDIRECT("in_input"&$B33),$E33,BO$28) -> 0 | BP33: =INDEX(INDIRECT("in_input"&$B33),$E33,BP$28) -> 0 | BQ33: =INDEX(INDIRECT("in_input"&$B33),$E33,BQ$28) -> 0 | BR33: =INDEX(INDIRECT("in_input"&$B33),$E33,BR$28) -> 0 | BS33: =INDEX(INDIRECT("in_input"&$B33),$E33,BS$28) -> 0 | BT33: =INDEX(INDIRECT("in_input"&$B33),$E33,BT$28) -> 0 | BU33: =INDEX(INDIRECT("in_input"&$B33),$E33,BU$28) -> 0 | BV33: =INDEX(INDIRECT("in_input"&$B33),$E33,BV$28) -> 0 | BW33: =INDEX(INDIRECT("in_input"&$B33),$E33,BW$28) -> 0 | BX33: =INDEX(INDIRECT("in_input"&$B33),$E33,BX$28) -> 0 | BY33: =INDEX(INDIRECT("in_input"&$B33),$E33,BY$28) -> 0 | BZ33: =INDEX(INDIRECT("in_input"&$B33),$E33,BZ$28) -> 0 | CA33: =INDEX(INDIRECT("in_input"&$B33),$E33,CA$28) -> 0 | CB33: =INDEX(INDIRECT("in_input"&$B33),$E33,CB$28) -> 0 | CC33: =INDEX(INDIRECT("in_input"&$B33),$E33,CC$28) -> 0 | CD33: =INDEX(INDIRECT("in_input"&$B33),$E33,CD$28) -> 0 | CE33: =INDEX(INDIRECT("in_input"&$B33),$E33,CE$28) -> 0 | CF33: =INDEX(INDIRECT("in_input"&$B33),$E33,CF$28) -> 0 | CG33: =INDEX(INDIRECT("in_input"&$B33),$E33,CG$28) -> 0 | CJ33: Guard railing | CK33: =CJ26 -> 0 | CL33: =CJ27 -> work3564 | CN33: 6 | CP33: =INDEX(INDIRECT("in_input"&$B33),$E33,CP$28) -> 0 | CQ33: =INDEX(INDIRECT("in_input"&$B33),$E33,CQ$28) -> 0 | CR33: =INDEX(INDIRECT("in_input"&$B33),$E33,CR$28) -> 0 | CS33: =INDEX(INDIRECT("in_input"&$B33),$E33,CS$28) -> 0 | CT33: =INDEX(INDIRECT("in_input"&$B33),$E33,CT$28) -> 0 | CU33: =INDEX(INDIRECT("in_input"&$B33),$E33,CU$28) -> 0 | CV33: =INDEX(INDIRECT("in_input"&$B33),$E33,CV$28) -> 0 | CW33: =INDEX(INDIRECT("in_input"&$B33),$E33,CW$28) -> 0 | CX33: =INDEX(INDIRECT("in_input"&$B33),$E33,CX$28) -> 0 | CY33: =INDEX(INDIRECT("in_input"&$B33),$E33,CY$28) -> 0 | CZ33: =INDEX(INDIRECT("in_input"&$B33),$E33,CZ$28) -> 0 | DA33: =INDEX(INDIRECT("in_input"&$B33),$E33,DA$28) -> 0 | DB33: =INDEX(INDIRECT("in_input"&$B33),$E33,DB$28) -> 0 | DC33: =INDEX(INDIRECT("in_input"&$B33),$E33,DC$28) -> 0 | DD33: =INDEX(INDIRECT("in_input"&$B33),$E33,DD$28) -> 0 | DE33: =INDEX(INDIRECT("in_input"&$B33),$E33,DE$28) -> 0 | DF33: =INDEX(INDIRECT("in_input"&$B33),$E33,DF$28) -> 0 | DG33: =INDEX(INDIRECT("in_input"&$B33),$E33,DG$28) -> 0 | DH33: =INDEX(INDIRECT("in_input"&$B33),$E33,DH$28) -> 0 | DI33: =INDEX(INDIRECT("in_input"&$B33),$E33,DI$28) -> 0 | DJ33: =INDEX(INDIRECT("in_input"&$B33),$E33,DJ$28) -> 0 | DM33: Guard railing | DN33: =DM26 -> 0 | DO33: =DM27 -> shop3564 | DQ33: 6 | DS33: =INDEX(INDIRECT("in_input"&$B33),$E33,DS$28) -> 0 | DT33: =INDEX(INDIRECT("in_input"&$B33),$E33,DT$28) -> 0 | DU33: =INDEX(INDIRECT("in_input"&$B33),$E33,DU$28) -> 0 | DV33: =INDEX(INDIRECT("in_input"&$B33),$E33,DV$28) -> 0 | DW33: =INDEX(INDIRECT("in_input"&$B33),$E33,DW$28) -> 0 | DX33: =INDEX(INDIRECT("in_input"&$B33),$E33,DX$28) -> 0 | DY33: =INDEX(INDIRECT("in_input"&$B33),$E33,DY$28) -> 0 | DZ33: =INDEX(INDIRECT("in_input"&$B33),$E33,DZ$28) -> 0 | EA33: =INDEX(INDIRECT("in_input"&$B33),$E33,EA$28) -> 0 | EB33: =INDEX(INDIRECT("in_input"&$B33),$E33,EB$28) -> 0 | EC33: =INDEX(INDIRECT("in_input"&$B33),$E33,EC$28) -> 0 | ED33: =INDEX(INDIRECT("in_input"&$B33),$E33,ED$28) -> 0 | EE33: =INDEX(INDIRECT("in_input"&$B33),$E33,EE$28) -> 0 | EF33: =INDEX(INDIRECT("in_input"&$B33),$E33,EF$28) -> 0 | EG33: =INDEX(INDIRECT("in_input"&$B33),$E33,EG$28) -> 0 | EH33: =INDEX(INDIRECT("in_input"&$B33),$E33,EH$28) -> 0 | EI33: =INDEX(INDIRECT("in_input"&$B33),$E33,EI$28) -> 0 | EJ33: =INDEX(INDIRECT("in_input"&$B33),$E33,EJ$28) -> 0 | EK33: =INDEX(INDIRECT("in_input"&$B33),$E33,EK$28) -> 0 | EL33: =INDEX(INDIRECT("in_input"&$B33),$E33,EL$28) -> 0 | EM33: =INDEX(INDIRECT("in_input"&$B33),$E33,EM$28) -> 0 | EP33: Guard railing | EQ33: =EP26 -> 0 | ER33: =EP27 -> lei3564 | ET33: 6 | EV33: =INDEX(INDIRECT("in_input"&$B33),$E33,EV$28) -> 0 | EW33: =INDEX(INDIRECT("in_input"&$B33),$E33,EW$28) -> 0 | EX33: =INDEX(INDIRECT("in_input"&$B33),$E33,EX$28) -> 0 | EY33: =INDEX(INDIRECT("in_input"&$B33),$E33,EY$28) -> 0 | EZ33: =INDEX(INDIRECT("in_input"&$B33),$E33,EZ$28) -> 0 | FA33: =INDEX(INDIRECT("in_input"&$B33),$E33,FA$28) -> 0 | FB33: =INDEX(INDIRECT("in_input"&$B33),$E33,FB$28) -> 0 | FC33: =INDEX(INDIRECT("in_input"&$B33),$E33,FC$28) -> 0 | FD33: =INDEX(INDIRECT("in_input"&$B33),$E33,FD$28) -> 0 | FE33: =INDEX(INDIRECT("in_input"&$B33),$E33,FE$28) -> 0 | FF33: =INDEX(INDIRECT("in_input"&$B33),$E33,FF$28) -> 0 | FG33: =INDEX(INDIRECT("in_input"&$B33),$E33,FG$28) -> 0 | FH33: =INDEX(INDIRECT("in_input"&$B33),$E33,FH$28) -> 0 | FI33: =INDEX(INDIRECT("in_input"&$B33),$E33,FI$28) -> 0 | FJ33: =INDEX(INDIRECT("in_input"&$B33),$E33,FJ$28) -> 0 | FK33: =INDEX(INDIRECT("in_input"&$B33),$E33,FK$28) -> 0 | FL33: =INDEX(INDIRECT("in_input"&$B33),$E33,FL$28) -> 0 | FM33: =INDEX(INDIRECT("in_input"&$B33),$E33,FM$28) -> 0 | FN33: =INDEX(INDIRECT("in_input"&$B33),$E33,FN$28) -> 0 | FO33: =INDEX(INDIRECT("in_input"&$B33),$E33,FO$28) -> 0 | FP33: =INDEX(INDIRECT("in_input"&$B33),$E33,FP$28) -> 0 | FS33: Guard railing | FT33: =FS26 -> 0 | FU33: =FS27 -> shop65 | FW33: 6 | FY33: =INDEX(INDIRECT("in_input"&$B33),$E33,FY$28) -> 0 | FZ33: =INDEX(INDIRECT("in_input"&$B33),$E33,FZ$28) -> 0 | GA33: =INDEX(INDIRECT("in_input"&$B33),$E33,GA$28) -> 0 | GB33: =INDEX(INDIRECT("in_input"&$B33),$E33,GB$28) -> 0 | GC33: =INDEX(INDIRECT("in_input"&$B33),$E33,GC$28) -> 0 | GD33: =INDEX(INDIRECT("in_input"&$B33),$E33,GD$28) -> 0 | GE33: =INDEX(INDIRECT("in_input"&$B33),$E33,GE$28) -> 0 | GF33: =INDEX(INDIRECT("in_input"&$B33),$E33,GF$28) -> 0 | GG33: =INDEX(INDIRECT("in_input"&$B33),$E33,GG$28) -> 0 | GH33: =INDEX(INDIRECT("in_input"&$B33),$E33,GH$28) -> 0 | GI33: =INDEX(INDIRECT("in_input"&$B33),$E33,GI$28) -> 0 | GJ33: =INDEX(INDIRECT("in_input"&$B33),$E33,GJ$28) -> 0 | GK33: =INDEX(INDIRECT("in_input"&$B33),$E33,GK$28) -> 0 | GL33: =INDEX(INDIRECT("in_input"&$B33),$E33,GL$28) -> 0 | GM33: =INDEX(INDIRECT("in_input"&$B33),$E33,GM$28) -> 0 | GN33: =INDEX(INDIRECT("in_input"&$B33),$E33,GN$28) -> 0 | GO33: =INDEX(INDIRECT("in_input"&$B33),$E33,GO$28) -> 0 | GP33: =INDEX(INDIRECT("in_input"&$B33),$E33,GP$28) -> 0 | GQ33: =INDEX(INDIRECT("in_input"&$B33),$E33,GQ$28) -> 0 | GR33: =INDEX(INDIRECT("in_input"&$B33),$E33,GR$28) -> 0 | GS33: =INDEX(INDIRECT("in_input"&$B33),$E33,GS$28) -> 0 | GV33: Guard railing | GW33: =GV26 -> 0 | GX33: =GV27 -> lei65 | GZ33: 6 | HB33: =INDEX(INDIRECT("in_input"&$B33),$E33,HB$28) -> 0 | HC33: =INDEX(INDIRECT("in_input"&$B33),$E33,HC$28) -> 0 | HD33: =INDEX(INDIRECT("in_input"&$B33),$E33,HD$28) -> 0 | HE33: =INDEX(INDIRECT("in_input"&$B33),$E33,HE$28) -> 0 | HF33: =INDEX(INDIRECT("in_input"&$B33),$E33,HF$28) -> 0 | HG33: =INDEX(INDIRECT("in_input"&$B33),$E33,HG$28) -> 0 | HH33: =INDEX(INDIRECT("in_input"&$B33),$E33,HH$28) -> 0 | HI33: =INDEX(INDIRECT("in_input"&$B33),$E33,HI$28) -> 0 | HJ33: =INDEX(INDIRECT("in_input"&$B33),$E33,HJ$28) -> 0 | HK33: =INDEX(INDIRECT("in_input"&$B33),$E33,HK$28) -> 0 | HL33: =INDEX(INDIRECT("in_input"&$B33),$E33,HL$28) -> 0 | HM33: =INDEX(INDIRECT("in_input"&$B33),$E33,HM$28) -> 0 | HN33: =INDEX(INDIRECT("in_input"&$B33),$E33,HN$28) -> 0 | HO33: =INDEX(INDIRECT("in_input"&$B33),$E33,HO$28) -> 0 | HP33: =INDEX(INDIRECT("in_input"&$B33),$E33,HP$28) -> 0 | HQ33: =INDEX(INDIRECT("in_input"&$B33),$E33,HQ$28) -> 0 | HR33: =INDEX(INDIRECT("in_input"&$B33),$E33,HR$28) -> 0 | HS33: =INDEX(INDIRECT("in_input"&$B33),$E33,HS$28) -> 0 | HT33: =INDEX(INDIRECT("in_input"&$B33),$E33,HT$28) -> 0 | HU33: =INDEX(INDIRECT("in_input"&$B33),$E33,HU$28) -> 0 | HV33: =INDEX(INDIRECT("in_input"&$B33),$E33,HV$28) -> 0
A34: Type of crossing | B34: =A26 -> 0 | C34: =A27 -> work1834 | E34: 8 | G34: =IF(INDEX(INDIRECT("in_input"&$B34),$E34,G$28)="","",INDEX(INDIRECT("in_input"&$B34),$E34,G$28)) -> U | H34: =IF(INDEX(INDIRECT("in_input"&$B34),$E34,H$28)="","",INDEX(INDIRECT("in_input"&$B34),$E34,H$28)) ->  | I34: =IF(INDEX(INDIRECT("in_input"&$B34),$E34,I$28)="","",INDEX(INDIRECT("in_input"&$B34),$E34,I$28)) ->  | J34: =IF(INDEX(INDIRECT("in_input"&$B34),$E34,J$28)="","",INDEX(INDIRECT("in_input"&$B34),$E34,J$28)) ->  | K34: =IF(INDEX(INDIRECT("in_input"&$B34),$E34,K$28)="","",INDEX(INDIRECT("in_input"&$B34),$E34,K$28)) ->  | L34: =IF(INDEX(INDIRECT("in_input"&$B34),$E34,L$28)="","",INDEX(INDIRECT("in_input"&$B34),$E34,L$28)) ->  | M34: =IF(INDEX(INDIRECT("in_input"&$B34),$E34,M$28)="","",INDEX(INDIRECT("in_input"&$B34),$E34,M$28)) ->  | N34: =IF(INDEX(INDIRECT("in_input"&$B34),$E34,N$28)="","",INDEX(INDIRECT("in_input"&$B34),$E34,N$28)) ->  | O34: =IF(INDEX(INDIRECT("in_input"&$B34),$E34,O$28)="","",INDEX(INDIRECT("in_input"&$B34),$E34,O$28)) ->  | P34: =IF(INDEX(INDIRECT("in_input"&$B34),$E34,P$28)="","",INDEX(INDIRECT("in_input"&$B34),$E34,P$28)) ->  | Q34: =IF(INDEX(INDIRECT("in_input"&$B34),$E34,Q$28)="","",INDEX(INDIRECT("in_input"&$B34),$E34,Q$28)) ->  | R34: =IF(INDEX(INDIRECT("in_input"&$B34),$E34,R$28)="","",INDEX(INDIRECT("in_input"&$B34),$E34,R$28)) ->  | S34: =IF(INDEX(INDIRECT("in_input"&$B34),$E34,S$28)="","",INDEX(INDIRECT("in_input"&$B34),$E34,S$28)) ->  | T34: =IF(INDEX(INDIRECT("in_input"&$B34),$E34,T$28)="","",INDEX(INDIRECT("in_input"&$B34),$E34,T$28)) ->  | U34: =IF(INDEX(INDIRECT("in_input"&$B34),$E34,U$28)="","",INDEX(INDIRECT("in_input"&$B34),$E34,U$28)) ->  | V34: =IF(INDEX(INDIRECT("in_input"&$B34),$E34,V$28)="","",INDEX(INDIRECT("in_input"&$B34),$E34,V$28)) ->  | W34: =IF(INDEX(INDIRECT("in_input"&$B34),$E34,W$28)="","",INDEX(INDIRECT("in_input"&$B34),$E34,W$28)) ->  | X34: =IF(INDEX(INDIRECT("in_input"&$B34),$E34,X$28)="","",INDEX(INDIRECT("in_input"&$B34),$E34,X$28)) ->  | Y34: =IF(INDEX(INDIRECT("in_input"&$B34),$E34,Y$28)="","",INDEX(INDIRECT("in_input"&$B34),$E34,Y$28)) ->  | Z34: =IF(INDEX(INDIRECT("in_input"&$B34),$E34,Z$28)="","",INDEX(INDIRECT("in_input"&$B34),$E34,Z$28)) ->  | AA34: =IF(INDEX(INDIRECT("in_input"&$B34),$E34,AA$28)="","",INDEX(INDIRECT("in_input"&$B34),$E34,AA$28)) ->  | AD34: Type of crossing | AE34: =AD26 -> 0 | AF34: =AD27 -> shop1834 | AH34: 8 | AJ34: =IF(INDEX(INDIRECT("in_input"&$B34),$E34,AJ$28)="","",INDEX(INDIRECT("in_input"&$B34),$E34,AJ$28)) -> U | AK34: =IF(INDEX(INDIRECT("in_input"&$B34),$E34,AK$28)="","",INDEX(INDIRECT("in_input"&$B34),$E34,AK$28)) ->  | AL34: =IF(INDEX(INDIRECT("in_input"&$B34),$E34,AL$28)="","",INDEX(INDIRECT("in_input"&$B34),$E34,AL$28)) ->  | AM34: =IF(INDEX(INDIRECT("in_input"&$B34),$E34,AM$28)="","",INDEX(INDIRECT("in_input"&$B34),$E34,AM$28)) ->  | AN34: =IF(INDEX(INDIRECT("in_input"&$B34),$E34,AN$28)="","",INDEX(INDIRECT("in_input"&$B34),$E34,AN$28)) ->  | AO34: =IF(INDEX(INDIRECT("in_input"&$B34),$E34,AO$28)="","",INDEX(INDIRECT("in_input"&$B34),$E34,AO$28)) ->  | AP34: =IF(INDEX(INDIRECT("in_input"&$B34),$E34,AP$28)="","",INDEX(INDIRECT("in_input"&$B34),$E34,AP$28)) ->  | AQ34: =IF(INDEX(INDIRECT("in_input"&$B34),$E34,AQ$28)="","",INDEX(INDIRECT("in_input"&$B34),$E34,AQ$28)) ->  | AR34: =IF(INDEX(INDIRECT("in_input"&$B34),$E34,AR$28)="","",INDEX(INDIRECT("in_input"&$B34),$E34,AR$28)) ->  | AS34: =IF(INDEX(INDIRECT("in_input"&$B34),$E34,AS$28)="","",INDEX(INDIRECT("in_input"&$B34),$E34,AS$28)) ->  | AT34: =IF(INDEX(INDIRECT("in_input"&$B34),$E34,AT$28)="","",INDEX(INDIRECT("in_input"&$B34),$E34,AT$28)) ->  | AU34: =IF(INDEX(INDIRECT("in_input"&$B34),$E34,AU$28)="","",INDEX(INDIRECT("in_input"&$B34),$E34,AU$28)) ->  | AV34: =IF(INDEX(INDIRECT("in_input"&$B34),$E34,AV$28)="","",INDEX(INDIRECT("in_input"&$B34),$E34,AV$28)) ->  | AW34: =IF(INDEX(INDIRECT("in_input"&$B34),$E34,AW$28)="","",INDEX(INDIRECT("in_input"&$B34),$E34,AW$28)) ->  | AX34: =IF(INDEX(INDIRECT("in_input"&$B34),$E34,AX$28)="","",INDEX(INDIRECT("in_input"&$B34),$E34,AX$28)) ->  | AY34: =IF(INDEX(INDIRECT("in_input"&$B34),$E34,AY$28)="","",INDEX(INDIRECT("in_input"&$B34),$E34,AY$28)) ->  | AZ34: =IF(INDEX(INDIRECT("in_input"&$B34),$E34,AZ$28)="","",INDEX(INDIRECT("in_input"&$B34),$E34,AZ$28)) ->  | BA34: =IF(INDEX(INDIRECT("in_input"&$B34),$E34,BA$28)="","",INDEX(INDIRECT("in_input"&$B34),$E34,BA$28)) ->  | BB34: =IF(INDEX(INDIRECT("in_input"&$B34),$E34,BB$28)="","",INDEX(INDIRECT("in_input"&$B34),$E34,BB$28)) ->  | BC34: =IF(INDEX(INDIRECT("in_input"&$B34),$E34,BC$28)="","",INDEX(INDIRECT("in_input"&$B34),$E34,BC$28)) ->  | BD34: =IF(INDEX(INDIRECT("in_input"&$B34),$E34,BD$28)="","",INDEX(INDIRECT("in_input"&$B34),$E34,BD$28)) ->  | BG34: Type of crossing | BH34: =BG26 -> 0 | BI34: =BG27 -> lei1834 | BK34: 8 | BM34: =IF(INDEX(INDIRECT("in_input"&$B34),$E34,BM$28)="","",INDEX(INDIRECT("in_input"&$B34),$E34,BM$28)) -> U | BN34: =IF(INDEX(INDIRECT("in_input"&$B34),$E34,BN$28)="","",INDEX(INDIRECT("in_input"&$B34),$E34,BN$28)) ->  | BO34: =IF(INDEX(INDIRECT("in_input"&$B34),$E34,BO$28)="","",INDEX(INDIRECT("in_input"&$B34),$E34,BO$28)) ->  | BP34: =IF(INDEX(INDIRECT("in_input"&$B34),$E34,BP$28)="","",INDEX(INDIRECT("in_input"&$B34),$E34,BP$28)) ->  | BQ34: =IF(INDEX(INDIRECT("in_input"&$B34),$E34,BQ$28)="","",INDEX(INDIRECT("in_input"&$B34),$E34,BQ$28)) ->  | BR34: =IF(INDEX(INDIRECT("in_input"&$B34),$E34,BR$28)="","",INDEX(INDIRECT("in_input"&$B34),$E34,BR$28)) ->  | BS34: =IF(INDEX(INDIRECT("in_input"&$B34),$E34,BS$28)="","",INDEX(INDIRECT("in_input"&$B34),$E34,BS$28)) ->  | BT34: =IF(INDEX(INDIRECT("in_input"&$B34),$E34,BT$28)="","",INDEX(INDIRECT("in_input"&$B34),$E34,BT$28)) ->  | BU34: =IF(INDEX(INDIRECT("in_input"&$B34),$E34,BU$28)="","",INDEX(INDIRECT("in_input"&$B34),$E34,BU$28)) ->  | BV34: =IF(INDEX(INDIRECT("in_input"&$B34),$E34,BV$28)="","",INDEX(INDIRECT("in_input"&$B34),$E34,BV$28)) ->  | BW34: =IF(INDEX(INDIRECT("in_input"&$B34),$E34,BW$28)="","",INDEX(INDIRECT("in_input"&$B34),$E34,BW$28)) ->  | BX34: =IF(INDEX(INDIRECT("in_input"&$B34),$E34,BX$28)="","",INDEX(INDIRECT("in_input"&$B34),$E34,BX$28)) ->  | BY34: =IF(INDEX(INDIRECT("in_input"&$B34),$E34,BY$28)="","",INDEX(INDIRECT("in_input"&$B34),$E34,BY$28)) ->  | BZ34: =IF(INDEX(INDIRECT("in_input"&$B34),$E34,BZ$28)="","",INDEX(INDIRECT("in_input"&$B34),$E34,BZ$28)) ->  | CA34: =IF(INDEX(INDIRECT("in_input"&$B34),$E34,CA$28)="","",INDEX(INDIRECT("in_input"&$B34),$E34,CA$28)) ->  | CB34: =IF(INDEX(INDIRECT("in_input"&$B34),$E34,CB$28)="","",INDEX(INDIRECT("in_input"&$B34),$E34,CB$28)) ->  | CC34: =IF(INDEX(INDIRECT("in_input"&$B34),$E34,CC$28)="","",INDEX(INDIRECT("in_input"&$B34),$E34,CC$28)) ->  | CD34: =IF(INDEX(INDIRECT("in_input"&$B34),$E34,CD$28)="","",INDEX(INDIRECT("in_input"&$B34),$E34,CD$28)) ->  | CE34: =IF(INDEX(INDIRECT("in_input"&$B34),$E34,CE$28)="","",INDEX(INDIRECT("in_input"&$B34),$E34,CE$28)) ->  | CF34: =IF(INDEX(INDIRECT("in_input"&$B34),$E34,CF$28)="","",INDEX(INDIRECT("in_input"&$B34),$E34,CF$28)) ->  | CG34: =IF(INDEX(INDIRECT("in_input"&$B34),$E34,CG$28)="","",INDEX(INDIRECT("in_input"&$B34),$E34,CG$28)) ->  | CJ34: Type of crossing | CK34: =CJ26 -> 0 | CL34: =CJ27 -> work3564 | CN34: 8 | CP34: =IF(INDEX(INDIRECT("in_input"&$B34),$E34,CP$28)="","",INDEX(INDIRECT("in_input"&$B34),$E34,CP$28)) -> U | CQ34: =IF(INDEX(INDIRECT("in_input"&$B34),$E34,CQ$28)="","",INDEX(INDIRECT("in_input"&$B34),$E34,CQ$28)) ->  | CR34: =IF(INDEX(INDIRECT("in_input"&$B34),$E34,CR$28)="","",INDEX(INDIRECT("in_input"&$B34),$E34,CR$28)) ->  | CS34: =IF(INDEX(INDIRECT("in_input"&$B34),$E34,CS$28)="","",INDEX(INDIRECT("in_input"&$B34),$E34,CS$28)) ->  | CT34: =IF(INDEX(INDIRECT("in_input"&$B34),$E34,CT$28)="","",INDEX(INDIRECT("in_input"&$B34),$E34,CT$28)) ->  | CU34: =IF(INDEX(INDIRECT("in_input"&$B34),$E34,CU$28)="","",INDEX(INDIRECT("in_input"&$B34),$E34,CU$28)) ->  | CV34: =IF(INDEX(INDIRECT("in_input"&$B34),$E34,CV$28)="","",INDEX(INDIRECT("in_input"&$B34),$E34,CV$28)) ->  | CW34: =IF(INDEX(INDIRECT("in_input"&$B34),$E34,CW$28)="","",INDEX(INDIRECT("in_input"&$B34),$E34,CW$28)) ->  | CX34: =IF(INDEX(INDIRECT("in_input"&$B34),$E34,CX$28)="","",INDEX(INDIRECT("in_input"&$B34),$E34,CX$28)) ->  | CY34: =IF(INDEX(INDIRECT("in_input"&$B34),$E34,CY$28)="","",INDEX(INDIRECT("in_input"&$B34),$E34,CY$28)) ->  | CZ34: =IF(INDEX(INDIRECT("in_input"&$B34),$E34,CZ$28)="","",INDEX(INDIRECT("in_input"&$B34),$E34,CZ$28)) ->  | DA34: =IF(INDEX(INDIRECT("in_input"&$B34),$E34,DA$28)="","",INDEX(INDIRECT("in_input"&$B34),$E34,DA$28)) ->  | DB34: =IF(INDEX(INDIRECT("in_input"&$B34),$E34,DB$28)="","",INDEX(INDIRECT("in_input"&$B34),$E34,DB$28)) ->  | DC34: =IF(INDEX(INDIRECT("in_input"&$B34),$E34,DC$28)="","",INDEX(INDIRECT("in_input"&$B34),$E34,DC$28)) ->  | DD34: =IF(INDEX(INDIRECT("in_input"&$B34),$E34,DD$28)="","",INDEX(INDIRECT("in_input"&$B34),$E34,DD$28)) ->  | DE34: =IF(INDEX(INDIRECT("in_input"&$B34),$E34,DE$28)="","",INDEX(INDIRECT("in_input"&$B34),$E34,DE$28)) ->  | DF34: =IF(INDEX(INDIRECT("in_input"&$B34),$E34,DF$28)="","",INDEX(INDIRECT("in_input"&$B34),$E34,DF$28)) ->  | DG34: =IF(INDEX(INDIRECT("in_input"&$B34),$E34,DG$28)="","",INDEX(INDIRECT("in_input"&$B34),$E34,DG$28)) ->  | DH34: =IF(INDEX(INDIRECT("in_input"&$B34),$E34,DH$28)="","",INDEX(INDIRECT("in_input"&$B34),$E34,DH$28)) ->  | DI34: =IF(INDEX(INDIRECT("in_input"&$B34),$E34,DI$28)="","",INDEX(INDIRECT("in_input"&$B34),$E34,DI$28)) ->  | DJ34: =IF(INDEX(INDIRECT("in_input"&$B34),$E34,DJ$28)="","",INDEX(INDIRECT("in_input"&$B34),$E34,DJ$28)) ->  | DM34: Type of crossing | DN34: =DM26 -> 0 | DO34: =DM27 -> shop3564 | DQ34: 8 | DS34: =IF(INDEX(INDIRECT("in_input"&$B34),$E34,DS$28)="","",INDEX(INDIRECT("in_input"&$B34),$E34,DS$28)) -> U | DT34: =IF(INDEX(INDIRECT("in_input"&$B34),$E34,DT$28)="","",INDEX(INDIRECT("in_input"&$B34),$E34,DT$28)) ->  | DU34: =IF(INDEX(INDIRECT("in_input"&$B34),$E34,DU$28)="","",INDEX(INDIRECT("in_input"&$B34),$E34,DU$28)) ->  | DV34: =IF(INDEX(INDIRECT("in_input"&$B34),$E34,DV$28)="","",INDEX(INDIRECT("in_input"&$B34),$E34,DV$28)) ->  | DW34: =IF(INDEX(INDIRECT("in_input"&$B34),$E34,DW$28)="","",INDEX(INDIRECT("in_input"&$B34),$E34,DW$28)) ->  | DX34: =IF(INDEX(INDIRECT("in_input"&$B34),$E34,DX$28)="","",INDEX(INDIRECT("in_input"&$B34),$E34,DX$28)) ->  | DY34: =IF(INDEX(INDIRECT("in_input"&$B34),$E34,DY$28)="","",INDEX(INDIRECT("in_input"&$B34),$E34,DY$28)) ->  | DZ34: =IF(INDEX(INDIRECT("in_input"&$B34),$E34,DZ$28)="","",INDEX(INDIRECT("in_input"&$B34),$E34,DZ$28)) ->  | EA34: =IF(INDEX(INDIRECT("in_input"&$B34),$E34,EA$28)="","",INDEX(INDIRECT("in_input"&$B34),$E34,EA$28)) ->  | EB34: =IF(INDEX(INDIRECT("in_input"&$B34),$E34,EB$28)="","",INDEX(INDIRECT("in_input"&$B34),$E34,EB$28)) ->  | EC34: =IF(INDEX(INDIRECT("in_input"&$B34),$E34,EC$28)="","",INDEX(INDIRECT("in_input"&$B34),$E34,EC$28)) ->  | ED34: =IF(INDEX(INDIRECT("in_input"&$B34),$E34,ED$28)="","",INDEX(INDIRECT("in_input"&$B34),$E34,ED$28)) ->  | EE34: =IF(INDEX(INDIRECT("in_input"&$B34),$E34,EE$28)="","",INDEX(INDIRECT("in_input"&$B34),$E34,EE$28)) ->  | EF34: =IF(INDEX(INDIRECT("in_input"&$B34),$E34,EF$28)="","",INDEX(INDIRECT("in_input"&$B34),$E34,EF$28)) ->  | EG34: =IF(INDEX(INDIRECT("in_input"&$B34),$E34,EG$28)="","",INDEX(INDIRECT("in_input"&$B34),$E34,EG$28)) ->  | EH34: =IF(INDEX(INDIRECT("in_input"&$B34),$E34,EH$28)="","",INDEX(INDIRECT("in_input"&$B34),$E34,EH$28)) ->  | EI34: =IF(INDEX(INDIRECT("in_input"&$B34),$E34,EI$28)="","",INDEX(INDIRECT("in_input"&$B34),$E34,EI$28)) ->  | EJ34: =IF(INDEX(INDIRECT("in_input"&$B34),$E34,EJ$28)="","",INDEX(INDIRECT("in_input"&$B34),$E34,EJ$28)) ->  | EK34: =IF(INDEX(INDIRECT("in_input"&$B34),$E34,EK$28)="","",INDEX(INDIRECT("in_input"&$B34),$E34,EK$28)) ->  | EL34: =IF(INDEX(INDIRECT("in_input"&$B34),$E34,EL$28)="","",INDEX(INDIRECT("in_input"&$B34),$E34,EL$28)) ->  | EM34: =IF(INDEX(INDIRECT("in_input"&$B34),$E34,EM$28)="","",INDEX(INDIRECT("in_input"&$B34),$E34,EM$28)) ->  | EP34: Type of crossing | EQ34: =EP26 -> 0 | ER34: =EP27 -> lei3564 | ET34: 8 | EV34: =IF(INDEX(INDIRECT("in_input"&$B34),$E34,EV$28)="","",INDEX(INDIRECT("in_input"&$B34),$E34,EV$28)) -> U | EW34: =IF(INDEX(INDIRECT("in_input"&$B34),$E34,EW$28)="","",INDEX(INDIRECT("in_input"&$B34),$E34,EW$28)) ->  | EX34: =IF(INDEX(INDIRECT("in_input"&$B34),$E34,EX$28)="","",INDEX(INDIRECT("in_input"&$B34),$E34,EX$28)) ->  | EY34: =IF(INDEX(INDIRECT("in_input"&$B34),$E34,EY$28)="","",INDEX(INDIRECT("in_input"&$B34),$E34,EY$28)) ->  | EZ34: =IF(INDEX(INDIRECT("in_input"&$B34),$E34,EZ$28)="","",INDEX(INDIRECT("in_input"&$B34),$E34,EZ$28)) ->  | FA34: =IF(INDEX(INDIRECT("in_input"&$B34),$E34,FA$28)="","",INDEX(INDIRECT("in_input"&$B34),$E34,FA$28)) ->  | FB34: =IF(INDEX(INDIRECT("in_input"&$B34),$E34,FB$28)="","",INDEX(INDIRECT("in_input"&$B34),$E34,FB$28)) ->  | FC34: =IF(INDEX(INDIRECT("in_input"&$B34),$E34,FC$28)="","",INDEX(INDIRECT("in_input"&$B34),$E34,FC$28)) ->  | FD34: =IF(INDEX(INDIRECT("in_input"&$B34),$E34,FD$28)="","",INDEX(INDIRECT("in_input"&$B34),$E34,FD$28)) ->  | FE34: =IF(INDEX(INDIRECT("in_input"&$B34),$E34,FE$28)="","",INDEX(INDIRECT("in_input"&$B34),$E34,FE$28)) ->  | FF34: =IF(INDEX(INDIRECT("in_input"&$B34),$E34,FF$28)="","",INDEX(INDIRECT("in_input"&$B34),$E34,FF$28)) ->  | FG34: =IF(INDEX(INDIRECT("in_input"&$B34),$E34,FG$28)="","",INDEX(INDIRECT("in_input"&$B34),$E34,FG$28)) ->  | FH34: =IF(INDEX(INDIRECT("in_input"&$B34),$E34,FH$28)="","",INDEX(INDIRECT("in_input"&$B34),$E34,FH$28)) ->  | FI34: =IF(INDEX(INDIRECT("in_input"&$B34),$E34,FI$28)="","",INDEX(INDIRECT("in_input"&$B34),$E34,FI$28)) ->  | FJ34: =IF(INDEX(INDIRECT("in_input"&$B34),$E34,FJ$28)="","",INDEX(INDIRECT("in_input"&$B34),$E34,FJ$28)) ->  | FK34: =IF(INDEX(INDIRECT("in_input"&$B34),$E34,FK$28)="","",INDEX(INDIRECT("in_input"&$B34),$E34,FK$28)) ->  | FL34: =IF(INDEX(INDIRECT("in_input"&$B34),$E34,FL$28)="","",INDEX(INDIRECT("in_input"&$B34),$E34,FL$28)) ->  | FM34: =IF(INDEX(INDIRECT("in_input"&$B34),$E34,FM$28)="","",INDEX(INDIRECT("in_input"&$B34),$E34,FM$28)) ->  | FN34: =IF(INDEX(INDIRECT("in_input"&$B34),$E34,FN$28)="","",INDEX(INDIRECT("in_input"&$B34),$E34,FN$28)) ->  | FO34: =IF(INDEX(INDIRECT("in_input"&$B34),$E34,FO$28)="","",INDEX(INDIRECT("in_input"&$B34),$E34,FO$28)) ->  | FP34: =IF(INDEX(INDIRECT("in_input"&$B34),$E34,FP$28)="","",INDEX(INDIRECT("in_input"&$B34),$E34,FP$28)) ->  | FS34: Type of crossing | FT34: =FS26 -> 0 | FU34: =FS27 -> shop65 | FW34: 8 | FY34: =IF(INDEX(INDIRECT("in_input"&$B34),$E34,FY$28)="","",INDEX(INDIRECT("in_input"&$B34),$E34,FY$28)) -> U | FZ34: =IF(INDEX(INDIRECT("in_input"&$B34),$E34,FZ$28)="","",INDEX(INDIRECT("in_input"&$B34),$E34,FZ$28)) ->  | GA34: =IF(INDEX(INDIRECT("in_input"&$B34),$E34,GA$28)="","",INDEX(INDIRECT("in_input"&$B34),$E34,GA$28)) ->  | GB34: =IF(INDEX(INDIRECT("in_input"&$B34),$E34,GB$28)="","",INDEX(INDIRECT("in_input"&$B34),$E34,GB$28)) ->  | GC34: =IF(INDEX(INDIRECT("in_input"&$B34),$E34,GC$28)="","",INDEX(INDIRECT("in_input"&$B34),$E34,GC$28)) ->  | GD34: =IF(INDEX(INDIRECT("in_input"&$B34),$E34,GD$28)="","",INDEX(INDIRECT("in_input"&$B34),$E34,GD$28)) ->  | GE34: =IF(INDEX(INDIRECT("in_input"&$B34),$E34,GE$28)="","",INDEX(INDIRECT("in_input"&$B34),$E34,GE$28)) ->  | GF34: =IF(INDEX(INDIRECT("in_input"&$B34),$E34,GF$28)="","",INDEX(INDIRECT("in_input"&$B34),$E34,GF$28)) ->  | GG34: =IF(INDEX(INDIRECT("in_input"&$B34),$E34,GG$28)="","",INDEX(INDIRECT("in_input"&$B34),$E34,GG$28)) ->  | GH34: =IF(INDEX(INDIRECT("in_input"&$B34),$E34,GH$28)="","",INDEX(INDIRECT("in_input"&$B34),$E34,GH$28)) ->  | GI34: =IF(INDEX(INDIRECT("in_input"&$B34),$E34,GI$28)="","",INDEX(INDIRECT("in_input"&$B34),$E34,GI$28)) ->  | GJ34: =IF(INDEX(INDIRECT("in_input"&$B34),$E34,GJ$28)="","",INDEX(INDIRECT("in_input"&$B34),$E34,GJ$28)) ->  | GK34: =IF(INDEX(INDIRECT("in_input"&$B34),$E34,GK$28)="","",INDEX(INDIRECT("in_input"&$B34),$E34,GK$28)) ->  | GL34: =IF(INDEX(INDIRECT("in_input"&$B34),$E34,GL$28)="","",INDEX(INDIRECT("in_input"&$B34),$E34,GL$28)) ->  | GM34: =IF(INDEX(INDIRECT("in_input"&$B34),$E34,GM$28)="","",INDEX(INDIRECT("in_input"&$B34),$E34,GM$28)) ->  | GN34: =IF(INDEX(INDIRECT("in_input"&$B34),$E34,GN$28)="","",INDEX(INDIRECT("in_input"&$B34),$E34,GN$28)) ->  | GO34: =IF(INDEX(INDIRECT("in_input"&$B34),$E34,GO$28)="","",INDEX(INDIRECT("in_input"&$B34),$E34,GO$28)) ->  | GP34: =IF(INDEX(INDIRECT("in_input"&$B34),$E34,GP$28)="","",INDEX(INDIRECT("in_input"&$B34),$E34,GP$28)) ->  | GQ34: =IF(INDEX(INDIRECT("in_input"&$B34),$E34,GQ$28)="","",INDEX(INDIRECT("in_input"&$B34),$E34,GQ$28)) ->  | GR34: =IF(INDEX(INDIRECT("in_input"&$B34),$E34,GR$28)="","",INDEX(INDIRECT("in_input"&$B34),$E34,GR$28)) ->  | GS34: =IF(INDEX(INDIRECT("in_input"&$B34),$E34,GS$28)="","",INDEX(INDIRECT("in_input"&$B34),$E34,GS$28)) ->  | GV34: Type of crossing | GW34: =GV26 -> 0 | GX34: =GV27 -> lei65 | GZ34: 8 | HB34: =IF(INDEX(INDIRECT("in_input"&$B34),$E34,HB$28)="","",INDEX(INDIRECT("in_input"&$B34),$E34,HB$28)) -> U | HC34: =IF(INDEX(INDIRECT("in_input"&$B34),$E34,HC$28)="","",INDEX(INDIRECT("in_input"&$B34),$E34,HC$28)) ->  | HD34: =IF(INDEX(INDIRECT("in_input"&$B34),$E34,HD$28)="","",INDEX(INDIRECT("in_input"&$B34),$E34,HD$28)) ->  | HE34: =IF(INDEX(INDIRECT("in_input"&$B34),$E34,HE$28)="","",INDEX(INDIRECT("in_input"&$B34),$E34,HE$28)) ->  | HF34: =IF(INDEX(INDIRECT("in_input"&$B34),$E34,HF$28)="","",INDEX(INDIRECT("in_input"&$B34),$E34,HF$28)) ->  | HG34: =IF(INDEX(INDIRECT("in_input"&$B34),$E34,HG$28)="","",INDEX(INDIRECT("in_input"&$B34),$E34,HG$28)) ->  | HH34: =IF(INDEX(INDIRECT("in_input"&$B34),$E34,HH$28)="","",INDEX(INDIRECT("in_input"&$B34),$E34,HH$28)) ->  | HI34: =IF(INDEX(INDIRECT("in_input"&$B34),$E34,HI$28)="","",INDEX(INDIRECT("in_input"&$B34),$E34,HI$28)) ->  | HJ34: =IF(INDEX(INDIRECT("in_input"&$B34),$E34,HJ$28)="","",INDEX(INDIRECT("in_input"&$B34),$E34,HJ$28)) ->  | HK34: =IF(INDEX(INDIRECT("in_input"&$B34),$E34,HK$28)="","",INDEX(INDIRECT("in_input"&$B34),$E34,HK$28)) ->  | HL34: =IF(INDEX(INDIRECT("in_input"&$B34),$E34,HL$28)="","",INDEX(INDIRECT("in_input"&$B34),$E34,HL$28)) ->  | HM34: =IF(INDEX(INDIRECT("in_input"&$B34),$E34,HM$28)="","",INDEX(INDIRECT("in_input"&$B34),$E34,HM$28)) ->  | HN34: =IF(INDEX(INDIRECT("in_input"&$B34),$E34,HN$28)="","",INDEX(INDIRECT("in_input"&$B34),$E34,HN$28)) ->  | HO34: =IF(INDEX(INDIRECT("in_input"&$B34),$E34,HO$28)="","",INDEX(INDIRECT("in_input"&$B34),$E34,HO$28)) ->  | HP34: =IF(INDEX(INDIRECT("in_input"&$B34),$E34,HP$28)="","",INDEX(INDIRECT("in_input"&$B34),$E34,HP$28)) ->  | HQ34: =IF(INDEX(INDIRECT("in_input"&$B34),$E34,HQ$28)="","",INDEX(INDIRECT("in_input"&$B34),$E34,HQ$28)) ->  | HR34: =IF(INDEX(INDIRECT("in_input"&$B34),$E34,HR$28)="","",INDEX(INDIRECT("in_input"&$B34),$E34,HR$28)) ->  | HS34: =IF(INDEX(INDIRECT("in_input"&$B34),$E34,HS$28)="","",INDEX(INDIRECT("in_input"&$B34),$E34,HS$28)) ->  | HT34: =IF(INDEX(INDIRECT("in_input"&$B34),$E34,HT$28)="","",INDEX(INDIRECT("in_input"&$B34),$E34,HT$28)) ->  | HU34: =IF(INDEX(INDIRECT("in_input"&$B34),$E34,HU$28)="","",INDEX(INDIRECT("in_input"&$B34),$E34,HU$28)) ->  | HV34: =IF(INDEX(INDIRECT("in_input"&$B34),$E34,HV$28)="","",INDEX(INDIRECT("in_input"&$B34),$E34,HV$28)) -> 
A35: Waiting time | B35: =A26 -> 0 | C35: =A27 -> work1834 | E35: 10 | G35: =IF(G34="","",IF(INDEX(INDIRECT("in_input"&$B35),$E35,G$28)="",0,INDEX(INDIRECT("in_input"&$B35),$E35,G$28))) -> 0 | H35: =IF(H34="","",IF(INDEX(INDIRECT("in_input"&$B35),$E35,H$28)="",0,INDEX(INDIRECT("in_input"&$B35),$E35,H$28))) ->  | I35: =IF(I34="","",IF(INDEX(INDIRECT("in_input"&$B35),$E35,I$28)="",0,INDEX(INDIRECT("in_input"&$B35),$E35,I$28))) ->  | J35: =IF(J34="","",IF(INDEX(INDIRECT("in_input"&$B35),$E35,J$28)="",0,INDEX(INDIRECT("in_input"&$B35),$E35,J$28))) ->  | K35: =IF(K34="","",IF(INDEX(INDIRECT("in_input"&$B35),$E35,K$28)="",0,INDEX(INDIRECT("in_input"&$B35),$E35,K$28))) ->  | L35: =IF(L34="","",IF(INDEX(INDIRECT("in_input"&$B35),$E35,L$28)="",0,INDEX(INDIRECT("in_input"&$B35),$E35,L$28))) ->  | M35: =IF(M34="","",IF(INDEX(INDIRECT("in_input"&$B35),$E35,M$28)="",0,INDEX(INDIRECT("in_input"&$B35),$E35,M$28))) ->  | N35: =IF(N34="","",IF(INDEX(INDIRECT("in_input"&$B35),$E35,N$28)="",0,INDEX(INDIRECT("in_input"&$B35),$E35,N$28))) ->  | O35: =IF(O34="","",IF(INDEX(INDIRECT("in_input"&$B35),$E35,O$28)="",0,INDEX(INDIRECT("in_input"&$B35),$E35,O$28))) ->  | P35: =IF(P34="","",IF(INDEX(INDIRECT("in_input"&$B35),$E35,P$28)="",0,INDEX(INDIRECT("in_input"&$B35),$E35,P$28))) ->  | Q35: =IF(Q34="","",IF(INDEX(INDIRECT("in_input"&$B35),$E35,Q$28)="",0,INDEX(INDIRECT("in_input"&$B35),$E35,Q$28))) ->  | R35: =IF(R34="","",IF(INDEX(INDIRECT("in_input"&$B35),$E35,R$28)="",0,INDEX(INDIRECT("in_input"&$B35),$E35,R$28))) ->  | S35: =IF(S34="","",IF(INDEX(INDIRECT("in_input"&$B35),$E35,S$28)="",0,INDEX(INDIRECT("in_input"&$B35),$E35,S$28))) ->  | T35: =IF(T34="","",IF(INDEX(INDIRECT("in_input"&$B35),$E35,T$28)="",0,INDEX(INDIRECT("in_input"&$B35),$E35,T$28))) ->  | U35: =IF(U34="","",IF(INDEX(INDIRECT("in_input"&$B35),$E35,U$28)="",0,INDEX(INDIRECT("in_input"&$B35),$E35,U$28))) ->  | V35: =IF(V34="","",IF(INDEX(INDIRECT("in_input"&$B35),$E35,V$28)="",0,INDEX(INDIRECT("in_input"&$B35),$E35,V$28))) ->  | W35: =IF(W34="","",IF(INDEX(INDIRECT("in_input"&$B35),$E35,W$28)="",0,INDEX(INDIRECT("in_input"&$B35),$E35,W$28))) ->  | X35: =IF(X34="","",IF(INDEX(INDIRECT("in_input"&$B35),$E35,X$28)="",0,INDEX(INDIRECT("in_input"&$B35),$E35,X$28))) ->  | Y35: =IF(Y34="","",IF(INDEX(INDIRECT("in_input"&$B35),$E35,Y$28)="",0,INDEX(INDIRECT("in_input"&$B35),$E35,Y$28))) ->  | Z35: =IF(Z34="","",IF(INDEX(INDIRECT("in_input"&$B35),$E35,Z$28)="",0,INDEX(INDIRECT("in_input"&$B35),$E35,Z$28))) ->  | AA35: =IF(AA34="","",IF(INDEX(INDIRECT("in_input"&$B35),$E35,AA$28)="",0,INDEX(INDIRECT("in_input"&$B35),$E35,AA$28))) ->  | AD35: Waiting time | AE35: =AD26 -> 0 | AF35: =AD27 -> shop1834 | AH35: 10 | AJ35: =IF(AJ34="","",IF(INDEX(INDIRECT("in_input"&$B35),$E35,AJ$28)="",0,INDEX(INDIRECT("in_input"&$B35),$E35,AJ$28))) -> 0 | AK35: =IF(AK34="","",IF(INDEX(INDIRECT("in_input"&$B35),$E35,AK$28)="",0,INDEX(INDIRECT("in_input"&$B35),$E35,AK$28))) ->  | AL35: =IF(AL34="","",IF(INDEX(INDIRECT("in_input"&$B35),$E35,AL$28)="",0,INDEX(INDIRECT("in_input"&$B35),$E35,AL$28))) ->  | AM35: =IF(AM34="","",IF(INDEX(INDIRECT("in_input"&$B35),$E35,AM$28)="",0,INDEX(INDIRECT("in_input"&$B35),$E35,AM$28))) ->  | AN35: =IF(AN34="","",IF(INDEX(INDIRECT("in_input"&$B35),$E35,AN$28)="",0,INDEX(INDIRECT("in_input"&$B35),$E35,AN$28))) ->  | AO35: =IF(AO34="","",IF(INDEX(INDIRECT("in_input"&$B35),$E35,AO$28)="",0,INDEX(INDIRECT("in_input"&$B35),$E35,AO$28))) ->  | AP35: =IF(AP34="","",IF(INDEX(INDIRECT("in_input"&$B35),$E35,AP$28)="",0,INDEX(INDIRECT("in_input"&$B35),$E35,AP$28))) ->  | AQ35: =IF(AQ34="","",IF(INDEX(INDIRECT("in_input"&$B35),$E35,AQ$28)="",0,INDEX(INDIRECT("in_input"&$B35),$E35,AQ$28))) ->  | AR35: =IF(AR34="","",IF(INDEX(INDIRECT("in_input"&$B35),$E35,AR$28)="",0,INDEX(INDIRECT("in_input"&$B35),$E35,AR$28))) ->  | AS35: =IF(AS34="","",IF(INDEX(INDIRECT("in_input"&$B35),$E35,AS$28)="",0,INDEX(INDIRECT("in_input"&$B35),$E35,AS$28))) ->  | AT35: =IF(AT34="","",IF(INDEX(INDIRECT("in_input"&$B35),$E35,AT$28)="",0,INDEX(INDIRECT("in_input"&$B35),$E35,AT$28))) ->  | AU35: =IF(AU34="","",IF(INDEX(INDIRECT("in_input"&$B35),$E35,AU$28)="",0,INDEX(INDIRECT("in_input"&$B35),$E35,AU$28))) ->  | AV35: =IF(AV34="","",IF(INDEX(INDIRECT("in_input"&$B35),$E35,AV$28)="",0,INDEX(INDIRECT("in_input"&$B35),$E35,AV$28))) ->  | AW35: =IF(AW34="","",IF(INDEX(INDIRECT("in_input"&$B35),$E35,AW$28)="",0,INDEX(INDIRECT("in_input"&$B35),$E35,AW$28))) ->  | AX35: =IF(AX34="","",IF(INDEX(INDIRECT("in_input"&$B35),$E35,AX$28)="",0,INDEX(INDIRECT("in_input"&$B35),$E35,AX$28))) ->  | AY35: =IF(AY34="","",IF(INDEX(INDIRECT("in_input"&$B35),$E35,AY$28)="",0,INDEX(INDIRECT("in_input"&$B35),$E35,AY$28))) ->  | AZ35: =IF(AZ34="","",IF(INDEX(INDIRECT("in_input"&$B35),$E35,AZ$28)="",0,INDEX(INDIRECT("in_input"&$B35),$E35,AZ$28))) ->  | BA35: =IF(BA34="","",IF(INDEX(INDIRECT("in_input"&$B35),$E35,BA$28)="",0,INDEX(INDIRECT("in_input"&$B35),$E35,BA$28))) ->  | BB35: =IF(BB34="","",IF(INDEX(INDIRECT("in_input"&$B35),$E35,BB$28)="",0,INDEX(INDIRECT("in_input"&$B35),$E35,BB$28))) ->  | BC35: =IF(BC34="","",IF(INDEX(INDIRECT("in_input"&$B35),$E35,BC$28)="",0,INDEX(INDIRECT("in_input"&$B35),$E35,BC$28))) ->  | BD35: =IF(BD34="","",IF(INDEX(INDIRECT("in_input"&$B35),$E35,BD$28)="",0,INDEX(INDIRECT("in_input"&$B35),$E35,BD$28))) ->  | BG35: Waiting time | BH35: =BG26 -> 0 | BI35: =BG27 -> lei1834 | BK35: 10 | BM35: =IF(BM34="","",IF(INDEX(INDIRECT("in_input"&$B35),$E35,BM$28)="",0,INDEX(INDIRECT("in_input"&$B35),$E35,BM$28))) -> 0 | BN35: =IF(BN34="","",IF(INDEX(INDIRECT("in_input"&$B35),$E35,BN$28)="",0,INDEX(INDIRECT("in_input"&$B35),$E35,BN$28))) ->  | BO35: =IF(BO34="","",IF(INDEX(INDIRECT("in_input"&$B35),$E35,BO$28)="",0,INDEX(INDIRECT("in_input"&$B35),$E35,BO$28))) ->  | BP35: =IF(BP34="","",IF(INDEX(INDIRECT("in_input"&$B35),$E35,BP$28)="",0,INDEX(INDIRECT("in_input"&$B35),$E35,BP$28))) ->  | BQ35: =IF(BQ34="","",IF(INDEX(INDIRECT("in_input"&$B35),$E35,BQ$28)="",0,INDEX(INDIRECT("in_input"&$B35),$E35,BQ$28))) ->  | BR35: =IF(BR34="","",IF(INDEX(INDIRECT("in_input"&$B35),$E35,BR$28)="",0,INDEX(INDIRECT("in_input"&$B35),$E35,BR$28))) ->  | BS35: =IF(BS34="","",IF(INDEX(INDIRECT("in_input"&$B35),$E35,BS$28)="",0,INDEX(INDIRECT("in_input"&$B35),$E35,BS$28))) ->  | BT35: =IF(BT34="","",IF(INDEX(INDIRECT("in_input"&$B35),$E35,BT$28)="",0,INDEX(INDIRECT("in_input"&$B35),$E35,BT$28))) ->  | BU35: =IF(BU34="","",IF(INDEX(INDIRECT("in_input"&$B35),$E35,BU$28)="",0,INDEX(INDIRECT("in_input"&$B35),$E35,BU$28))) ->  | BV35: =IF(BV34="","",IF(INDEX(INDIRECT("in_input"&$B35),$E35,BV$28)="",0,INDEX(INDIRECT("in_input"&$B35),$E35,BV$28))) ->  | BW35: =IF(BW34="","",IF(INDEX(INDIRECT("in_input"&$B35),$E35,BW$28)="",0,INDEX(INDIRECT("in_input"&$B35),$E35,BW$28))) ->  | BX35: =IF(BX34="","",IF(INDEX(INDIRECT("in_input"&$B35),$E35,BX$28)="",0,INDEX(INDIRECT("in_input"&$B35),$E35,BX$28))) ->  | BY35: =IF(BY34="","",IF(INDEX(INDIRECT("in_input"&$B35),$E35,BY$28)="",0,INDEX(INDIRECT("in_input"&$B35),$E35,BY$28))) ->  | BZ35: =IF(BZ34="","",IF(INDEX(INDIRECT("in_input"&$B35),$E35,BZ$28)="",0,INDEX(INDIRECT("in_input"&$B35),$E35,BZ$28))) ->  | CA35: =IF(CA34="","",IF(INDEX(INDIRECT("in_input"&$B35),$E35,CA$28)="",0,INDEX(INDIRECT("in_input"&$B35),$E35,CA$28))) ->  | CB35: =IF(CB34="","",IF(INDEX(INDIRECT("in_input"&$B35),$E35,CB$28)="",0,INDEX(INDIRECT("in_input"&$B35),$E35,CB$28))) ->  | CC35: =IF(CC34="","",IF(INDEX(INDIRECT("in_input"&$B35),$E35,CC$28)="",0,INDEX(INDIRECT("in_input"&$B35),$E35,CC$28))) ->  | CD35: =IF(CD34="","",IF(INDEX(INDIRECT("in_input"&$B35),$E35,CD$28)="",0,INDEX(INDIRECT("in_input"&$B35),$E35,CD$28))) ->  | CE35: =IF(CE34="","",IF(INDEX(INDIRECT("in_input"&$B35),$E35,CE$28)="",0,INDEX(INDIRECT("in_input"&$B35),$E35,CE$28))) ->  | CF35: =IF(CF34="","",IF(INDEX(INDIRECT("in_input"&$B35),$E35,CF$28)="",0,INDEX(INDIRECT("in_input"&$B35),$E35,CF$28))) ->  | CG35: =IF(CG34="","",IF(INDEX(INDIRECT("in_input"&$B35),$E35,CG$28)="",0,INDEX(INDIRECT("in_input"&$B35),$E35,CG$28))) ->  | CJ35: Waiting time | CK35: =CJ26 -> 0 | CL35: =CJ27 -> work3564 | CN35: 10 | CP35: =IF(CP34="","",IF(INDEX(INDIRECT("in_input"&$B35),$E35,CP$28)="",0,INDEX(INDIRECT("in_input"&$B35),$E35,CP$28))) -> 0 | CQ35: =IF(CQ34="","",IF(INDEX(INDIRECT("in_input"&$B35),$E35,CQ$28)="",0,INDEX(INDIRECT("in_input"&$B35),$E35,CQ$28))) ->  | CR35: =IF(CR34="","",IF(INDEX(INDIRECT("in_input"&$B35),$E35,CR$28)="",0,INDEX(INDIRECT("in_input"&$B35),$E35,CR$28))) ->  | CS35: =IF(CS34="","",IF(INDEX(INDIRECT("in_input"&$B35),$E35,CS$28)="",0,INDEX(INDIRECT("in_input"&$B35),$E35,CS$28))) ->  | CT35: =IF(CT34="","",IF(INDEX(INDIRECT("in_input"&$B35),$E35,CT$28)="",0,INDEX(INDIRECT("in_input"&$B35),$E35,CT$28))) ->  | CU35: =IF(CU34="","",IF(INDEX(INDIRECT("in_input"&$B35),$E35,CU$28)="",0,INDEX(INDIRECT("in_input"&$B35),$E35,CU$28))) ->  | CV35: =IF(CV34="","",IF(INDEX(INDIRECT("in_input"&$B35),$E35,CV$28)="",0,INDEX(INDIRECT("in_input"&$B35),$E35,CV$28))) ->  | CW35: =IF(CW34="","",IF(INDEX(INDIRECT("in_input"&$B35),$E35,CW$28)="",0,INDEX(INDIRECT("in_input"&$B35),$E35,CW$28))) ->  | CX35: =IF(CX34="","",IF(INDEX(INDIRECT("in_input"&$B35),$E35,CX$28)="",0,INDEX(INDIRECT("in_input"&$B35),$E35,CX$28))) ->  | CY35: =IF(CY34="","",IF(INDEX(INDIRECT("in_input"&$B35),$E35,CY$28)="",0,INDEX(INDIRECT("in_input"&$B35),$E35,CY$28))) ->  | CZ35: =IF(CZ34="","",IF(INDEX(INDIRECT("in_input"&$B35),$E35,CZ$28)="",0,INDEX(INDIRECT("in_input"&$B35),$E35,CZ$28))) ->  | DA35: =IF(DA34="","",IF(INDEX(INDIRECT("in_input"&$B35),$E35,DA$28)="",0,INDEX(INDIRECT("in_input"&$B35),$E35,DA$28))) ->  | DB35: =IF(DB34="","",IF(INDEX(INDIRECT("in_input"&$B35),$E35,DB$28)="",0,INDEX(INDIRECT("in_input"&$B35),$E35,DB$28))) ->  | DC35: =IF(DC34="","",IF(INDEX(INDIRECT("in_input"&$B35),$E35,DC$28)="",0,INDEX(INDIRECT("in_input"&$B35),$E35,DC$28))) ->  | DD35: =IF(DD34="","",IF(INDEX(INDIRECT("in_input"&$B35),$E35,DD$28)="",0,INDEX(INDIRECT("in_input"&$B35),$E35,DD$28))) ->  | DE35: =IF(DE34="","",IF(INDEX(INDIRECT("in_input"&$B35),$E35,DE$28)="",0,INDEX(INDIRECT("in_input"&$B35),$E35,DE$28))) ->  | DF35: =IF(DF34="","",IF(INDEX(INDIRECT("in_input"&$B35),$E35,DF$28)="",0,INDEX(INDIRECT("in_input"&$B35),$E35,DF$28))) ->  | DG35: =IF(DG34="","",IF(INDEX(INDIRECT("in_input"&$B35),$E35,DG$28)="",0,INDEX(INDIRECT("in_input"&$B35),$E35,DG$28))) ->  | DH35: =IF(DH34="","",IF(INDEX(INDIRECT("in_input"&$B35),$E35,DH$28)="",0,INDEX(INDIRECT("in_input"&$B35),$E35,DH$28))) ->  | DI35: =IF(DI34="","",IF(INDEX(INDIRECT("in_input"&$B35),$E35,DI$28)="",0,INDEX(INDIRECT("in_input"&$B35),$E35,DI$28))) ->  | DJ35: =IF(DJ34="","",IF(INDEX(INDIRECT("in_input"&$B35),$E35,DJ$28)="",0,INDEX(INDIRECT("in_input"&$B35),$E35,DJ$28))) ->  | DM35: Waiting time | DN35: =DM26 -> 0 | DO35: =DM27 -> shop3564 | DQ35: 10 | DS35: =IF(DS34="","",IF(INDEX(INDIRECT("in_input"&$B35),$E35,DS$28)="",0,INDEX(INDIRECT("in_input"&$B35),$E35,DS$28))) -> 0 | DT35: =IF(DT34="","",IF(INDEX(INDIRECT("in_input"&$B35),$E35,DT$28)="",0,INDEX(INDIRECT("in_input"&$B35),$E35,DT$28))) ->  | DU35: =IF(DU34="","",IF(INDEX(INDIRECT("in_input"&$B35),$E35,DU$28)="",0,INDEX(INDIRECT("in_input"&$B35),$E35,DU$28))) ->  | DV35: =IF(DV34="","",IF(INDEX(INDIRECT("in_input"&$B35),$E35,DV$28)="",0,INDEX(INDIRECT("in_input"&$B35),$E35,DV$28))) ->  | DW35: =IF(DW34="","",IF(INDEX(INDIRECT("in_input"&$B35),$E35,DW$28)="",0,INDEX(INDIRECT("in_input"&$B35),$E35,DW$28))) ->  | DX35: =IF(DX34="","",IF(INDEX(INDIRECT("in_input"&$B35),$E35,DX$28)="",0,INDEX(INDIRECT("in_input"&$B35),$E35,DX$28))) ->  | DY35: =IF(DY34="","",IF(INDEX(INDIRECT("in_input"&$B35),$E35,DY$28)="",0,INDEX(INDIRECT("in_input"&$B35),$E35,DY$28))) ->  | DZ35: =IF(DZ34="","",IF(INDEX(INDIRECT("in_input"&$B35),$E35,DZ$28)="",0,INDEX(INDIRECT("in_input"&$B35),$E35,DZ$28))) ->  | EA35: =IF(EA34="","",IF(INDEX(INDIRECT("in_input"&$B35),$E35,EA$28)="",0,INDEX(INDIRECT("in_input"&$B35),$E35,EA$28))) ->  | EB35: =IF(EB34="","",IF(INDEX(INDIRECT("in_input"&$B35),$E35,EB$28)="",0,INDEX(INDIRECT("in_input"&$B35),$E35,EB$28))) ->  | EC35: =IF(EC34="","",IF(INDEX(INDIRECT("in_input"&$B35),$E35,EC$28)="",0,INDEX(INDIRECT("in_input"&$B35),$E35,EC$28))) ->  | ED35: =IF(ED34="","",IF(INDEX(INDIRECT("in_input"&$B35),$E35,ED$28)="",0,INDEX(INDIRECT("in_input"&$B35),$E35,ED$28))) ->  | EE35: =IF(EE34="","",IF(INDEX(INDIRECT("in_input"&$B35),$E35,EE$28)="",0,INDEX(INDIRECT("in_input"&$B35),$E35,EE$28))) ->  | EF35: =IF(EF34="","",IF(INDEX(INDIRECT("in_input"&$B35),$E35,EF$28)="",0,INDEX(INDIRECT("in_input"&$B35),$E35,EF$28))) ->  | EG35: =IF(EG34="","",IF(INDEX(INDIRECT("in_input"&$B35),$E35,EG$28)="",0,INDEX(INDIRECT("in_input"&$B35),$E35,EG$28))) ->  | EH35: =IF(EH34="","",IF(INDEX(INDIRECT("in_input"&$B35),$E35,EH$28)="",0,INDEX(INDIRECT("in_input"&$B35),$E35,EH$28))) ->  | EI35: =IF(EI34="","",IF(INDEX(INDIRECT("in_input"&$B35),$E35,EI$28)="",0,INDEX(INDIRECT("in_input"&$B35),$E35,EI$28))) ->  | EJ35: =IF(EJ34="","",IF(INDEX(INDIRECT("in_input"&$B35),$E35,EJ$28)="",0,INDEX(INDIRECT("in_input"&$B35),$E35,EJ$28))) ->  | EK35: =IF(EK34="","",IF(INDEX(INDIRECT("in_input"&$B35),$E35,EK$28)="",0,INDEX(INDIRECT("in_input"&$B35),$E35,EK$28))) ->  | EL35: =IF(EL34="","",IF(INDEX(INDIRECT("in_input"&$B35),$E35,EL$28)="",0,INDEX(INDIRECT("in_input"&$B35),$E35,EL$28))) ->  | EM35: =IF(EM34="","",IF(INDEX(INDIRECT("in_input"&$B35),$E35,EM$28)="",0,INDEX(INDIRECT("in_input"&$B35),$E35,EM$28))) ->  | EP35: Waiting time | EQ35: =EP26 -> 0 | ER35: =EP27 -> lei3564 | ET35: 10 | EV35: =IF(EV34="","",IF(INDEX(INDIRECT("in_input"&$B35),$E35,EV$28)="",0,INDEX(INDIRECT("in_input"&$B35),$E35,EV$28))) -> 0 | EW35: =IF(EW34="","",IF(INDEX(INDIRECT("in_input"&$B35),$E35,EW$28)="",0,INDEX(INDIRECT("in_input"&$B35),$E35,EW$28))) ->  | EX35: =IF(EX34="","",IF(INDEX(INDIRECT("in_input"&$B35),$E35,EX$28)="",0,INDEX(INDIRECT("in_input"&$B35),$E35,EX$28))) ->  | EY35: =IF(EY34="","",IF(INDEX(INDIRECT("in_input"&$B35),$E35,EY$28)="",0,INDEX(INDIRECT("in_input"&$B35),$E35,EY$28))) ->  | EZ35: =IF(EZ34="","",IF(INDEX(INDIRECT("in_input"&$B35),$E35,EZ$28)="",0,INDEX(INDIRECT("in_input"&$B35),$E35,EZ$28))) ->  | FA35: =IF(FA34="","",IF(INDEX(INDIRECT("in_input"&$B35),$E35,FA$28)="",0,INDEX(INDIRECT("in_input"&$B35),$E35,FA$28))) ->  | FB35: =IF(FB34="","",IF(INDEX(INDIRECT("in_input"&$B35),$E35,FB$28)="",0,INDEX(INDIRECT("in_input"&$B35),$E35,FB$28))) ->  | FC35: =IF(FC34="","",IF(INDEX(INDIRECT("in_input"&$B35),$E35,FC$28)="",0,INDEX(INDIRECT("in_input"&$B35),$E35,FC$28))) ->  | FD35: =IF(FD34="","",IF(INDEX(INDIRECT("in_input"&$B35),$E35,FD$28)="",0,INDEX(INDIRECT("in_input"&$B35),$E35,FD$28))) ->  | FE35: =IF(FE34="","",IF(INDEX(INDIRECT("in_input"&$B35),$E35,FE$28)="",0,INDEX(INDIRECT("in_input"&$B35),$E35,FE$28))) ->  | FF35: =IF(FF34="","",IF(INDEX(INDIRECT("in_input"&$B35),$E35,FF$28)="",0,INDEX(INDIRECT("in_input"&$B35),$E35,FF$28))) ->  | FG35: =IF(FG34="","",IF(INDEX(INDIRECT("in_input"&$B35),$E35,FG$28)="",0,INDEX(INDIRECT("in_input"&$B35),$E35,FG$28))) ->  | FH35: =IF(FH34="","",IF(INDEX(INDIRECT("in_input"&$B35),$E35,FH$28)="",0,INDEX(INDIRECT("in_input"&$B35),$E35,FH$28))) ->  | FI35: =IF(FI34="","",IF(INDEX(INDIRECT("in_input"&$B35),$E35,FI$28)="",0,INDEX(INDIRECT("in_input"&$B35),$E35,FI$28))) ->  | FJ35: =IF(FJ34="","",IF(INDEX(INDIRECT("in_input"&$B35),$E35,FJ$28)="",0,INDEX(INDIRECT("in_input"&$B35),$E35,FJ$28))) ->  | FK35: =IF(FK34="","",IF(INDEX(INDIRECT("in_input"&$B35),$E35,FK$28)="",0,INDEX(INDIRECT("in_input"&$B35),$E35,FK$28))) ->  | FL35: =IF(FL34="","",IF(INDEX(INDIRECT("in_input"&$B35),$E35,FL$28)="",0,INDEX(INDIRECT("in_input"&$B35),$E35,FL$28))) ->  | FM35: =IF(FM34="","",IF(INDEX(INDIRECT("in_input"&$B35),$E35,FM$28)="",0,INDEX(INDIRECT("in_input"&$B35),$E35,FM$28))) ->  | FN35: =IF(FN34="","",IF(INDEX(INDIRECT("in_input"&$B35),$E35,FN$28)="",0,INDEX(INDIRECT("in_input"&$B35),$E35,FN$28))) ->  | FO35: =IF(FO34="","",IF(INDEX(INDIRECT("in_input"&$B35),$E35,FO$28)="",0,INDEX(INDIRECT("in_input"&$B35),$E35,FO$28))) ->  | FP35: =IF(FP34="","",IF(INDEX(INDIRECT("in_input"&$B35),$E35,FP$28)="",0,INDEX(INDIRECT("in_input"&$B35),$E35,FP$28))) ->  | FS35: Waiting time | FT35: =FS26 -> 0 | FU35: =FS27 -> shop65 | FW35: 10 | FY35: =IF(FY34="","",IF(INDEX(INDIRECT("in_input"&$B35),$E35,FY$28)="",0,INDEX(INDIRECT("in_input"&$B35),$E35,FY$28))) -> 0 | FZ35: =IF(FZ34="","",IF(INDEX(INDIRECT("in_input"&$B35),$E35,FZ$28)="",0,INDEX(INDIRECT("in_input"&$B35),$E35,FZ$28))) ->  | GA35: =IF(GA34="","",IF(INDEX(INDIRECT("in_input"&$B35),$E35,GA$28)="",0,INDEX(INDIRECT("in_input"&$B35),$E35,GA$28))) ->  | GB35: =IF(GB34="","",IF(INDEX(INDIRECT("in_input"&$B35),$E35,GB$28)="",0,INDEX(INDIRECT("in_input"&$B35),$E35,GB$28))) ->  | GC35: =IF(GC34="","",IF(INDEX(INDIRECT("in_input"&$B35),$E35,GC$28)="",0,INDEX(INDIRECT("in_input"&$B35),$E35,GC$28))) ->  | GD35: =IF(GD34="","",IF(INDEX(INDIRECT("in_input"&$B35),$E35,GD$28)="",0,INDEX(INDIRECT("in_input"&$B35),$E35,GD$28))) ->  | GE35: =IF(GE34="","",IF(INDEX(INDIRECT("in_input"&$B35),$E35,GE$28)="",0,INDEX(INDIRECT("in_input"&$B35),$E35,GE$28))) ->  | GF35: =IF(GF34="","",IF(INDEX(INDIRECT("in_input"&$B35),$E35,GF$28)="",0,INDEX(INDIRECT("in_input"&$B35),$E35,GF$28))) ->  | GG35: =IF(GG34="","",IF(INDEX(INDIRECT("in_input"&$B35),$E35,GG$28)="",0,INDEX(INDIRECT("in_input"&$B35),$E35,GG$28))) ->  | GH35: =IF(GH34="","",IF(INDEX(INDIRECT("in_input"&$B35),$E35,GH$28)="",0,INDEX(INDIRECT("in_input"&$B35),$E35,GH$28))) ->  | GI35: =IF(GI34="","",IF(INDEX(INDIRECT("in_input"&$B35),$E35,GI$28)="",0,INDEX(INDIRECT("in_input"&$B35),$E35,GI$28))) ->  | GJ35: =IF(GJ34="","",IF(INDEX(INDIRECT("in_input"&$B35),$E35,GJ$28)="",0,INDEX(INDIRECT("in_input"&$B35),$E35,GJ$28))) ->  | GK35: =IF(GK34="","",IF(INDEX(INDIRECT("in_input"&$B35),$E35,GK$28)="",0,INDEX(INDIRECT("in_input"&$B35),$E35,GK$28))) ->  | GL35: =IF(GL34="","",IF(INDEX(INDIRECT("in_input"&$B35),$E35,GL$28)="",0,INDEX(INDIRECT("in_input"&$B35),$E35,GL$28))) ->  | GM35: =IF(GM34="","",IF(INDEX(INDIRECT("in_input"&$B35),$E35,GM$28)="",0,INDEX(INDIRECT("in_input"&$B35),$E35,GM$28))) ->  | GN35: =IF(GN34="","",IF(INDEX(INDIRECT("in_input"&$B35),$E35,GN$28)="",0,INDEX(INDIRECT("in_input"&$B35),$E35,GN$28))) ->  | GO35: =IF(GO34="","",IF(INDEX(INDIRECT("in_input"&$B35),$E35,GO$28)="",0,INDEX(INDIRECT("in_input"&$B35),$E35,GO$28))) ->  | GP35: =IF(GP34="","",IF(INDEX(INDIRECT("in_input"&$B35),$E35,GP$28)="",0,INDEX(INDIRECT("in_input"&$B35),$E35,GP$28))) ->  | GQ35: =IF(GQ34="","",IF(INDEX(INDIRECT("in_input"&$B35),$E35,GQ$28)="",0,INDEX(INDIRECT("in_input"&$B35),$E35,GQ$28))) ->  | GR35: =IF(GR34="","",IF(INDEX(INDIRECT("in_input"&$B35),$E35,GR$28)="",0,INDEX(INDIRECT("in_input"&$B35),$E35,GR$28))) ->  | GS35: =IF(GS34="","",IF(INDEX(INDIRECT("in_input"&$B35),$E35,GS$28)="",0,INDEX(INDIRECT("in_input"&$B35),$E35,GS$28))) ->  | GV35: Waiting time | GW35: =GV26 -> 0 | GX35: =GV27 -> lei65 | GZ35: 10 | HB35: =IF(HB34="","",IF(INDEX(INDIRECT("in_input"&$B35),$E35,HB$28)="",0,INDEX(INDIRECT("in_input"&$B35),$E35,HB$28))) -> 0 | HC35: =IF(HC34="","",IF(INDEX(INDIRECT("in_input"&$B35),$E35,HC$28)="",0,INDEX(INDIRECT("in_input"&$B35),$E35,HC$28))) ->  | HD35: =IF(HD34="","",IF(INDEX(INDIRECT("in_input"&$B35),$E35,HD$28)="",0,INDEX(INDIRECT("in_input"&$B35),$E35,HD$28))) ->  | HE35: =IF(HE34="","",IF(INDEX(INDIRECT("in_input"&$B35),$E35,HE$28)="",0,INDEX(INDIRECT("in_input"&$B35),$E35,HE$28))) ->  | HF35: =IF(HF34="","",IF(INDEX(INDIRECT("in_input"&$B35),$E35,HF$28)="",0,INDEX(INDIRECT("in_input"&$B35),$E35,HF$28))) ->  | HG35: =IF(HG34="","",IF(INDEX(INDIRECT("in_input"&$B35),$E35,HG$28)="",0,INDEX(INDIRECT("in_input"&$B35),$E35,HG$28))) ->  | HH35: =IF(HH34="","",IF(INDEX(INDIRECT("in_input"&$B35),$E35,HH$28)="",0,INDEX(INDIRECT("in_input"&$B35),$E35,HH$28))) ->  | HI35: =IF(HI34="","",IF(INDEX(INDIRECT("in_input"&$B35),$E35,HI$28)="",0,INDEX(INDIRECT("in_input"&$B35),$E35,HI$28))) ->  | HJ35: =IF(HJ34="","",IF(INDEX(INDIRECT("in_input"&$B35),$E35,HJ$28)="",0,INDEX(INDIRECT("in_input"&$B35),$E35,HJ$28))) ->  | HK35: =IF(HK34="","",IF(INDEX(INDIRECT("in_input"&$B35),$E35,HK$28)="",0,INDEX(INDIRECT("in_input"&$B35),$E35,HK$28))) ->  | HL35: =IF(HL34="","",IF(INDEX(INDIRECT("in_input"&$B35),$E35,HL$28)="",0,INDEX(INDIRECT("in_input"&$B35),$E35,HL$28))) ->  | HM35: =IF(HM34="","",IF(INDEX(INDIRECT("in_input"&$B35),$E35,HM$28)="",0,INDEX(INDIRECT("in_input"&$B35),$E35,HM$28))) ->  | HN35: =IF(HN34="","",IF(INDEX(INDIRECT("in_input"&$B35),$E35,HN$28)="",0,INDEX(INDIRECT("in_input"&$B35),$E35,HN$28))) ->  | HO35: =IF(HO34="","",IF(INDEX(INDIRECT("in_input"&$B35),$E35,HO$28)="",0,INDEX(INDIRECT("in_input"&$B35),$E35,HO$28))) ->  | HP35: =IF(HP34="","",IF(INDEX(INDIRECT("in_input"&$B35),$E35,HP$28)="",0,INDEX(INDIRECT("in_input"&$B35),$E35,HP$28))) ->  | HQ35: =IF(HQ34="","",IF(INDEX(INDIRECT("in_input"&$B35),$E35,HQ$28)="",0,INDEX(INDIRECT("in_input"&$B35),$E35,HQ$28))) ->  | HR35: =IF(HR34="","",IF(INDEX(INDIRECT("in_input"&$B35),$E35,HR$28)="",0,INDEX(INDIRECT("in_input"&$B35),$E35,HR$28))) ->  | HS35: =IF(HS34="","",IF(INDEX(INDIRECT("in_input"&$B35),$E35,HS$28)="",0,INDEX(INDIRECT("in_input"&$B35),$E35,HS$28))) ->  | HT35: =IF(HT34="","",IF(INDEX(INDIRECT("in_input"&$B35),$E35,HT$28)="",0,INDEX(INDIRECT("in_input"&$B35),$E35,HT$28))) ->  | HU35: =IF(HU34="","",IF(INDEX(INDIRECT("in_input"&$B35),$E35,HU$28)="",0,INDEX(INDIRECT("in_input"&$B35),$E35,HU$28))) ->  | HV35: =IF(HV34="","",IF(INDEX(INDIRECT("in_input"&$B35),$E35,HV$28)="",0,INDEX(INDIRECT("in_input"&$B35),$E35,HV$28))) -> 
